Workbook

Sheet Introduction
C4: Joint Monitoring Programme for Water Supply, Sanitation and Hygiene
C6: Estimates on household water, sanitation and hygiene by wealth quintile and sub-national region in
C7: =+Water!B5 -> Mongolia
C9: Updated May 2021
C11: Follow the links below to find the following information:
C13: JMP Estimates
C14: WASH status and trends by wealth quintile (customized quintiles made without water and sanitation assets)
C15: Water
C16: Sanitation
C17: Hygiene
C19: Data inputs
C20: customized wealth quintiles and subnational data:
C21: =IF(INDIRECT(CONCATENATE("Water","!B105"))=0,"",INDIRECT(CONCATENATE("Water","!B105"))) -> MICS00
C22: =IF(INDIRECT(CONCATENATE("Water","!B106"))=0,"",INDIRECT(CONCATENATE("Water","!B106"))) -> MICS05
C23: =IF(INDIRECT(CONCATENATE("Water","!B107"))=0,"",INDIRECT(CONCATENATE("Water","!B107"))) -> MICS10
C24: =IF(INDIRECT(CONCATENATE("Water","!B108"))=0,"",INDIRECT(CONCATENATE("Water","!B108"))) -> MICS14
C25: =IF(INDIRECT(CONCATENATE("Water","!B109"))=0,"",INDIRECT(CONCATENATE("Water","!B109"))) -> MICS18
C26: =IF(INDIRECT(CONCATENATE("Water","!B110"))=0,"",INDIRECT(CONCATENATE("Water","!B110"))) -> 
C27: =IF(INDIRECT(CONCATENATE("Water","!B111"))=0,"",INDIRECT(CONCATENATE("Water","!B111"))) -> 
C28: =IF(INDIRECT(CONCATENATE("Water","!B112"))=0,"",INDIRECT(CONCATENATE("Water","!B112"))) -> 
C29: =IF(INDIRECT(CONCATENATE("Water","!B113"))=0,"",INDIRECT(CONCATENATE("Water","!B113"))) -> 
C30: =IF(INDIRECT(CONCATENATE("Water","!B114"))=0,"",INDIRECT(CONCATENATE("Water","!B114"))) -> 
C31: =IF(INDIRECT(CONCATENATE("Water","!B115"))=0,"",INDIRECT(CONCATENATE("Water","!B115"))) -> 
C32: =IF(INDIRECT(CONCATENATE("Water","!B116"))=0,"",INDIRECT(CONCATENATE("Water","!B116"))) -> 
L55: =+IF(ISNUMBER(M48), "", "Insufficient data to estimate safely managed sanitation services at national level") -> Insufficient data to estimate safely managed sanitation services at national level

Sheet Water
A1: BGD
B4: Summary of trends in use of drinking water by wealth quintile (%)
B5: =IF(ISERROR(INDIRECT(CONCATENATE($B105,"!A2"))),"",INDIRECT(CONCATENATE($B105,"!A2"))) -> Mongolia
B7: =B118 -> National use of drinking water sources, 2000–2020 | J7: =B218 -> Urban use of drinking water sources, 2000–2020 | R7: =B318 -> Rural use of drinking water sources, 2000–2020
B31: =IF(ISERROR(INDIRECT(CONCATENATE($B105,"!A2"))),"",INDIRECT(CONCATENATE($B105,"!A2"))) -> Mongolia | F31: Poorest | J31: Poor | N31: Middle | R31: Rich | V31: Richest
F32: Basic | G32: Limited | H32: Unimproved | I32: Surface water | J32: Basic | K32: Limited | L32: Unimproved | M32: Surface water | N32: Basic | O32: Limited | P32: Unimproved | Q32: Surface water | R32: Basic | S32: Limited | T32: Unimproved | U32: Surface water | V32: Basic | W32: Limited | X32: Unimproved | Y32: Surface water
B33: NATIONAL | D33: Estimate | E33: =C99 -> 2000 | F33: =E99 -> 30.05226373 | G33: =F99 -> 7.400492523 | H33: 22.31655969 | I33: 40.23068406 | J33: =J99 -> 53.95345592 | K33: =K99 -> 6.952264087 | L33: 12.59756432 | M33: 26.49671567 | N33: =O99 -> 79.81203352 | O33: =P99 -> 7.178753519 | P33: 6.80290694 | Q33: 6.206306022 | R33: =T99 -> 88.16010441 | S33: =U99 -> 4.586223707 | T33: 5.102578572 | U33: 2.151093316 | V33: =Y99 -> 99.36872908 | W33: =Z99 -> 0.326857038 | X33: 0.1624619696 | Y33: 0.14195191
E34: =C100 -> 2020 | F34: =E100 -> 53.68134225 | G34: 13.21924949 | H34: 12.82431307 | I34: 20.2750952 | J34: =J100 -> 88.58520335 | K34: 11.41479665 | L34: 0 | M34: 0 | N34: =O100 -> 91.56640398 | O34: 8.23600923 | P34: 0.197586792 | Q34: 0 | R34: =T100 -> 95.05508865 | S34: 4.944911351 | T34: 0 | U34: 0 | V34: =Y100 -> 99.24205572 | W34: 0.3264403669 | X34: 0.4295385783 | Y34: 0.001965334352
B36: URBAN | D36: Estimate | E36: =C199 -> 2000 | F36: =E199 -> 79.944172 | G36: =F199 -> 9.853440889 | H36: 4.217965901 | I36: 5.984421214 | J36: =J199 -> 83.87291713 | K36: =K199 -> 6.92133686 | L36: 4.064338355 | M36: 5.141407655 | N36: =O199 -> 87.91616786 | O36: =P199 -> 6.416610991 | P36: 2.123142054 | Q36: 3.544079094 | R36: =T199 -> 97.8565765 | S36: =U199 -> 1.406332527 | T36: 0.4393527934 | U36: 0.2977381749 | V36: =Y199 -> 99.66272522 | W36: =Z199 -> 0.3372747782 | X36: 0 | Y36: 0
E37: =C200 -> 2020 | F37: =E200 -> 83.60556964 | G37: 10.30472288 | H37: 3.536389312 | I37: 2.553318162 | J37: =J200 -> 92.37689991 | K37: 7.623100092 | L37: 0 | M37: 0 | N37: =O200 -> 93.1978989 | O37: 6.802101103 | P37: 0 | Q37: 0 | R37: =T200 -> 97.15382939 | S37: 1.396233092 | T37: 1.192750315 | U37: 0.2571872015 | V37: =Y200 -> 99.4065274 | W37: 0.3364077634 | X37: 0.2570648341 | Y37: 0
B39: RURAL | D39: Estimate | E39: =C299 -> 2000 | F39: =E299 -> 22.71459683 | G39: =F299 -> 7.571655583 | H39: 27.25017578 | I39: 42.46357181 | J39: =J299 -> 22.47963937 | K39: =K299 -> 6.835620179 | L39: 20.45724926 | M39: 50.22749119 | N39: =O299 -> 19.18019878 | O39: =P299 -> 3.325243145 | P39: 12.55866669 | Q39: 64.93589138 | R39: =T299 -> 32.25682395 | S39: =U299 -> 5.693790302 | T39: 12.25072397 | U39: 49.79866178 | V39: =Y299 -> 56.52256938 | W39: =Z299 -> 4.132050614 | X39: 12.80689034 | Y39: 26.53848966
E40: =C300 -> 2020 | F40: =E300 -> 31.12046586 | G40: 10.37365756 | H40: 22.3747883 | I40: 36.13108829 | J40: =J300 -> 48.35627434 | K40: 14.7042005 | L40: 15.8459945 | M40: 21.09353066 | N40: =O300 -> 73.59391536 | O40: 12.75886998 | P40: 9.367155498 | Q40: 4.280059155 | R40: =T300 -> 76.10375166 | S40: 13.43339951 | T40: 9.120434727 | U40: 1.3424141 | V40: =Y300 -> 87.99582971 | W40: 6.432885591 | X40: 4.544389832 | Y40: 1.026894867
A97: NATIONAL | D97: Poorest | I97: Poor | N97: Middle | S97: Rich | X97: Richest
D98: Improved | E98: Basic | F98: Limited | G98: Unimproved | H98: Surface water | I98: Improved | J98: Basic | K98: Limited | L98: Unimproved | M98: Surface water | N98: Improved | O98: Basic | P98: Limited | Q98: Unimproved | R98: Surface water | S98: Improved | T98: Basic | U98: Limited | V98: Unimproved | W98: Surface water | X98: Improved | Y98: Basic | Z98: Limited | AA98: Unimproved | AB98: Surface water
A99: Forecast period: | C99: 2000 | D99: =IF((D101+H101)>100,D101*100/(D101+H101),D101) -> 37.45275625 | E99: =D99*AVERAGEIF(E105:E116,">0")/100 -> 30.05226373 | F99: =D99*(100-AVERAGEIF(E105:E116,">0"))/100 -> 7.400492523 | G99: =100-(E99+F99+H99) -> 22.31655969 | H99: =IF((D101+H101)>100,H101*100/(D101+H101),H101) -> 40.23068406 | I99: =IF((I101+M101)>100,I101*100/(I101+M101),I101) -> 60.90572001 | J99: =I99*AVERAGEIF(J105:J116,">0")/100 -> 53.95345592 | K99: =I99*(100-AVERAGEIF(J105:J116,">0"))/100 -> 6.952264087 | L99: =100-(J99+K99+M99) -> 12.59756432 | M99: =IF((I101+M101)>100,M101*100/(I101+M101),M101) -> 26.49671567 | N99: =IF((N101+R101)>100,N101*100/(N101+R101),N101) -> 86.99078704 | O99: =N99*AVERAGEIF(O105:O116,">0")/100 -> 79.81203352 | P99: =N99*(100-AVERAGEIF(O105:O116,">0"))/100 -> 7.178753519 | Q99: =100-(O99+P99+R99) -> 6.80290694 | R99: =IF((N101+R101)>100,R101*100/(N101+R101),R101) -> 6.206306022 | S99: =IF((S101+W101)>100,S101*100/(S101+W101),S101) -> 92.74632811 | T99: =S99*AVERAGEIF(T105:T116,">0")/100 -> 88.16010441 | U99: =S99*(100-AVERAGEIF(T105:T116,">0"))/100 -> 4.586223707 | V99: =100-(T99+U99+W99) -> 5.102578572 | W99: =IF((S101+W101)>100,W101*100/(S101+W101),W101) -> 2.151093316 | X99: =IF((X101+AB101)>100,X101*100/(X101+AB101),X101) -> 99.69558612 | Y99: =X99*AVERAGEIF(Y105:Y116,">0")/100 -> 99.36872908 | Z99: =X99*(100-AVERAGEIF(Y105:Y116,">0"))/100 -> 0.326857038 | AA99: =100-(Y99+Z99+AB99) -> 0.1624619696 | AB99: =IF((X101+AB101)>100,AB101*100/(X101+AB101),AB101) -> 0.14195191
C100: 2020 | D100: =IF((D102+H102)>100,D102*100/(D102+H102),D102) -> 66.90059174 | E100: =D100*AVERAGEIF(E105:E116,">0")/100 -> 53.68134225 | F100: =D100*(100-AVERAGEIF(E105:E116,">0"))/100 -> 13.21924949 | G100: =100-(E100+F100+H100) -> 12.82431307 | H100: =IF((D102+H102)>100,H102*100/(D102+H102),H102) -> 20.2750952 | I100: =IF((I102+M102)>100,I102*100/(I102+M102),I102) -> 100 | J100: =I100*AVERAGEIF(J105:J116,">0")/100 -> 88.58520335 | K100: =I100*(100-AVERAGEIF(J105:J116,">0"))/100 -> 11.41479665 | L100: =100-(J100+K100+M100) -> 0 | M100: =IF((I102+M102)>100,M102*100/(I102+M102),M102) -> 0 | N100: =IF((N102+R102)>100,N102*100/(N102+R102),N102) -> 99.80241321 | O100: =N100*AVERAGEIF(O105:O116,">0")/100 -> 91.56640398 | P100: =N100*(100-AVERAGEIF(O105:O116,">0"))/100 -> 8.23600923 | Q100: =100-(O100+P100+R100) -> 0.197586792 | R100: =IF((N102+R102)>100,R102*100/(N102+R102),R102) -> 0 | S100: =IF((S102+W102)>100,S102*100/(S102+W102),S102) -> 100 | T100: =S100*AVERAGEIF(T105:T116,">0")/100 -> 95.05508865 | U100: =S100*(100-AVERAGEIF(T105:T116,">0"))/100 -> 4.944911351 | V100: =100-(T100+U100+W100) -> 0 | W100: =IF((S102+W102)>100,W102*100/(S102+W102),W102) -> 0 | X100: =IF((X102+AB102)>100,X102*100/(X102+AB102),X102) -> 99.56849609 | Y100: =X100*AVERAGEIF(Y105:Y116,">0")/100 -> 99.24205572 | Z100: =X100*(100-AVERAGEIF(Y105:Y116,">0"))/100 -> 0.3264403669 | AA100: =100-(Y100+Z100+AB100) -> 0.4295385783 | AB100: =IF((X102+AB102)>100,AB102*100/(X102+AB102),AB102) -> 0.001965334352
A101: Regression period: | C101: =MinRegYear(C99,C105:C116) -> 2003 | D101: =IF(MAX(C105:C116)-MIN(C105:C116)<5,AVERAGEIF(C105:C116,">0",D105:D116), IF(FORECAST($C101,D$105:D$116,$C$105:$C$116)<0,0, IF(FORECAST($C101,D$105:D$116,$C$105:$C$116)>100,100, FORECAST($C101,D$105:D$116,$C$105:$C$116)))) -> 37.45275625 | H101: =IF(MAX(C105:C116)-MIN(C105:C116)<5,AVERAGEIF(C105:C116,">0",H105:H116), IF(FORECAST($C101,H$105:H$116,$C$105:$C$116)<0,0, IF(FORECAST($C101,H$105:H$116,$C$105:$C$116)>100,100, FORECAST($C101,H$105:H$116,$C$105:$C$116)))) -> 40.23068406 | I101: =IF(MAX(C105:C116)-MIN(C105:C116)<5,AVERAGEIF(C105:C116,">0",I105:I116), IF(FORECAST($C101,I$105:I$116,$C$105:$C$116)<0,0, IF(FORECAST($C101,I$105:I$116,$C$105:$C$116)>100,100, FORECAST($C101,I$105:I$116,$C$105:$C$116)))) -> 60.90572001 | M101: =IF(MAX(C105:C116)-MIN(C105:C116)<5,AVERAGEIF(C105:C116,">0",M105:M116), IF(FORECAST($C101,M$105:M$116,$C$105:$C$116)<0,0, IF(FORECAST($C101,M$105:M$116,$C$105:$C$116)>100,100, FORECAST($C101,M$105:M$116,$C$105:$C$116)))) -> 26.49671567 | N101: =IF(MAX(C105:C116)-MIN(C105:C116)<5,AVERAGEIF(C105:C116,">0",N105:N116), IF(FORECAST($C101,N$105:N$116,$C$105:$C$116)<0,0, IF(FORECAST($C101,N$105:N$116,$C$105:$C$116)>100,100, FORECAST($C101,N$105:N$116,$C$105:$C$116)))) -> 86.99078704 | R101: =IF(MAX(C105:C116)-MIN(C105:C116)<5,AVERAGEIF(C105:C116,">0",R105:R116), IF(FORECAST($C101,R$105:R$116,$C$105:$C$116)<0,0, IF(FORECAST($C101,R$105:R$116,$C$105:$C$116)>100,100, FORECAST($C101,R$105:R$116,$C$105:$C$116)))) -> 6.206306022 | S101: =IF(MAX(C105:C116)-MIN(C105:C116)<5,AVERAGEIF(C105:C116,">0",S105:S116), IF(FORECAST($C101,S$105:S$116,$C$105:$C$116)<0,0, IF(FORECAST($C101,S$105:S$116,$C$105:$C$116)>100,100, FORECAST($C101,S$105:S$116,$C$105:$C$116)))) -> 92.74632811 | W101: =IF(MAX(C105:C116)-MIN(C105:C116)<5,AVERAGEIF(C105:C116,">0",W105:W116), IF(FORECAST($C101,W$105:W$116,$C$105:$C$116)<0,0, IF(FORECAST($C101,W$105:W$116,$C$105:$C$116)>100,100, FORECAST($C101,W$105:W$116,$C$105:$C$116)))) -> 2.151093316 | X101: =IF(MAX(C105:C116)-MIN(C105:C116)<5,AVERAGEIF(C105:C116,">0",X105:X116), IF(FORECAST($C101,X$105:X$116,$C$105:$C$116)<0,0, IF(FORECAST($C101,X$105:X$116,$C$105:$C$116)>100,100, FORECAST($C101,X$105:X$116,$C$105:$C$116)))) -> 99.69558612 | AB101: =IF(MAX(C105:C116)-MIN(C105:C116)<5,AVERAGEIF(C105:C116,">0",AB105:AB116), IF(FORECAST($C101,AB$105:AB$116,$C$105:$C$116)<0,0, IF(FORECAST($C101,AB$105:AB$116,$C$105:$C$116)>100,100, FORECAST($C101,AB$105:AB$116,$C$105:$C$116)))) -> 0.14195191
C102: =MaxRegYear(C100,C105:C116) -> 2020 | D102: =IF(MAX(C105:C116)-MIN(C105:C116)<5,AVERAGEIF(C105:C116,">0",D105:D116), IF(FORECAST($C102,D$105:D$116,$C$105:$C$116)<0,0, IF(FORECAST($C102,D$105:D$116,$C$105:$C$116)>100,100, FORECAST($C102,D$105:D$116,$C$105:$C$116)))) -> 66.90059174 | H102: =IF(MAX(C105:C116)-MIN(C105:C116)<5,AVERAGEIF(C105:C116,">0",H105:H116), IF(FORECAST($C102,H$105:H$116,$C$105:$C$116)<0,0, IF(FORECAST($C102,H$105:H$116,$C$105:$C$116)>100,100, FORECAST($C102,H$105:H$116,$C$105:$C$116)))) -> 20.2750952 | I102: =IF(MAX(C105:C116)-MIN(C105:C116)<5,AVERAGEIF(C105:C116,">0",I105:I116), IF(FORECAST($C102,I$105:I$116,$C$105:$C$116)<0,0, IF(FORECAST($C102,I$105:I$116,$C$105:$C$116)>100,100, FORECAST($C102,I$105:I$116,$C$105:$C$116)))) -> 100 | M102: =IF(MAX(C105:C116)-MIN(C105:C116)<5,AVERAGEIF(C105:C116,">0",M105:M116), IF(FORECAST($C102,M$105:M$116,$C$105:$C$116)<0,0, IF(FORECAST($C102,M$105:M$116,$C$105:$C$116)>100,100, FORECAST($C102,M$105:M$116,$C$105:$C$116)))) -> 0 | N102: =IF(MAX(C105:C116)-MIN(C105:C116)<5,AVERAGEIF(C105:C116,">0",N105:N116), IF(FORECAST($C102,N$105:N$116,$C$105:$C$116)<0,0, IF(FORECAST($C102,N$105:N$116,$C$105:$C$116)>100,100, FORECAST($C102,N$105:N$116,$C$105:$C$116)))) -> 99.80241321 | R102: =IF(MAX(C105:C116)-MIN(C105:C116)<5,AVERAGEIF(C105:C116,">0",R105:R116), IF(FORECAST($C102,R$105:R$116,$C$105:$C$116)<0,0, IF(FORECAST($C102,R$105:R$116,$C$105:$C$116)>100,100, FORECAST($C102,R$105:R$116,$C$105:$C$116)))) -> 0 | S102: =IF(MAX(C105:C116)-MIN(C105:C116)<5,AVERAGEIF(C105:C116,">0",S105:S116), IF(FORECAST($C102,S$105:S$116,$C$105:$C$116)<0,0, IF(FORECAST($C102,S$105:S$116,$C$105:$C$116)>100,100, FORECAST($C102,S$105:S$116,$C$105:$C$116)))) -> 100 | W102: =IF(MAX(C105:C116)-MIN(C105:C116)<5,AVERAGEIF(C105:C116,">0",W105:W116), IF(FORECAST($C102,W$105:W$116,$C$105:$C$116)<0,0, IF(FORECAST($C102,W$105:W$116,$C$105:$C$116)>100,100, FORECAST($C102,W$105:W$116,$C$105:$C$116)))) -> 0 | X102: =IF(MAX(C105:C116)-MIN(C105:C116)<5,AVERAGEIF(C105:C116,">0",X105:X116), IF(FORECAST($C102,X$105:X$116,$C$105:$C$116)<0,0, IF(FORECAST($C102,X$105:X$116,$C$105:$C$116)>100,100, FORECAST($C102,X$105:X$116,$C$105:$C$116)))) -> 99.56849609 | AB102: =IF(MAX(C105:C116)-MIN(C105:C116)<5,AVERAGEIF(C105:C116,">0",AB105:AB116), IF(FORECAST($C102,AB$105:AB$116,$C$105:$C$116)<0,0, IF(FORECAST($C102,AB$105:AB$116,$C$105:$C$116)>100,100, FORECAST($C102,AB$105:AB$116,$C$105:$C$116)))) -> 0.001965334352
B104: Survey | C104: Year | D104: Improved | E104: % Improved < = 30min | H104: Surface water | I104: Improved | J104: % Improved < = 30min | M104: Surface water | N104: Improved | O104: % Improved < = 30min | R104: Surface water | S104: Improved | T104: % Improved < = 30min | W104: Surface water | X104: Improved | Y104: % Improved < = 30min | AB104: Surface water
B105: MICS00 | D105: =IF(ISERROR(INDIRECT(CONCATENATE($B105,"!C16"))),"",INDIRECT(CONCATENATE($B105,"!C16"))) -> 27.10182768 | E105: =IF(ISERROR(INDIRECT(CONCATENATE($B105,"!C23"))),"",INDIRECT(CONCATENATE($B105,"!C23"))) -> 75.46563905 | H105: =IF(ISERROR(INDIRECT(CONCATENATE($B105,"!C21"))),"",INDIRECT(CONCATENATE($B105,"!C21"))) -> 48.47693647 | I105: =IF(ISERROR(INDIRECT(CONCATENATE($B105,"!D16"))),"",INDIRECT(CONCATENATE($B105,"!D16"))) -> 34.80211505 | J105: =IF(ISERROR(INDIRECT(CONCATENATE($B105,"!D23"))),"",INDIRECT(CONCATENATE($B105,"!D23"))) -> 83.1792976 | M105: =IF(ISERROR(INDIRECT(CONCATENATE($B105,"!D21"))),"",INDIRECT(CONCATENATE($B105,"!D21"))) -> 55.91208086 | N105: =IF(ISERROR(INDIRECT(CONCATENATE($B105,"!E16"))),"",INDIRECT(CONCATENATE($B105,"!E16"))) -> 68.55756359 | O105: =IF(ISERROR(INDIRECT(CONCATENATE($B105,"!E23"))),"",INDIRECT(CONCATENATE($B105,"!E23"))) -> 88.06262231 | R105: =IF(ISERROR(INDIRECT(CONCATENATE($B105,"!E21"))),"",INDIRECT(CONCATENATE($B105,"!E21"))) -> 26.09351433 | S105: =IF(ISERROR(INDIRECT(CONCATENATE($B105,"!F16"))),"",INDIRECT(CONCATENATE($B105,"!F16"))) -> 85.0992825 | T105: =IF(ISERROR(INDIRECT(CONCATENATE($B105,"!F23"))),"",INDIRECT(CONCATENATE($B105,"!F23"))) -> 90.16875981 | W105: =IF(ISERROR(INDIRECT(CONCATENATE($B105,"!F21"))),"",INDIRECT(CONCATENATE($B105,"!F21"))) -> 10.90332276 | X105: =IF(ISERROR(INDIRECT(CONCATENATE($B105,"!G16"))),"",INDIRECT(CONCATENATE($B105,"!G16"))) -> 99.86651093 | Y105: =IF(ISERROR(INDIRECT(CONCATENATE($B105,"!G23"))),"",INDIRECT(CONCATENATE($B105,"!G23"))) -> 99.91645781 | AB105: =IF(ISERROR(INDIRECT(CONCATENATE($B105,"!G221"))),"",INDIRECT(CONCATENATE($B105,"!G21"))) -> 0
B106: MICS05 | C106: 2005 | D106: 37.29906257 | E106: N/A | H106: 37.5027587 | I106: 59.52326494 | J106: N/A | M106: 26.74900862 | N106: 84.87976237 | O106: N/A | R106: 6.76012559 | S106: 92.19693969 | T106: N/A | W106: 2.079547703 | X106: 99.44052101 | Y106: N/A | AB106: 0.1475684012
B107: MICS10 | C107: 2010 | D107: 43.26144007 | E107: 76.7963301 | H107: 39.19063865 | I107: 86.31721567 | J107: 91.3213234 | M107: 9.118007715 | N107: 96.73619047 | O107: 93.58261133 | R107: 1.761343906 | S107: 97.3136136 | T107: 93.41322416 | W107: 1.151107798 | X107: 99.8401148 | Y107: 99.58712883 | AB107: 0.07410762168
B108: MICS14 | C108: 2014 | D108: 80.9 | E108: 83.6 | H108: 14.2 | I108: 95.9 | J108: 87.3 | M108: 2.1 | N108: 98.1 | O108: 90.3 | R108: 0.6 | S108: 100 | T108: 98.5 | W108: 0 | X108: 100 | Y108: 99.8 | AB108: 0
B109: MICS18 | C109: 2018 | D109: 48.97841895 | E109: 85.09986902 | H109: 28.944303 | I109: 92.24272424 | J109: 92.5401924 | M109: 3.20409137 | N109: 94.62407272 | O109: 95.04550751 | R109: 1.596736082 | S109: 97.70001527 | T109: 98.13837062 | W109: 0.5030648811 | X109: 99.24005272 | Y109: 99.38499306 | AB109: 0.05792396136
D111: =IF(ISERROR(INDIRECT(CONCATENATE($B111,"!C16"))),"",INDIRECT(CONCATENATE($B111,"!C16"))) ->  | E111: =IF(ISERROR(INDIRECT(CONCATENATE($B111,"!C23"))),"",INDIRECT(CONCATENATE($B111,"!C23"))) ->  | H111: =IF(ISERROR(INDIRECT(CONCATENATE($B111,"!C21"))),"",INDIRECT(CONCATENATE($B111,"!C21"))) ->  | I111: =IF(ISERROR(INDIRECT(CONCATENATE($B111,"!D16"))),"",INDIRECT(CONCATENATE($B111,"!D16"))) ->  | J111: =IF(ISERROR(INDIRECT(CONCATENATE($B111,"!D23"))),"",INDIRECT(CONCATENATE($B111,"!D23"))) ->  | M111: =IF(ISERROR(INDIRECT(CONCATENATE($B111,"!D21"))),"",INDIRECT(CONCATENATE($B111,"!D21"))) ->  | N111: =IF(ISERROR(INDIRECT(CONCATENATE($B111,"!E16"))),"",INDIRECT(CONCATENATE($B111,"!E16"))) ->  | O111: =IF(ISERROR(INDIRECT(CONCATENATE($B111,"!E23"))),"",INDIRECT(CONCATENATE($B111,"!E23"))) ->  | R111: =IF(ISERROR(INDIRECT(CONCATENATE($B111,"!E21"))),"",INDIRECT(CONCATENATE($B111,"!E21"))) ->  | S111: =IF(ISERROR(INDIRECT(CONCATENATE($B111,"!F16"))),"",INDIRECT(CONCATENATE($B111,"!F16"))) ->  | T111: =IF(ISERROR(INDIRECT(CONCATENATE($B111,"!F23"))),"",INDIRECT(CONCATENATE($B111,"!F23"))) ->  | W111: =IF(ISERROR(INDIRECT(CONCATENATE($B111,"!F21"))),"",INDIRECT(CONCATENATE($B111,"!F21"))) ->  | X111: =IF(ISERROR(INDIRECT(CONCATENATE($B111,"!G16"))),"",INDIRECT(CONCATENATE($B111,"!G16"))) ->  | Y111: =IF(ISERROR(INDIRECT(CONCATENATE($B111,"!G23"))),"",INDIRECT(CONCATENATE($B111,"!G23"))) ->  | AB111: =IF(ISERROR(INDIRECT(CONCATENATE($B111,"!G221"))),"",INDIRECT(CONCATENATE($B111,"!G21"))) -> 
D112: =IF(ISERROR(INDIRECT(CONCATENATE($B112,"!C16"))),"",INDIRECT(CONCATENATE($B112,"!C16"))) ->  | E112: =IF(ISERROR(INDIRECT(CONCATENATE($B112,"!C23"))),"",INDIRECT(CONCATENATE($B112,"!C23"))) ->  | H112: =IF(ISERROR(INDIRECT(CONCATENATE($B112,"!C21"))),"",INDIRECT(CONCATENATE($B112,"!C21"))) ->  | I112: =IF(ISERROR(INDIRECT(CONCATENATE($B112,"!D16"))),"",INDIRECT(CONCATENATE($B112,"!D16"))) ->  | J112: =IF(ISERROR(INDIRECT(CONCATENATE($B112,"!D23"))),"",INDIRECT(CONCATENATE($B112,"!D23"))) ->  | M112: =IF(ISERROR(INDIRECT(CONCATENATE($B112,"!D21"))),"",INDIRECT(CONCATENATE($B112,"!D21"))) ->  | N112: =IF(ISERROR(INDIRECT(CONCATENATE($B112,"!E16"))),"",INDIRECT(CONCATENATE($B112,"!E16"))) ->  | O112: =IF(ISERROR(INDIRECT(CONCATENATE($B112,"!E23"))),"",INDIRECT(CONCATENATE($B112,"!E23"))) ->  | R112: =IF(ISERROR(INDIRECT(CONCATENATE($B112,"!E21"))),"",INDIRECT(CONCATENATE($B112,"!E21"))) ->  | S112: =IF(ISERROR(INDIRECT(CONCATENATE($B112,"!F16"))),"",INDIRECT(CONCATENATE($B112,"!F16"))) ->  | T112: =IF(ISERROR(INDIRECT(CONCATENATE($B112,"!F23"))),"",INDIRECT(CONCATENATE($B112,"!F23"))) ->  | W112: =IF(ISERROR(INDIRECT(CONCATENATE($B112,"!F21"))),"",INDIRECT(CONCATENATE($B112,"!F21"))) ->  | X112: =IF(ISERROR(INDIRECT(CONCATENATE($B112,"!G16"))),"",INDIRECT(CONCATENATE($B112,"!G16"))) ->  | Y112: =IF(ISERROR(INDIRECT(CONCATENATE($B112,"!G23"))),"",INDIRECT(CONCATENATE($B112,"!G23"))) ->  | AB112: =IF(ISERROR(INDIRECT(CONCATENATE($B112,"!G221"))),"",INDIRECT(CONCATENATE($B112,"!G21"))) -> 
B118: =CONCATENATE("National use of drinking water sources, ",C99,"–",C100) -> National use of drinking water sources, 2000–2020 | S118: Data points used for regression
E153: =IF(ISERROR(INDIRECT(CONCATENATE($B153,"!M18"))),"",INDIRECT(CONCATENATE($B153,"!M18"))) ->  | F153: =IF(ISERROR(INDIRECT(CONCATENATE($B153,"!M19"))),"",INDIRECT(CONCATENATE($B153,"!M19"))) ->  | G153: =IF(ISERROR(INDIRECT(CONCATENATE($B153,"!M20"))),"",INDIRECT(CONCATENATE($B153,"!M20"))) ->  | H153: =IF(ISERROR(INDIRECT(CONCATENATE($B153,"!M21"))),"",INDIRECT(CONCATENATE($B153,"!M21"))) ->  | J153: =IF(ISERROR(INDIRECT(CONCATENATE($B153,"!N18"))),"",INDIRECT(CONCATENATE($B153,"!N18"))) ->  | K153: =IF(ISERROR(INDIRECT(CONCATENATE($B153,"!N19"))),"",INDIRECT(CONCATENATE($B153,"!N19"))) ->  | L153: =IF(ISERROR(INDIRECT(CONCATENATE($B153,"!N20"))),"",INDIRECT(CONCATENATE($B153,"!N20"))) ->  | M153: =IF(ISERROR(INDIRECT(CONCATENATE($B153,"!N21"))),"",INDIRECT(CONCATENATE($B153,"!N21"))) ->  | O153: =IF(ISERROR(INDIRECT(CONCATENATE($B153,"!O18"))),"",INDIRECT(CONCATENATE($B153,"!O18"))) ->  | P153: =IF(ISERROR(INDIRECT(CONCATENATE($B153,"!O19"))),"",INDIRECT(CONCATENATE($B153,"!O19"))) ->  | Q153: =IF(ISERROR(INDIRECT(CONCATENATE($B153,"!O20"))),"",INDIRECT(CONCATENATE($B153,"!O20"))) ->  | R153: =IF(ISERROR(INDIRECT(CONCATENATE($B153,"!O21"))),"",INDIRECT(CONCATENATE($B153,"!O21"))) ->  | T153: =IF(ISERROR(INDIRECT(CONCATENATE($B153,"!P18"))),"",INDIRECT(CONCATENATE($B153,"!P18"))) ->  | U153: =IF(ISERROR(INDIRECT(CONCATENATE($B153,"!P19"))),"",INDIRECT(CONCATENATE($B153,"!P19"))) ->  | V153: =IF(ISERROR(INDIRECT(CONCATENATE($B153,"!P20"))),"",INDIRECT(CONCATENATE($B153,"!P20"))) ->  | W153: =IF(ISERROR(INDIRECT(CONCATENATE($B153,"!P21"))),"",INDIRECT(CONCATENATE($B153,"!P21"))) ->  | Y153: =IF(ISERROR(INDIRECT(CONCATENATE($B153,"!Q18"))),"",INDIRECT(CONCATENATE($B153,"!Q18"))) ->  | Z153: =IF(ISERROR(INDIRECT(CONCATENATE($B153,"!Q19"))),"",INDIRECT(CONCATENATE($B153,"!Q19"))) ->  | AA153: =IF(ISERROR(INDIRECT(CONCATENATE($B153,"!Q20"))),"",INDIRECT(CONCATENATE($B153,"!Q20"))) ->  | AB153: =IF(ISERROR(INDIRECT(CONCATENATE($B153,"!Q21"))),"",INDIRECT(CONCATENATE($B153,"!Q1"))) -> 
A197: URBAN | D197: Poorest | I197: Poor | N197: Middle | S197: Rich | X197: Richest
D198: Improved | E198: Basic | F198: Limited | G198: Unimproved | H198: Surface water | I198: Improved | J198: Basic | K198: Limited | L198: Unimproved | M198: Surface water | N198: Improved | O198: Basic | P198: Limited | Q198: Unimproved | R198: Surface water | S198: Improved | T198: Basic | U198: Limited | V198: Unimproved | W198: Surface water | X198: Improved | Y198: Basic | Z198: Limited | AA198: Unimproved | AB198: Surface water
A199: Forecast period: | C199: 2000 | D199: =IF((D201+H201)>100,D201*100/(D201+H201),D201) -> 89.79761288 | E199: =D199*AVERAGEIF(E205:E216,">0")/100 -> 79.944172 | F199: =D199*(100-AVERAGEIF(E205:E216,">0"))/100 -> 9.853440889 | G199: =100-(E199+F199+H199) -> 4.217965901 | H199: =IF((D201+H201)>100,H201*100/(D201+H201),H201) -> 5.984421214 | I199: =IF((I201+M201)>100,I201*100/(I201+M201),I201) -> 90.79425399 | J199: =I199*AVERAGEIF(J205:J216,">0")/100 -> 83.87291713 | K199: =I199*(100-AVERAGEIF(J205:J216,">0"))/100 -> 6.92133686 | L199: =100-(J199+K199+M199) -> 4.064338355 | M199: =IF((I201+M201)>100,M201*100/(I201+M201),M201) -> 5.141407655 | N199: =IF((N201+R201)>100,N201*100/(N201+R201),N201) -> 94.33277885 | O199: =N199*AVERAGEIF(O205:O216,">0")/100 -> 87.91616786 | P199: =N199*(100-AVERAGEIF(O205:O216,">0"))/100 -> 6.416610991 | Q199: =100-(O199+P199+R199) -> 2.123142054 | R199: =IF((N201+R201)>100,R201*100/(N201+R201),R201) -> 3.544079094 | S199: =IF((S201+W201)>100,S201*100/(S201+W201),S201) -> 99.26290903 | T199: =S199*AVERAGEIF(T205:T216,">0")/100 -> 97.8565765 | U199: =S199*(100-AVERAGEIF(T205:T216,">0"))/100 -> 1.406332527 | V199: =100-(T199+U199+W199) -> 0.4393527934 | W199: =IF((S201+W201)>100,W201*100/(S201+W201),W201) -> 0.2977381749 | X199: =IF((X201+AB201)>100,X201*100/(X201+AB201),X201) -> 100 | Y199: =X199*AVERAGEIF(Y205:Y216,">0")/100 -> 99.66272522 | Z199: =X199*(100-AVERAGEIF(Y205:Y216,">0"))/100 -> 0.3372747782 | AA199: =100-(Y199+Z199+AB199) -> 0 | AB199: =IF((X201+AB201)>100,AB201*100/(X201+AB201),AB201) -> 0
C200: 2020 | D200: =IF((D202+H202)>100,D202*100/(D202+H202),D202) -> 93.91029253 | E200: =D200*AVERAGEIF(E205:E216,">0")/100 -> 83.60556964 | F200: =D200*(100-AVERAGEIF(E205:E216,">0"))/100 -> 10.30472288 | G200: =100-(E200+F200+H200) -> 3.536389312 | H200: =IF((D202+H202)>100,H202*100/(D202+H202),H202) -> 2.553318162 | I200: =IF((I202+M202)>100,I202*100/(I202+M202),I202) -> 100 | J200: =I200*AVERAGEIF(J205:J216,">0")/100 -> 92.37689991 | K200: =I200*(100-AVERAGEIF(J205:J216,">0"))/100 -> 7.623100092 | L200: =100-(J200+K200+M200) -> 0 | M200: =IF((I202+M202)>100,M202*100/(I202+M202),M202) -> 0 | N200: =IF((N202+R202)>100,N202*100/(N202+R202),N202) -> 100 | O200: =N200*AVERAGEIF(O205:O216,">0")/100 -> 93.1978989 | P200: =N200*(100-AVERAGEIF(O205:O216,">0"))/100 -> 6.802101103 | Q200: =100-(O200+P200+R200) -> 0 | R200: =IF((N202+R202)>100,R202*100/(N202+R202),R202) -> 0 | S200: =IF((S202+W202)>100,S202*100/(S202+W202),S202) -> 98.55006248 | T200: =S200*AVERAGEIF(T205:T216,">0")/100 -> 97.15382939 | U200: =S200*(100-AVERAGEIF(T205:T216,">0"))/100 -> 1.396233092 | V200: =100-(T200+U200+W200) -> 1.192750315 | W200: =IF((S202+W202)>100,W202*100/(S202+W202),W202) -> 0.2571872015 | X200: =IF((X202+AB202)>100,X202*100/(X202+AB202),X202) -> 99.74293517 | Y200: =X200*AVERAGEIF(Y205:Y216,">0")/100 -> 99.4065274 | Z200: =X200*(100-AVERAGEIF(Y205:Y216,">0"))/100 -> 0.3364077634 | AA200: =100-(Y200+Z200+AB200) -> 0.2570648341 | AB200: =IF((X202+AB202)>100,AB202*100/(X202+AB202),AB202) -> 0
A201: Regression period: | C201: =MinRegYear(C199,C205:C216) -> 2000 | D201: =IF(MAX(C205:C216)-MIN(C205:C216)<5,AVERAGEIF(C205:C216,">0",D205:D216), IF(FORECAST($C201,D$205:D$216,$C$205:$C$216)<0,0, IF(FORECAST($C201,D$205:D$216,$C$205:$C$216)>100,100, FORECAST($C201,D$205:D$216,$C$205:$C$216)))) -> 89.79761288 | H201: =IF(MAX(C205:C216)-MIN(C205:C216)<5,AVERAGEIF(C205:C216,">0",H205:H216), IF(FORECAST($C201,H$205:H$216,$C$205:$C$216)<0,0, IF(FORECAST($C201,H$205:H$216,$C$205:$C$216)>100,100, FORECAST($C201,H$205:H$216,$C$205:$C$216)))) -> 5.984421214 | I201: =IF(MAX(C205:C216)-MIN(C205:C216)<5,AVERAGEIF(C205:C216,">0",I205:I216), IF(FORECAST($C201,I$205:I$216,$C$205:$C$216)<0,0, IF(FORECAST($C201,I$205:I$216,$C$205:$C$216)>100,100, FORECAST($C201,I$205:I$216,$C$205:$C$216)))) -> 90.79425399 | M201: =IF(MAX(C205:C216)-MIN(C205:C216)<5,AVERAGEIF(C205:C216,">0",M205:M216), IF(FORECAST($C201,M$205:M$216,$C$205:$C$216)<0,0, IF(FORECAST($C201,M$205:M$216,$C$205:$C$216)>100,100, FORECAST($C201,M$205:M$216,$C$205:$C$216)))) -> 5.141407655 | N201: =IF(MAX(C205:C216)-MIN(C205:C216)<5,AVERAGEIF(C205:C216,">0",N205:N216), IF(FORECAST($C201,N$205:N$216,$C$205:$C$216)<0,0, IF(FORECAST($C201,N$205:N$216,$C$205:$C$216)>100,100, FORECAST($C201,N$205:N$216,$C$205:$C$216)))) -> 94.33277885 | R201: =IF(MAX(C205:C216)-MIN(C205:C216)<5,AVERAGEIF(C205:C216,">0",R205:R216), IF(FORECAST($C201,R$205:R$216,$C$205:$C$216)<0,0, IF(FORECAST($C201,R$205:R$216,$C$205:$C$216)>100,100, FORECAST($C201,R$205:R$216,$C$205:$C$216)))) -> 3.544079094 | S201: =IF(MAX(C205:C216)-MIN(C205:C216)<5,AVERAGEIF(C205:C216,">0",S205:S216), IF(FORECAST($C201,S$205:S$216,$C$205:$C$216)<0,0, IF(FORECAST($C201,S$205:S$216,$C$205:$C$216)>100,100, FORECAST($C201,S$205:S$216,$C$205:$C$216)))) -> 99.26290903 | W201: =IF(MAX(C205:C216)-MIN(C205:C216)<5,AVERAGEIF(C205:C216,">0",W205:W216), IF(FORECAST($C201,W$205:W$216,$C$205:$C$216)<0,0, IF(FORECAST($C201,W$205:W$216,$C$205:$C$216)>100,100, FORECAST($C201,W$205:W$216,$C$205:$C$216)))) -> 0.2977381749 | X201: =IF(MAX(C205:C216)-MIN(C205:C216)<5,AVERAGEIF(C205:C216,">0",X205:X216), IF(FORECAST($C201,X$205:X$216,$C$205:$C$216)<0,0, IF(FORECAST($C201,X$205:X$216,$C$205:$C$216)>100,100, FORECAST($C201,X$205:X$216,$C$205:$C$216)))) -> 100 | AB201: =IF(MAX(C205:C216)-MIN(C205:C216)<5,AVERAGEIF(C205:C216,">0",AB205:AB216), IF(FORECAST($C201,AB$205:AB$216,$C$205:$C$216)<0,0, IF(FORECAST($C201,AB$205:AB$216,$C$205:$C$216)>100,100, FORECAST($C201,AB$205:AB$216,$C$205:$C$216)))) -> 0
C202: =MaxRegYear(C200,C205:C216) -> 2020 | D202: =IF(MAX(C205:C216)-MIN(C205:C216)<5,AVERAGEIF(C205:C216,">0",D205:D216), IF(FORECAST($C202,D$205:D$216,$C$205:$C$216)<0,0, IF(FORECAST($C202,D$205:D$216,$C$205:$C$216)>100,100, FORECAST($C202,D$205:D$216,$C$205:$C$216)))) -> 93.91029253 | H202: =IF(MAX(C205:C216)-MIN(C205:C216)<5,AVERAGEIF(C205:C216,">0",H205:H216), IF(FORECAST($C202,H$205:H$216,$C$205:$C$216)<0,0, IF(FORECAST($C202,H$205:H$216,$C$205:$C$216)>100,100, FORECAST($C202,H$205:H$216,$C$205:$C$216)))) -> 2.553318162 | I202: =IF(MAX(C205:C216)-MIN(C205:C216)<5,AVERAGEIF(C205:C216,">0",I205:I216), IF(FORECAST($C202,I$205:I$216,$C$205:$C$216)<0,0, IF(FORECAST($C202,I$205:I$216,$C$205:$C$216)>100,100, FORECAST($C202,I$205:I$216,$C$205:$C$216)))) -> 100 | M202: =IF(MAX(C205:C216)-MIN(C205:C216)<5,AVERAGEIF(C205:C216,">0",M205:M216), IF(FORECAST($C202,M$205:M$216,$C$205:$C$216)<0,0, IF(FORECAST($C202,M$205:M$216,$C$205:$C$216)>100,100, FORECAST($C202,M$205:M$216,$C$205:$C$216)))) -> 0 | N202: =IF(MAX(C205:C216)-MIN(C205:C216)<5,AVERAGEIF(C205:C216,">0",N205:N216), IF(FORECAST($C202,N$205:N$216,$C$205:$C$216)<0,0, IF(FORECAST($C202,N$205:N$216,$C$205:$C$216)>100,100, FORECAST($C202,N$205:N$216,$C$205:$C$216)))) -> 100 | R202: =IF(MAX(C205:C216)-MIN(C205:C216)<5,AVERAGEIF(C205:C216,">0",R205:R216), IF(FORECAST($C202,R$205:R$216,$C$205:$C$216)<0,0, IF(FORECAST($C202,R$205:R$216,$C$205:$C$216)>100,100, FORECAST($C202,R$205:R$216,$C$205:$C$216)))) -> 0 | S202: =IF(MAX(C205:C216)-MIN(C205:C216)<5,AVERAGEIF(C205:C216,">0",S205:S216), IF(FORECAST($C202,S$205:S$216,$C$205:$C$216)<0,0, IF(FORECAST($C202,S$205:S$216,$C$205:$C$216)>100,100, FORECAST($C202,S$205:S$216,$C$205:$C$216)))) -> 98.55006248 | W202: =IF(MAX(C205:C216)-MIN(C205:C216)<5,AVERAGEIF(C205:C216,">0",W205:W216), IF(FORECAST($C202,W$205:W$216,$C$205:$C$216)<0,0, IF(FORECAST($C202,W$205:W$216,$C$205:$C$216)>100,100, FORECAST($C202,W$205:W$216,$C$205:$C$216)))) -> 0.2571872015 | X202: =IF(MAX(C205:C216)-MIN(C205:C216)<5,AVERAGEIF(C205:C216,">0",X205:X216), IF(FORECAST($C202,X$205:X$216,$C$205:$C$216)<0,0, IF(FORECAST($C202,X$205:X$216,$C$205:$C$216)>100,100, FORECAST($C202,X$205:X$216,$C$205:$C$216)))) -> 99.74293517 | AB202: =IF(MAX(C205:C216)-MIN(C205:C216)<5,AVERAGEIF(C205:C216,">0",AB205:AB216), IF(FORECAST($C202,AB$205:AB$216,$C$205:$C$216)<0,0, IF(FORECAST($C202,AB$205:AB$216,$C$205:$C$216)>100,100, FORECAST($C202,AB$205:AB$216,$C$205:$C$216)))) -> 0
B204: Survey | C204: Year | D204: Improved | E204: % Improved < = 30min | H204: Surface water | I204: Improved | J204: % Improved < = 30min | M204: Surface water | N204: Improved | O204: % Improved < = 30min | R204: Surface water | S204: Improved | T204: % Improved < = 30min | W204: Surface water | X204: Improved | Y204: % Improved < = 30min | AB204: Surface water
B205: MICS00 | C205: 2000 | D205: =IF(ISERROR(INDIRECT(CONCATENATE($B205,"!H16"))),"",INDIRECT(CONCATENATE($B205,"!H16"))) -> 93.13868613 | E205: =IF(ISERROR(INDIRECT(CONCATENATE($B205,"!H23"))),"",INDIRECT(CONCATENATE($B205,"!H23"))) -> 89.36420722 | H205: =IF(ISERROR(INDIRECT(CONCATENATE($B205,"!H21"))),"",INDIRECT(CONCATENATE($B205,"!H21"))) -> 4.459064327 | I205: =IF(ISERROR(INDIRECT(CONCATENATE($B205,"!I16"))),"",INDIRECT(CONCATENATE($B205,"!I16"))) -> 90.14830508 | J205: =IF(ISERROR(INDIRECT(CONCATENATE($B205,"!I23"))),"",INDIRECT(CONCATENATE($B205,"!I23"))) -> 91.68301295 | M205: =IF(ISERROR(INDIRECT(CONCATENATE($B205,"!I21"))),"",INDIRECT(CONCATENATE($B205,"!I21"))) -> 6.57708628 | N205: =IF(ISERROR(INDIRECT(CONCATENATE($B205,"!J16"))),"",INDIRECT(CONCATENATE($B205,"!J16"))) -> 93.11377246 | O205: =IF(ISERROR(INDIRECT(CONCATENATE($B205,"!J23"))),"",INDIRECT(CONCATENATE($B205,"!J23"))) -> 88.90675241 | R205: =IF(ISERROR(INDIRECT(CONCATENATE($B205,"!J21"))),"",INDIRECT(CONCATENATE($B205,"!J21"))) -> 4.94011976 | S205: =IF(ISERROR(INDIRECT(CONCATENATE($B205,"!K16"))),"",INDIRECT(CONCATENATE($B205,"!K16"))) -> 100 | T205: =IF(ISERROR(INDIRECT(CONCATENATE($B205,"!K23"))),"",INDIRECT(CONCATENATE($B205,"!K23"))) -> 100 | W205: =IF(ISERROR(INDIRECT(CONCATENATE($B205,"!K21"))),"",INDIRECT(CONCATENATE($B205,"!K21"))) -> 0 | X205: =IF(ISERROR(INDIRECT(CONCATENATE($B205,"!L16"))),"",INDIRECT(CONCATENATE($B205,"!L16"))) -> 100 | Y205: =IF(ISERROR(INDIRECT(CONCATENATE($B205,"!L23"))),"",INDIRECT(CONCATENATE($B205,"!L23"))) -> 99.81785064 | AB205: =IF(ISERROR(INDIRECT(CONCATENATE($B205,"!L221"))),"",INDIRECT(CONCATENATE($B205,"!L21"))) -> 0
B206: MICS05 | C206: 2005 | D206: 89.48601874 | E206: N/A | H206: 4.387482583 | I206: 93.0518127 | J206: N/A | M206: 1.615344541 | N206: 97.19626327 | O206: N/A | R206: 0.517576376 | S206: 98.1399783 | T206: N/A | W206: 0.5205471868 | X206: 100 | Y206: N/A | AB206: 0
B207: MICS10 | C207: 2010 | D207: 84.20189881 | E207: 90.4094888 | H207: 9.793386883 | I207: 96.18233488 | J207: 93.62244399 | M207: 1.894110747 | N207: 97.42743832 | O207: 92.82724082 | R207: 1.485920363 | S207: 98.16515784 | T207: 95.37420045 | W207: 0.7035113512 | X207: 99.92848971 | Y207: 99.62593172 | AB207: 0
B208: MICS14 | C208: 2014 | D208: 97.3 | E208: 85.3 | H208: 1.8 | I208: 98.9 | J208: 89.4 | M208: 0.2 | N208: 99.6 | O208: 93.6 | R208: 0.3 | S208: 100 | T208: 100 | W208: 0 | X208: 99.9 | Y208: 99.8 | AB208: 0
B209: MICS18 | C209: 2018 | D209: 94.5262579 | E209: 91.03453193 | H209: 1.419080104 | I209: 97.49326635 | J209: 94.8021427 | M209: 0.04831400697 | N209: 98.61566949 | O209: 97.45760235 | R209: 0.2683346439 | S209: 98.33421964 | T209: 98.95869775 | W209: 0.1693375489 | X209: 99.69700614 | Y209: 99.40711853 | AB209: 0
B218: =CONCATENATE("Urban use of drinking water sources, ",C199,"–",C200) -> Urban use of drinking water sources, 2000–2020 | S218: Data points used for regression
E253: =IF(ISERROR(INDIRECT(CONCATENATE($B253,"!M18"))),"",INDIRECT(CONCATENATE($B253,"!M18"))) ->  | F253: =IF(ISERROR(INDIRECT(CONCATENATE($B253,"!M19"))),"",INDIRECT(CONCATENATE($B253,"!M19"))) ->  | G253: =IF(ISERROR(INDIRECT(CONCATENATE($B253,"!M20"))),"",INDIRECT(CONCATENATE($B253,"!M20"))) ->  | H253: =IF(ISERROR(INDIRECT(CONCATENATE($B253,"!M21"))),"",INDIRECT(CONCATENATE($B253,"!M21"))) ->  | J253: =IF(ISERROR(INDIRECT(CONCATENATE($B253,"!N18"))),"",INDIRECT(CONCATENATE($B253,"!N18"))) ->  | K253: =IF(ISERROR(INDIRECT(CONCATENATE($B253,"!N19"))),"",INDIRECT(CONCATENATE($B253,"!N19"))) ->  | L253: =IF(ISERROR(INDIRECT(CONCATENATE($B253,"!N20"))),"",INDIRECT(CONCATENATE($B253,"!N20"))) ->  | M253: =IF(ISERROR(INDIRECT(CONCATENATE($B253,"!N21"))),"",INDIRECT(CONCATENATE($B253,"!N21"))) ->  | O253: =IF(ISERROR(INDIRECT(CONCATENATE($B253,"!O18"))),"",INDIRECT(CONCATENATE($B253,"!O18"))) ->  | P253: =IF(ISERROR(INDIRECT(CONCATENATE($B253,"!O19"))),"",INDIRECT(CONCATENATE($B253,"!O19"))) ->  | Q253: =IF(ISERROR(INDIRECT(CONCATENATE($B253,"!O20"))),"",INDIRECT(CONCATENATE($B253,"!O20"))) ->  | R253: =IF(ISERROR(INDIRECT(CONCATENATE($B253,"!O21"))),"",INDIRECT(CONCATENATE($B253,"!O21"))) ->  | T253: =IF(ISERROR(INDIRECT(CONCATENATE($B253,"!P18"))),"",INDIRECT(CONCATENATE($B253,"!P18"))) ->  | U253: =IF(ISERROR(INDIRECT(CONCATENATE($B253,"!P19"))),"",INDIRECT(CONCATENATE($B253,"!P19"))) ->  | V253: =IF(ISERROR(INDIRECT(CONCATENATE($B253,"!P20"))),"",INDIRECT(CONCATENATE($B253,"!P20"))) ->  | W253: =IF(ISERROR(INDIRECT(CONCATENATE($B253,"!P21"))),"",INDIRECT(CONCATENATE($B253,"!P21"))) ->  | Y253: =IF(ISERROR(INDIRECT(CONCATENATE($B253,"!Q18"))),"",INDIRECT(CONCATENATE($B253,"!Q18"))) ->  | Z253: =IF(ISERROR(INDIRECT(CONCATENATE($B253,"!Q19"))),"",INDIRECT(CONCATENATE($B253,"!Q19"))) ->  | AA253: =IF(ISERROR(INDIRECT(CONCATENATE($B253,"!Q20"))),"",INDIRECT(CONCATENATE($B253,"!Q20"))) ->  | AB253: =IF(ISERROR(INDIRECT(CONCATENATE($B253,"!Q21"))),"",INDIRECT(CONCATENATE($B253,"!Q1"))) -> 
E254: =IF(ISERROR(INDIRECT(CONCATENATE($B254,"!M18"))),"",INDIRECT(CONCATENATE($B254,"!M18"))) ->  | F254: =IF(ISERROR(INDIRECT(CONCATENATE($B254,"!M19"))),"",INDIRECT(CONCATENATE($B254,"!M19"))) ->  | G254: =IF(ISERROR(INDIRECT(CONCATENATE($B254,"!M20"))),"",INDIRECT(CONCATENATE($B254,"!M20"))) ->  | H254: =IF(ISERROR(INDIRECT(CONCATENATE($B254,"!M21"))),"",INDIRECT(CONCATENATE($B254,"!M21"))) ->  | J254: =IF(ISERROR(INDIRECT(CONCATENATE($B254,"!N18"))),"",INDIRECT(CONCATENATE($B254,"!N18"))) ->  | K254: =IF(ISERROR(INDIRECT(CONCATENATE($B254,"!N19"))),"",INDIRECT(CONCATENATE($B254,"!N19"))) ->  | L254: =IF(ISERROR(INDIRECT(CONCATENATE($B254,"!N20"))),"",INDIRECT(CONCATENATE($B254,"!N20"))) ->  | M254: =IF(ISERROR(INDIRECT(CONCATENATE($B254,"!N21"))),"",INDIRECT(CONCATENATE($B254,"!N21"))) ->  | O254: =IF(ISERROR(INDIRECT(CONCATENATE($B254,"!O18"))),"",INDIRECT(CONCATENATE($B254,"!O18"))) ->  | P254: =IF(ISERROR(INDIRECT(CONCATENATE($B254,"!O19"))),"",INDIRECT(CONCATENATE($B254,"!O19"))) ->  | Q254: =IF(ISERROR(INDIRECT(CONCATENATE($B254,"!O20"))),"",INDIRECT(CONCATENATE($B254,"!O20"))) ->  | R254: =IF(ISERROR(INDIRECT(CONCATENATE($B254,"!O21"))),"",INDIRECT(CONCATENATE($B254,"!O21"))) ->  | T254: =IF(ISERROR(INDIRECT(CONCATENATE($B254,"!P18"))),"",INDIRECT(CONCATENATE($B254,"!P18"))) ->  | U254: =IF(ISERROR(INDIRECT(CONCATENATE($B254,"!P19"))),"",INDIRECT(CONCATENATE($B254,"!P19"))) ->  | V254: =IF(ISERROR(INDIRECT(CONCATENATE($B254,"!P20"))),"",INDIRECT(CONCATENATE($B254,"!P20"))) ->  | W254: =IF(ISERROR(INDIRECT(CONCATENATE($B254,"!P21"))),"",INDIRECT(CONCATENATE($B254,"!P21"))) ->  | Y254: =IF(ISERROR(INDIRECT(CONCATENATE($B254,"!Q18"))),"",INDIRECT(CONCATENATE($B254,"!Q18"))) ->  | Z254: =IF(ISERROR(INDIRECT(CONCATENATE($B254,"!Q19"))),"",INDIRECT(CONCATENATE($B254,"!Q19"))) ->  | AA254: =IF(ISERROR(INDIRECT(CONCATENATE($B254,"!Q20"))),"",INDIRECT(CONCATENATE($B254,"!Q20"))) ->  | AB254: =IF(ISERROR(INDIRECT(CONCATENATE($B254,"!Q21"))),"",INDIRECT(CONCATENATE($B254,"!Q1"))) -> 
E255: =IF(ISERROR(INDIRECT(CONCATENATE($B255,"!M18"))),"",INDIRECT(CONCATENATE($B255,"!M18"))) ->  | F255: =IF(ISERROR(INDIRECT(CONCATENATE($B255,"!M19"))),"",INDIRECT(CONCATENATE($B255,"!M19"))) ->  | G255: =IF(ISERROR(INDIRECT(CONCATENATE($B255,"!M20"))),"",INDIRECT(CONCATENATE($B255,"!M20"))) ->  | H255: =IF(ISERROR(INDIRECT(CONCATENATE($B255,"!M21"))),"",INDIRECT(CONCATENATE($B255,"!M21"))) ->  | J255: =IF(ISERROR(INDIRECT(CONCATENATE($B255,"!N18"))),"",INDIRECT(CONCATENATE($B255,"!N18"))) ->  | K255: =IF(ISERROR(INDIRECT(CONCATENATE($B255,"!N19"))),"",INDIRECT(CONCATENATE($B255,"!N19"))) ->  | L255: =IF(ISERROR(INDIRECT(CONCATENATE($B255,"!N20"))),"",INDIRECT(CONCATENATE($B255,"!N20"))) ->  | M255: =IF(ISERROR(INDIRECT(CONCATENATE($B255,"!N21"))),"",INDIRECT(CONCATENATE($B255,"!N21"))) ->  | O255: =IF(ISERROR(INDIRECT(CONCATENATE($B255,"!O18"))),"",INDIRECT(CONCATENATE($B255,"!O18"))) ->  | P255: =IF(ISERROR(INDIRECT(CONCATENATE($B255,"!O19"))),"",INDIRECT(CONCATENATE($B255,"!O19"))) ->  | Q255: =IF(ISERROR(INDIRECT(CONCATENATE($B255,"!O20"))),"",INDIRECT(CONCATENATE($B255,"!O20"))) ->  | R255: =IF(ISERROR(INDIRECT(CONCATENATE($B255,"!O21"))),"",INDIRECT(CONCATENATE($B255,"!O21"))) ->  | T255: =IF(ISERROR(INDIRECT(CONCATENATE($B255,"!P18"))),"",INDIRECT(CONCATENATE($B255,"!P18"))) ->  | U255: =IF(ISERROR(INDIRECT(CONCATENATE($B255,"!P19"))),"",INDIRECT(CONCATENATE($B255,"!P19"))) ->  | V255: =IF(ISERROR(INDIRECT(CONCATENATE($B255,"!P20"))),"",INDIRECT(CONCATENATE($B255,"!P20"))) ->  | W255: =IF(ISERROR(INDIRECT(CONCATENATE($B255,"!P21"))),"",INDIRECT(CONCATENATE($B255,"!P21"))) ->  | Y255: =IF(ISERROR(INDIRECT(CONCATENATE($B255,"!Q18"))),"",INDIRECT(CONCATENATE($B255,"!Q18"))) ->  | Z255: =IF(ISERROR(INDIRECT(CONCATENATE($B255,"!Q19"))),"",INDIRECT(CONCATENATE($B255,"!Q19"))) ->  | AA255: =IF(ISERROR(INDIRECT(CONCATENATE($B255,"!Q20"))),"",INDIRECT(CONCATENATE($B255,"!Q20"))) ->  | AB255: =IF(ISERROR(INDIRECT(CONCATENATE($B255,"!Q21"))),"",INDIRECT(CONCATENATE($B255,"!Q1"))) -> 
E256: =IF(ISERROR(INDIRECT(CONCATENATE($B256,"!M18"))),"",INDIRECT(CONCATENATE($B256,"!M18"))) ->  | F256: =IF(ISERROR(INDIRECT(CONCATENATE($B256,"!M19"))),"",INDIRECT(CONCATENATE($B256,"!M19"))) ->  | G256: =IF(ISERROR(INDIRECT(CONCATENATE($B256,"!M20"))),"",INDIRECT(CONCATENATE($B256,"!M20"))) ->  | H256: =IF(ISERROR(INDIRECT(CONCATENATE($B256,"!M21"))),"",INDIRECT(CONCATENATE($B256,"!M21"))) ->  | J256: =IF(ISERROR(INDIRECT(CONCATENATE($B256,"!N18"))),"",INDIRECT(CONCATENATE($B256,"!N18"))) ->  | K256: =IF(ISERROR(INDIRECT(CONCATENATE($B256,"!N19"))),"",INDIRECT(CONCATENATE($B256,"!N19"))) ->  | L256: =IF(ISERROR(INDIRECT(CONCATENATE($B256,"!N20"))),"",INDIRECT(CONCATENATE($B256,"!N20"))) ->  | M256: =IF(ISERROR(INDIRECT(CONCATENATE($B256,"!N21"))),"",INDIRECT(CONCATENATE($B256,"!N21"))) ->  | O256: =IF(ISERROR(INDIRECT(CONCATENATE($B256,"!O18"))),"",INDIRECT(CONCATENATE($B256,"!O18"))) ->  | P256: =IF(ISERROR(INDIRECT(CONCATENATE($B256,"!O19"))),"",INDIRECT(CONCATENATE($B256,"!O19"))) ->  | Q256: =IF(ISERROR(INDIRECT(CONCATENATE($B256,"!O20"))),"",INDIRECT(CONCATENATE($B256,"!O20"))) ->  | R256: =IF(ISERROR(INDIRECT(CONCATENATE($B256,"!O21"))),"",INDIRECT(CONCATENATE($B256,"!O21"))) ->  | T256: =IF(ISERROR(INDIRECT(CONCATENATE($B256,"!P18"))),"",INDIRECT(CONCATENATE($B256,"!P18"))) ->  | U256: =IF(ISERROR(INDIRECT(CONCATENATE($B256,"!P19"))),"",INDIRECT(CONCATENATE($B256,"!P19"))) ->  | V256: =IF(ISERROR(INDIRECT(CONCATENATE($B256,"!P20"))),"",INDIRECT(CONCATENATE($B256,"!P20"))) ->  | W256: =IF(ISERROR(INDIRECT(CONCATENATE($B256,"!P21"))),"",INDIRECT(CONCATENATE($B256,"!P21"))) ->  | Y256: =IF(ISERROR(INDIRECT(CONCATENATE($B256,"!Q18"))),"",INDIRECT(CONCATENATE($B256,"!Q18"))) ->  | Z256: =IF(ISERROR(INDIRECT(CONCATENATE($B256,"!Q19"))),"",INDIRECT(CONCATENATE($B256,"!Q19"))) ->  | AA256: =IF(ISERROR(INDIRECT(CONCATENATE($B256,"!Q20"))),"",INDIRECT(CONCATENATE($B256,"!Q20"))) ->  | AB256: =IF(ISERROR(INDIRECT(CONCATENATE($B256,"!Q21"))),"",INDIRECT(CONCATENATE($B256,"!Q1"))) -> 
E257: =IF(ISERROR(INDIRECT(CONCATENATE($B257,"!M18"))),"",INDIRECT(CONCATENATE($B257,"!M18"))) ->  | F257: =IF(ISERROR(INDIRECT(CONCATENATE($B257,"!M19"))),"",INDIRECT(CONCATENATE($B257,"!M19"))) ->  | G257: =IF(ISERROR(INDIRECT(CONCATENATE($B257,"!M20"))),"",INDIRECT(CONCATENATE($B257,"!M20"))) ->  | H257: =IF(ISERROR(INDIRECT(CONCATENATE($B257,"!M21"))),"",INDIRECT(CONCATENATE($B257,"!M21"))) ->  | J257: =IF(ISERROR(INDIRECT(CONCATENATE($B257,"!N18"))),"",INDIRECT(CONCATENATE($B257,"!N18"))) ->  | K257: =IF(ISERROR(INDIRECT(CONCATENATE($B257,"!N19"))),"",INDIRECT(CONCATENATE($B257,"!N19"))) ->  | L257: =IF(ISERROR(INDIRECT(CONCATENATE($B257,"!N20"))),"",INDIRECT(CONCATENATE($B257,"!N20"))) ->  | M257: =IF(ISERROR(INDIRECT(CONCATENATE($B257,"!N21"))),"",INDIRECT(CONCATENATE($B257,"!N21"))) ->  | O257: =IF(ISERROR(INDIRECT(CONCATENATE($B257,"!O18"))),"",INDIRECT(CONCATENATE($B257,"!O18"))) ->  | P257: =IF(ISERROR(INDIRECT(CONCATENATE($B257,"!O19"))),"",INDIRECT(CONCATENATE($B257,"!O19"))) ->  | Q257: =IF(ISERROR(INDIRECT(CONCATENATE($B257,"!O20"))),"",INDIRECT(CONCATENATE($B257,"!O20"))) ->  | R257: =IF(ISERROR(INDIRECT(CONCATENATE($B257,"!O21"))),"",INDIRECT(CONCATENATE($B257,"!O21"))) ->  | T257: =IF(ISERROR(INDIRECT(CONCATENATE($B257,"!P18"))),"",INDIRECT(CONCATENATE($B257,"!P18"))) ->  | U257: =IF(ISERROR(INDIRECT(CONCATENATE($B257,"!P19"))),"",INDIRECT(CONCATENATE($B257,"!P19"))) ->  | V257: =IF(ISERROR(INDIRECT(CONCATENATE($B257,"!P20"))),"",INDIRECT(CONCATENATE($B257,"!P20"))) ->  | W257: =IF(ISERROR(INDIRECT(CONCATENATE($B257,"!P21"))),"",INDIRECT(CONCATENATE($B257,"!P21"))) ->  | Y257: =IF(ISERROR(INDIRECT(CONCATENATE($B257,"!Q18"))),"",INDIRECT(CONCATENATE($B257,"!Q18"))) ->  | Z257: =IF(ISERROR(INDIRECT(CONCATENATE($B257,"!Q19"))),"",INDIRECT(CONCATENATE($B257,"!Q19"))) ->  | AA257: =IF(ISERROR(INDIRECT(CONCATENATE($B257,"!Q20"))),"",INDIRECT(CONCATENATE($B257,"!Q20"))) ->  | AB257: =IF(ISERROR(INDIRECT(CONCATENATE($B257,"!Q21"))),"",INDIRECT(CONCATENATE($B257,"!Q1"))) -> 
A297: RURAL | D297: Poorest | I297: Poor | N297: Middle | S297: Rich | X297: Richest
D298: Improved | E298: Basic | F298: Limited | G298: Unimproved | H298: Surface water | I298: Improved | J298: Basic | K298: Limited | L298: Unimproved | M298: Surface water | N298: Improved | O298: Basic | P298: Limited | Q298: Unimproved | R298: Surface water | S298: Improved | T298: Basic | U298: Limited | V298: Unimproved | W298: Surface water | X298: Improved | Y298: Basic | Z298: Limited | AA298: Unimproved | AB298: Surface water
A299: Forecast period: | C299: 2000 | D299: =IF((D301+H301)>100,D301*100/(D301+H301),D301) -> 30.28625242 | E299: =D299*AVERAGEIF(E305:E316,">0")/100 -> 22.71459683 | F299: =D299*(100-AVERAGEIF(E305:E316,">0"))/100 -> 7.571655583 | G299: =100-(E299+F299+H299) -> 27.25017578 | H299: =IF((D301+H301)>100,H301*100/(D301+H301),H301) -> 42.46357181 | I299: =IF((I301+M301)>100,I301*100/(I301+M301),I301) -> 29.31525955 | J299: =I299*AVERAGEIF(J305:J316,">0")/100 -> 22.47963937 | K299: =I299*(100-AVERAGEIF(J305:J316,">0"))/100 -> 6.835620179 | L299: =100-(J299+K299+M299) -> 20.45724926 | M299: =IF((I301+M301)>100,M301*100/(I301+M301),M301) -> 50.22749119 | N299: =IF((N301+R301)>100,N301*100/(N301+R301),N301) -> 22.50544193 | O299: =N299*AVERAGEIF(O305:O316,">0")/100 -> 19.18019878 | P299: =N299*(100-AVERAGEIF(O305:O316,">0"))/100 -> 3.325243145 | Q299: =100-(O299+P299+R299) -> 12.55866669 | R299: =IF((N301+R301)>100,R301*100/(N301+R301),R301) -> 64.93589138 | S299: =IF((S301+W301)>100,S301*100/(S301+W301),S301) -> 37.95061425 | T299: =S299*AVERAGEIF(T305:T316,">0")/100 -> 32.25682395 | U299: =S299*(100-AVERAGEIF(T305:T316,">0"))/100 -> 5.693790302 | V299: =100-(T299+U299+W299) -> 12.25072397 | W299: =IF((S301+W301)>100,W301*100/(S301+W301),W301) -> 49.79866178 | X299: =IF((X301+AB301)>100,X301*100/(X301+AB301),X301) -> 60.65462 | Y299: =X299*AVERAGEIF(Y305:Y316,">0")/100 -> 56.52256938 | Z299: =X299*(100-AVERAGEIF(Y305:Y316,">0"))/100 -> 4.132050614 | AA299: =100-(Y299+Z299+AB299) -> 12.80689034 | AB299: =IF((X301+AB301)>100,AB301*100/(X301+AB301),AB301) -> 26.53848966
C300: 2020 | D300: =IF((D302+H302)>100,D302*100/(D302+H302),D302) -> 41.49412341 | E300: =D300*AVERAGEIF(E305:E316,">0")/100 -> 31.12046586 | F300: =D300*(100-AVERAGEIF(E305:E316,">0"))/100 -> 10.37365756 | G300: =100-(E300+F300+H300) -> 22.3747883 | H300: =IF((D302+H302)>100,H302*100/(D302+H302),H302) -> 36.13108829 | I300: =IF((I302+M302)>100,I302*100/(I302+M302),I302) -> 63.06047484 | J300: =I300*AVERAGEIF(J305:J316,">0")/100 -> 48.35627434 | K300: =I300*(100-AVERAGEIF(J305:J316,">0"))/100 -> 14.7042005 | L300: =100-(J300+K300+M300) -> 15.8459945 | M300: =IF((I302+M302)>100,M302*100/(I302+M302),M302) -> 21.09353066 | N300: =IF((N302+R302)>100,N302*100/(N302+R302),N302) -> 86.35278535 | O300: =N300*AVERAGEIF(O305:O316,">0")/100 -> 73.59391536 | P300: =N300*(100-AVERAGEIF(O305:O316,">0"))/100 -> 12.75886998 | Q300: =100-(O300+P300+R300) -> 9.367155498 | R300: =IF((N302+R302)>100,R302*100/(N302+R302),R302) -> 4.280059155 | S300: =IF((S302+W302)>100,S302*100/(S302+W302),S302) -> 89.53715117 | T300: =S300*AVERAGEIF(T305:T316,">0")/100 -> 76.10375166 | U300: =S300*(100-AVERAGEIF(T305:T316,">0"))/100 -> 13.43339951 | V300: =100-(T300+U300+W300) -> 9.120434727 | W300: =IF((S302+W302)>100,W302*100/(S302+W302),W302) -> 1.3424141 | X300: =IF((X302+AB302)>100,X302*100/(X302+AB302),X302) -> 94.4287153 | Y300: =X300*AVERAGEIF(Y305:Y316,">0")/100 -> 87.99582971 | Z300: =X300*(100-AVERAGEIF(Y305:Y316,">0"))/100 -> 6.432885591 | AA300: =100-(Y300+Z300+AB300) -> 4.544389832 | AB300: =IF((X302+AB302)>100,AB302*100/(X302+AB302),AB302) -> 1.026894867
A301: Regression period: | C301: =MinRegYear(C299,C305:C316) -> 2000 | D301: =IF(MAX(C305:C316)-MIN(C305:C316)<5,AVERAGEIF(C305:C316,">0",D305:D316), IF(FORECAST($C301,D$305:D$316,$C$305:$C$316)<0,0, IF(FORECAST($C301,D$305:D$316,$C$305:$C$316)>100,100, FORECAST($C301,D$305:D$316,$C$305:$C$316)))) -> 30.28625242 | H301: =IF(MAX(C305:C316)-MIN(C305:C316)<5,AVERAGEIF(C305:C316,">0",H305:H316), IF(FORECAST($C301,H$305:H$316,$C$305:$C$316)<0,0, IF(FORECAST($C301,H$305:H$316,$C$305:$C$316)>100,100, FORECAST($C301,H$305:H$316,$C$305:$C$316)))) -> 42.46357181 | I301: =IF(MAX(C305:C316)-MIN(C305:C316)<5,AVERAGEIF(C305:C316,">0",I305:I316), IF(FORECAST($C301,I$305:I$316,$C$305:$C$316)<0,0, IF(FORECAST($C301,I$305:I$316,$C$305:$C$316)>100,100, FORECAST($C301,I$305:I$316,$C$305:$C$316)))) -> 29.31525955 | M301: =IF(MAX(C305:C316)-MIN(C305:C316)<5,AVERAGEIF(C305:C316,">0",M305:M316), IF(FORECAST($C301,M$305:M$316,$C$305:$C$316)<0,0, IF(FORECAST($C301,M$305:M$316,$C$305:$C$316)>100,100, FORECAST($C301,M$305:M$316,$C$305:$C$316)))) -> 50.22749119 | N301: =IF(MAX(C305:C316)-MIN(C305:C316)<5,AVERAGEIF(C305:C316,">0",N305:N316), IF(FORECAST($C301,N$305:N$316,$C$305:$C$316)<0,0, IF(FORECAST($C301,N$305:N$316,$C$305:$C$316)>100,100, FORECAST($C301,N$305:N$316,$C$305:$C$316)))) -> 22.50544193 | R301: =IF(MAX(C305:C316)-MIN(C305:C316)<5,AVERAGEIF(C305:C316,">0",R305:R316), IF(FORECAST($C301,R$305:R$316,$C$305:$C$316)<0,0, IF(FORECAST($C301,R$305:R$316,$C$305:$C$316)>100,100, FORECAST($C301,R$305:R$316,$C$305:$C$316)))) -> 64.93589138 | S301: =IF(MAX(C305:C316)-MIN(C305:C316)<5,AVERAGEIF(C305:C316,">0",S305:S316), IF(FORECAST($C301,S$305:S$316,$C$305:$C$316)<0,0, IF(FORECAST($C301,S$305:S$316,$C$305:$C$316)>100,100, FORECAST($C301,S$305:S$316,$C$305:$C$316)))) -> 37.95061425 | W301: =IF(MAX(C305:C316)-MIN(C305:C316)<5,AVERAGEIF(C305:C316,">0",W305:W316), IF(FORECAST($C301,W$305:W$316,$C$305:$C$316)<0,0, IF(FORECAST($C301,W$305:W$316,$C$305:$C$316)>100,100, FORECAST($C301,W$305:W$316,$C$305:$C$316)))) -> 49.79866178 | X301: =IF(MAX(C305:C316)-MIN(C305:C316)<5,AVERAGEIF(C305:C316,">0",X305:X316), IF(FORECAST($C301,X$305:X$316,$C$305:$C$316)<0,0, IF(FORECAST($C301,X$305:X$316,$C$305:$C$316)>100,100, FORECAST($C301,X$305:X$316,$C$305:$C$316)))) -> 60.65462 | AB301: =IF(MAX(C305:C316)-MIN(C305:C316)<5,AVERAGEIF(C305:C316,">0",AB305:AB316), IF(FORECAST($C301,AB$305:AB$316,$C$305:$C$316)<0,0, IF(FORECAST($C301,AB$305:AB$316,$C$305:$C$316)>100,100, FORECAST($C301,AB$305:AB$316,$C$305:$C$316)))) -> 26.53848966
C302: =MaxRegYear(C300,C305:C316) -> 2020 | D302: =IF(MAX(C305:C316)-MIN(C305:C316)<5,AVERAGEIF(C305:C316,">0",D305:D316), IF(FORECAST($C302,D$305:D$316,$C$305:$C$316)<0,0, IF(FORECAST($C302,D$305:D$316,$C$305:$C$316)>100,100, FORECAST($C302,D$305:D$316,$C$305:$C$316)))) -> 41.49412341 | H302: =IF(MAX(C305:C316)-MIN(C305:C316)<5,AVERAGEIF(C305:C316,">0",H305:H316), IF(FORECAST($C302,H$305:H$316,$C$305:$C$316)<0,0, IF(FORECAST($C302,H$305:H$316,$C$305:$C$316)>100,100, FORECAST($C302,H$305:H$316,$C$305:$C$316)))) -> 36.13108829 | I302: =IF(MAX(C305:C316)-MIN(C305:C316)<5,AVERAGEIF(C305:C316,">0",I305:I316), IF(FORECAST($C302,I$305:I$316,$C$305:$C$316)<0,0, IF(FORECAST($C302,I$305:I$316,$C$305:$C$316)>100,100, FORECAST($C302,I$305:I$316,$C$305:$C$316)))) -> 63.06047484 | M302: =IF(MAX(C305:C316)-MIN(C305:C316)<5,AVERAGEIF(C305:C316,">0",M305:M316), IF(FORECAST($C302,M$305:M$316,$C$305:$C$316)<0,0, IF(FORECAST($C302,M$305:M$316,$C$305:$C$316)>100,100, FORECAST($C302,M$305:M$316,$C$305:$C$316)))) -> 21.09353066 | N302: =IF(MAX(C305:C316)-MIN(C305:C316)<5,AVERAGEIF(C305:C316,">0",N305:N316), IF(FORECAST($C302,N$305:N$316,$C$305:$C$316)<0,0, IF(FORECAST($C302,N$305:N$316,$C$305:$C$316)>100,100, FORECAST($C302,N$305:N$316,$C$305:$C$316)))) -> 86.35278535 | R302: =IF(MAX(C305:C316)-MIN(C305:C316)<5,AVERAGEIF(C305:C316,">0",R305:R316), IF(FORECAST($C302,R$305:R$316,$C$305:$C$316)<0,0, IF(FORECAST($C302,R$305:R$316,$C$305:$C$316)>100,100, FORECAST($C302,R$305:R$316,$C$305:$C$316)))) -> 4.280059155 | S302: =IF(MAX(C305:C316)-MIN(C305:C316)<5,AVERAGEIF(C305:C316,">0",S305:S316), IF(FORECAST($C302,S$305:S$316,$C$305:$C$316)<0,0, IF(FORECAST($C302,S$305:S$316,$C$305:$C$316)>100,100, FORECAST($C302,S$305:S$316,$C$305:$C$316)))) -> 89.53715117 | W302: =IF(MAX(C305:C316)-MIN(C305:C316)<5,AVERAGEIF(C305:C316,">0",W305:W316), IF(FORECAST($C302,W$305:W$316,$C$305:$C$316)<0,0, IF(FORECAST($C302,W$305:W$316,$C$305:$C$316)>100,100, FORECAST($C302,W$305:W$316,$C$305:$C$316)))) -> 1.3424141 | X302: =IF(MAX(C305:C316)-MIN(C305:C316)<5,AVERAGEIF(C305:C316,">0",X305:X316), IF(FORECAST($C302,X$305:X$316,$C$305:$C$316)<0,0, IF(FORECAST($C302,X$305:X$316,$C$305:$C$316)>100,100, FORECAST($C302,X$305:X$316,$C$305:$C$316)))) -> 94.4287153 | AB302: =IF(MAX(C305:C316)-MIN(C305:C316)<5,AVERAGEIF(C305:C316,">0",AB305:AB316), IF(FORECAST($C302,AB$305:AB$316,$C$305:$C$316)<0,0, IF(FORECAST($C302,AB$305:AB$316,$C$305:$C$316)>100,100, FORECAST($C302,AB$305:AB$316,$C$305:$C$316)))) -> 1.026894867
B304: Survey | C304: Year | D304: Improved | E304: % Improved < = 30min | H304: Surface water | I304: Improved | J304: % Improved < = 30min | M304: Surface water | N304: Improved | O304: % Improved < = 30min | R304: Surface water | S304: Improved | T304: % Improved < = 30min | W304: Surface water | X304: Improved | Y304: % Improved < = 30min | AB304: Surface water
B305: MICS00 | C305: 2000 | D305: =IF(ISERROR(INDIRECT(CONCATENATE($B305,"!M16"))),"",INDIRECT(CONCATENATE($B305,"!M16"))) -> 23.96033269 | E305: =IF(ISERROR(INDIRECT(CONCATENATE($B305,"!M23"))),"",INDIRECT(CONCATENATE($B305,"!M23"))) -> 71.42857143 | H305: =IF(ISERROR(INDIRECT(CONCATENATE($B305,"!M21"))),"",INDIRECT(CONCATENATE($B305,"!M21"))) -> 46.92898273 | I305: =IF(ISERROR(INDIRECT(CONCATENATE($B305,"!N16"))),"",INDIRECT(CONCATENATE($B305,"!N16"))) -> 25.11065211 | J305: =IF(ISERROR(INDIRECT(CONCATENATE($B305,"!N23"))),"",INDIRECT(CONCATENATE($B305,"!N23"))) -> 71.79788484 | M305: =IF(ISERROR(INDIRECT(CONCATENATE($B305,"!N21"))),"",INDIRECT(CONCATENATE($B305,"!N21"))) -> 55.50309826 | N305: =IF(ISERROR(INDIRECT(CONCATENATE($B305,"!O16"))),"",INDIRECT(CONCATENATE($B305,"!O16"))) -> 20.87844108 | O305: =IF(ISERROR(INDIRECT(CONCATENATE($B305,"!O23"))),"",INDIRECT(CONCATENATE($B305,"!O23"))) -> 84.2962963 | R305: =IF(ISERROR(INDIRECT(CONCATENATE($B305,"!O21"))),"",INDIRECT(CONCATENATE($B305,"!O21"))) -> 70.08969997 | S305: =IF(ISERROR(INDIRECT(CONCATENATE($B305,"!P16"))),"",INDIRECT(CONCATENATE($B305,"!P16"))) -> 42.7680798 | T305: =IF(ISERROR(INDIRECT(CONCATENATE($B305,"!P23"))),"",INDIRECT(CONCATENATE($B305,"!P23"))) -> 82.78145695 | W305: =IF(ISERROR(INDIRECT(CONCATENATE($B305,"!P21"))),"",INDIRECT(CONCATENATE($B305,"!P21"))) -> 50.39123631 | X305: =IF(ISERROR(INDIRECT(CONCATENATE($B305,"!Q16"))),"",INDIRECT(CONCATENATE($B305,"!Q16"))) -> 66.80024661 | Y305: =IF(ISERROR(INDIRECT(CONCATENATE($B305,"!Q23"))),"",INDIRECT(CONCATENATE($B305,"!Q23"))) -> 91.60129211 | AB305: =IF(ISERROR(INDIRECT(CONCATENATE($B305,"!Q221"))),"",INDIRECT(CONCATENATE($B305,"!Q21"))) -> 25.1541307
B306: MICS05 | C306: 2005 | D306: 35.32232707 | E306: N/A | H306: 35.42562901 | I306: 37.00287409 | J306: N/A | M306: 39.44392197 | N306: 44.04799843 | O306: N/A | R306: 39.84912936 | S306: 56.73520323 | T306: N/A | W306: 27.68702203 | X306: 61.27837844 | Y306: N/A | AB306: 18.86786493
B307: MICS10 | C307: 2010 | D307: 45.80896463 | E307: 71.65616166 | H307: 35.17965778 | I307: 41.63330917 | J307: 72.59780688 | M307: 37.19488293 | N307: 38.82048566 | O307: 79.74273829 | R307: 46.3248668 | S307: 35.5672538 | T307: 78.8964973 | W307: 46.22295343 | X307: 69.96936987 | Y307: 89.86988578 | AB307: 23.08836636
B308: MICS14 | C308: 2014 | D308: 39.5 | E308: 81.3 | H308: 43.9 | I308: 83.4 | J308: 82.5 | M308: 14.4 | N308: 87.6 | O308: 85.6 | R308: 8.1 | S308: 89.6 | T308: 83.3 | W308: 4.4 | X308: 97.2 | Y308: 94 | AB308: 0.5
B309: MICS18 | C309: 2018 | D309: 33.17813453 | E309: 75.61404551 | H309: 36.00225326 | I309: 38.73071833 | J309: 79.83383709 | M309: 36.13074553 | N309: 71.22154151 | O309: 91.25982615 | R309: 17.77455504 | S309: 86.31089619 | T309: 95.00941708 | W309: 6.419915084 | X309: 87.39422903 | Y309: 97.27912134 | AB309: 5.129838536
B318: =CONCATENATE("Rural use of drinking water sources, ",C299,"–",C300) -> Rural use of drinking water sources, 2000–2020 | S318: Data points used for regression

Sheet Sanitation
B4: Summary of trends in use of sanitation facilities by wealth quintile (%)
B5: =IF(ISERROR(INDIRECT(CONCATENATE($B105,"!A2"))),"",INDIRECT(CONCATENATE($B105,"!A2"))) -> Mongolia
B7: =B118 -> National use of sanitation facilities, 2000–2020 | J7: =B218 -> Urban use of sanitation facilities, 2000–2020 | R7: =B318 -> Rural use of sanitation facilities, 2000–2020
B31: =IF(ISERROR(INDIRECT(CONCATENATE($B105,"!A2"))),"",INDIRECT(CONCATENATE($B105,"!A2"))) -> Mongolia | F31: Poorest | J31: Poor | N31: Middle | R31: Rich | V31: Richest
F32: Basic | G32: Limited | H32: Unimproved | I32: Open defecation | J32: Basic | K32: Limited | L32: Unimproved | M32: Open defecation | N32: Basic | O32: Limited | P32: Unimproved | Q32: Open defecation | R32: Basic | S32: Limited | T32: Unimproved | U32: Open defecation | V32: Basic | W32: Limited | X32: Unimproved | Y32: Open defecation
B33: NATIONAL | D33: Estimate | E33: =C99 -> 2000 | F33: =E99 -> 7.42293992 | G33: =F99 -> 5.670852373 | H33: 18.29803786 | I33: 68.60816985 | J33: =J99 -> 38.24999119 | K33: =K99 -> 26.49457201 | L33: 14.97061517 | M33: 20.28482164 | N33: =O99 -> 55.25684182 | O33: =P99 -> 34.74450693 | P33: 6.267700556 | Q33: 3.730950692 | R33: =T99 -> 70.21924978 | S33: =U99 -> 24.99938001 | T33: 2.889281384 | U33: 1.892088829 | V33: =Y99 -> 95.23090281 | W33: =Z99 -> 4.371976185 | X33: 0.2142525492 | Y33: 0.1828684576
E34: =C100 -> 2020 | F34: =E100 -> 37.83368234 | G34: 28.90353816 | H34: 13.97334925 | I34: 19.28943024 | J34: =J100 -> 59.07830604 | K34: 40.92169396 | L34: 0 | M34: 0 | N34: =O100 -> 61.39557083 | O34: 38.60442917 | P34: 0 | Q34: 0 | R34: =T100 -> 73.74528486 | S34: 26.25471514 | T34: 0 | U34: 0 | V34: =Y100 -> 95.52945865 | W34: 4.385682651 | X34: 0.08485869442 | Y34: 0
B36: URBAN | D36: Estimate | E36: =C199 -> 2000 | F36: =E199 -> 50.37526579 | G36: =F199 -> 40.32334643 | H36: 6.235150715 | I36: 3.066237067 | J36: =J199 -> 54.91865808 | K36: =K199 -> 38.83520305 | L36: 4.299239133 | M36: 1.946899737 | N36: =O199 -> 63.4623309 | O36: =P199 -> 33.00983095 | P36: 2.610890396 | Q36: 0.9169477578 | R36: =T199 -> 84.13639932 | S36: =U199 -> 15.12237663 | T36: 0.4851293631 | U36: 0.2560946895 | V36: =Y199 -> 97.90613019 | W36: =Z199 -> 1.828376241 | X36: 0.1753238771 | Y36: 0.09016969394
E37: =C200 -> 2020 | F37: =E200 -> 53.14350312 | G37: 42.53920755 | H37: 2.100636258 | I37: 2.216653073 | J37: =J200 -> 58.51974726 | K37: 41.38167878 | L37: 0.09857396058 | M37: 0 | N37: =O200 -> 65.78305045 | O37: 34.21694955 | P37: 0 | Q37: 0 | R37: =T200 -> 84.38751257 | S37: 15.16751083 | T37: 0.3861503402 | U37: 0.05882625446 | V37: =Y200 -> 98.11004809 | W37: 1.832184364 | X37: 0.05776755016 | Y37: 0
B39: RURAL | D39: Estimate | E39: =C299 -> 2000 | F39: =E299 -> 4.954371931 | G39: =F299 -> 3.2240861 | H39: 13.33120335 | I39: 78.49033862 | J39: =J299 -> 9.754599395 | K39: =K299 -> 7.292151395 | L39: 20.47964816 | M39: 62.47360105 | N39: =O299 -> 21.68455206 | O39: =P299 -> 14.78455107 | P39: 28.11709346 | Q39: 35.41380341 | R39: =T299 -> 42.45214066 | S39: =U299 -> 23.32682982 | T39: 18.94487032 | U39: 15.2761592 | V39: =Y299 -> 61.23615101 | W39: =Z299 -> 24.95813107 | X39: 7.927342556 | Y39: 5.878375364
E40: =C300 -> 2020 | F40: =E300 -> 14.90972281 | G40: 9.702588088 | H40: 29.03019168 | I40: 46.35749741 | J40: =J300 -> 33.70619987 | K40: 25.19741739 | L40: 14.24847913 | M40: 26.84790361 | N40: =O300 -> 50.31610369 | O40: 34.30557397 | P40: 4.390219346 | Q40: 10.988103 | R40: =T300 -> 56.45440637 | S40: 31.02086983 | T40: 3.639894009 | U40: 8.88482979 | V40: =Y300 -> 70.0547316 | W40: 28.55233623 | X40: 1.087155378 | Y40: 0.3057767993
A97: NATIONAL | D97: Poorest | I97: Poor | N97: Middle | S97: Rich | X97: Richest
D98: Improved | E98: Basic | F98: Limited | G98: Unimproved | H98: Open defecation | I98: Improved | J98: Basic | K98: Limited | L98: Unimproved | M98: Open defecation | N98: Improved | O98: Basic | P98: Limited | Q98: Unimproved | R98: Open defecation | S98: Improved | T98: Basic | U98: Limited | V98: Unimproved | W98: Open defecation | X98: Improved | Y98: Basic | Z98: Limited | AA98: Unimproved | AB98: Open defecation
A99: Forecast period: | C99: 2000 | D99: =IF((D101+H101)>100,D101*100/(D101+H101),D101) -> 13.09379229 | E99: =D99*AVERAGEIF(E105:E116,">0")/100 -> 7.42293992 | F99: =D99*(100-AVERAGEIF(E105:E116,">0"))/100 -> 5.670852373 | G99: =100-(E99+F99+H99) -> 18.29803786 | H99: =IF((D101+H101)>100,H101*100/(D101+H101),H101) -> 68.60816985 | I99: =IF((I101+M101)>100,I101*100/(I101+M101),I101) -> 64.74456319 | J99: =I99*AVERAGEIF(J105:J116,">0")/100 -> 38.24999119 | K99: =I99*(100-AVERAGEIF(J105:J116,">0"))/100 -> 26.49457201 | L99: =100-(J99+K99+M99) -> 14.97061517 | M99: =IF((I101+M101)>100,M101*100/(I101+M101),M101) -> 20.28482164 | N99: =IF((N101+R101)>100,N101*100/(N101+R101),N101) -> 90.00134875 | O99: =N99*AVERAGEIF(O105:O116,">0")/100 -> 55.25684182 | P99: =N99*(100-AVERAGEIF(O105:O116,">0"))/100 -> 34.74450693 | Q99: =100-(O99+P99+R99) -> 6.267700556 | R99: =IF((N101+R101)>100,R101*100/(N101+R101),R101) -> 3.730950692 | S99: =IF((S101+W101)>100,S101*100/(S101+W101),S101) -> 95.21862979 | T99: =S99*AVERAGEIF(T105:T116,">0")/100 -> 70.21924978 | U99: =S99*(100-AVERAGEIF(T105:T116,">0"))/100 -> 24.99938001 | V99: =100-(T99+U99+W99) -> 2.889281384 | W99: =IF((S101+W101)>100,W101*100/(S101+W101),W101) -> 1.892088829 | X99: =IF((X101+AB101)>100,X101*100/(X101+AB101),X101) -> 99.60287899 | Y99: =X99*AVERAGEIF(Y105:Y116,">0")/100 -> 95.23090281 | Z99: =X99*(100-AVERAGEIF(Y105:Y116,">0"))/100 -> 4.371976185 | AA99: =100-(Y99+Z99+AB99) -> 0.2142525492 | AB99: =IF((X101+AB101)>100,AB101*100/(X101+AB101),AB101) -> 0.1828684576
C100: 2020 | D100: =IF((D102+H102)>100,D102*100/(D102+H102),D102) -> 66.7372205 | E100: =D100*AVERAGEIF(E105:E116,">0")/100 -> 37.83368234 | F100: =D100*(100-AVERAGEIF(E105:E116,">0"))/100 -> 28.90353816 | G100: =100-(E100+F100+H100) -> 13.97334925 | H100: =IF((D102+H102)>100,H102*100/(D102+H102),H102) -> 19.28943024 | I100: =IF((I102+M102)>100,I102*100/(I102+M102),I102) -> 100 | J100: =I100*AVERAGEIF(J105:J116,">0")/100 -> 59.07830604 | K100: =I100*(100-AVERAGEIF(J105:J116,">0"))/100 -> 40.92169396 | L100: =100-(J100+K100+M100) -> 0 | M100: =IF((I102+M102)>100,M102*100/(I102+M102),M102) -> 0 | N100: =IF((N102+R102)>100,N102*100/(N102+R102),N102) -> 100 | O100: =N100*AVERAGEIF(O105:O116,">0")/100 -> 61.39557083 | P100: =N100*(100-AVERAGEIF(O105:O116,">0"))/100 -> 38.60442917 | Q100: =100-(O100+P100+R100) -> 0 | R100: =IF((N102+R102)>100,R102*100/(N102+R102),R102) -> 0 | S100: =IF((S102+W102)>100,S102*100/(S102+W102),S102) -> 100 | T100: =S100*AVERAGEIF(T105:T116,">0")/100 -> 73.74528486 | U100: =S100*(100-AVERAGEIF(T105:T116,">0"))/100 -> 26.25471514 | V100: =100-(T100+U100+W100) -> 0 | W100: =IF((S102+W102)>100,W102*100/(S102+W102),W102) -> 0 | X100: =IF((X102+AB102)>100,X102*100/(X102+AB102),X102) -> 99.91514131 | Y100: =X100*AVERAGEIF(Y105:Y116,">0")/100 -> 95.52945865 | Z100: =X100*(100-AVERAGEIF(Y105:Y116,">0"))/100 -> 4.385682651 | AA100: =100-(Y100+Z100+AB100) -> 0.08485869442 | AB100: =IF((X102+AB102)>100,AB102*100/(X102+AB102),AB102) -> 0
A101: Regression period: | C101: =MinRegYear(C99,C105:C116) -> 2000 | D101: =IF(MAX(C105:C116)-MIN(C105:C116)<5,AVERAGEIF(C105:C116,">0",D105:D116), IF(FORECAST($C101,D$105:D$116,$C$105:$C$116)<0,0, IF(FORECAST($C101,D$105:D$116,$C$105:$C$116)>100,100, FORECAST($C101,D$105:D$116,$C$105:$C$116)))) -> 13.09379229 | H101: =IF(MAX(C105:C116)-MIN(C105:C116)<5,AVERAGEIF(C105:C116,">0",H105:H116), IF(FORECAST($C101,H$105:H$116,$C$105:$C$116)<0,0, IF(FORECAST($C101,H$105:H$116,$C$105:$C$116)>100,100, FORECAST($C101,H$105:H$116,$C$105:$C$116)))) -> 68.60816985 | I101: =IF(MAX(C105:C116)-MIN(C105:C116)<5,AVERAGEIF(C105:C116,">0",I105:I116), IF(FORECAST($C101,I$105:I$116,$C$105:$C$116)<0,0, IF(FORECAST($C101,I$105:I$116,$C$105:$C$116)>100,100, FORECAST($C101,I$105:I$116,$C$105:$C$116)))) -> 64.74456319 | M101: =IF(MAX(C105:C116)-MIN(C105:C116)<5,AVERAGEIF(C105:C116,">0",M105:M116), IF(FORECAST($C101,M$105:M$116,$C$105:$C$116)<0,0, IF(FORECAST($C101,M$105:M$116,$C$105:$C$116)>100,100, FORECAST($C101,M$105:M$116,$C$105:$C$116)))) -> 20.28482164 | N101: =IF(MAX(C105:C116)-MIN(C105:C116)<5,AVERAGEIF(C105:C116,">0",N105:N116), IF(FORECAST($C101,N$105:N$116,$C$105:$C$116)<0,0, IF(FORECAST($C101,N$105:N$116,$C$105:$C$116)>100,100, FORECAST($C101,N$105:N$116,$C$105:$C$116)))) -> 90.00134875 | R101: =IF(MAX(C105:C116)-MIN(C105:C116)<5,AVERAGEIF(C105:C116,">0",R105:R116), IF(FORECAST($C101,R$105:R$116,$C$105:$C$116)<0,0, IF(FORECAST($C101,R$105:R$116,$C$105:$C$116)>100,100, FORECAST($C101,R$105:R$116,$C$105:$C$116)))) -> 3.730950692 | S101: =IF(MAX(C105:C116)-MIN(C105:C116)<5,AVERAGEIF(C105:C116,">0",S105:S116), IF(FORECAST($C101,S$105:S$116,$C$105:$C$116)<0,0, IF(FORECAST($C101,S$105:S$116,$C$105:$C$116)>100,100, FORECAST($C101,S$105:S$116,$C$105:$C$116)))) -> 95.21862979 | W101: =IF(MAX(C105:C116)-MIN(C105:C116)<5,AVERAGEIF(C105:C116,">0",W105:W116), IF(FORECAST($C101,W$105:W$116,$C$105:$C$116)<0,0, IF(FORECAST($C101,W$105:W$116,$C$105:$C$116)>100,100, FORECAST($C101,W$105:W$116,$C$105:$C$116)))) -> 1.892088829 | X101: =IF(MAX(C105:C116)-MIN(C105:C116)<5,AVERAGEIF(C105:C116,">0",X105:X116), IF(FORECAST($C101,X$105:X$116,$C$105:$C$116)<0,0, IF(FORECAST($C101,X$105:X$116,$C$105:$C$116)>100,100, FORECAST($C101,X$105:X$116,$C$105:$C$116)))) -> 99.60287899 | AB101: =IF(MAX(C105:C116)-MIN(C105:C116)<5,AVERAGEIF(C105:C116,">0",AB105:AB116), IF(FORECAST($C101,AB$105:AB$116,$C$105:$C$116)<0,0, IF(FORECAST($C101,AB$105:AB$116,$C$105:$C$116)>100,100, FORECAST($C101,AB$105:AB$116,$C$105:$C$116)))) -> 0.1828684576
C102: =MaxRegYear(C100,C105:C116) -> 2020 | D102: =IF(MAX(C105:C116)-MIN(C105:C116)<5,AVERAGEIF(C105:C116,">0",D105:D116), IF(FORECAST($C102,D$105:D$116,$C$105:$C$116)<0,0, IF(FORECAST($C102,D$105:D$116,$C$105:$C$116)>100,100, FORECAST($C102,D$105:D$116,$C$105:$C$116)))) -> 66.7372205 | H102: =IF(MAX(C105:C116)-MIN(C105:C116)<5,AVERAGEIF(C105:C116,">0",H105:H116), IF(FORECAST($C102,H$105:H$116,$C$105:$C$116)<0,0, IF(FORECAST($C102,H$105:H$116,$C$105:$C$116)>100,100, FORECAST($C102,H$105:H$116,$C$105:$C$116)))) -> 19.28943024 | I102: =IF(MAX(C105:C116)-MIN(C105:C116)<5,AVERAGEIF(C105:C116,">0",I105:I116), IF(FORECAST($C102,I$105:I$116,$C$105:$C$116)<0,0, IF(FORECAST($C102,I$105:I$116,$C$105:$C$116)>100,100, FORECAST($C102,I$105:I$116,$C$105:$C$116)))) -> 100 | M102: =IF(MAX(C105:C116)-MIN(C105:C116)<5,AVERAGEIF(C105:C116,">0",M105:M116), IF(FORECAST($C102,M$105:M$116,$C$105:$C$116)<0,0, IF(FORECAST($C102,M$105:M$116,$C$105:$C$116)>100,100, FORECAST($C102,M$105:M$116,$C$105:$C$116)))) -> 0 | N102: =IF(MAX(C105:C116)-MIN(C105:C116)<5,AVERAGEIF(C105:C116,">0",N105:N116), IF(FORECAST($C102,N$105:N$116,$C$105:$C$116)<0,0, IF(FORECAST($C102,N$105:N$116,$C$105:$C$116)>100,100, FORECAST($C102,N$105:N$116,$C$105:$C$116)))) -> 100 | R102: =IF(MAX(C105:C116)-MIN(C105:C116)<5,AVERAGEIF(C105:C116,">0",R105:R116), IF(FORECAST($C102,R$105:R$116,$C$105:$C$116)<0,0, IF(FORECAST($C102,R$105:R$116,$C$105:$C$116)>100,100, FORECAST($C102,R$105:R$116,$C$105:$C$116)))) -> 0 | S102: =IF(MAX(C105:C116)-MIN(C105:C116)<5,AVERAGEIF(C105:C116,">0",S105:S116), IF(FORECAST($C102,S$105:S$116,$C$105:$C$116)<0,0, IF(FORECAST($C102,S$105:S$116,$C$105:$C$116)>100,100, FORECAST($C102,S$105:S$116,$C$105:$C$116)))) -> 100 | W102: =IF(MAX(C105:C116)-MIN(C105:C116)<5,AVERAGEIF(C105:C116,">0",W105:W116), IF(FORECAST($C102,W$105:W$116,$C$105:$C$116)<0,0, IF(FORECAST($C102,W$105:W$116,$C$105:$C$116)>100,100, FORECAST($C102,W$105:W$116,$C$105:$C$116)))) -> 0 | X102: =IF(MAX(C105:C116)-MIN(C105:C116)<5,AVERAGEIF(C105:C116,">0",X105:X116), IF(FORECAST($C102,X$105:X$116,$C$105:$C$116)<0,0, IF(FORECAST($C102,X$105:X$116,$C$105:$C$116)>100,100, FORECAST($C102,X$105:X$116,$C$105:$C$116)))) -> 99.91514131 | AB102: =IF(MAX(C105:C116)-MIN(C105:C116)<5,AVERAGEIF(C105:C116,">0",AB105:AB116), IF(FORECAST($C102,AB$105:AB$116,$C$105:$C$116)<0,0, IF(FORECAST($C102,AB$105:AB$116,$C$105:$C$116)>100,100, FORECAST($C102,AB$105:AB$116,$C$105:$C$116)))) -> 0
B104: Survey | C104: Year | D104: Improved | E104: Not shared | H104: Open defecation | I104: Improved | J104: Not shared | M104: Open defecation | N104: Improved | O104: Not shared | R104: Open defecation | S104: Improved | T104: Not shared | W104: Open defecation | X104: Improved | Y104: Not shared | AB104: Open defecation
B105: MICS00 | C105: 2000 | D105: =IF(ISERROR(INDIRECT(CONCATENATE($B105,"!C122"))),"",INDIRECT(CONCATENATE($B105,"!C122"))) -> 14.7916277 | E105: =IF(ISERROR(INDIRECT(CONCATENATE($B105,"!C129"))),"",INDIRECT(CONCATENATE($B105,"!C129"))) -> N/A | H105: =IF(ISERROR(INDIRECT(CONCATENATE($B105,"!C127"))),"",INDIRECT(CONCATENATE($B105,"!C127"))) -> 70.948651 | I105: =IF(ISERROR(INDIRECT(CONCATENATE($B105,"!D122"))),"",INDIRECT(CONCATENATE($B105,"!D122"))) -> 61.48098656 | J105: =IF(ISERROR(INDIRECT(CONCATENATE($B105,"!D129"))),"",INDIRECT(CONCATENATE($B105,"!D129"))) -> N/A | M105: =IF(ISERROR(INDIRECT(CONCATENATE($B105,"!D127"))),"",INDIRECT(CONCATENATE($B105,"!D127"))) -> 24.40314052 | N105: =IF(ISERROR(INDIRECT(CONCATENATE($B105,"!E122"))),"",INDIRECT(CONCATENATE($B105,"!E122"))) -> 90.12385805 | O105: =IF(ISERROR(INDIRECT(CONCATENATE($B105,"!E129"))),"",INDIRECT(CONCATENATE($B105,"!E129"))) -> N/A | R105: =IF(ISERROR(INDIRECT(CONCATENATE($B105,"!E127"))),"",INDIRECT(CONCATENATE($B105,"!E127"))) -> 3.229585007 | S105: =IF(ISERROR(INDIRECT(CONCATENATE($B105,"!F122"))),"",INDIRECT(CONCATENATE($B105,"!F122"))) -> 94.66697445 | T105: =IF(ISERROR(INDIRECT(CONCATENATE($B105,"!F129"))),"",INDIRECT(CONCATENATE($B105,"!F129"))) -> N/A | W105: =IF(ISERROR(INDIRECT(CONCATENATE($B105,"!F127"))),"",INDIRECT(CONCATENATE($B105,"!F127"))) -> 2.202569665 | X105: =IF(ISERROR(INDIRECT(CONCATENATE($B105,"!G122"))),"",INDIRECT(CONCATENATE($B105,"!G122"))) -> 99.75432076 | Y105: =IF(ISERROR(INDIRECT(CONCATENATE($B105,"!G129"))),"",INDIRECT(CONCATENATE($B105,"!G129"))) -> N/A | AB105: =IF(ISERROR(INDIRECT(CONCATENATE($B105,"!G2127"))),"",INDIRECT(CONCATENATE($B105,"!G127"))) -> 0.1501752044
B106: MICS05 | C106: 2005 | D106: 26.29876867 | E106: 42.70789609 | H106: 50.94712389 | I106: 74.011518 | J106: 57.28007264 | M106: 10.9847826 | N106: 90.20345747 | O106: 53.22749785 | R106: 3.994033532 | S106: 96.3508325 | T106: 57.48097261 | W106: 1.098865805 | X106: 99.43376751 | Y106: 92.03443219 | AB106: 0.1516644665
B107: MICS10 | C107: 2010 | D107: 22.68192328 | E107: 49.38029794 | H107: 61.61379619 | I107: 94.44130588 | J107: 51.31530422 | M107: 2.719448452 | N107: 99.19028459 | O107: 57.1525134 | R107: 0.4393682436 | S107: 99.5118885 | T107: 61.59577256 | W107: 0.3195904055 | X107: 99.73066022 | Y107: 93.88363367 | AB107: 0.1528509417
B108: MICS14 | C108: 2014 | D108: 78.14021116 | E108: 67.9339246 | H108: 5.549818074 | I108: 97.08931691 | J108: 65.06226506 | M108: 0.1754308726 | N108: 98.47229552 | O108: 66.23368641 | R108: 0.0564179227 | S108: 99.81754679 | T108: 89.40162534 | W108: 0 | X108: 100 | Y108: 99.23086161 | AB108: 0
B109: MICS18 | C109: 2018 | D109: 49.61848695 | E109: 66.73999135 | H109: 38.08242201 | I109: 96.93805929 | J109: 62.65558223 | M109: 0.5374656572 | N109: 98.25918225 | O109: 68.96858565 | R109: 0.03057802801 | S109: 99.19833014 | T109: 86.50276893 | W109: 0.02367405371 | X109: 99.82946292 | Y109: 97.29344275 | AB109: 0
B118: =CONCATENATE("National use of sanitation facilities, ",C99,"–",C100) -> National use of sanitation facilities, 2000–2020 | S118: Data points used for regression
A197: URBAN | D197: Poorest | I197: Poor | N197: Middle | S197: Rich | X197: Richest
D198: Improved | E198: Basic | F198: Limited | G198: Unimproved | H198: Open defecation | I198: Improved | J198: Basic | K198: Limited | L198: Unimproved | M198: Open defecation | N198: Improved | O198: Basic | P198: Limited | Q198: Unimproved | R198: Open defecation | S198: Improved | T198: Basic | U198: Limited | V198: Unimproved | W198: Open defecation | X198: Improved | Y198: Basic | Z198: Limited | AA198: Unimproved | AB198: Open defecation
A199: Forecast period: | C199: 2000 | D199: =IF((D201+H201)>100,D201*100/(D201+H201),D201) -> 90.69861222 | E199: =D199*AVERAGEIF(E205:E216,">0")/100 -> 50.37526579 | F199: =D199*(100-AVERAGEIF(E205:E216,">0"))/100 -> 40.32334643 | G199: =100-(E199+F199+H199) -> 6.235150715 | H199: =IF((D201+H201)>100,H201*100/(D201+H201),H201) -> 3.066237067 | I199: =IF((I201+M201)>100,I201*100/(I201+M201),I201) -> 93.75386113 | J199: =I199*AVERAGEIF(J205:J216,">0")/100 -> 54.91865808 | K199: =I199*(100-AVERAGEIF(J205:J216,">0"))/100 -> 38.83520305 | L199: =100-(J199+K199+M199) -> 4.299239133 | M199: =IF((I201+M201)>100,M201*100/(I201+M201),M201) -> 1.946899737 | N199: =IF((N201+R201)>100,N201*100/(N201+R201),N201) -> 96.47216185 | O199: =N199*AVERAGEIF(O205:O216,">0")/100 -> 63.4623309 | P199: =N199*(100-AVERAGEIF(O205:O216,">0"))/100 -> 33.00983095 | Q199: =100-(O199+P199+R199) -> 2.610890396 | R199: =IF((N201+R201)>100,R201*100/(N201+R201),R201) -> 0.9169477578 | S199: =IF((S201+W201)>100,S201*100/(S201+W201),S201) -> 99.25877595 | T199: =S199*AVERAGEIF(T205:T216,">0")/100 -> 84.13639932 | U199: =S199*(100-AVERAGEIF(T205:T216,">0"))/100 -> 15.12237663 | V199: =100-(T199+U199+W199) -> 0.4851293631 | W199: =IF((S201+W201)>100,W201*100/(S201+W201),W201) -> 0.2560946895 | X199: =IF((X201+AB201)>100,X201*100/(X201+AB201),X201) -> 99.73450643 | Y199: =X199*AVERAGEIF(Y205:Y216,">0")/100 -> 97.90613019 | Z199: =X199*(100-AVERAGEIF(Y205:Y216,">0"))/100 -> 1.828376241 | AA199: =100-(Y199+Z199+AB199) -> 0.1753238771 | AB199: =IF((X201+AB201)>100,AB201*100/(X201+AB201),AB201) -> 0.09016969394
C200: 2020 | D200: =IF((D202+H202)>100,D202*100/(D202+H202),D202) -> 95.68271067 | E200: =D200*AVERAGEIF(E205:E216,">0")/100 -> 53.14350312 | F200: =D200*(100-AVERAGEIF(E205:E216,">0"))/100 -> 42.53920755 | G200: =100-(E200+F200+H200) -> 2.100636258 | H200: =IF((D202+H202)>100,H202*100/(D202+H202),H202) -> 2.216653073 | I200: =IF((I202+M202)>100,I202*100/(I202+M202),I202) -> 99.90142604 | J200: =I200*AVERAGEIF(J205:J216,">0")/100 -> 58.51974726 | K200: =I200*(100-AVERAGEIF(J205:J216,">0"))/100 -> 41.38167878 | L200: =100-(J200+K200+M200) -> 0.09857396058 | M200: =IF((I202+M202)>100,M202*100/(I202+M202),M202) -> 0 | N200: =IF((N202+R202)>100,N202*100/(N202+R202),N202) -> 100 | O200: =N200*AVERAGEIF(O205:O216,">0")/100 -> 65.78305045 | P200: =N200*(100-AVERAGEIF(O205:O216,">0"))/100 -> 34.21694955 | Q200: =100-(O200+P200+R200) -> 0 | R200: =IF((N202+R202)>100,R202*100/(N202+R202),R202) -> 0 | S200: =IF((S202+W202)>100,S202*100/(S202+W202),S202) -> 99.55502341 | T200: =S200*AVERAGEIF(T205:T216,">0")/100 -> 84.38751257 | U200: =S200*(100-AVERAGEIF(T205:T216,">0"))/100 -> 15.16751083 | V200: =100-(T200+U200+W200) -> 0.3861503402 | W200: =IF((S202+W202)>100,W202*100/(S202+W202),W202) -> 0.05882625446 | X200: =IF((X202+AB202)>100,X202*100/(X202+AB202),X202) -> 99.94223245 | Y200: =X200*AVERAGEIF(Y205:Y216,">0")/100 -> 98.11004809 | Z200: =X200*(100-AVERAGEIF(Y205:Y216,">0"))/100 -> 1.832184364 | AA200: =100-(Y200+Z200+AB200) -> 0.05776755016 | AB200: =IF((X202+AB202)>100,AB202*100/(X202+AB202),AB202) -> 0
A201: Regression period: | C201: =MinRegYear(C199,C205:C216) -> 2000 | D201: =IF(MAX(C205:C216)-MIN(C205:C216)<5,AVERAGEIF(C205:C216,">0",D205:D216), IF(FORECAST($C201,D$205:D$216,$C$205:$C$216)<0,0, IF(FORECAST($C201,D$205:D$216,$C$205:$C$216)>100,100, FORECAST($C201,D$205:D$216,$C$205:$C$216)))) -> 90.69861222 | H201: =IF(MAX(C205:C216)-MIN(C205:C216)<5,AVERAGEIF(C205:C216,">0",H205:H216), IF(FORECAST($C201,H$205:H$216,$C$205:$C$216)<0,0, IF(FORECAST($C201,H$205:H$216,$C$205:$C$216)>100,100, FORECAST($C201,H$205:H$216,$C$205:$C$216)))) -> 3.066237067 | I201: =IF(MAX(C205:C216)-MIN(C205:C216)<5,AVERAGEIF(C205:C216,">0",I205:I216), IF(FORECAST($C201,I$205:I$216,$C$205:$C$216)<0,0, IF(FORECAST($C201,I$205:I$216,$C$205:$C$216)>100,100, FORECAST($C201,I$205:I$216,$C$205:$C$216)))) -> 93.75386113 | M201: =IF(MAX(C205:C216)-MIN(C205:C216)<5,AVERAGEIF(C205:C216,">0",M205:M216), IF(FORECAST($C201,M$205:M$216,$C$205:$C$216)<0,0, IF(FORECAST($C201,M$205:M$216,$C$205:$C$216)>100,100, FORECAST($C201,M$205:M$216,$C$205:$C$216)))) -> 1.946899737 | N201: =IF(MAX(C205:C216)-MIN(C205:C216)<5,AVERAGEIF(C205:C216,">0",N205:N216), IF(FORECAST($C201,N$205:N$216,$C$205:$C$216)<0,0, IF(FORECAST($C201,N$205:N$216,$C$205:$C$216)>100,100, FORECAST($C201,N$205:N$216,$C$205:$C$216)))) -> 96.47216185 | R201: =IF(MAX(C205:C216)-MIN(C205:C216)<5,AVERAGEIF(C205:C216,">0",R205:R216), IF(FORECAST($C201,R$205:R$216,$C$205:$C$216)<0,0, IF(FORECAST($C201,R$205:R$216,$C$205:$C$216)>100,100, FORECAST($C201,R$205:R$216,$C$205:$C$216)))) -> 0.9169477578 | S201: =IF(MAX(C205:C216)-MIN(C205:C216)<5,AVERAGEIF(C205:C216,">0",S205:S216), IF(FORECAST($C201,S$205:S$216,$C$205:$C$216)<0,0, IF(FORECAST($C201,S$205:S$216,$C$205:$C$216)>100,100, FORECAST($C201,S$205:S$216,$C$205:$C$216)))) -> 99.25877595 | W201: =IF(MAX(C205:C216)-MIN(C205:C216)<5,AVERAGEIF(C205:C216,">0",W205:W216), IF(FORECAST($C201,W$205:W$216,$C$205:$C$216)<0,0, IF(FORECAST($C201,W$205:W$216,$C$205:$C$216)>100,100, FORECAST($C201,W$205:W$216,$C$205:$C$216)))) -> 0.2560946895 | X201: =IF(MAX(C205:C216)-MIN(C205:C216)<5,AVERAGEIF(C205:C216,">0",X205:X216), IF(FORECAST($C201,X$205:X$216,$C$205:$C$216)<0,0, IF(FORECAST($C201,X$205:X$216,$C$205:$C$216)>100,100, FORECAST($C201,X$205:X$216,$C$205:$C$216)))) -> 99.73450643 | AB201: =IF(MAX(C205:C216)-MIN(C205:C216)<5,AVERAGEIF(C205:C216,">0",AB205:AB216), IF(FORECAST($C201,AB$205:AB$216,$C$205:$C$216)<0,0, IF(FORECAST($C201,AB$205:AB$216,$C$205:$C$216)>100,100, FORECAST($C201,AB$205:AB$216,$C$205:$C$216)))) -> 0.09016969394
C202: =MaxRegYear(C200,C205:C216) -> 2020 | D202: =IF(MAX(C205:C216)-MIN(C205:C216)<5,AVERAGEIF(C205:C216,">0",D205:D216), IF(FORECAST($C202,D$205:D$216,$C$205:$C$216)<0,0, IF(FORECAST($C202,D$205:D$216,$C$205:$C$216)>100,100, FORECAST($C202,D$205:D$216,$C$205:$C$216)))) -> 95.68271067 | H202: =IF(MAX(C205:C216)-MIN(C205:C216)<5,AVERAGEIF(C205:C216,">0",H205:H216), IF(FORECAST($C202,H$205:H$216,$C$205:$C$216)<0,0, IF(FORECAST($C202,H$205:H$216,$C$205:$C$216)>100,100, FORECAST($C202,H$205:H$216,$C$205:$C$216)))) -> 2.216653073 | I202: =IF(MAX(C205:C216)-MIN(C205:C216)<5,AVERAGEIF(C205:C216,">0",I205:I216), IF(FORECAST($C202,I$205:I$216,$C$205:$C$216)<0,0, IF(FORECAST($C202,I$205:I$216,$C$205:$C$216)>100,100, FORECAST($C202,I$205:I$216,$C$205:$C$216)))) -> 99.90142604 | M202: =IF(MAX(C205:C216)-MIN(C205:C216)<5,AVERAGEIF(C205:C216,">0",M205:M216), IF(FORECAST($C202,M$205:M$216,$C$205:$C$216)<0,0, IF(FORECAST($C202,M$205:M$216,$C$205:$C$216)>100,100, FORECAST($C202,M$205:M$216,$C$205:$C$216)))) -> 0 | N202: =IF(MAX(C205:C216)-MIN(C205:C216)<5,AVERAGEIF(C205:C216,">0",N205:N216), IF(FORECAST($C202,N$205:N$216,$C$205:$C$216)<0,0, IF(FORECAST($C202,N$205:N$216,$C$205:$C$216)>100,100, FORECAST($C202,N$205:N$216,$C$205:$C$216)))) -> 100 | R202: =IF(MAX(C205:C216)-MIN(C205:C216)<5,AVERAGEIF(C205:C216,">0",R205:R216), IF(FORECAST($C202,R$205:R$216,$C$205:$C$216)<0,0, IF(FORECAST($C202,R$205:R$216,$C$205:$C$216)>100,100, FORECAST($C202,R$205:R$216,$C$205:$C$216)))) -> 0 | S202: =IF(MAX(C205:C216)-MIN(C205:C216)<5,AVERAGEIF(C205:C216,">0",S205:S216), IF(FORECAST($C202,S$205:S$216,$C$205:$C$216)<0,0, IF(FORECAST($C202,S$205:S$216,$C$205:$C$216)>100,100, FORECAST($C202,S$205:S$216,$C$205:$C$216)))) -> 99.55502341 | W202: =IF(MAX(C205:C216)-MIN(C205:C216)<5,AVERAGEIF(C205:C216,">0",W205:W216), IF(FORECAST($C202,W$205:W$216,$C$205:$C$216)<0,0, IF(FORECAST($C202,W$205:W$216,$C$205:$C$216)>100,100, FORECAST($C202,W$205:W$216,$C$205:$C$216)))) -> 0.05882625446 | X202: =IF(MAX(C205:C216)-MIN(C205:C216)<5,AVERAGEIF(C205:C216,">0",X205:X216), IF(FORECAST($C202,X$205:X$216,$C$205:$C$216)<0,0, IF(FORECAST($C202,X$205:X$216,$C$205:$C$216)>100,100, FORECAST($C202,X$205:X$216,$C$205:$C$216)))) -> 99.94223245 | AB202: =IF(MAX(C205:C216)-MIN(C205:C216)<5,AVERAGEIF(C205:C216,">0",AB205:AB216), IF(FORECAST($C202,AB$205:AB$216,$C$205:$C$216)<0,0, IF(FORECAST($C202,AB$205:AB$216,$C$205:$C$216)>100,100, FORECAST($C202,AB$205:AB$216,$C$205:$C$216)))) -> 0
B204: Survey | C204: Year | D204: Improved | E204: Not shared | H204: Open defecation | I204: Improved | J204: Not shared | M204: Open defecation | N204: Improved | O204: Not shared | R204: Open defecation | S204: Improved | T204: Not shared | W204: Open defecation | X204: Improved | Y204: Not shared | AB204: Open defecation
B205: MICS00 | C205: 2000 | D205: =IF(ISERROR(INDIRECT(CONCATENATE($B205,"!H122"))),"",INDIRECT(CONCATENATE($B205,"!H122"))) -> 93.63805934 | E205: =IF(ISERROR(INDIRECT(CONCATENATE($B205,"!H129"))),"",INDIRECT(CONCATENATE($B205,"!H129"))) -> N/A | H205: =IF(ISERROR(INDIRECT(CONCATENATE($B205,"!H127"))),"",INDIRECT(CONCATENATE($B205,"!H127"))) -> 0 | I205: =IF(ISERROR(INDIRECT(CONCATENATE($B205,"!I122"))),"",INDIRECT(CONCATENATE($B205,"!I122"))) -> 94.30013587 | J205: =IF(ISERROR(INDIRECT(CONCATENATE($B205,"!I129"))),"",INDIRECT(CONCATENATE($B205,"!I129"))) -> N/A | M205: =IF(ISERROR(INDIRECT(CONCATENATE($B205,"!I127"))),"",INDIRECT(CONCATENATE($B205,"!I127"))) -> 0.918079096 | N205: =IF(ISERROR(INDIRECT(CONCATENATE($B205,"!J122"))),"",INDIRECT(CONCATENATE($B205,"!J122"))) -> 96.1288221 | O205: =IF(ISERROR(INDIRECT(CONCATENATE($B205,"!J129"))),"",INDIRECT(CONCATENATE($B205,"!J129"))) -> N/A | R205: =IF(ISERROR(INDIRECT(CONCATENATE($B205,"!J127"))),"",INDIRECT(CONCATENATE($B205,"!J127"))) -> 1.085329341 | S205: =IF(ISERROR(INDIRECT(CONCATENATE($B205,"!K122"))),"",INDIRECT(CONCATENATE($B205,"!K122"))) -> 99.99064675 | T205: =IF(ISERROR(INDIRECT(CONCATENATE($B205,"!K129"))),"",INDIRECT(CONCATENATE($B205,"!K129"))) -> N/A | W205: =IF(ISERROR(INDIRECT(CONCATENATE($B205,"!K127"))),"",INDIRECT(CONCATENATE($B205,"!K127"))) -> 0 | X205: =IF(ISERROR(INDIRECT(CONCATENATE($B205,"!L122"))),"",INDIRECT(CONCATENATE($B205,"!L122"))) -> 99.69713138 | Y205: =IF(ISERROR(INDIRECT(CONCATENATE($B205,"!L129"))),"",INDIRECT(CONCATENATE($B205,"!L129"))) -> N/A | AB205: =IF(ISERROR(INDIRECT(CONCATENATE($B205,"!L2127"))),"",INDIRECT(CONCATENATE($B205,"!L127"))) -> 0.1092896175
B206: MICS05 | C206: 2005 | D206: 89.17275171 | E206: 51.35211257 | H206: 5.462531251 | I206: 92.92321032 | J206: 51.79608373 | M206: 3.135335726 | N206: 97.18989245 | O206: 54.03699373 | R206: 0.432203505 | S206: 98.01219725 | T206: 79.4910298 | W206: 0.4988765751 | X206: 99.86733632 | Y206: 97.4635262 | AB206: 0
B207: MICS10 | C207: 2010 | D207: 90.28783643 | E207: 49.4399 | H207: 6.226303734 | I207: 98.94718184 | J207: 53.98442608 | M207: 0.6023471688 | N207: 99.49138343 | O207: 59.16828729 | R207: 0.3160539619 | S207: 99.65959794 | T207: 68.22302438 | W207: 0.3180160501 | X207: 99.73096075 | Y207: 98.17501198 | AB207: 0.1206891758
B208: MICS14 | C208: 2014 | D208: 95.77424574 | E208: 63.18692607 | H208: 0.6216346494 | I208: 99.05435535 | J208: 61.82621985 | M208: 0 | N208: 98.86237609 | O208: 72.12855756 | R208: 0.07164489594 | S208: 99.95941583 | T208: 96.16262621 | W208: 0 | X208: 100 | Y208: 99.22485565 | AB208: 0
B209: MICS18 | C209: 2018 | D209: 96.33279923 | E209: 58.18660307 | H209: 1.024193314 | I209: 97.99119981 | J209: 66.70322799 | M209: 0.02492182273 | N209: 99.30851212 | O209: 77.79836322 | R209: 0 | S209: 99.36820349 | T209: 95.18210211 | W209: 0 | X209: 99.86525985 | Y209: 97.80363264 | AB209: 0
B218: =CONCATENATE("Urban use of sanitation facilities, ",C199,"–",C200) -> Urban use of sanitation facilities, 2000–2020 | S218: Data points used for regression
A297: RURAL | D297: Poorest | I297: Poor | N297: Middle | S297: Rich | X297: Richest
D298: Improved | E298: Basic | F298: Limited | G298: Unimproved | H298: Open defecation | I298: Improved | J298: Basic | K298: Limited | L298: Unimproved | M298: Open defecation | N298: Improved | O298: Basic | P298: Limited | Q298: Unimproved | R298: Open defecation | S298: Improved | T298: Basic | U298: Limited | V298: Unimproved | W298: Open defecation | X298: Improved | Y298: Basic | Z298: Limited | AA298: Unimproved | AB298: Open defecation
A299: Forecast period: | C299: 2000 | D299: =IF((D301+H301)>100,D301*100/(D301+H301),D301) -> 8.17845803 | E299: =D299*AVERAGEIF(E305:E316,">0")/100 -> 4.954371931 | F299: =D299*(100-AVERAGEIF(E305:E316,">0"))/100 -> 3.2240861 | G299: =100-(E299+F299+H299) -> 13.33120335 | H299: =IF((D301+H301)>100,H301*100/(D301+H301),H301) -> 78.49033862 | I299: =IF((I301+M301)>100,I301*100/(I301+M301),I301) -> 17.04675079 | J299: =I299*AVERAGEIF(J305:J316,">0")/100 -> 9.754599395 | K299: =I299*(100-AVERAGEIF(J305:J316,">0"))/100 -> 7.292151395 | L299: =100-(J299+K299+M299) -> 20.47964816 | M299: =IF((I301+M301)>100,M301*100/(I301+M301),M301) -> 62.47360105 | N299: =IF((N301+R301)>100,N301*100/(N301+R301),N301) -> 36.46910313 | O299: =N299*AVERAGEIF(O305:O316,">0")/100 -> 21.68455206 | P299: =N299*(100-AVERAGEIF(O305:O316,">0"))/100 -> 14.78455107 | Q299: =100-(O299+P299+R299) -> 28.11709346 | R299: =IF((N301+R301)>100,R301*100/(N301+R301),R301) -> 35.41380341 | S299: =IF((S301+W301)>100,S301*100/(S301+W301),S301) -> 65.77897048 | T299: =S299*AVERAGEIF(T305:T316,">0")/100 -> 42.45214066 | U299: =S299*(100-AVERAGEIF(T305:T316,">0"))/100 -> 23.32682982 | V299: =100-(T299+U299+W299) -> 18.94487032 | W299: =IF((S301+W301)>100,W301*100/(S301+W301),W301) -> 15.2761592 | X299: =IF((X301+AB301)>100,X301*100/(X301+AB301),X301) -> 86.19428208 | Y299: =X299*AVERAGEIF(Y305:Y316,">0")/100 -> 61.23615101 | Z299: =X299*(100-AVERAGEIF(Y305:Y316,">0"))/100 -> 24.95813107 | AA299: =100-(Y299+Z299+AB299) -> 7.927342556 | AB299: =IF((X301+AB301)>100,AB301*100/(X301+AB301),AB301) -> 5.878375364
C300: 2020 | D300: =IF((D302+H302)>100,D302*100/(D302+H302),D302) -> 24.6123109 | E300: =D300*AVERAGEIF(E305:E316,">0")/100 -> 14.90972281 | F300: =D300*(100-AVERAGEIF(E305:E316,">0"))/100 -> 9.702588088 | G300: =100-(E300+F300+H300) -> 29.03019168 | H300: =IF((D302+H302)>100,H302*100/(D302+H302),H302) -> 46.35749741 | I300: =IF((I302+M302)>100,I302*100/(I302+M302),I302) -> 58.90361726 | J300: =I300*AVERAGEIF(J305:J316,">0")/100 -> 33.70619987 | K300: =I300*(100-AVERAGEIF(J305:J316,">0"))/100 -> 25.19741739 | L300: =100-(J300+K300+M300) -> 14.24847913 | M300: =IF((I302+M302)>100,M302*100/(I302+M302),M302) -> 26.84790361 | N300: =IF((N302+R302)>100,N302*100/(N302+R302),N302) -> 84.62167765 | O300: =N300*AVERAGEIF(O305:O316,">0")/100 -> 50.31610369 | P300: =N300*(100-AVERAGEIF(O305:O316,">0"))/100 -> 34.30557397 | Q300: =100-(O300+P300+R300) -> 4.390219346 | R300: =IF((N302+R302)>100,R302*100/(N302+R302),R302) -> 10.988103 | S300: =IF((S302+W302)>100,S302*100/(S302+W302),S302) -> 87.4752762 | T300: =S300*AVERAGEIF(T305:T316,">0")/100 -> 56.45440637 | U300: =S300*(100-AVERAGEIF(T305:T316,">0"))/100 -> 31.02086983 | V300: =100-(T300+U300+W300) -> 3.639894009 | W300: =IF((S302+W302)>100,W302*100/(S302+W302),W302) -> 8.88482979 | X300: =IF((X302+AB302)>100,X302*100/(X302+AB302),X302) -> 98.60706782 | Y300: =X300*AVERAGEIF(Y305:Y316,">0")/100 -> 70.0547316 | Z300: =X300*(100-AVERAGEIF(Y305:Y316,">0"))/100 -> 28.55233623 | AA300: =100-(Y300+Z300+AB300) -> 1.087155378 | AB300: =IF((X302+AB302)>100,AB302*100/(X302+AB302),AB302) -> 0.3057767993
A301: Regression period: | C301: =MinRegYear(C299,C305:C316) -> 2000 | D301: =IF(MAX(C305:C316)-MIN(C305:C316)<5,AVERAGEIF(C305:C316,">0",D305:D316), IF(FORECAST($C301,D$305:D$316,$C$305:$C$316)<0,0, IF(FORECAST($C301,D$305:D$316,$C$305:$C$316)>100,100, FORECAST($C301,D$305:D$316,$C$305:$C$316)))) -> 8.17845803 | H301: =IF(MAX(C305:C316)-MIN(C305:C316)<5,AVERAGEIF(C305:C316,">0",H305:H316), IF(FORECAST($C301,H$305:H$316,$C$305:$C$316)<0,0, IF(FORECAST($C301,H$305:H$316,$C$305:$C$316)>100,100, FORECAST($C301,H$305:H$316,$C$305:$C$316)))) -> 78.49033862 | I301: =IF(MAX(C305:C316)-MIN(C305:C316)<5,AVERAGEIF(C305:C316,">0",I305:I316), IF(FORECAST($C301,I$305:I$316,$C$305:$C$316)<0,0, IF(FORECAST($C301,I$305:I$316,$C$305:$C$316)>100,100, FORECAST($C301,I$305:I$316,$C$305:$C$316)))) -> 17.04675079 | M301: =IF(MAX(C305:C316)-MIN(C305:C316)<5,AVERAGEIF(C305:C316,">0",M305:M316), IF(FORECAST($C301,M$305:M$316,$C$305:$C$316)<0,0, IF(FORECAST($C301,M$305:M$316,$C$305:$C$316)>100,100, FORECAST($C301,M$305:M$316,$C$305:$C$316)))) -> 62.47360105 | N301: =IF(MAX(C305:C316)-MIN(C305:C316)<5,AVERAGEIF(C305:C316,">0",N305:N316), IF(FORECAST($C301,N$305:N$316,$C$305:$C$316)<0,0, IF(FORECAST($C301,N$305:N$316,$C$305:$C$316)>100,100, FORECAST($C301,N$305:N$316,$C$305:$C$316)))) -> 36.46910313 | R301: =IF(MAX(C305:C316)-MIN(C305:C316)<5,AVERAGEIF(C305:C316,">0",R305:R316), IF(FORECAST($C301,R$305:R$316,$C$305:$C$316)<0,0, IF(FORECAST($C301,R$305:R$316,$C$305:$C$316)>100,100, FORECAST($C301,R$305:R$316,$C$305:$C$316)))) -> 35.41380341 | S301: =IF(MAX(C305:C316)-MIN(C305:C316)<5,AVERAGEIF(C305:C316,">0",S305:S316), IF(FORECAST($C301,S$305:S$316,$C$305:$C$316)<0,0, IF(FORECAST($C301,S$305:S$316,$C$305:$C$316)>100,100, FORECAST($C301,S$305:S$316,$C$305:$C$316)))) -> 65.77897048 | W301: =IF(MAX(C305:C316)-MIN(C305:C316)<5,AVERAGEIF(C305:C316,">0",W305:W316), IF(FORECAST($C301,W$305:W$316,$C$305:$C$316)<0,0, IF(FORECAST($C301,W$305:W$316,$C$305:$C$316)>100,100, FORECAST($C301,W$305:W$316,$C$305:$C$316)))) -> 15.2761592 | X301: =IF(MAX(C305:C316)-MIN(C305:C316)<5,AVERAGEIF(C305:C316,">0",X305:X316), IF(FORECAST($C301,X$305:X$316,$C$305:$C$316)<0,0, IF(FORECAST($C301,X$305:X$316,$C$305:$C$316)>100,100, FORECAST($C301,X$305:X$316,$C$305:$C$316)))) -> 86.19428208 | AB301: =IF(MAX(C305:C316)-MIN(C305:C316)<5,AVERAGEIF(C305:C316,">0",AB305:AB316), IF(FORECAST($C301,AB$305:AB$316,$C$305:$C$316)<0,0, IF(FORECAST($C301,AB$305:AB$316,$C$305:$C$316)>100,100, FORECAST($C301,AB$305:AB$316,$C$305:$C$316)))) -> 5.878375364
C302: =MaxRegYear(C300,C305:C316) -> 2020 | D302: =IF(MAX(C305:C316)-MIN(C305:C316)<5,AVERAGEIF(C305:C316,">0",D305:D316), IF(FORECAST($C302,D$305:D$316,$C$305:$C$316)<0,0, IF(FORECAST($C302,D$305:D$316,$C$305:$C$316)>100,100, FORECAST($C302,D$305:D$316,$C$305:$C$316)))) -> 24.6123109 | H302: =IF(MAX(C305:C316)-MIN(C305:C316)<5,AVERAGEIF(C305:C316,">0",H305:H316), IF(FORECAST($C302,H$305:H$316,$C$305:$C$316)<0,0, IF(FORECAST($C302,H$305:H$316,$C$305:$C$316)>100,100, FORECAST($C302,H$305:H$316,$C$305:$C$316)))) -> 46.35749741 | I302: =IF(MAX(C305:C316)-MIN(C305:C316)<5,AVERAGEIF(C305:C316,">0",I305:I316), IF(FORECAST($C302,I$305:I$316,$C$305:$C$316)<0,0, IF(FORECAST($C302,I$305:I$316,$C$305:$C$316)>100,100, FORECAST($C302,I$305:I$316,$C$305:$C$316)))) -> 58.90361726 | M302: =IF(MAX(C305:C316)-MIN(C305:C316)<5,AVERAGEIF(C305:C316,">0",M305:M316), IF(FORECAST($C302,M$305:M$316,$C$305:$C$316)<0,0, IF(FORECAST($C302,M$305:M$316,$C$305:$C$316)>100,100, FORECAST($C302,M$305:M$316,$C$305:$C$316)))) -> 26.84790361 | N302: =IF(MAX(C305:C316)-MIN(C305:C316)<5,AVERAGEIF(C305:C316,">0",N305:N316), IF(FORECAST($C302,N$305:N$316,$C$305:$C$316)<0,0, IF(FORECAST($C302,N$305:N$316,$C$305:$C$316)>100,100, FORECAST($C302,N$305:N$316,$C$305:$C$316)))) -> 84.62167765 | R302: =IF(MAX(C305:C316)-MIN(C305:C316)<5,AVERAGEIF(C305:C316,">0",R305:R316), IF(FORECAST($C302,R$305:R$316,$C$305:$C$316)<0,0, IF(FORECAST($C302,R$305:R$316,$C$305:$C$316)>100,100, FORECAST($C302,R$305:R$316,$C$305:$C$316)))) -> 10.988103 | S302: =IF(MAX(C305:C316)-MIN(C305:C316)<5,AVERAGEIF(C305:C316,">0",S305:S316), IF(FORECAST($C302,S$305:S$316,$C$305:$C$316)<0,0, IF(FORECAST($C302,S$305:S$316,$C$305:$C$316)>100,100, FORECAST($C302,S$305:S$316,$C$305:$C$316)))) -> 87.4752762 | W302: =IF(MAX(C305:C316)-MIN(C305:C316)<5,AVERAGEIF(C305:C316,">0",W305:W316), IF(FORECAST($C302,W$305:W$316,$C$305:$C$316)<0,0, IF(FORECAST($C302,W$305:W$316,$C$305:$C$316)>100,100, FORECAST($C302,W$305:W$316,$C$305:$C$316)))) -> 8.88482979 | X302: =IF(MAX(C305:C316)-MIN(C305:C316)<5,AVERAGEIF(C305:C316,">0",X305:X316), IF(FORECAST($C302,X$305:X$316,$C$305:$C$316)<0,0, IF(FORECAST($C302,X$305:X$316,$C$305:$C$316)>100,100, FORECAST($C302,X$305:X$316,$C$305:$C$316)))) -> 98.60706782 | AB302: =IF(MAX(C305:C316)-MIN(C305:C316)<5,AVERAGEIF(C305:C316,">0",AB305:AB316), IF(FORECAST($C302,AB$305:AB$316,$C$305:$C$316)<0,0, IF(FORECAST($C302,AB$305:AB$316,$C$305:$C$316)>100,100, FORECAST($C302,AB$305:AB$316,$C$305:$C$316)))) -> 0.3057767993
B304: Survey | C304: Year | D304: Improved | E304: Not shared | H304: Open defecation | I304: Improved | J304: Not shared | M304: Open defecation | N304: Improved | O304: Not shared | R304: Open defecation | S304: Improved | T304: Not shared | W304: Open defecation | X304: Improved | Y304: Not shared | AB304: Open defecation
B305: MICS00 | C305: 2000 | D305: =IF(ISERROR(INDIRECT(CONCATENATE($B305,"!M122"))),"",INDIRECT(CONCATENATE($B305,"!M122"))) -> 6.593160262 | E305: =IF(ISERROR(INDIRECT(CONCATENATE($B305,"!M129"))),"",INDIRECT(CONCATENATE($B305,"!M129"))) -> N/A | H305: =IF(ISERROR(INDIRECT(CONCATENATE($B305,"!M127"))),"",INDIRECT(CONCATENATE($B305,"!M127"))) -> 83.30134357 | I305: =IF(ISERROR(INDIRECT(CONCATENATE($B305,"!N122"))),"",INDIRECT(CONCATENATE($B305,"!N122"))) -> 21.52144499 | J305: =IF(ISERROR(INDIRECT(CONCATENATE($B305,"!N129"))),"",INDIRECT(CONCATENATE($B305,"!N129"))) -> N/A | M305: =IF(ISERROR(INDIRECT(CONCATENATE($B305,"!N127"))),"",INDIRECT(CONCATENATE($B305,"!N127"))) -> 58.54234287 | N305: =IF(ISERROR(INDIRECT(CONCATENATE($B305,"!O122"))),"",INDIRECT(CONCATENATE($B305,"!O122"))) -> 48.33430049 | O305: =IF(ISERROR(INDIRECT(CONCATENATE($B305,"!O129"))),"",INDIRECT(CONCATENATE($B305,"!O129"))) -> N/A | R305: =IF(ISERROR(INDIRECT(CONCATENATE($B305,"!O127"))),"",INDIRECT(CONCATENATE($B305,"!O127"))) -> 27.21930096 | S305: =IF(ISERROR(INDIRECT(CONCATENATE($B305,"!P122"))),"",INDIRECT(CONCATENATE($B305,"!P122"))) -> 77.55528907 | T305: =IF(ISERROR(INDIRECT(CONCATENATE($B305,"!P129"))),"",INDIRECT(CONCATENATE($B305,"!P129"))) -> N/A | W305: =IF(ISERROR(INDIRECT(CONCATENATE($B305,"!P127"))),"",INDIRECT(CONCATENATE($B305,"!P127"))) -> 6.982543641 | X305: =IF(ISERROR(INDIRECT(CONCATENATE($B305,"!Q122"))),"",INDIRECT(CONCATENATE($B305,"!Q122"))) -> 87.74599073 | Y305: =IF(ISERROR(INDIRECT(CONCATENATE($B305,"!Q129"))),"",INDIRECT(CONCATENATE($B305,"!Q129"))) -> N/A | AB305: =IF(ISERROR(INDIRECT(CONCATENATE($B305,"!Q2127"))),"",INDIRECT(CONCATENATE($B305,"!Q127"))) -> 5.641183724
B306: MICS05 | C306: 2005 | D306: 16.87622577 | E306: 33.49968988 | H306: 59.33841199 | I306: 26.59210886 | J306: 46.40848272 | M306: 50.89436799 | N306: 52.22271291 | O306: 55.91222298 | R306: 23.3353828 | S306: 78.25834 | T306: 56.32692568 | W306: 8.100909336 | X306: 91.46447237 | Y306: 65.4014418 | AB306: 2.181250813
B307: MICS10 | C307: 2010 | D307: 7.709197509 | E307: 53.82223744 | H307: 85.51024854 | I307: 10.56903645 | J307: 35.66152515 | M307: 76.575101 | N307: 17.13200682 | O307: 46.61035461 | R307: 60.41115994 | S307: 31.20823658 | T307: 56.04081289 | W307: 45.20554728 | X307: 83.61934499 | Y307: 59.08324016 | AB307: 8.358494685
B308: MICS14 | C308: 2014 | D308: 29.27312922 | E308: 79.32189671 | H308: 24.31099449 | I308: 84.00901881 | J308: 77.90311312 | M308: 0.08420557259 | N308: 91.53401929 | O308: 73.01989197 | R308: 0.1796460595 | S308: 95.88102178 | T308: 71.60281456 | W308: 0 | X308: 98.42047305 | Y308: 78.76293352 | AB308: 0
B309: MICS18 | C309: 2018 | D309: 19.06013164 | E309: 75.66942926 | H309: 64.47851767 | I309: 40.90578103 | J309: 68.91740519 | M309: 42.55159883 | N309: 86.28102626 | O309: 62.29778641 | R309: 8.52313132 | S309: 96.97828341 | T309: 74.17967546 | W309: 1.072171638 | X309: 98.89117575 | Y309: 80.92970829 | AB309: 0.1153409713
B318: =CONCATENATE("Rural use of sanitation facilities, ",C299,"–",C300) -> Rural use of sanitation facilities, 2000–2020 | S318: Data points used for regression

Sheet Hygiene
B4: Access to hygiene facilities by wealth quintile (%)
B5: =IF(ISERROR(INDIRECT(CONCATENATE($E$32,"!A2"))),"",INDIRECT(CONCATENATE($E$32,"!A2"))) -> 
B7: =CONCATENATE("National ",IF(ISERROR(INDIRECT(CONCATENATE($E$32,"!A2"))),"",INDIRECT(CONCATENATE($E$32,"!A210")))) -> National | K7: =CONCATENATE("Urban ",IF(ISERROR(INDIRECT(CONCATENATE($E$32,"!A2"))),"",INDIRECT(CONCATENATE($E$32,"!A210")))) -> Urban | S7: =CONCATENATE("Rural ",IF(ISERROR(INDIRECT(CONCATENATE($E$32,"!A2"))),"",INDIRECT(CONCATENATE($E$32,"!A210")))) -> Rural
E32: =INDEX(B88:B100,A88) -> 0 | G32: =IF(ISERROR(INDIRECT(CONCATENATE($E$32,"!A2"))),"",INDIRECT(CONCATENATE($E$32,"!A2"))) ->  | K32: Poorest | N32: Poor | Q32: Middle | T32: Rich | W32: Richest
K33: Basic | L33: Limited | M33: No facility | N33: Basic | O33: Limited | P33: No facility | Q33: Basic | R33: Limited | S33: No facility | T33: Basic | U33: Limited | V33: No facility | W33: Basic | X33: Limited | Y33: No facility
B34: >>> Select Survey : | G34: NATIONAL | J34: =IF(ISERROR(INDIRECT(CONCATENATE(#REF!,"!A2"))),"",INDIRECT(CONCATENATE(#REF!,"!A210"))) ->  | K34: =IF(ISERROR(INDIRECT(CONCATENATE($E$32,"!C222"))),"",INDIRECT(CONCATENATE($E$32,"!C222"))) ->  | L34: =IF(ISERROR(INDIRECT(CONCATENATE($E$32,"!C223"))),"",INDIRECT(CONCATENATE($E$32,"!C223"))) ->  | M34: =IF(ISERROR(INDIRECT(CONCATENATE($E$32,"!C224"))),"",INDIRECT(CONCATENATE($E$32,"!C224"))) ->  | N34: =IF(ISERROR(INDIRECT(CONCATENATE($E$32,"!D222"))),"",INDIRECT(CONCATENATE($E$32,"!D222"))) ->  | O34: =IF(ISERROR(INDIRECT(CONCATENATE($E$32,"!D223"))),"",INDIRECT(CONCATENATE($E$32,"!D223"))) ->  | P34: =IF(ISERROR(INDIRECT(CONCATENATE($E$32,"!D224"))),"",INDIRECT(CONCATENATE($E$32,"!D224"))) ->  | Q34: =IF(ISERROR(INDIRECT(CONCATENATE($E$32,"!E222"))),"",INDIRECT(CONCATENATE($E$32,"!E222"))) ->  | R34: =IF(ISERROR(INDIRECT(CONCATENATE($E$32,"!E223"))),"",INDIRECT(CONCATENATE($E$32,"!E223"))) ->  | S34: =IF(ISERROR(INDIRECT(CONCATENATE($E$32,"!E224"))),"",INDIRECT(CONCATENATE($E$32,"!E224"))) ->  | T34: =IF(ISERROR(INDIRECT(CONCATENATE($E$32,"!F222"))),"",INDIRECT(CONCATENATE($E$32,"!F222"))) ->  | U34: =IF(ISERROR(INDIRECT(CONCATENATE($E$32,"!F223"))),"",INDIRECT(CONCATENATE($E$32,"!F223"))) ->  | V34: =IF(ISERROR(INDIRECT(CONCATENATE($E$32,"!F224"))),"",INDIRECT(CONCATENATE($E$32,"!F224"))) ->  | W34: =IF(ISERROR(INDIRECT(CONCATENATE($E$32,"!G222"))),"",INDIRECT(CONCATENATE($E$32,"!G222"))) ->  | X34: =IF(ISERROR(INDIRECT(CONCATENATE($E$32,"!G223"))),"",INDIRECT(CONCATENATE($E$32,"!G223"))) ->  | Y34: =IF(ISERROR(INDIRECT(CONCATENATE($E$32,"!G224"))),"",INDIRECT(CONCATENATE($E$32,"!G224"))) -> 
G37: URBAN | J37: =IF(ISERROR(INDIRECT(CONCATENATE(#REF!,"!A2"))),"",INDIRECT(CONCATENATE(#REF!,"!A210"))) ->  | K37: =IF(ISERROR(INDIRECT(CONCATENATE($E$32,"!H222"))),"",INDIRECT(CONCATENATE($E$32,"!H222"))) ->  | L37: =IF(ISERROR(INDIRECT(CONCATENATE($E$32,"!H223"))),"",INDIRECT(CONCATENATE($E$32,"!H223"))) ->  | M37: =IF(ISERROR(INDIRECT(CONCATENATE($E$32,"!H224"))),"",INDIRECT(CONCATENATE($E$32,"!H224"))) ->  | N37: =IF(ISERROR(INDIRECT(CONCATENATE($E$32,"!I222"))),"",INDIRECT(CONCATENATE($E$32,"!I222"))) ->  | O37: =IF(ISERROR(INDIRECT(CONCATENATE($E$32,"!I223"))),"",INDIRECT(CONCATENATE($E$32,"!I223"))) ->  | P37: =IF(ISERROR(INDIRECT(CONCATENATE($E$32,"!I224"))),"",INDIRECT(CONCATENATE($E$32,"!I224"))) ->  | Q37: =IF(ISERROR(INDIRECT(CONCATENATE($E$32,"!J222"))),"",INDIRECT(CONCATENATE($E$32,"!J222"))) ->  | R37: =IF(ISERROR(INDIRECT(CONCATENATE($E$32,"!J223"))),"",INDIRECT(CONCATENATE($E$32,"!J223"))) ->  | S37: =IF(ISERROR(INDIRECT(CONCATENATE($E$32,"!J224"))),"",INDIRECT(CONCATENATE($E$32,"!J224"))) ->  | T37: =IF(ISERROR(INDIRECT(CONCATENATE($E$32,"!K222"))),"",INDIRECT(CONCATENATE($E$32,"!K222"))) ->  | U37: =IF(ISERROR(INDIRECT(CONCATENATE($E$32,"!K223"))),"",INDIRECT(CONCATENATE($E$32,"!K223"))) ->  | V37: =IF(ISERROR(INDIRECT(CONCATENATE($E$32,"!K224"))),"",INDIRECT(CONCATENATE($E$32,"!K224"))) ->  | W37: =IF(ISERROR(INDIRECT(CONCATENATE($E$32,"!L222"))),"",INDIRECT(CONCATENATE($E$32,"!L222"))) ->  | X37: =IF(ISERROR(INDIRECT(CONCATENATE($E$32,"!L223"))),"",INDIRECT(CONCATENATE($E$32,"!L223"))) ->  | Y37: =IF(ISERROR(INDIRECT(CONCATENATE($E$32,"!L224"))),"",INDIRECT(CONCATENATE($E$32,"!L224"))) -> 
G40: RURAL | J40: =IF(ISERROR(INDIRECT(CONCATENATE(#REF!,"!A2"))),"",INDIRECT(CONCATENATE(#REF!,"!A210"))) ->  | K40: =IF(ISERROR(INDIRECT(CONCATENATE($E$32,"!M222"))),"",INDIRECT(CONCATENATE($E$32,"!M222"))) ->  | L40: =IF(ISERROR(INDIRECT(CONCATENATE($E$32,"!M223"))),"",INDIRECT(CONCATENATE($E$32,"!M223"))) ->  | M40: =IF(ISERROR(INDIRECT(CONCATENATE($E$32,"!M224"))),"",INDIRECT(CONCATENATE($E$32,"!M224"))) ->  | N40: =IF(ISERROR(INDIRECT(CONCATENATE($E$32,"!N222"))),"",INDIRECT(CONCATENATE($E$32,"!N222"))) ->  | O40: =IF(ISERROR(INDIRECT(CONCATENATE($E$32,"!N223"))),"",INDIRECT(CONCATENATE($E$32,"!N223"))) ->  | P40: =IF(ISERROR(INDIRECT(CONCATENATE($E$32,"!N224"))),"",INDIRECT(CONCATENATE($E$32,"!N224"))) ->  | Q40: =IF(ISERROR(INDIRECT(CONCATENATE($E$32,"!O222"))),"",INDIRECT(CONCATENATE($E$32,"!O222"))) ->  | R40: =IF(ISERROR(INDIRECT(CONCATENATE($E$32,"!O223"))),"",INDIRECT(CONCATENATE($E$32,"!O223"))) ->  | S40: =IF(ISERROR(INDIRECT(CONCATENATE($E$32,"!O224"))),"",INDIRECT(CONCATENATE($E$32,"!O224"))) ->  | T40: =IF(ISERROR(INDIRECT(CONCATENATE($E$32,"!P222"))),"",INDIRECT(CONCATENATE($E$32,"!P222"))) ->  | U40: =IF(ISERROR(INDIRECT(CONCATENATE($E$32,"!P223"))),"",INDIRECT(CONCATENATE($E$32,"!P223"))) ->  | V40: =IF(ISERROR(INDIRECT(CONCATENATE($E$32,"!P224"))),"",INDIRECT(CONCATENATE($E$32,"!P224"))) ->  | W40: =IF(ISERROR(INDIRECT(CONCATENATE($E$32,"!Q222"))),"",INDIRECT(CONCATENATE($E$32,"!Q222"))) ->  | X40: =IF(ISERROR(INDIRECT(CONCATENATE($E$32,"!Q223"))),"",INDIRECT(CONCATENATE($E$32,"!Q223"))) ->  | Y40: =IF(ISERROR(INDIRECT(CONCATENATE($E$32,"!Q224"))),"",INDIRECT(CONCATENATE($E$32,"!Q224"))) -> 
A88: 2 | B88: Template

Sheet MICS00
A2: =A1026 -> Mongolia
A3: =A1034 -> 2000
A4: Use of drinking water sources
A5: by wealth quintile and sub-national region
A6: Notes:
A7: WHO/UNICEF JMP customised wealth index excludes water,
A8: sanitation and hygiene assets.
A9: Survey used for analysis: | B9: =A1025 -> MICS00
A10: =B1028 -> 
A11: =B1027 -> 
A14: Use of drinking water sources | C14: NATIONAL wealth index quintile | H14: URBAN wealth index quintile | M14: RURAL wealth index quintile | R14: SUB-REGIONS: | BA14: Raw numbers of respondents: | BB14: Use of drinking water sources | BC14: NATIONAL wealth index quintile | BH14: URBAN wealth index quintile | BM14: RURAL wealth index quintile | BR14: SUB-REGIONS:
A15: Weighted percentage (used in graphs) | C15: Poorest | D15: Poor | E15: Middle | F15: Rich | G15: Richest | H15: Poorest | I15: Poor | J15: Middle | K15: Rich | L15: Richest | M15: Poorest | N15: Poor | O15: Middle | P15: Rich | Q15: Richest | R15: Central 1 | S15: Central 2 | T15: Eastern | U15: Northern | V15: Southern | W15: Western | BA15: Water data, raw numbers (weighted) | BC15: Poorest | BD15: Poor | BE15: Middle | BF15: Rich | BG15: Richest | BH15: Poorest | BI15: Poor | BJ15: Middle | BK15: Rich | BL15: Richest | BM15: Poorest | BN15: Poor | BO15: Middle | BP15: Rich | BQ15: Richest | BR15: Central 1 | BS15: Central 2 | BT15: Eastern | BU15: Northern | BV15: Southern | BW15: Western
A16: Water | B16: Improved | C16: 27.10182768 | D16: 34.80211505 | E16: 68.55756359 | F16: 85.0992825 | G16: 99.86651093 | H16: 93.13868613 | I16: 90.14830508 | J16: 93.11377246 | K16: 100 | L16: 100 | M16: 23.96033269 | N16: 25.11065211 | O16: 20.87844108 | P16: 42.7680798 | Q16: 66.80024661 | R16: 86.35551142 | S16: 99.58924076 | T16: 54.7752809 | U16: 23.36814621 | V16: 83.20754717 | W16: 38.37209302 | BA16: Water | BB16: Improved | BC16: N/A | BD16: N/A | BE16: N/A | BF16: N/A | BG16: N/A | BH16: N/A | BI16: N/A | BJ16: N/A | BK16: N/A | BL16: N/A | BM16: N/A | BN16: N/A | BO16: N/A | BP16: N/A | BQ16: N/A | BR16: N/A | BS16: N/A | BT16: N/A | BU16: N/A | BV16: N/A | BW16: N/A
B17: Not Improved | C17: 72.89817232 | D17: 65.19788495 | E17: 31.44243641 | F17: 14.9007175 | G17: 0.1334890706 | H17: 6.861313869 | I17: 9.851694915 | J17: 6.886227545 | K17: 0 | L17: 0 | M17: 76.03966731 | N17: 74.88934789 | O17: 79.12155892 | P17: 57.2319202 | Q17: 33.19975339 | R17: 13.64448858 | S17: 0.4107592421 | T17: 45.2247191 | U17: 76.63185379 | V17: 16.79245283 | W17: 61.62790698 | BB17: Not Improved | BC17: N/A | BD17: N/A | BE17: N/A | BF17: N/A | BG17: N/A | BH17: N/A | BI17: N/A | BJ17: N/A | BK17: N/A | BL17: N/A | BM17: N/A | BN17: N/A | BO17: N/A | BP17: N/A | BQ17: N/A | BR17: N/A | BS17: N/A | BT17: N/A | BU17: N/A | BV17: N/A | BW17: N/A
A18: Water ladder | B18: Basic | C18: 20.45256745 | D18: 28.87854966 | E18: 60.33182504 | F18: 76.72399399 | G18: 99.78308026 | H18: 83.22368421 | I18: 82.63790665 | J18: 82.78443114 | K18: 100 | L18: 99.81785064 | M18: 17.11452335 | N18: 18.02891708 | O18: 17.59975255 | P18: 35.21126761 | Q18: 61.18988903 | R18: 79.33439617 | S18: 93.37485093 | T18: 48.7008427 | U18: 20.58311575 | V18: 59.48113208 | W18: 37.36363636 | BA18: Water ladder | BB18: Basic | BC18: N/A | BD18: N/A | BE18: N/A | BF18: N/A | BG18: N/A | BH18: N/A | BI18: N/A | BJ18: N/A | BK18: N/A | BL18: N/A | BM18: N/A | BN18: N/A | BO18: N/A | BP18: N/A | BQ18: N/A | BR18: N/A | BS18: N/A | BT18: N/A | BU18: N/A | BV18: N/A | BW18: N/A
B19: Limited | C19: 6.649260226 | D19: 5.839884486 | E19: 8.178314061 | F19: 8.36533645 | G19: 0.08343066911 | H19: 9.90497076 | I19: 7.496463932 | J19: 10.32934132 | K19: 0 | L19: 0.1821493625 | M19: 6.845809341 | N19: 7.081735025 | O19: 3.278688525 | P19: 7.323943662 | Q19: 5.610357583 | R19: 6.974890395 | S19: 6.214389824 | T19: 6.074438202 | U19: 2.785030461 | V19: 23.72641509 | W19: 0.9636363636 | BB19: Limited | BC19: N/A | BD19: N/A | BE19: N/A | BF19: N/A | BG19: N/A | BH19: N/A | BI19: N/A | BJ19: N/A | BK19: N/A | BL19: N/A | BM19: N/A | BN19: N/A | BO19: N/A | BP19: N/A | BQ19: N/A | BR19: N/A | BS19: N/A | BT19: N/A | BU19: N/A | BV19: N/A | BW19: N/A
B20: Unimproved | C20: 24.42123586 | D20: 9.369484999 | E20: 5.396346573 | F20: 4.007346802 | G20: 0.1334890706 | H20: 2.412280702 | I20: 3.28854314 | J20: 1.946107784 | K20: 0 | L20: 0 | M20: 29.11068458 | N20: 19.38624963 | O20: 9.031858955 | P20: 7.073552426 | Q20: 8.045622688 | R20: 7.891590275 | S20: 0.4107592421 | T20: 19.76825843 | U20: 8.717725558 | V20: 14.19811321 | W20: 12.09090909 | BB20: Unimproved | BC20: N/A | BD20: N/A | BE20: N/A | BF20: N/A | BG20: N/A | BH20: N/A | BI20: N/A | BJ20: N/A | BK20: N/A | BL20: N/A | BM20: N/A | BN20: N/A | BO20: N/A | BP20: N/A | BQ20: N/A | BR20: N/A | BS20: N/A | BT20: N/A | BU20: N/A | BV20: N/A | BW20: N/A
B21: Surface water | C21: 48.47693647 | D21: 55.91208086 | E21: 26.09351433 | F21: 10.90332276 | G21: 0 | H21: 4.459064327 | I21: 6.57708628 | J21: 4.94011976 | K21: 0 | L21: 0 | M21: 46.92898273 | N21: 55.50309826 | O21: 70.08969997 | P21: 50.39123631 | Q21: 25.1541307 | R21: 5.799123157 | S21: 0 | T21: 25.45646067 | U21: 67.91412823 | V21: 2.594339623 | W21: 49.58181818 | BB21: Surface water | BC21: N/A | BD21: N/A | BE21: N/A | BF21: N/A | BG21: N/A | BH21: N/A | BI21: N/A | BJ21: N/A | BK21: N/A | BL21: N/A | BM21: N/A | BN21: N/A | BO21: N/A | BP21: N/A | BQ21: N/A | BR21: N/A | BS21: N/A | BT21: N/A | BU21: N/A | BV21: N/A | BW21: N/A
A22: Improved water point at more than 30 minutes | B22: Yes | C22: 24.53436095 | D22: 16.8207024 | E22: 11.93737769 | F22: 9.831240188 | G22: 0.08354218881 | H22: 10.63579278 | I22: 8.316987054 | J22: 11.09324759 | K22: 0 | L22: 0.1821493625 | M22: 28.57142857 | N22: 28.20211516 | O22: 15.7037037 | P22: 17.21854305 | Q22: 8.398707891 | R22: 8.081274532 | S22: 6.240021288 | T22: 11.08974359 | U22: 11.91806331 | V22: 28.51473923 | W22: 2.514231499 | BA22: Improved water point at more than 30 minutes | BB22: Yes | BC22: N/A | BD22: N/A | BE22: N/A | BF22: N/A | BG22: N/A | BH22: N/A | BI22: N/A | BJ22: N/A | BK22: N/A | BL22: N/A | BM22: N/A | BN22: N/A | BO22: N/A | BP22: N/A | BQ22: N/A | BR22: N/A | BS22: N/A | BT22: N/A | BU22: N/A | BV22: N/A | BW22: N/A
B23: No | C23: 75.46563905 | D23: 83.1792976 | E23: 88.06262231 | F23: 90.16875981 | G23: 99.91645781 | H23: 89.36420722 | I23: 91.68301295 | J23: 88.90675241 | K23: 100 | L23: 99.81785064 | M23: 71.42857143 | N23: 71.79788484 | O23: 84.2962963 | P23: 82.78145695 | Q23: 91.60129211 | R23: 91.91872547 | S23: 93.75997871 | T23: 88.91025641 | U23: 88.08193669 | V23: 71.48526077 | W23: 97.4857685 | BB23: No | BC23: N/A | BD23: N/A | BE23: N/A | BF23: N/A | BG23: N/A | BH23: N/A | BI23: N/A | BJ23: N/A | BK23: N/A | BL23: N/A | BM23: N/A | BN23: N/A | BO23: N/A | BP23: N/A | BQ23: N/A | BR23: N/A | BS23: N/A | BT23: N/A | BU23: N/A | BV23: N/A | BW23: N/A
A24: Manually calculated ratios | B24: Improved wells
B25: Improved springs
B26: Other
C27: NATIONAL wealth index quintile | H27: URBAN wealth index quintile | M27: RURAL wealth index quintile | R27: SUB-REGIONS: | BA27: Raw numbers of respondents: | BB27: Use of drinking water sources | BC27: NATIONAL wealth index quintile | BH27: URBAN wealth index quintile | BM27: RURAL wealth index quintile | BR27: SUB-REGIONS:
A28: Percentage based on weighted population | C28: Poorest | D28: Poor | E28: Middle | F28: Rich | G28: Richest | H28: Poorest | I28: Poor | J28: Middle | K28: Rich | L28: Richest | M28: Poorest | N28: Poor | O28: Middle | P28: Rich | Q28: Richest | R28: Central 1 | S28: Central 2 | T28: Eastern | U28: Northern | V28: Southern | W28: Western | BA28: Water data, raw numbers (weighted) | BC28: Poorest | BD28: Poor | BE28: Middle | BF28: Rich | BG28: Richest | BH28: Poorest | BI28: Poor | BJ28: Middle | BK28: Rich | BL28: Richest | BM28: Poorest | BN28: Poor | BO28: Middle | BP28: Rich | BQ28: Richest | BR28: Central 1 | BS28: Central 2 | BT28: Eastern | BU28: Northern | BV28: Southern | BW28: Western
A29: Piped water | B29: Yes | C29: 3.098346388 | D29: 10.22272072 | E29: 32.63052209 | F29: 50.27532121 | G29: 98.98214584 | H29: 61.09489051 | I29: 53.24858757 | J29: 66.91616766 | K29: 99.81877492 | L29: 99.78142077 | M29: 0.4798464491 | N29: 0.7966951903 | O29: 3.866377977 | P29: 9.507481297 | Q29: 23.92108508 | R29: 49.49354518 | S29: 87.50496886 | T29: 27.80898876 | U29: 8.674209457 | V29: 29.66981132 | W29: 10.82848837 | BA29: Piped water | BB29: Yes | BC29: N/A | BD29: N/A | BE29: N/A | BF29: N/A | BG29: N/A | BH29: N/A | BI29: N/A | BJ29: N/A | BK29: N/A | BL29: N/A | BM29: N/A | BN29: N/A | BO29: N/A | BP29: N/A | BQ29: N/A | BR29: N/A | BS29: N/A | BT29: N/A | BU29: N/A | BV29: N/A | BW29: N/A
B30: No | C30: 96.90165361 | D30: 89.77727928 | E30: 67.36947791 | F30: 49.72467879 | G30: 1.017854163 | H30: 38.90510949 | I30: 46.75141243 | J30: 33.08383234 | K30: 0.1812250816 | L30: 0.218579235 | M30: 99.52015355 | N30: 99.20330481 | O30: 96.13362202 | P30: 90.4925187 | Q30: 76.07891492 | R30: 50.50645482 | S30: 12.49503114 | T30: 72.19101124 | U30: 91.32579054 | V30: 70.33018868 | W30: 89.17151163 | BB30: No | BC30: N/A | BD30: N/A | BE30: N/A | BF30: N/A | BG30: N/A | BH30: N/A | BI30: N/A | BJ30: N/A | BK30: N/A | BL30: N/A | BM30: N/A | BN30: N/A | BO30: N/A | BP30: N/A | BQ30: N/A | BR30: N/A | BS30: N/A | BT30: N/A | BU30: N/A | BV30: N/A | BW30: N/A
A31: Piped water on premises | B31: Yes | C31: 0.226283725 | D31: 0.2243230252 | E31: 0.93708166 | F31: 5.072584682 | G31: 98.41481729 | H31: 1.386861314 | I31: 0.3884180791 | J31: 14.59580838 | K31: 99.42007974 | L31: 99.38069217 | M31: 0.1599488164 | N31: 0 | O31: 0.2474481905 | P31: 0.09351620948 | Q31: 11.06658446 | R31: 29.69215492 | S31: 49.37061084 | T31: 15.83567416 | U31: 0.3191180737 | V31: 5.849056604 | W31: 8.484738372 | BA31: Piped water on premises | BB31: Yes | BC31: N/A | BD31: N/A | BE31: N/A | BF31: N/A | BG31: N/A | BH31: N/A | BI31: N/A | BJ31: N/A | BK31: N/A | BL31: N/A | BM31: N/A | BN31: N/A | BO31: N/A | BP31: N/A | BQ31: N/A | BR31: N/A | BS31: N/A | BT31: N/A | BU31: N/A | BV31: N/A | BW31: N/A
B32: No | C32: 99.77371628 | D32: 99.77567697 | E32: 99.06291834 | F32: 94.92741532 | G32: 1.585182713 | H32: 98.61313869 | I32: 99.61158192 | J32: 85.40419162 | K32: 0.579920261 | L32: 0.6193078324 | M32: 99.84005118 | N32: 100 | O32: 99.75255181 | P32: 99.90648379 | Q32: 88.93341554 | R32: 70.30784508 | S32: 50.62938916 | T32: 84.16432584 | U32: 99.68088193 | V32: 94.1509434 | W32: 91.51526163 | BB32: No | BC32: N/A | BD32: N/A | BE32: N/A | BF32: N/A | BG32: N/A | BH32: N/A | BI32: N/A | BJ32: N/A | BK32: N/A | BL32: N/A | BM32: N/A | BN32: N/A | BO32: N/A | BP32: N/A | BQ32: N/A | BR32: N/A | BS32: N/A | BT32: N/A | BU32: N/A | BV32: N/A | BW32: N/A
A33: Piped water into dwelling | B33: Yes | C33: N/A | D33: N/A | E33: N/A | F33: N/A | G33: N/A | H33: N/A | I33: N/A | J33: N/A | K33: N/A | L33: N/A | M33: N/A | N33: N/A | O33: N/A | P33: N/A | Q33: N/A | R33: N/A | S33: N/A | T33: N/A | U33: N/A | V33: N/A | W33: N/A | BA33: Piped water into dwelling | BB33: Yes | BC33: N/A | BD33: N/A | BE33: N/A | BF33: N/A | BG33: N/A | BH33: N/A | BI33: N/A | BJ33: N/A | BK33: N/A | BL33: N/A | BM33: N/A | BN33: N/A | BO33: N/A | BP33: N/A | BQ33: N/A | BR33: N/A | BS33: N/A | BT33: N/A | BU33: N/A | BV33: N/A | BW33: N/A
B34: No | C34: N/A | D34: N/A | E34: N/A | F34: N/A | G34: N/A | H34: N/A | I34: N/A | J34: N/A | K34: N/A | L34: N/A | M34: N/A | N34: N/A | O34: N/A | P34: N/A | Q34: N/A | R34: N/A | S34: N/A | T34: N/A | U34: N/A | V34: N/A | W34: N/A | BB34: No | BC34: N/A | BD34: N/A | BE34: N/A | BF34: N/A | BG34: N/A | BH34: N/A | BI34: N/A | BJ34: N/A | BK34: N/A | BL34: N/A | BM34: N/A | BN34: N/A | BO34: N/A | BP34: N/A | BQ34: N/A | BR34: N/A | BS34: N/A | BT34: N/A | BU34: N/A | BV34: N/A | BW34: N/A
A35: Water source on premises | B35: Yes | C35: 0.226283725 | D35: 0.4646691235 | E35: 1.606425703 | F35: 7.208409811 | G35: 98.56499249 | H35: 2.226277372 | I35: 3.283898305 | J35: 16.20508982 | K35: 99.74628489 | L35: 99.38069217 | M35: 0.1599488164 | N35: 0 | O35: 0.2474481905 | P35: 0.7793017456 | Q35: 11.46732429 | R35: 30.40714995 | S35: 49.48986352 | T35: 15.9761236 | U35: 0.4206556426 | V35: 5.849056604 | W35: 10.9556686 | BA35: Water source on premises | BB35: Yes | BC35: N/A | BD35: N/A | BE35: N/A | BF35: N/A | BG35: N/A | BH35: N/A | BI35: N/A | BJ35: N/A | BK35: N/A | BL35: N/A | BM35: N/A | BN35: N/A | BO35: N/A | BP35: N/A | BQ35: N/A | BR35: N/A | BS35: N/A | BT35: N/A | BU35: N/A | BV35: N/A | BW35: N/A
B36: No | C36: 99.77371628 | D36: 99.53533088 | E36: 98.3935743 | F36: 92.79159019 | G36: 1.435007509 | H36: 97.77372263 | I36: 96.71610169 | J36: 83.79491018 | K36: 0.2537151142 | L36: 0.6193078324 | M36: 99.84005118 | N36: 100 | O36: 99.75255181 | P36: 99.22069825 | Q36: 88.53267571 | R36: 69.59285005 | S36: 50.51013648 | T36: 84.0238764 | U36: 99.57934436 | V36: 94.1509434 | W36: 89.0443314 | BB36: No | BC36: N/A | BD36: N/A | BE36: N/A | BF36: N/A | BG36: N/A | BH36: N/A | BI36: N/A | BJ36: N/A | BK36: N/A | BL36: N/A | BM36: N/A | BN36: N/A | BO36: N/A | BP36: N/A | BQ36: N/A | BR36: N/A | BS36: N/A | BT36: N/A | BU36: N/A | BV36: N/A | BW36: N/A
A37: Improved Water source on premises | B37: Yes | C37: 0.8349389852 | D37: 1.335174954 | E37: 2.343177935 | F37: 8.470588235 | G37: 98.69674185 | H37: 2.390282132 | I37: 3.642773208 | J37: 17.40353698 | K37: 99.74628489 | L37: 99.38069217 | M37: 0.6675567423 | N37: 0 | O37: 1.185185185 | P37: 1.822157434 | Q37: 17.16658976 | R37: 35.21159154 | S37: 49.69398616 | T37: 29.16666667 | U37: 1.800124146 | V37: 7.029478458 | W37: 28.55113636 | BA37: Improved water source on premises | BB37: Yes | BC37: N/A | BD37: N/A | BE37: N/A | BF37: N/A | BG37: N/A | BH37: N/A | BI37: N/A | BJ37: N/A | BK37: N/A | BL37: N/A | BM37: N/A | BN37: N/A | BO37: N/A | BP37: N/A | BQ37: N/A | BR37: N/A | BS37: N/A | BT37: N/A | BU37: N/A | BV37: N/A | BW37: N/A
B38: No | C38: 99.16506101 | D38: 98.66482505 | E38: 97.65682206 | F38: 91.52941176 | G38: 1.303258145 | H38: 97.60971787 | I38: 96.35722679 | J38: 82.59646302 | K38: 0.2537151142 | L38: 0.6193078324 | M38: 99.33244326 | N38: 100 | O38: 98.81481481 | P38: 98.17784257 | Q38: 82.83341024 | R38: 64.78840846 | S38: 50.30601384 | T38: 70.83333333 | U38: 98.19987585 | V38: 92.97052154 | W38: 71.44886364 | BB38: No | BC38: N/A | BD38: N/A | BE38: N/A | BF38: N/A | BG38: N/A | BH38: N/A | BI38: N/A | BJ38: N/A | BK38: N/A | BL38: N/A | BM38: N/A | BN38: N/A | BO38: N/A | BP38: N/A | BQ38: N/A | BR38: N/A | BS38: N/A | BT38: N/A | BU38: N/A | BV38: N/A | BW38: N/A
A39: Piped water on premises available when needed | B39: Yes | C39: N/A | D39: N/A | E39: N/A | F39: N/A | G39: N/A | H39: N/A | I39: N/A | J39: N/A | K39: N/A | L39: N/A | M39: N/A | N39: N/A | O39: N/A | P39: N/A | Q39: N/A | R39: N/A | S39: N/A | T39: N/A | U39: N/A | V39: N/A | W39: N/A | BA39: Piped water on premises available when needed | BB39: Yes | BC39: N/A | BD39: N/A | BE39: N/A | BF39: N/A | BG39: N/A | BH39: N/A | BI39: N/A | BJ39: N/A | BK39: N/A | BL39: N/A | BM39: N/A | BN39: N/A | BO39: N/A | BP39: N/A | BQ39: N/A | BR39: N/A | BS39: N/A | BT39: N/A | BU39: N/A | BV39: N/A | BW39: N/A
B40: No | C40: N/A | D40: N/A | E40: N/A | F40: N/A | G40: N/A | H40: N/A | I40: N/A | J40: N/A | K40: N/A | L40: N/A | M40: N/A | N40: N/A | O40: N/A | P40: N/A | Q40: N/A | R40: N/A | S40: N/A | T40: N/A | U40: N/A | V40: N/A | W40: N/A | BB40: No | BC40: N/A | BD40: N/A | BE40: N/A | BF40: N/A | BG40: N/A | BH40: N/A | BI40: N/A | BJ40: N/A | BK40: N/A | BL40: N/A | BM40: N/A | BN40: N/A | BO40: N/A | BP40: N/A | BQ40: N/A | BR40: N/A | BS40: N/A | BT40: N/A | BU40: N/A | BV40: N/A | BW40: N/A
A41: Water point at more than 30 minutes | B41: Yes | C41: 20.38294169 | D41: 16.76560244 | E41: 15.36139527 | F41: 11.45815935 | G41: 0.08343066911 | H41: 10.67251462 | I41: 9.065155807 | J41: 11.49812734 | K41: 0 | L41: 0.1821493625 | M41: 22.296865 | N41: 21.00914724 | O41: 14.44478812 | P41: 20.28169014 | Q41: 13.53267571 | R41: 11.63810283 | S41: 6.269052353 | T41: 20.47050562 | U41: 16.42007543 | V41: 27.78301887 | W41: 8.406113537 | BA41: Water point at more than 30 minutes | BB41: Yes | BC41: N/A | BD41: N/A | BE41: N/A | BF41: N/A | BG41: N/A | BH41: N/A | BI41: N/A | BJ41: N/A | BK41: N/A | BL41: N/A | BM41: N/A | BN41: N/A | BO41: N/A | BP41: N/A | BQ41: N/A | BR41: N/A | BS41: N/A | BT41: N/A | BU41: N/A | BV41: N/A | BW41: N/A
B42: No | C42: 79.61705831 | D42: 83.23439756 | E42: 84.63860473 | F42: 88.54184065 | G42: 99.91656933 | H42: 89.32748538 | I42: 90.93484419 | J42: 88.50187266 | K42: 100 | L42: 99.81785064 | M42: 77.703135 | N42: 78.99085276 | O42: 85.55521188 | P42: 79.71830986 | Q42: 86.46732429 | R42: 88.36189717 | S42: 93.73094765 | T42: 79.52949438 | U42: 83.57992457 | V42: 72.21698113 | W42: 91.59388646 | BB42: No | BC42: N/A | BD42: N/A | BE42: N/A | BF42: N/A | BG42: N/A | BH42: N/A | BI42: N/A | BJ42: N/A | BK42: N/A | BL42: N/A | BM42: N/A | BN42: N/A | BO42: N/A | BP42: N/A | BQ42: N/A | BR42: N/A | BS42: N/A | BT42: N/A | BU42: N/A | BV42: N/A | BW42: N/A
A43: Water source available when needed | B43: Yes | C43: N/A | D43: N/A | E43: N/A | F43: N/A | G43: N/A | H43: N/A | I43: N/A | J43: N/A | K43: N/A | L43: N/A | M43: N/A | N43: N/A | O43: N/A | P43: N/A | Q43: N/A | R43: N/A | S43: N/A | T43: N/A | U43: N/A | V43: N/A | W43: N/A | BA43: Water source available when needed | BB43: Yes | BC43: N/A | BD43: N/A | BE43: N/A | BF43: N/A | BG43: N/A | BH43: N/A | BI43: N/A | BJ43: N/A | BK43: N/A | BL43: N/A | BM43: N/A | BN43: N/A | BO43: N/A | BP43: N/A | BQ43: N/A | BR43: N/A | BS43: N/A | BT43: N/A | BU43: N/A | BV43: N/A | BW43: N/A
B44: No | C44: N/A | D44: N/A | E44: N/A | F44: N/A | G44: N/A | H44: N/A | I44: N/A | J44: N/A | K44: N/A | L44: N/A | M44: N/A | N44: N/A | O44: N/A | P44: N/A | Q44: N/A | R44: N/A | S44: N/A | T44: N/A | U44: N/A | V44: N/A | W44: N/A | BB44: No | BC44: N/A | BD44: N/A | BE44: N/A | BF44: N/A | BG44: N/A | BH44: N/A | BI44: N/A | BJ44: N/A | BK44: N/A | BL44: N/A | BM44: N/A | BN44: N/A | BO44: N/A | BP44: N/A | BQ44: N/A | BR44: N/A | BS44: N/A | BT44: N/A | BU44: N/A | BV44: N/A | BW44: N/A
A45: Improved water source available when needed | B45: Yes | C45: N/A | D45: N/A | E45: N/A | F45: N/A | G45: N/A | H45: N/A | I45: N/A | J45: N/A | K45: N/A | L45: N/A | M45: N/A | N45: N/A | O45: N/A | P45: N/A | Q45: N/A | R45: N/A | S45: N/A | T45: N/A | U45: N/A | V45: N/A | W45: N/A | BA45: Improved water source available when needed | BB45: Yes | BC45: N/A | BD45: N/A | BE45: N/A | BF45: N/A | BG45: N/A | BH45: N/A | BI45: N/A | BJ45: N/A | BK45: N/A | BL45: N/A | BM45: N/A | BN45: N/A | BO45: N/A | BP45: N/A | BQ45: N/A | BR45: N/A | BS45: N/A | BT45: N/A | BU45: N/A | BV45: N/A | BW45: N/A
B46: No | C46: N/A | D46: N/A | E46: N/A | F46: N/A | G46: N/A | H46: N/A | I46: N/A | J46: N/A | K46: N/A | L46: N/A | M46: N/A | N46: N/A | O46: N/A | P46: N/A | Q46: N/A | R46: N/A | S46: N/A | T46: N/A | U46: N/A | V46: N/A | W46: N/A | BB46: No | BC46: N/A | BD46: N/A | BE46: N/A | BF46: N/A | BG46: N/A | BH46: N/A | BI46: N/A | BJ46: N/A | BK46: N/A | BL46: N/A | BM46: N/A | BN46: N/A | BO46: N/A | BP46: N/A | BQ46: N/A | BR46: N/A | BS46: N/A | BT46: N/A | BU46: N/A | BV46: N/A | BW46: N/A
A47: Microbiological quality at point of collection | B47: Not contaminated (No E. coli in 100 mL) | C47: N/A | D47: N/A | E47: N/A | F47: N/A | G47: N/A | H47: N/A | I47: N/A | J47: N/A | K47: N/A | L47: N/A | M47: N/A | N47: N/A | O47: N/A | P47: N/A | Q47: N/A | R47: N/A | S47: N/A | T47: N/A | U47: N/A | V47: N/A | W47: N/A | BA47: Microbiological quality at point of collection | BB47: Not contaminated (No E. coli in 100 mL) | BC47: N/A | BD47: N/A | BE47: N/A | BF47: N/A | BG47: N/A | BH47: N/A | BI47: N/A | BJ47: N/A | BK47: N/A | BL47: N/A | BM47: N/A | BN47: N/A | BO47: N/A | BP47: N/A | BQ47: N/A | BR47: N/A | BS47: N/A | BT47: N/A | BU47: N/A | BV47: N/A | BW47: N/A
B48: Contaminated (E. coli detected in 100 mL) | C48: N/A | D48: N/A | E48: N/A | F48: N/A | G48: N/A | H48: N/A | I48: N/A | J48: N/A | K48: N/A | L48: N/A | M48: N/A | N48: N/A | O48: N/A | P48: N/A | Q48: N/A | R48: N/A | S48: N/A | T48: N/A | U48: N/A | V48: N/A | W48: N/A | BB48: Contaminated (E. coli detected in 100 mL) | BC48: N/A | BD48: N/A | BE48: N/A | BF48: N/A | BG48: N/A | BH48: N/A | BI48: N/A | BJ48: N/A | BK48: N/A | BL48: N/A | BM48: N/A | BN48: N/A | BO48: N/A | BP48: N/A | BQ48: N/A | BR48: N/A | BS48: N/A | BT48: N/A | BU48: N/A | BV48: N/A | BW48: N/A
B49: Highly contaminated (>100 CFU/100 mL) | C49: N/A | D49: N/A | E49: N/A | F49: N/A | G49: N/A | H49: N/A | I49: N/A | J49: N/A | K49: N/A | L49: N/A | M49: N/A | N49: N/A | O49: N/A | P49: N/A | Q49: N/A | R49: N/A | S49: N/A | T49: N/A | U49: N/A | V49: N/A | W49: N/A | BB49: Highly contaminated (>100 CFU/100 mL) | BC49: N/A | BD49: N/A | BE49: N/A | BF49: N/A | BG49: N/A | BH49: N/A | BI49: N/A | BJ49: N/A | BK49: N/A | BL49: N/A | BM49: N/A | BN49: N/A | BO49: N/A | BP49: N/A | BQ49: N/A | BR49: N/A | BS49: N/A | BT49: N/A | BU49: N/A | BV49: N/A | BW49: N/A
A50: Microbiological quality of improved water sources at point of collection | B50: Not contaminated (No E. coli in 100 mL) | C50: N/A | D50: N/A | E50: N/A | F50: N/A | G50: N/A | H50: N/A | I50: N/A | J50: N/A | K50: N/A | L50: N/A | M50: N/A | N50: N/A | O50: N/A | P50: N/A | Q50: N/A | R50: N/A | S50: N/A | T50: N/A | U50: N/A | V50: N/A | W50: N/A | BA50: Microbiological quality of improved water sources at point of collection | BB50: Not contaminated (No E. coli in 100 mL) | BC50: N/A | BD50: N/A | BE50: N/A | BF50: N/A | BG50: N/A | BH50: N/A | BI50: N/A | BJ50: N/A | BK50: N/A | BL50: N/A | BM50: N/A | BN50: N/A | BO50: N/A | BP50: N/A | BQ50: N/A | BR50: N/A | BS50: N/A | BT50: N/A | BU50: N/A | BV50: N/A | BW50: N/A
B51: Contaminated (E. coli detected in 100 mL) | C51: N/A | D51: N/A | E51: N/A | F51: N/A | G51: N/A | H51: N/A | I51: N/A | J51: N/A | K51: N/A | L51: N/A | M51: N/A | N51: N/A | O51: N/A | P51: N/A | Q51: N/A | R51: N/A | S51: N/A | T51: N/A | U51: N/A | V51: N/A | W51: N/A | BB51: Contaminated (E. coli detected in 100 mL) | BC51: N/A | BD51: N/A | BE51: N/A | BF51: N/A | BG51: N/A | BH51: N/A | BI51: N/A | BJ51: N/A | BK51: N/A | BL51: N/A | BM51: N/A | BN51: N/A | BO51: N/A | BP51: N/A | BQ51: N/A | BR51: N/A | BS51: N/A | BT51: N/A | BU51: N/A | BV51: N/A | BW51: N/A
B52: Highly contaminated (>100 CFU/100 mL) | C52: N/A | D52: N/A | E52: N/A | F52: N/A | G52: N/A | H52: N/A | I52: N/A | J52: N/A | K52: N/A | L52: N/A | M52: N/A | N52: N/A | O52: N/A | P52: N/A | Q52: N/A | R52: N/A | S52: N/A | T52: N/A | U52: N/A | V52: N/A | W52: N/A | BB52: Highly contaminated (>100 CFU/100 mL) | BC52: N/A | BD52: N/A | BE52: N/A | BF52: N/A | BG52: N/A | BH52: N/A | BI52: N/A | BJ52: N/A | BK52: N/A | BL52: N/A | BM52: N/A | BN52: N/A | BO52: N/A | BP52: N/A | BQ52: N/A | BR52: N/A | BS52: N/A | BT52: N/A | BU52: N/A | BV52: N/A | BW52: N/A
A53: Microbiological quality of piped on premises at point of collection | B53: Not contaminated (No E. coli in 100 mL) | C53: N/A | D53: N/A | E53: N/A | F53: N/A | G53: N/A | H53: N/A | I53: N/A | J53: N/A | K53: N/A | L53: N/A | M53: N/A | N53: N/A | O53: N/A | P53: N/A | Q53: N/A | R53: N/A | S53: N/A | T53: N/A | U53: N/A | V53: N/A | W53: N/A | BA53: Microbiological quality of piped on premises at point of collection | BB53: Not contaminated (No E. coli in 100 mL) | BC53: N/A | BD53: N/A | BE53: N/A | BF53: N/A | BG53: N/A | BH53: N/A | BI53: N/A | BJ53: N/A | BK53: N/A | BL53: N/A | BM53: N/A | BN53: N/A | BO53: N/A | BP53: N/A | BQ53: N/A | BR53: N/A | BS53: N/A | BT53: N/A | BU53: N/A | BV53: N/A | BW53: N/A
B54: Contaminated (E. coli detected in 100 mL) | C54: N/A | D54: N/A | E54: N/A | F54: N/A | G54: N/A | H54: N/A | I54: N/A | J54: N/A | K54: N/A | L54: N/A | M54: N/A | N54: N/A | O54: N/A | P54: N/A | Q54: N/A | R54: N/A | S54: N/A | T54: N/A | U54: N/A | V54: N/A | W54: N/A | BB54: Contaminated (E. coli detected in 100 mL) | BC54: N/A | BD54: N/A | BE54: N/A | BF54: N/A | BG54: N/A | BH54: N/A | BI54: N/A | BJ54: N/A | BK54: N/A | BL54: N/A | BM54: N/A | BN54: N/A | BO54: N/A | BP54: N/A | BQ54: N/A | BR54: N/A | BS54: N/A | BT54: N/A | BU54: N/A | BV54: N/A | BW54: N/A
B55: Highly contaminated (>100 CFU/100 mL) | C55: N/A | D55: N/A | E55: N/A | F55: N/A | G55: N/A | H55: N/A | I55: N/A | J55: N/A | K55: N/A | L55: N/A | M55: N/A | N55: N/A | O55: N/A | P55: N/A | Q55: N/A | R55: N/A | S55: N/A | T55: N/A | U55: N/A | V55: N/A | W55: N/A | BB55: Highly contaminated (>100 CFU/100 mL) | BC55: N/A | BD55: N/A | BE55: N/A | BF55: N/A | BG55: N/A | BH55: N/A | BI55: N/A | BJ55: N/A | BK55: N/A | BL55: N/A | BM55: N/A | BN55: N/A | BO55: N/A | BP55: N/A | BQ55: N/A | BR55: N/A | BS55: N/A | BT55: N/A | BU55: N/A | BV55: N/A | BW55: N/A
C56: NATIONAL wealth index quintile | H56: URBAN wealth index quintile | M56: RURAL wealth index quintile | R56: SUB-REGIONS: | BA56: Raw numbers of respondents: | BB56: Use of drinking water sources | BC56: NATIONAL wealth index quintile | BH56: URBAN wealth index quintile | BM56: RURAL wealth index quintile | BR56: SUB-REGIONS:
A57: Percentage based on weighted population | C57: Poorest | D57: Poor | E57: Middle | F57: Rich | G57: Richest | H57: Poorest | I57: Poor | J57: Middle | K57: Rich | L57: Richest | M57: Poorest | N57: Poor | O57: Middle | P57: Rich | Q57: Richest | R57: Central 1 | S57: Central 2 | T57: Eastern | U57: Northern | V57: Southern | W57: Western | BA57: Water data, raw numbers (weighted) | BC57: Poorest | BD57: Poor | BE57: Middle | BF57: Rich | BG57: Richest | BH57: Poorest | BI57: Poor | BJ57: Middle | BK57: Rich | BL57: Richest | BM57: Poorest | BN57: Poor | BO57: Middle | BP57: Rich | BQ57: Richest | BR57: Central 1 | BS57: Central 2 | BT57: Eastern | BU57: Northern | BV57: Southern | BW57: Western
A58: Main source of drinking water | B58: Piped into dwelling | C58: 0.226283725 | D58: 0.1281845858 | E58: 0.7697456493 | F58: 4.221591857 | G58: 96.77957617 | H58: 0.802919708 | I58: 0.3884180791 | J58: 12.98652695 | K58: 98.51395433 | L58: 98.83424408 | M58: 0.1599488164 | N58: 0 | O58: 0.2474481905 | P58: 0.09351620948 | Q58: 9.032059186 | R58: 27.24925521 | S58: 49.23810786 | T58: 15.51966292 | U58: 0.2756019727 | V58: 5.849056604 | W58: 8.121366279
B59: Piped into yard or plot ìî¨øø©ø¨ | C59: 0 | D59: 0.09613843935 | E59: 0.1673360107 | F59: 0.850992825 | G59: 1.635241115 | H59: 0.5839416058 | I59: 0 | J59: 1.609281437 | K59: 0.9061254078 | L59: 0.5464480874 | M59: 0 | N59: 0 | O59: 0 | P59: 0 | Q59: 2.034525277 | R59: 2.442899702 | S59: 0.1325029813 | T59: 0.316011236 | U59: 0.04351610096 | V59: 0 | W59: 0.363372093
B60: Public tap | C60: 2.872062663 | D60: 9.998397693 | E60: 31.69344043 | F60: 45.20273653 | G60: 0.56732855 | H60: 59.7080292 | I60: 52.86016949 | J60: 52.32035928 | K60: 0.3986951794 | L60: 0.4007285974 | M60: 0.3198976328 | N60: 0.7966951903 | O60: 3.618929787 | P60: 9.413965087 | Q60: 12.85450062 | R60: 19.80139027 | S60: 38.13435802 | T60: 11.97331461 | U60: 8.355091384 | V60: 23.82075472 | W60: 2.34375
B61: Tubewell, borehole with pump | C61: 2.872062663 | D61: 9.693959301 | E61: 12.58366801 | F61: 9.594526948 | G61: 0.08343066911 | H61: 5.072992701 | I61: 4.201977401 | J61: 7.110778443 | K61: 0.1812250816 | L61: 0 | M61: 1.055662188 | N61: 6.698141045 | O61: 6.742963192 | P61: 15.92892768 | Q61: 20.34525277 | R61: 18.5898709 | S61: 1.682787863 | T61: 3.195224719 | U61: 3.104148535 | V61: 12.5 | W61: 8.521075581
B62: Protected dug well | C62: 21.06179286 | D62: 12.6261817 | E62: 19.05957162 | F62: 18.98882029 | G62: 0.1001168029 | H62: 18.46715328 | I62: 22.91666667 | J62: 14.97005988 | K62: 0 | L62: 0.218579235 | M62: 22.42482406 | N62: 17.29123635 | O62: 9.866996598 | P62: 15.39900249 | Q62: 19.11220715 | R62: 15.61072493 | S62: 7.897177686 | T62: 22.33146067 | U62: 10.85001451 | V62: 38.44339623 | W62: 12.71802326
B63: Protected spring | C63: 0 | D63: 0 | E63: 0.06693440428 | F63: 0.1001168029 | G63: 0 | H63: 0 | I63: 0.3531073446 | J63: 0 | K63: 0 | L63: 0 | M63: 0 | N63: 0 | O63: 0 | P63: 0 | Q63: 0 | R63: 0 | S63: 0.05300119253 | T63: 0 | U63: 0 | V63: 0 | W63: 0.1090116279
B64: Bottlet water | C64: 0.06962576153 | D64: 0.1762538055 | E64: 0.08366800535 | F64: 0.06674453529 | G64: 0 | H64: 0 | I64: 0 | J64: 0 | K64: 0 | L64: 0 | M64: 0 | N64: 0.1180289171 | O64: 0.2165171667 | P64: 0.1246882793 | Q64: 0.2774352651 | R64: 0.07944389275 | S64: 0 | T64: 0.316011236 | U64: 0.1015375689 | V64: 0 | W64: 0.0726744186
B65: Unprotected dug well | C65: 18.25935596 | D65: 6.313090851 | E65: 3.74832664 | F65: 2.786584348 | G65: 0 | H65: 1.496350365 | I65: 2.436440678 | J65: 1.422155689 | K65: 0 | L65: 0 | M65: 21.78502879 | N65: 13.92741222 | O65: 6.433652954 | P65: 4.831670823 | Q65: 5.240443896 | R65: 4.468718967 | S65: 0.3842586458 | T65: 18.25842697 | U65: 6.512909777 | V65: 13.86792453 | W65: 5.759447674
B66: Unprotected spring | C66: 0.5570060923 | D66: 0.1922768787 | E66: 0 | F66: 0 | G66: 0 | H66: 0 | I66: 0 | J66: 0 | K66: 0 | L66: 0 | M66: 0.7997440819 | N66: 0.4721156683 | O66: 0.09279307145 | P66: 0 | Q66: 0 | R66: 0 | S66: 0 | T66: 0.1053370787 | U66: 0.1305483029 | V66: 0.3301886792 | W66: 0.4542151163
B67: Pond,river or stream | C67: 48.47693647 | D67: 55.84041019 | E67: 26.05421687 | F67: 10.89604539 | G67: 0 | H67: 4.452554745 | I67: 6.56779661 | J67: 4.94011976 | K67: 0 | L67: 0 | M67: 46.92898273 | N67: 55.50309826 | O67: 70.08969997 | P67: 50.18703242 | Q67: 25.1541307 | R67: 5.779543198 | S67: 0 | T67: 25.45646067 | U67: 67.91412823 | V67: 2.594339623 | W67: 49.54578488
B68: Tanker-truck,vendor | C68: 0 | D68: 2.082999519 | E68: 4.133199465 | F68: 6.073752711 | G68: 0.7008176206 | H68: 8.503649635 | I68: 9.427966102 | J68: 4.116766467 | K68: 0 | L68: 0 | M68: 0 | N68: 0.2065506049 | O68: 0.1855861429 | P68: 1.80798005 | Q68: 3.144266338 | R68: 2.581926514 | S68: 2.451305154 | T68: 1.123595506 | U68: 0.6382361474 | V68: 2.594339623 | W68: 6.122819767
B69: Other | C69: 5.604873803 | D69: 2.852107034 | E69: 1.639892905 | F69: 1.184715501 | G69: 0.1334890706 | H69: 0.9124087591 | I69: 0.8474576271 | J69: 0.4491017964 | K69: 0 | L69: 0 | M69: 6.525911708 | N69: 4.986721747 | O69: 2.505412929 | P69: 2.213216958 | Q69: 2.805178792 | R69: 3.396226415 | S69: 0 | T69: 1.404494382 | U69: 2.074267479 | V69: 0 | W69: 5.868459302
B70: Missing | C70: 0 | D70: 0 | E70: 0 | F70: 0.03337226765 | G70: 0 | H70: 0 | I70: 0 | J70: 0.0748502994 | K70: 0 | L70: 0 | M70: 0 | N70: 0 | O70: 0 | P70: 0 | Q70: 0 | R70: 0 | S70: 0.02650059626 | T70: 0 | U70: 0 | V70: 0 | W70: 0
A108: =A1026 -> Mongolia
A109: =A1034 -> 2000
A110: Use of sanitation facilities
A111: by wealth quintile and sub-national region
A112: Notes:
A113: WHO/UNICEF JMP customised wealth index excludes water,
A114: sanitation and hygiene assets.
A115: Survey used for analysis: | B115: =A1025 -> MICS00
A116: =B1030 -> Ratio of Improved latrines based on: | B116: MICS05
A117: =B1029 -> Ratio of Shared improved based on: | B117: MICS05
A120: Use of sanitation facilities | C120: NATIONAL wealth index quintile | H120: URBAN wealth index quintile | M120: RURAL wealth index quintile | R120: SUB-REGIONS: | BA120: Raw numbers of respondents: | BB120: Use of sanitation facilities | BC120: NATIONAL wealth index quintile | BH120: URBAN wealth index quintile | BM120: RURAL wealth index quintile | BR120: SUB-REGIONS:
A121: Weighted percentage (used in graphs) | C121: Poorest | D121: Poor | E121: Middle | F121: Rich | G121: Richest | H121: Poorest | I121: Poor | J121: Middle | K121: Rich | L121: Richest | M121: Poorest | N121: Poor | O121: Middle | P121: Rich | Q121: Richest | R121: Central 1 | S121: Central 2 | T121: Eastern | U121: Northern | V121: Southern | W121: Western | BA121: Sanitation data, raw numbers (weighted) | BC121: Poorest | BD121: Poor | BE121: Middle | BF121: Rich | BG121: Richest | BH121: Poorest | BI121: Poor | BJ121: Middle | BK121: Rich | BL121: Richest | BM121: Poorest | BN121: Poor | BO121: Middle | BP121: Rich | BQ121: Richest | BR121: Central 1 | BS121: Central 2 | BT121: Eastern | BU121: Northern | BV121: Southern | BW121: Western
A122: Sanitation | B122: Improved | C122: =C153+C154+C155+(C157+C156)*MICS05!C130/100 -> 14.7916277 | D122: =D153+D154+D155+(D157+D156)*MICS05!D130/100 -> 61.48098656 | E122: =E153+E154+E155+(E157+E156)*MICS05!E130/100 -> 90.12385805 | F122: =F153+F154+F155+(F157+F156)*MICS05!F130/100 -> 94.66697445 | G122: =G153+G154+G155+(G157+G156)*MICS05!G130/100 -> 99.75432076 | H122: =H153+H154+H155+(H157+H156)*MICS05!H130/100 -> 93.63805934 | I122: =I153+I154+I155+(I157+I156)*MICS05!I130/100 -> 94.30013587 | J122: =J153+J154+J155+(J157+J156)*MICS05!J130/100 -> 96.1288221 | K122: =K153+K154+K155+(K157+K156)*MICS05!K130/100 -> 99.99064675 | L122: =L153+L154+L155+(L157+L156)*MICS05!L130/100 -> 99.69713138 | M122: =M153+M154+M155+(M157+M156)*MICS05!M130/100 -> 6.593160262 | N122: =N153+N154+N155+(N157+N156)*MICS05!N130/100 -> 21.52144499 | O122: =O153+O154+O155+(O157+O156)*MICS05!O130/100 -> 48.33430049 | P122: =P153+P154+P155+(P157+P156)*MICS05!P130/100 -> 77.55528907 | Q122: =Q153+Q154+Q155+(Q157+Q156)*MICS05!Q130/100 -> 87.74599073 | R122: =R153+R154+R155+R156*MICS05!R130/100 -> 80.72797794 | S122: =S153+S154+S155+S156*MICS05!S130/100 -> 91.93087966 | T122: =T153+T154+T155+T156*MICS05!T130/100 -> 62.52514745 | U122: =U153+U154+U155+U156*MICS05!U130/100 -> 50.62473773 | V122: =V153+V154+V155+V156*MICS05!V130/100 -> 40.70784339 | W122: =W153+W154+W155+W156*MICS05!W130/100 -> 9.029796512 | BA122: Sanitation | BB122: Improved | BC122: N/A | BD122: N/A | BE122: N/A | BF122: N/A | BG122: N/A | BH122: N/A | BI122: N/A | BJ122: N/A | BK122: N/A | BL122: N/A | BM122: N/A | BN122: N/A | BO122: N/A | BP122: N/A | BQ122: N/A | BR122: N/A | BS122: N/A | BT122: N/A | BU122: N/A | BV122: N/A | BW122: N/A
B123: Not Improved | C123: =100-C122 -> 85.2083723 | D123: =100-D122 -> 38.51901344 | E123: 9.876141952 | F123: 5.333025553 | G123: 0.2456792441 | H123: 6.361940656 | I123: 5.699864127 | J123: 3.8711779 | K123: 0.00935324744 | L123: 0.3028686209 | M123: 93.40683974 | N123: 78.47855501 | O123: 51.66569951 | P123: 22.44471093 | Q123: 12.25400927 | R123: 19.27202206 | S123: 8.069120336 | T123: 37.47485255 | U123: 49.37526227 | V123: 59.29215661 | W123: 90.97020349 | BB123: Not Improved | BC123: N/A | BD123: N/A | BE123: N/A | BF123: N/A | BG123: N/A | BH123: N/A | BI123: N/A | BJ123: N/A | BK123: N/A | BL123: N/A | BM123: N/A | BN123: N/A | BO123: N/A | BP123: N/A | BQ123: N/A | BR123: N/A | BS123: N/A | BT123: N/A | BU123: N/A | BV123: N/A | BW123: N/A
A124: Sanitation ladder | B124: Basic | C124: =C122*MICS05!C129/100 -> 6.317192988 | D124: =D122*MICS05!D129/100 -> 35.21635376 | E124: =E122*MICS05!E129/100 -> 47.9706746 | F124: =F122*MICS05!F129/100 -> 54.41549766 | G124: =G122*MICS05!G129/100 -> 91.8083227 | H124: =H122*MICS05!H129/100 -> 48.08512165 | I124: =I122*MICS05!I129/100 -> 48.84377733 | J124: =J122*MICS05!J129/100 -> 51.94512557 | K124: =K122*MICS05!K129/100 -> 79.48359481 | L124: =L122*MICS05!L129/100 -> 97.16833976 | M124: =M122*MICS05!M129/100 -> 2.208688241 | N124: =N122*MICS05!N129/100 -> 9.98777608 | O124: =O122*MICS05!O129/100 -> 27.02478187 | P124: =P122*MICS05!P129/100 -> 43.68451003 | Q124: =Q122*MICS05!Q129/100 -> 57.38714306 | R124: N/A | S124: N/A | T124: N/A | U124: N/A | V124: N/A | W124: N/A | BA124: Sanitation ladder | BB124: Basic | BC124: N/A | BD124: N/A | BE124: N/A | BF124: N/A | BG124: N/A | BH124: N/A | BI124: N/A | BJ124: N/A | BK124: N/A | BL124: N/A | BM124: N/A | BN124: N/A | BO124: N/A | BP124: N/A | BQ124: N/A | BR124: N/A | BS124: N/A | BT124: N/A | BU124: N/A | BV124: N/A | BW124: N/A
B125: Limited | C125: =C122*MICS05!C128/100 -> 8.474434711 | D125: =D122*MICS05!D128/100 -> 26.2646328 | E125: =E122*MICS05!E128/100 -> 42.15318344 | F125: =F122*MICS05!F128/100 -> 40.25147679 | G125: =G122*MICS05!G128/100 -> 7.945998061 | H125: =H122*MICS05!H128/100 -> 45.5529377 | I125: =I122*MICS05!I128/100 -> 45.45635854 | J125: =J122*MICS05!J128/100 -> 44.18369653 | K125: =K122*MICS05!K128/100 -> 20.50705194 | L125: =L122*MICS05!L128/100 -> 2.52879162 | M125: =M122*MICS05!M128/100 -> 4.384472021 | N125: =N122*MICS05!N128/100 -> 11.53366891 | O125: =O122*MICS05!O128/100 -> 21.30951863 | P125: =P122*MICS05!P128/100 -> 33.87077903 | Q125: =Q122*MICS05!Q128/100 -> 30.35884767 | R125: N/A | S125: N/A | T125: N/A | U125: N/A | V125: N/A | W125: N/A | BB125: Limited | BC125: N/A | BD125: N/A | BE125: N/A | BF125: N/A | BG125: N/A | BH125: N/A | BI125: N/A | BJ125: N/A | BK125: N/A | BL125: N/A | BM125: N/A | BN125: N/A | BO125: N/A | BP125: N/A | BQ125: N/A | BR125: N/A | BS125: N/A | BT125: N/A | BU125: N/A | BV125: N/A | BW125: N/A
B126: Unimproved | C126: =100-(C124+C125+C127) -> 14.2597213 | D126: =100-(D124+D125+D127) -> 14.11587292 | E126: 6.646556946 | F126: 3.130455888 | G126: 0.09550403974 | H126: 6.361940656 | I126: 4.781785031 | J126: 2.785848559 | K126: 0.009353247441 | L126: 0.1935790034 | M126: 10.10549617 | N126: 19.93621213 | O126: 24.44639855 | P126: 15.46216729 | Q126: 6.612825547 | R126: N/A | S126: N/A | T126: N/A | U126: N/A | V126: N/A | W126: N/A | BB126: Unimproved | BC126: N/A | BD126: N/A | BE126: N/A | BF126: N/A | BG126: N/A | BH126: N/A | BI126: N/A | BJ126: N/A | BK126: N/A | BL126: N/A | BM126: N/A | BN126: N/A | BO126: N/A | BP126: N/A | BQ126: N/A | BR126: N/A | BS126: N/A | BT126: N/A | BU126: N/A | BV126: N/A | BW126: N/A
B127: Open defecation | C127: =C159 -> 70.948651 | D127: =D159 -> 24.40314052 | E127: 3.229585007 | F127: 2.202569665 | G127: 0.1501752044 | H127: 0 | I127: 0.918079096 | J127: 1.085329341 | K127: 0 | L127: 0.1092896175 | M127: 83.30134357 | N127: 58.54234287 | O127: 27.21930096 | P127: 6.982543641 | Q127: 5.641183724 | R127: N/A | S127: N/A | T127: N/A | U127: N/A | V127: N/A | W127: N/A | BB127: Open defecation | BC127: N/A | BD127: N/A | BE127: N/A | BF127: N/A | BG127: N/A | BH127: N/A | BI127: N/A | BJ127: N/A | BK127: N/A | BL127: N/A | BM127: N/A | BN127: N/A | BO127: N/A | BP127: N/A | BQ127: N/A | BR127: N/A | BS127: N/A | BT127: N/A | BU127: N/A | BV127: N/A | BW127: N/A
A128: Shared among Improved Sanitation | B128: Yes | C128: N/A | D128: N/A | E128: N/A | F128: N/A | G128: N/A | H128: N/A | I128: N/A | J128: N/A | K128: N/A | L128: N/A | M128: N/A | N128: N/A | O128: N/A | P128: N/A | Q128: N/A | R128: N/A | S128: N/A | T128: N/A | U128: N/A | V128: N/A | W128: N/A | BA128: Shared among improved sanitation facilities | BB128: Yes | BC128: N/A | BD128: N/A | BE128: N/A | BF128: N/A | BG128: N/A | BH128: N/A | BI128: N/A | BJ128: N/A | BK128: N/A | BL128: N/A | BM128: N/A | BN128: N/A | BO128: N/A | BP128: N/A | BQ128: N/A | BR128: N/A | BS128: N/A | BT128: N/A | BU128: N/A | BV128: N/A | BW128: N/A
B129: No | C129: N/A | D129: N/A | E129: N/A | F129: N/A | G129: N/A | H129: N/A | I129: N/A | J129: N/A | K129: N/A | L129: N/A | M129: N/A | N129: N/A | O129: N/A | P129: N/A | Q129: N/A | R129: N/A | S129: N/A | T129: N/A | U129: N/A | V129: N/A | W129: N/A | BB129: No | BC129: N/A | BD129: N/A | BE129: N/A | BF129: N/A | BG129: N/A | BH129: N/A | BI129: N/A | BJ129: N/A | BK129: N/A | BL129: N/A | BM129: N/A | BN129: N/A | BO129: N/A | BP129: N/A | BQ129: N/A | BR129: N/A | BS129: N/A | BT129: N/A | BU129: N/A | BV129: N/A | BW129: N/A
A130: Manually calculated ratios | B130: Improved latrines
B131: Other
B132: Other
C133: NATIONAL wealth index quintile | H133: URBAN wealth index quintile | M133: RURAL wealth index quintile | R133: SUB-REGIONS: | BA133: Raw numbers of respondents: | BB133: Use of sanitation facilities | BC133: NATIONAL wealth index quintile | BH133: URBAN wealth index quintile | BM133: RURAL wealth index quintile | BR133: SUB-REGIONS:
A134: Percentage based on weighted population | C134: Poorest | D134: Poor | E134: Middle | F134: Rich | G134: Richest | H134: Poorest | I134: Poor | J134: Middle | K134: Rich | L134: Richest | M134: Poorest | N134: Poor | O134: Middle | P134: Rich | Q134: Richest | R134: Central 1 | S134: Central 2 | T134: Eastern | U134: Northern | V134: Southern | W134: Western | BA134: Sanitation data, raw numbers (weighted) | BC134: Poorest | BD134: Poor | BE134: Middle | BF134: Rich | BG134: Richest | BH134: Poorest | BI134: Poor | BJ134: Middle | BK134: Rich | BL134: Richest | BM134: Poorest | BN134: Poor | BO134: Middle | BP134: Rich | BQ134: Richest | BR134: Central 1 | BS134: Central 2 | BT134: Eastern | BU134: Northern | BV134: Southern | BW134: Western
A135: Sanitation type | B135: Sewer connection | C135: N/A | D135: N/A | E135: N/A | F135: N/A | G135: N/A | H135: N/A | I135: N/A | J135: N/A | K135: N/A | L135: N/A | M135: N/A | N135: N/A | O135: N/A | P135: N/A | Q135: N/A | R135: N/A | S135: N/A | T135: N/A | U135: N/A | V135: N/A | W135: N/A | BA135: Sanitation type | BB135: Sewer connection | BC135: N/A | BD135: N/A | BE135: N/A | BF135: N/A | BG135: N/A | BH135: N/A | BI135: N/A | BJ135: N/A | BK135: N/A | BL135: N/A | BM135: N/A | BN135: N/A | BO135: N/A | BP135: N/A | BQ135: N/A | BR135: N/A | BS135: N/A | BT135: N/A | BU135: N/A | BV135: N/A | BW135: N/A
B136: Septic tank connection | C136: N/A | D136: N/A | E136: N/A | F136: N/A | G136: N/A | H136: N/A | I136: N/A | J136: N/A | K136: N/A | L136: N/A | M136: N/A | N136: N/A | O136: N/A | P136: N/A | Q136: N/A | R136: N/A | S136: N/A | T136: N/A | U136: N/A | V136: N/A | W136: N/A | BB136: Septic tank connection | BC136: N/A | BD136: N/A | BE136: N/A | BF136: N/A | BG136: N/A | BH136: N/A | BI136: N/A | BJ136: N/A | BK136: N/A | BL136: N/A | BM136: N/A | BN136: N/A | BO136: N/A | BP136: N/A | BQ136: N/A | BR136: N/A | BS136: N/A | BT136: N/A | BU136: N/A | BV136: N/A | BW136: N/A
B137: Improved latrines | C137: N/A | D137: N/A | E137: N/A | F137: N/A | G137: N/A | H137: N/A | I137: N/A | J137: N/A | K137: N/A | L137: N/A | M137: N/A | N137: N/A | O137: N/A | P137: N/A | Q137: N/A | R137: N/A | S137: N/A | T137: N/A | U137: N/A | V137: N/A | W137: N/A | BB137: Improved latrines | BC137: N/A | BD137: N/A | BE137: N/A | BF137: N/A | BG137: N/A | BH137: N/A | BI137: N/A | BJ137: N/A | BK137: N/A | BL137: N/A | BM137: N/A | BN137: N/A | BO137: N/A | BP137: N/A | BQ137: N/A | BR137: N/A | BS137: N/A | BT137: N/A | BU137: N/A | BV137: N/A | BW137: N/A
B138: Unimproved facilities | C138: N/A | D138: N/A | E138: N/A | F138: N/A | G138: N/A | H138: N/A | I138: N/A | J138: N/A | K138: N/A | L138: N/A | M138: N/A | N138: N/A | O138: N/A | P138: N/A | Q138: N/A | R138: N/A | S138: N/A | T138: N/A | U138: N/A | V138: N/A | W138: N/A | BB138: Unimproved facilities | BC138: N/A | BD138: N/A | BE138: N/A | BF138: N/A | BG138: N/A | BH138: N/A | BI138: N/A | BJ138: N/A | BK138: N/A | BL138: N/A | BM138: N/A | BN138: N/A | BO138: N/A | BP138: N/A | BQ138: N/A | BR138: N/A | BS138: N/A | BT138: N/A | BU138: N/A | BV138: N/A | BW138: N/A
B139: Open defecation | C139: =C159 -> 70.948651 | D139: =D159 -> 24.40314052 | E139: 3.229585007 | F139: 2.202569665 | G139: 0.1501752044 | H139: 0 | I139: 0.918079096 | J139: 1.085329341 | K139: 0 | L139: 0.1092896175 | M139: 83.30134357 | N139: 58.54234287 | O139: 27.21930096 | P139: 6.982543641 | Q139: 5.641183724 | R139: 10.32770606 | S139: 0.1722538757 | T139: 15.20365169 | U139: 32.73861329 | V139: 41.08490566 | W139: 33.41206395 | BB139: Open defecation | BC139: N/A | BD139: N/A | BE139: N/A | BF139: N/A | BG139: N/A | BH139: N/A | BI139: N/A | BJ139: N/A | BK139: N/A | BL139: N/A | BM139: N/A | BN139: N/A | BO139: N/A | BP139: N/A | BQ139: N/A | BR139: N/A | BS139: N/A | BT139: N/A | BU139: N/A | BV139: N/A | BW139: N/A
A140: Septic tank emptying practices | B140: Not emptied/treated and disposed in situ | C140: N/A | D140: N/A | E140: N/A | F140: N/A | G140: N/A | H140: N/A | I140: N/A | J140: N/A | K140: N/A | L140: N/A | M140: N/A | N140: N/A | O140: N/A | P140: N/A | Q140: N/A | R140: N/A | S140: N/A | T140: N/A | U140: N/A | V140: N/A | W140: N/A | BA140: Septic tank emptying practices | BB140: Not emptied/treated and disposed in situ | BC140: N/A | BD140: N/A | BE140: N/A | BF140: N/A | BG140: N/A | BH140: N/A | BI140: N/A | BJ140: N/A | BK140: N/A | BL140: N/A | BM140: N/A | BN140: N/A | BO140: N/A | BP140: N/A | BQ140: N/A | BR140: N/A | BS140: N/A | BT140: N/A | BU140: N/A | BV140: N/A | BW140: N/A
B141: Emptied and buried on site | C141: N/A | D141: N/A | E141: N/A | F141: N/A | G141: N/A | H141: N/A | I141: N/A | J141: N/A | K141: N/A | L141: N/A | M141: N/A | N141: N/A | O141: N/A | P141: N/A | Q141: N/A | R141: N/A | S141: N/A | T141: N/A | U141: N/A | V141: N/A | W141: N/A | BB141: Emptied and buried on site | BC141: N/A | BD141: N/A | BE141: N/A | BF141: N/A | BG141: N/A | BH141: N/A | BI141: N/A | BJ141: N/A | BK141: N/A | BL141: N/A | BM141: N/A | BN141: N/A | BO141: N/A | BP141: N/A | BQ141: N/A | BR141: N/A | BS141: N/A | BT141: N/A | BU141: N/A | BV141: N/A | BW141: N/A
B142: Emptied and discharged locally | C142: N/A | D142: N/A | E142: N/A | F142: N/A | G142: N/A | H142: N/A | I142: N/A | J142: N/A | K142: N/A | L142: N/A | M142: N/A | N142: N/A | O142: N/A | P142: N/A | Q142: N/A | R142: N/A | S142: N/A | T142: N/A | U142: N/A | V142: N/A | W142: N/A | BB142: Emptied and discharged locally | BC142: N/A | BD142: N/A | BE142: N/A | BF142: N/A | BG142: N/A | BH142: N/A | BI142: N/A | BJ142: N/A | BK142: N/A | BL142: N/A | BM142: N/A | BN142: N/A | BO142: N/A | BP142: N/A | BQ142: N/A | BR142: N/A | BS142: N/A | BT142: N/A | BU142: N/A | BV142: N/A | BW142: N/A
B143: Emptied and removed offsite | C143: N/A | D143: N/A | E143: N/A | F143: N/A | G143: N/A | H143: N/A | I143: N/A | J143: N/A | K143: N/A | L143: N/A | M143: N/A | N143: N/A | O143: N/A | P143: N/A | Q143: N/A | R143: N/A | S143: N/A | T143: N/A | U143: N/A | V143: N/A | W143: N/A | BB143: Emptied and removed offsite | BC143: N/A | BD143: N/A | BE143: N/A | BF143: N/A | BG143: N/A | BH143: N/A | BI143: N/A | BJ143: N/A | BK143: N/A | BL143: N/A | BM143: N/A | BN143: N/A | BO143: N/A | BP143: N/A | BQ143: N/A | BR143: N/A | BS143: N/A | BT143: N/A | BU143: N/A | BV143: N/A | BW143: N/A
A144: Latrine emptying practices | B144: Not emptied/treated and disposed in situ | C144: N/A | D144: N/A | E144: N/A | F144: N/A | G144: N/A | H144: N/A | I144: N/A | J144: N/A | K144: N/A | L144: N/A | M144: N/A | N144: N/A | O144: N/A | P144: N/A | Q144: N/A | R144: N/A | S144: N/A | T144: N/A | U144: N/A | V144: N/A | W144: N/A | BA144: Latrine emptying practices | BB144: Not emptied/treated and disposed in situ | BC144: N/A | BD144: N/A | BE144: N/A | BF144: N/A | BG144: N/A | BH144: N/A | BI144: N/A | BJ144: N/A | BK144: N/A | BL144: N/A | BM144: N/A | BN144: N/A | BO144: N/A | BP144: N/A | BQ144: N/A | BR144: N/A | BS144: N/A | BT144: N/A | BU144: N/A | BV144: N/A | BW144: N/A
B145: Emptied and buried on site | C145: N/A | D145: N/A | E145: N/A | F145: N/A | G145: N/A | H145: N/A | I145: N/A | J145: N/A | K145: N/A | L145: N/A | M145: N/A | N145: N/A | O145: N/A | P145: N/A | Q145: N/A | R145: N/A | S145: N/A | T145: N/A | U145: N/A | V145: N/A | W145: N/A | BB145: Emptied and buried on site | BC145: N/A | BD145: N/A | BE145: N/A | BF145: N/A | BG145: N/A | BH145: N/A | BI145: N/A | BJ145: N/A | BK145: N/A | BL145: N/A | BM145: N/A | BN145: N/A | BO145: N/A | BP145: N/A | BQ145: N/A | BR145: N/A | BS145: N/A | BT145: N/A | BU145: N/A | BV145: N/A | BW145: N/A
B146: Emptied and discharged locally | C146: N/A | D146: N/A | E146: N/A | F146: N/A | G146: N/A | H146: N/A | I146: N/A | J146: N/A | K146: N/A | L146: N/A | M146: N/A | N146: N/A | O146: N/A | P146: N/A | Q146: N/A | R146: N/A | S146: N/A | T146: N/A | U146: N/A | V146: N/A | W146: N/A | BB146: Emptied and discharged locally | BC146: N/A | BD146: N/A | BE146: N/A | BF146: N/A | BG146: N/A | BH146: N/A | BI146: N/A | BJ146: N/A | BK146: N/A | BL146: N/A | BM146: N/A | BN146: N/A | BO146: N/A | BP146: N/A | BQ146: N/A | BR146: N/A | BS146: N/A | BT146: N/A | BU146: N/A | BV146: N/A | BW146: N/A
B147: Emptied and removed offsite | C147: N/A | D147: N/A | E147: N/A | F147: N/A | G147: N/A | H147: N/A | I147: N/A | J147: N/A | K147: N/A | L147: N/A | M147: N/A | N147: N/A | O147: N/A | P147: N/A | Q147: N/A | R147: N/A | S147: N/A | T147: N/A | U147: N/A | V147: N/A | W147: N/A | BB147: Emptied and removed offsite | BC147: N/A | BD147: N/A | BE147: N/A | BF147: N/A | BG147: N/A | BH147: N/A | BI147: N/A | BJ147: N/A | BK147: N/A | BL147: N/A | BM147: N/A | BN147: N/A | BO147: N/A | BP147: N/A | BQ147: N/A | BR147: N/A | BS147: N/A | BT147: N/A | BU147: N/A | BV147: N/A | BW147: N/A
A148: Shared among improved sanitation facilities | B148: Yes | C148: N/A | D148: N/A | E148: N/A | F148: N/A | G148: N/A | H148: N/A | I148: N/A | J148: N/A | K148: N/A | L148: N/A | M148: N/A | N148: N/A | O148: N/A | P148: N/A | Q148: N/A | R148: N/A | S148: N/A | T148: N/A | U148: N/A | V148: N/A | W148: N/A | BA148: Shared among improved sanitation facilities | BB148: Yes | BC148: N/A | BD148: N/A | BE148: N/A | BF148: N/A | BG148: N/A | BH148: N/A | BI148: N/A | BJ148: N/A | BK148: N/A | BL148: N/A | BM148: N/A | BN148: N/A | BO148: N/A | BP148: N/A | BQ148: N/A | BR148: N/A | BS148: N/A | BT148: N/A | BU148: N/A | BV148: N/A | BW148: N/A
B149: No | C149: N/A | D149: N/A | E149: N/A | F149: N/A | G149: N/A | H149: N/A | I149: N/A | J149: N/A | K149: N/A | L149: N/A | M149: N/A | N149: N/A | O149: N/A | P149: N/A | Q149: N/A | R149: N/A | S149: N/A | T149: N/A | U149: N/A | V149: N/A | W149: N/A | BB149: No | BC149: N/A | BD149: N/A | BE149: N/A | BF149: N/A | BG149: N/A | BH149: N/A | BI149: N/A | BJ149: N/A | BK149: N/A | BL149: N/A | BM149: N/A | BN149: N/A | BO149: N/A | BP149: N/A | BQ149: N/A | BR149: N/A | BS149: N/A | BT149: N/A | BU149: N/A | BV149: N/A | BW149: N/A
B150: DK/missing | C150: N/A | D150: N/A | E150: N/A | F150: N/A | G150: N/A | H150: N/A | I150: N/A | J150: N/A | K150: N/A | L150: N/A | M150: N/A | N150: N/A | O150: N/A | P150: N/A | Q150: N/A | R150: N/A | S150: N/A | T150: N/A | U150: N/A | V150: N/A | W150: N/A | BB150: DK/missing | BC150: N/A | BD150: N/A | BE150: N/A | BF150: N/A | BG150: N/A | BH150: N/A | BI150: N/A | BJ150: N/A | BK150: N/A | BL150: N/A | BM150: N/A | BN150: N/A | BO150: N/A | BP150: N/A | BQ150: N/A | BR150: N/A | BS150: N/A | BT150: N/A | BU150: N/A | BV150: N/A | BW150: N/A
A151: Shared among all sanitation facilities | B151: Yes | C151: N/A | D151: N/A | E151: N/A | F151: N/A | G151: N/A | H151: N/A | I151: N/A | J151: N/A | K151: N/A | L151: N/A | M151: N/A | N151: N/A | O151: N/A | P151: N/A | Q151: N/A | R151: N/A | S151: N/A | T151: N/A | U151: N/A | V151: N/A | W151: N/A | BA151: Shared among all sanitation facilities | BB151: Yes | BC151: N/A | BD151: N/A | BE151: N/A | BF151: N/A | BG151: N/A | BH151: N/A | BI151: N/A | BJ151: N/A | BK151: N/A | BL151: N/A | BM151: N/A | BN151: N/A | BO151: N/A | BP151: N/A | BQ151: N/A | BR151: N/A | BS151: N/A | BT151: N/A | BU151: N/A | BV151: N/A | BW151: N/A
B152: No | C152: N/A | D152: N/A | E152: N/A | F152: N/A | G152: N/A | H152: N/A | I152: N/A | J152: N/A | K152: N/A | L152: N/A | M152: N/A | N152: N/A | O152: N/A | P152: N/A | Q152: N/A | R152: N/A | S152: N/A | T152: N/A | U152: N/A | V152: N/A | W152: N/A | BB152: No | BC152: N/A | BD152: N/A | BE152: N/A | BF152: N/A | BG152: N/A | BH152: N/A | BI152: N/A | BJ152: N/A | BK152: N/A | BL152: N/A | BM152: N/A | BN152: N/A | BO152: N/A | BP152: N/A | BQ152: N/A | BR152: N/A | BS152: N/A | BT152: N/A | BU152: N/A | BV152: N/A | BW152: N/A
A153: Kind of toilet facility | B153: Flush to sewage system or septic tank | C153: 0.1566579634 | D153: 0 | E153: 0.3681392236 | F153: 3.854496913 | G153: 98.8653429 | H153: 0.3284671533 | I153: 0.4237288136 | J153: 12.2005988 | K153: 99.02138456 | L153: 99.23497268 | M153: 0 | N153: 0.1475361464 | O153: 0 | P153: 0.09351620948 | Q153: 11.59062885 | R153: 28.14299901 | S153: 49.10560488 | T153: 15.73033708 | U153: 0.2175805048 | V153: 7.5 | W153: 8.030523256 | BA153: Kind of toilet facility | BB153: Flush to sewage system or septic tank | BC153: 9 | BD153: 0 | BE153: 22 | BF153: 231 | BG153: 5925 | BH153: 9 | BI153: 12 | BJ153: 326 | BK153: 2732 | BL153: 2724 | BM153: 0 | BN153: 5 | BO153: 0 | BP153: 3 | BQ153: 376 | BR153: 1417 | BS153: 3706 | BT153: 448 | BU153: 15 | BV153: 159 | BW153: 442
B154: Pour flush latrine | C154: 0 | D154: 0 | E154: 0.06693440428 | F154: 0.3170365426 | G154: 0.3504088103 | H154: 0 | I154: 0.1765536723 | J154: 0 | K154: 0.7611453425 | L154: 0 | M154: 0 | N154: 0 | O154: 0 | P154: 0.1246882793 | Q154: 0.4315659679 | R154: 0.2780536246 | S154: 0.1192526832 | T154: 0 | U154: 0.05802146794 | V154: 0 | W154: 0.3088662791 | BB154: Pour flush latrine | BC154: 0 | BD154: 0 | BE154: 4 | BF154: 19 | BG154: 21 | BH154: 0 | BI154: 5 | BJ154: 0 | BK154: 21 | BL154: 0 | BM154: 0 | BN154: 0 | BO154: 0 | BP154: 4 | BQ154: 14 | BR154: 14 | BS154: 9 | BT154: 0 | BU154: 4 | BV154: 0 | BW154: 17
B155: Improved pit latrine | C155: 0.1044386423 | D155: 0.6569460022 | E155: 1.87416332 | F155: 1.985649925 | G155: 0 | H155: 2.445255474 | I155: 1.65960452 | J155: 2.245508982 | K155: 0 | L155: 0 | M155: 0 | N155: 0.1180289171 | O155: 0.8042066192 | P155: 1.278054863 | Q155: 1.017262639 | R155: 1.271102284 | S155: 1.802040546 | T155: 0.2808988764 | U155: 0.3336234407 | V155: 0.4245283019 | W155: 0.6904069767 | BB155: Improved pit latrine | BC155: 6 | BD155: 41 | BE155: 112 | BF155: 119 | BG155: 0 | BH155: 67 | BI155: 47 | BJ155: 60 | BK155: 0 | BL155: 0 | BM155: 0 | BN155: 4 | BO155: 26 | BP155: 41 | BQ155: 33 | BR155: 64 | BS155: 136 | BT155: 8 | BU155: 23 | BV155: 9 | BW155: 38
B156: Traditional pit latrine | C156: 21.23585727 | D156: 62.04133953 | E156: 89.0227577 | F156: 86.26731186 | G156: 0.56732855 | H156: 94.67153285 | I156: 90.36016949 | J156: 80.91317365 | K156: 0.2174700979 | L156: 0.5100182149 | M156: 10.84452975 | N156: 30.18589554 | O156: 56.2326013 | P156: 81.45261845 | Q156: 76.69543773 | R156: 59.06653426 | S156: 45.74002915 | T156: 63.37780899 | U156: 52.14679431 | V156: 44.43396226 | W156: 51.74418605 | BB156: Traditional pit latrine | BC156: 1220 | BD156: 3872 | BE156: 5320 | BF156: 5170 | BG156: 34 | BH156: 2594 | BI156: 2559 | BJ156: 2162 | BK156: 6 | BL156: 14 | BM156: 339 | BN156: 1023 | BO156: 1818 | BP156: 2613 | BQ156: 2488 | BR156: 2974 | BS156: 3452 | BT156: 1805 | BU156: 3595 | BV156: 942 | BW156: 2848
B157: Open pit | C157: 7.328111401 | D157: 12.81845858 | E157: 5.438420348 | F157: 5.089270816 | G157: 0 | H157: 2.554744526 | I157: 6.214689266 | J157: 3.181137725 | K157: 0 | L157: 0 | M157: 5.75815739 | N157: 10.71112423 | O157: 15.589236 | P157: 10.06857855 | Q157: 4.623921085 | R157: 0.6752730884 | S157: 2.941566185 | T157: 5.407303371 | U157: 14.24427038 | V157: 6.556603774 | W157: 5.813953488 | BB157: Open pit | BC157: 421 | BD157: 800 | BE157: 325 | BF157: 305 | BG157: 0 | BH157: 70 | BI157: 176 | BJ157: 85 | BK157: 0 | BL157: 0 | BM157: 180 | BN157: 363 | BO157: 504 | BP157: 323 | BQ157: 150 | BR157: 34 | BS157: 222 | BT157: 154 | BU157: 982 | BV157: 139 | BW157: 320
B158: Other | C158: 0.226283725 | D158: 0.08011536613 | E158: 0 | F158: 0.1501752044 | G158: 0.06674453529 | H158: 0 | I158: 0.2471751412 | J158: 0.0748502994 | K158: 0 | L158: 0.14571949 | M158: 0.09596928983 | N158: 0.2950722927 | O158: 0.1546551191 | P158: 0 | Q158: 0 | R158: 0.07944389275 | S158: 0.1192526832 | T158: 0 | U158: 0.2610966057 | V158: 0 | W158: 0 | BB158: Other | BC158: 13 | BD158: 5 | BE158: 0 | BF158: 9 | BG158: 4 | BH158: 0 | BI158: 7 | BJ158: 2 | BK158: 0 | BL158: 4 | BM158: 3 | BN158: 10 | BO158: 5 | BP158: 0 | BQ158: 0 | BR158: 4 | BS158: 9 | BT158: 0 | BU158: 18 | BV158: 0 | BW158: 0
B159: No facilities or bush or field | C159: 70.948651 | D159: 24.40314052 | E159: 3.229585007 | F159: 2.202569665 | G159: 0.1501752044 | H159: 0 | I159: 0.918079096 | J159: 1.085329341 | K159: 0 | L159: 0.1092896175 | M159: 83.30134357 | N159: 58.54234287 | O159: 27.21930096 | P159: 6.982543641 | Q159: 5.641183724 | R159: 10.32770606 | S159: 0.1722538757 | T159: 15.20365169 | U159: 32.73861329 | V159: 41.08490566 | W159: 33.41206395 | BB159: No facilities or bush or field | BC159: 4076 | BD159: 1523 | BE159: 193 | BF159: 132 | BG159: 9 | BH159: 0 | BI159: 26 | BJ159: 29 | BK159: 0 | BL159: 3 | BM159: 2604 | BN159: 1984 | BO159: 880 | BP159: 224 | BQ159: 183 | BR159: 520 | BS159: 13 | BT159: 433 | BU159: 2257 | BV159: 871 | BW159: 1839
B160: DK | C160: 0 | D160: 0 | E160: 0 | F160: 0.1334890706 | G160: 0 | H160: 0 | I160: 0 | J160: 0.2994011976 | K160: 0 | L160: 0 | M160: 0 | N160: 0 | O160: 0 | P160: 0 | Q160: 0 | R160: 0.1588877855 | S160: 0 | T160: 0 | U160: 0 | V160: 0 | W160: 0 | BB160: DK | BC160: 0 | BD160: 0 | BE160: 0 | BF160: 8 | BG160: 0 | BH160: 0 | BI160: 0 | BJ160: 8 | BK160: 0 | BL160: 0 | BM160: 0 | BN160: 0 | BO160: 0 | BP160: 0 | BQ160: 0 | BR160: 8 | BS160: 0 | BT160: 0 | BU160: 0 | BV160: 0 | BW160: 0
BB161: Total | BC161: 5745 | BD161: 6241 | BE161: 5976 | BF161: 5993 | BG161: 5993 | BH161: 2740 | BI161: 2832 | BJ161: 2672 | BK161: 2759 | BL161: 2745 | BM161: 3126 | BN161: 3389 | BO161: 3233 | BP161: 3208 | BQ161: 3244 | BR161: 5035 | BS161: 7547 | BT161: 2848 | BU161: 6894 | BV161: 2120 | BW161: 5504
A208: =A1026 -> Mongolia
A209: =A1034 -> 2000
A210: Access to hygiene facilities
A211: by wealth quintile and sub-national region
A212: Notes:
A213: WHO/UNICEF JMP customised wealth index excludes water,
A214: sanitation and hygiene assets.
A215: Survey used for analysis: | B215: =A1025 -> MICS00
A220: Access to handwashing | C220: NATIONAL wealth index quintile | H220: URBAN wealth index quintile | M220: RURAL wealth index quintile | R220: SUB-REGIONS: | BA220: Raw numbers of respondents: | BB220: Access to handwashing | BC220: NATIONAL wealth index quintile | BH220: URBAN wealth index quintile | BM220: RURAL wealth index quintile | BR220: SUB-REGIONS:
A221: Weighted percentage (used in graphs) | C221: Poorest | D221: Poor | E221: Middle | F221: Rich | G221: Richest | H221: Poorest | I221: Poor | J221: Middle | K221: Rich | L221: Richest | M221: Poorest | N221: Poor | O221: Middle | P221: Rich | Q221: Richest | R221: Central 1 | S221: Central 2 | T221: Eastern | U221: Northern | V221: Southern | W221: Western | BA221: Hygiene data, raw numbers (weighted) | BC221: Poorest | BD221: Poor | BE221: Middle | BF221: Rich | BG221: Richest | BH221: Poorest | BI221: Poor | BJ221: Middle | BK221: Rich | BL221: Richest | BM221: Poorest | BN221: Poor | BO221: Middle | BP221: Rich | BQ221: Richest | BR221: Central 1 | BS221: Central 2 | BT221: Eastern | BU221: Northern | BV221: Southern | BW221: Western
A222: Hygiene ladder | B222: Basic | C222: N/A | D222: N/A | E222: N/A | F222: N/A | G222: N/A | H222: N/A | I222: N/A | J222: N/A | K222: N/A | L222: N/A | M222: N/A | N222: N/A | O222: N/A | P222: N/A | Q222: N/A | R222: N/A | S222: N/A | T222: N/A | U222: N/A | V222: N/A | W222: N/A | BA222: Hygiene ladder | BB222: Basic | BC222: N/A | BD222: N/A | BE222: N/A | BF222: N/A | BG222: N/A | BH222: N/A | BI222: N/A | BJ222: N/A | BK222: N/A | BL222: N/A | BM222: N/A | BN222: N/A | BO222: N/A | BP222: N/A | BQ222: N/A | BR222: N/A | BS222: N/A | BT222: N/A | BU222: N/A | BV222: N/A | BW222: N/A
B223: Limited | C223: N/A | D223: N/A | E223: N/A | F223: N/A | G223: N/A | H223: N/A | I223: N/A | J223: N/A | K223: N/A | L223: N/A | M223: N/A | N223: N/A | O223: N/A | P223: N/A | Q223: N/A | R223: N/A | S223: N/A | T223: N/A | U223: N/A | V223: N/A | W223: N/A | BB223: Limited | BC223: N/A | BD223: N/A | BE223: N/A | BF223: N/A | BG223: N/A | BH223: N/A | BI223: N/A | BJ223: N/A | BK223: N/A | BL223: N/A | BM223: N/A | BN223: N/A | BO223: N/A | BP223: N/A | BQ223: N/A | BR223: N/A | BS223: N/A | BT223: N/A | BU223: N/A | BV223: N/A | BW223: N/A
B224: No facility | C224: N/A | D224: N/A | E224: N/A | F224: N/A | G224: N/A | H224: N/A | I224: N/A | J224: N/A | K224: N/A | L224: N/A | M224: N/A | N224: N/A | O224: N/A | P224: N/A | Q224: N/A | R224: N/A | S224: N/A | T224: N/A | U224: N/A | V224: N/A | W224: N/A | BB224: No facility | BC224: N/A | BD224: N/A | BE224: N/A | BF224: N/A | BG224: N/A | BH224: N/A | BI224: N/A | BJ224: N/A | BK224: N/A | BL224: N/A | BM224: N/A | BN224: N/A | BO224: N/A | BP224: N/A | BQ224: N/A | BR224: N/A | BS224: N/A | BT224: N/A | BU224: N/A | BV224: N/A | BW224: N/A
BA225: Observed handwashing place | BB225: Fixed | BC225: N/A | BD225: N/A | BE225: N/A | BF225: N/A | BG225: N/A | BH225: N/A | BI225: N/A | BJ225: N/A | BK225: N/A | BL225: N/A | BM225: N/A | BN225: N/A | BO225: N/A | BP225: N/A | BQ225: N/A | BR225: N/A | BS225: N/A | BT225: N/A | BU225: N/A | BV225: N/A | BW225: N/A
BB226: Mobile | BC226: N/A | BD226: N/A | BE226: N/A | BF226: N/A | BG226: N/A | BH226: N/A | BI226: N/A | BJ226: N/A | BK226: N/A | BL226: N/A | BM226: N/A | BN226: N/A | BO226: N/A | BP226: N/A | BQ226: N/A | BR226: N/A | BS226: N/A | BT226: N/A | BU226: N/A | BV226: N/A | BW226: N/A
BA227: Water / Soap | BB227: Water and soap | BC227: N/A | BD227: N/A | BE227: N/A | BF227: N/A | BG227: N/A | BH227: N/A | BI227: N/A | BJ227: N/A | BK227: N/A | BL227: N/A | BM227: N/A | BN227: N/A | BO227: N/A | BP227: N/A | BQ227: N/A | BR227: N/A | BS227: N/A | BT227: N/A | BU227: N/A | BV227: N/A | BW227: N/A
BB228: Water only | BC228: N/A | BD228: N/A | BE228: N/A | BF228: N/A | BG228: N/A | BH228: N/A | BI228: N/A | BJ228: N/A | BK228: N/A | BL228: N/A | BM228: N/A | BN228: N/A | BO228: N/A | BP228: N/A | BQ228: N/A | BR228: N/A | BS228: N/A | BT228: N/A | BU228: N/A | BV228: N/A | BW228: N/A
BB229: Soap only | BC229: N/A | BD229: N/A | BE229: N/A | BF229: N/A | BG229: N/A | BH229: N/A | BI229: N/A | BJ229: N/A | BK229: N/A | BL229: N/A | BM229: N/A | BN229: N/A | BO229: N/A | BP229: N/A | BQ229: N/A | BR229: N/A | BS229: N/A | BT229: N/A | BU229: N/A | BV229: N/A | BW229: N/A
BB230: Neither | BC230: N/A | BD230: N/A | BE230: N/A | BF230: N/A | BG230: N/A | BH230: N/A | BI230: N/A | BJ230: N/A | BK230: N/A | BL230: N/A | BM230: N/A | BN230: N/A | BO230: N/A | BP230: N/A | BQ230: N/A | BR230: N/A | BS230: N/A | BT230: N/A | BU230: N/A | BV230: N/A | BW230: N/A
BA259: Raw numbers of respondents: | BB259: Menstrual health and hygiene | BC259: NATIONAL wealth index quintile | BH259: URBAN wealth index quintile | BM259: RURAL wealth index quintile | BR259: SUB-REGIONS:
BA260: MHH data, raw numbers (weighted) | BC260: Poorest | BD260: Poor | BE260: Middle | BF260: Rich | BG260: Richest | BH260: Poorest | BI260: Poor | BJ260: Middle | BK260: Rich | BL260: Richest | BM260: Poorest | BN260: Poor | BO260: Middle | BP260: Rich | BQ260: Richest | BR260: Central 1 | BS260: Central 2 | BT260: Eastern | BU260: Northern | BV260: Southern | BW260: Western
BA261: Private place to wash and change | BB261: Yes | BC261: N/A | BD261: N/A | BE261: N/A | BF261: N/A | BG261: N/A | BH261: N/A | BI261: N/A | BJ261: N/A | BK261: N/A | BL261: N/A | BM261: N/A | BN261: N/A | BO261: N/A | BP261: N/A | BQ261: N/A | BR261: N/A | BS261: N/A | BT261: N/A | BU261: N/A | BV261: N/A | BW261: N/A
BB262: No | BC262: N/A | BD262: N/A | BE262: N/A | BF262: N/A | BG262: N/A | BH262: N/A | BI262: N/A | BJ262: N/A | BK262: N/A | BL262: N/A | BM262: N/A | BN262: N/A | BO262: N/A | BP262: N/A | BQ262: N/A | BR262: N/A | BS262: N/A | BT262: N/A | BU262: N/A | BV262: N/A | BW262: N/A
BB263: DK/not sure/missing | BC263: N/A | BD263: N/A | BE263: N/A | BF263: N/A | BG263: N/A | BH263: N/A | BI263: N/A | BJ263: N/A | BK263: N/A | BL263: N/A | BM263: N/A | BN263: N/A | BO263: N/A | BP263: N/A | BQ263: N/A | BR263: N/A | BS263: N/A | BT263: N/A | BU263: N/A | BV263: N/A | BW263: N/A
BA264: Use of menstrual materials | BB264: Materials reusable | BC264: N/A | BD264: N/A | BE264: N/A | BF264: N/A | BG264: N/A | BH264: N/A | BI264: N/A | BJ264: N/A | BK264: N/A | BL264: N/A | BM264: N/A | BN264: N/A | BO264: N/A | BP264: N/A | BQ264: N/A | BR264: N/A | BS264: N/A | BT264: N/A | BU264: N/A | BV264: N/A | BW264: N/A
BB265: Materials not reusable | BC265: N/A | BD265: N/A | BE265: N/A | BF265: N/A | BG265: N/A | BH265: N/A | BI265: N/A | BJ265: N/A | BK265: N/A | BL265: N/A | BM265: N/A | BN265: N/A | BO265: N/A | BP265: N/A | BQ265: N/A | BR265: N/A | BS265: N/A | BT265: N/A | BU265: N/A | BV265: N/A | BW265: N/A
BB266: No materials used | BC266: N/A | BD266: N/A | BE266: N/A | BF266: N/A | BG266: N/A | BH266: N/A | BI266: N/A | BJ266: N/A | BK266: N/A | BL266: N/A | BM266: N/A | BN266: N/A | BO266: N/A | BP266: N/A | BQ266: N/A | BR266: N/A | BS266: N/A | BT266: N/A | BU266: N/A | BV266: N/A | BW266: N/A
BB267: DK/not sure/missing | BC267: N/A | BD267: N/A | BE267: N/A | BF267: N/A | BG267: N/A | BH267: N/A | BI267: N/A | BJ267: N/A | BK267: N/A | BL267: N/A | BM267: N/A | BN267: N/A | BO267: N/A | BP267: N/A | BQ267: N/A | BR267: N/A | BS267: N/A | BT267: N/A | BU267: N/A | BV267: N/A | BW267: N/A
BA268: Use of menstrual materials with private place to wash and change | BB268: Materials reusable | BC268: N/A | BD268: N/A | BE268: N/A | BF268: N/A | BG268: N/A | BH268: N/A | BI268: N/A | BJ268: N/A | BK268: N/A | BL268: N/A | BM268: N/A | BN268: N/A | BO268: N/A | BP268: N/A | BQ268: N/A | BR268: N/A | BS268: N/A | BT268: N/A | BU268: N/A | BV268: N/A | BW268: N/A
BB269: Materials not reusable | BC269: N/A | BD269: N/A | BE269: N/A | BF269: N/A | BG269: N/A | BH269: N/A | BI269: N/A | BJ269: N/A | BK269: N/A | BL269: N/A | BM269: N/A | BN269: N/A | BO269: N/A | BP269: N/A | BQ269: N/A | BR269: N/A | BS269: N/A | BT269: N/A | BU269: N/A | BV269: N/A | BW269: N/A
BB270: No materials used | BC270: N/A | BD270: N/A | BE270: N/A | BF270: N/A | BG270: N/A | BH270: N/A | BI270: N/A | BJ270: N/A | BK270: N/A | BL270: N/A | BM270: N/A | BN270: N/A | BO270: N/A | BP270: N/A | BQ270: N/A | BR270: N/A | BS270: N/A | BT270: N/A | BU270: N/A | BV270: N/A | BW270: N/A
BA271: Awareness of menstruation before menarche | BB271: Yes | BC271: N/A | BD271: N/A | BE271: N/A | BF271: N/A | BG271: N/A | BH271: N/A | BI271: N/A | BJ271: N/A | BK271: N/A | BL271: N/A | BM271: N/A | BN271: N/A | BO271: N/A | BP271: N/A | BQ271: N/A | BR271: N/A | BS271: N/A | BT271: N/A | BU271: N/A | BV271: N/A | BW271: N/A
BB272: No | BC272: N/A | BD272: N/A | BE272: N/A | BF272: N/A | BG272: N/A | BH272: N/A | BI272: N/A | BJ272: N/A | BK272: N/A | BL272: N/A | BM272: N/A | BN272: N/A | BO272: N/A | BP272: N/A | BQ272: N/A | BR272: N/A | BS272: N/A | BT272: N/A | BU272: N/A | BV272: N/A | BW272: N/A
BB273: DK/not sure/missing | BC273: N/A | BD273: N/A | BE273: N/A | BF273: N/A | BG273: N/A | BH273: N/A | BI273: N/A | BJ273: N/A | BK273: N/A | BL273: N/A | BM273: N/A | BN273: N/A | BO273: N/A | BP273: N/A | BQ273: N/A | BR273: N/A | BS273: N/A | BT273: N/A | BU273: N/A | BV273: N/A | BW273: N/A
BA274: Participation in (all) activities during menstruation | BB274: Yes | BC274: N/A | BD274: N/A | BE274: N/A | BF274: N/A | BG274: N/A | BH274: N/A | BI274: N/A | BJ274: N/A | BK274: N/A | BL274: N/A | BM274: N/A | BN274: N/A | BO274: N/A | BP274: N/A | BQ274: N/A | BR274: N/A | BS274: N/A | BT274: N/A | BU274: N/A | BV274: N/A | BW274: N/A
BB275: No | BC275: N/A | BD275: N/A | BE275: N/A | BF275: N/A | BG275: N/A | BH275: N/A | BI275: N/A | BJ275: N/A | BK275: N/A | BL275: N/A | BM275: N/A | BN275: N/A | BO275: N/A | BP275: N/A | BQ275: N/A | BR275: N/A | BS275: N/A | BT275: N/A | BU275: N/A | BV275: N/A | BW275: N/A
BB276: DK/not sure/missing/no such activity | BC276: N/A | BD276: N/A | BE276: N/A | BF276: N/A | BG276: N/A | BH276: N/A | BI276: N/A | BJ276: N/A | BK276: N/A | BL276: N/A | BM276: N/A | BN276: N/A | BO276: N/A | BP276: N/A | BQ276: N/A | BR276: N/A | BS276: N/A | BT276: N/A | BU276: N/A | BV276: N/A | BW276: N/A
BA277: Participation in specific activities during menstruation | BB277: Did not go to school (amongst those usually attending school) | BC277: N/A | BD277: N/A | BE277: N/A | BF277: N/A | BG277: N/A | BH277: N/A | BI277: N/A | BJ277: N/A | BK277: N/A | BL277: N/A | BM277: N/A | BN277: N/A | BO277: N/A | BP277: N/A | BQ277: N/A | BR277: N/A | BS277: N/A | BT277: N/A | BU277: N/A | BV277: N/A | BW277: N/A
BB278: Did not go to work (amongst those who usually work) | BC278: N/A | BD278: N/A | BE278: N/A | BF278: N/A | BG278: N/A | BH278: N/A | BI278: N/A | BJ278: N/A | BK278: N/A | BL278: N/A | BM278: N/A | BN278: N/A | BO278: N/A | BP278: N/A | BQ278: N/A | BR278: N/A | BS278: N/A | BT278: N/A | BU278: N/A | BV278: N/A | BW278: N/A
BB279: Did not participate in social activities | BC279: N/A | BD279: N/A | BE279: N/A | BF279: N/A | BG279: N/A | BH279: N/A | BI279: N/A | BJ279: N/A | BK279: N/A | BL279: N/A | BM279: N/A | BN279: N/A | BO279: N/A | BP279: N/A | BQ279: N/A | BR279: N/A | BS279: N/A | BT279: N/A | BU279: N/A | BV279: N/A | BW279: N/A
BB280: Did not cook food | BC280: N/A | BD280: N/A | BE280: N/A | BF280: N/A | BG280: N/A | BH280: N/A | BI280: N/A | BJ280: N/A | BK280: N/A | BL280: N/A | BM280: N/A | BN280: N/A | BO280: N/A | BP280: N/A | BQ280: N/A | BR280: N/A | BS280: N/A | BT280: N/A | BU280: N/A | BV280: N/A | BW280: N/A
BB281: Did not eat with others | BC281: N/A | BD281: N/A | BE281: N/A | BF281: N/A | BG281: N/A | BH281: N/A | BI281: N/A | BJ281: N/A | BK281: N/A | BL281: N/A | BM281: N/A | BN281: N/A | BO281: N/A | BP281: N/A | BQ281: N/A | BR281: N/A | BS281: N/A | BT281: N/A | BU281: N/A | BV281: N/A | BW281: N/A
BB282: Did not bathe in regular place | BC282: N/A | BD282: N/A | BE282: N/A | BF282: N/A | BG282: N/A | BH282: N/A | BI282: N/A | BJ282: N/A | BK282: N/A | BL282: N/A | BM282: N/A | BN282: N/A | BO282: N/A | BP282: N/A | BQ282: N/A | BR282: N/A | BS282: N/A | BT282: N/A | BU282: N/A | BV282: N/A | BW282: N/A
BB283: Did not participate in other activities | BC283: N/A | BD283: N/A | BE283: N/A | BF283: N/A | BG283: N/A | BH283: N/A | BI283: N/A | BJ283: N/A | BK283: N/A | BL283: N/A | BM283: N/A | BN283: N/A | BO283: N/A | BP283: N/A | BQ283: N/A | BR283: N/A | BS283: N/A | BT283: N/A | BU283: N/A | BV283: N/A | BW283: N/A
BB284: DK/not sure/missing/no such activity | BC284: N/A | BD284: N/A | BE284: N/A | BF284: N/A | BG284: N/A | BH284: N/A | BI284: N/A | BJ284: N/A | BK284: N/A | BL284: N/A | BM284: N/A | BN284: N/A | BO284: N/A | BP284: N/A | BQ284: N/A | BR284: N/A | BS284: N/A | BT284: N/A | BU284: N/A | BV284: N/A | BW284: N/A
BA339: Raw numbers of respondents: | BB339: Basic water, sanitation and hygiene | BC339: NATIONAL wealth index quintile | BH339: URBAN wealth index quintile | BM339: RURAL wealth index quintile | BR339: SUB-REGIONS:
BA340: WatSan data, raw numbers (weighted) | BC340: Poorest | BD340: Poor | BE340: Middle | BF340: Rich | BG340: Richest | BH340: Poorest | BI340: Poor | BJ340: Middle | BK340: Rich | BL340: Richest | BM340: Poorest | BN340: Poor | BO340: Middle | BP340: Rich | BQ340: Richest | BR340: Central 1 | BS340: Central 2 | BT340: Eastern | BU340: Northern | BV340: Southern | BW340: Western
BA341: Use of Basic Water Sanitation and Hygiene | BB341: Yes | BC341: N/A | BD341: N/A | BE341: N/A | BF341: N/A | BG341: N/A | BH341: N/A | BI341: N/A | BJ341: N/A | BK341: N/A | BL341: N/A | BM341: N/A | BN341: N/A | BO341: N/A | BP341: N/A | BQ341: N/A | BR341: N/A | BS341: N/A | BT341: N/A | BU341: N/A | BV341: N/A | BW341: N/A
BB342: No | BC342: N/A | BD342: N/A | BE342: N/A | BF342: N/A | BG342: N/A | BH342: N/A | BI342: N/A | BJ342: N/A | BK342: N/A | BL342: N/A | BM342: N/A | BN342: N/A | BO342: N/A | BP342: N/A | BQ342: N/A | BR342: N/A | BS342: N/A | BT342: N/A | BU342: N/A | BV342: N/A | BW342: N/A
BA343: Use of Basic Water and Sanitation | BB343: Yes | BC343: N/A | BD343: N/A | BE343: N/A | BF343: N/A | BG343: N/A | BH343: N/A | BI343: N/A | BJ343: N/A | BK343: N/A | BL343: N/A | BM343: N/A | BN343: N/A | BO343: N/A | BP343: N/A | BQ343: N/A | BR343: N/A | BS343: N/A | BT343: N/A | BU343: N/A | BV343: N/A | BW343: N/A
BB344: No | BC344: N/A | BD344: N/A | BE344: N/A | BF344: N/A | BG344: N/A | BH344: N/A | BI344: N/A | BJ344: N/A | BK344: N/A | BL344: N/A | BM344: N/A | BN344: N/A | BO344: N/A | BP344: N/A | BQ344: N/A | BR344: N/A | BS344: N/A | BT344: N/A | BU344: N/A | BV344: N/A | BW344: N/A
BA345: Use of Basic Water and Hygiene | BB345: Yes | BC345: N/A | BD345: N/A | BE345: N/A | BF345: N/A | BG345: N/A | BH345: N/A | BI345: N/A | BJ345: N/A | BK345: N/A | BL345: N/A | BM345: N/A | BN345: N/A | BO345: N/A | BP345: N/A | BQ345: N/A | BR345: N/A | BS345: N/A | BT345: N/A | BU345: N/A | BV345: N/A | BW345: N/A
BB346: No | BC346: N/A | BD346: N/A | BE346: N/A | BF346: N/A | BG346: N/A | BH346: N/A | BI346: N/A | BJ346: N/A | BK346: N/A | BL346: N/A | BM346: N/A | BN346: N/A | BO346: N/A | BP346: N/A | BQ346: N/A | BR346: N/A | BS346: N/A | BT346: N/A | BU346: N/A | BV346: N/A | BW346: N/A
BA347: Use of Basic Sanitation and Hygiene | BB347: Yes | BC347: N/A | BD347: N/A | BE347: N/A | BF347: N/A | BG347: N/A | BH347: N/A | BI347: N/A | BJ347: N/A | BK347: N/A | BL347: N/A | BM347: N/A | BN347: N/A | BO347: N/A | BP347: N/A | BQ347: N/A | BR347: N/A | BS347: N/A | BT347: N/A | BU347: N/A | BV347: N/A | BW347: N/A
BB348: No | BC348: N/A | BD348: N/A | BE348: N/A | BF348: N/A | BG348: N/A | BH348: N/A | BI348: N/A | BJ348: N/A | BK348: N/A | BL348: N/A | BM348: N/A | BN348: N/A | BO348: N/A | BP348: N/A | BQ348: N/A | BR348: N/A | BS348: N/A | BT348: N/A | BU348: N/A | BV348: N/A | BW348: N/A
BA349: Use of Basic Water | BB349: Yes | BC349: N/A | BD349: N/A | BE349: N/A | BF349: N/A | BG349: N/A | BH349: N/A | BI349: N/A | BJ349: N/A | BK349: N/A | BL349: N/A | BM349: N/A | BN349: N/A | BO349: N/A | BP349: N/A | BQ349: N/A | BR349: N/A | BS349: N/A | BT349: N/A | BU349: N/A | BV349: N/A | BW349: N/A
BB350: No | BC350: N/A | BD350: N/A | BE350: N/A | BF350: N/A | BG350: N/A | BH350: N/A | BI350: N/A | BJ350: N/A | BK350: N/A | BL350: N/A | BM350: N/A | BN350: N/A | BO350: N/A | BP350: N/A | BQ350: N/A | BR350: N/A | BS350: N/A | BT350: N/A | BU350: N/A | BV350: N/A | BW350: N/A
BA351: Use of Basic Sanitation | BB351: Yes | BC351: N/A | BD351: N/A | BE351: N/A | BF351: N/A | BG351: N/A | BH351: N/A | BI351: N/A | BJ351: N/A | BK351: N/A | BL351: N/A | BM351: N/A | BN351: N/A | BO351: N/A | BP351: N/A | BQ351: N/A | BR351: N/A | BS351: N/A | BT351: N/A | BU351: N/A | BV351: N/A | BW351: N/A
BB352: No | BC352: N/A | BD352: N/A | BE352: N/A | BF352: N/A | BG352: N/A | BH352: N/A | BI352: N/A | BJ352: N/A | BK352: N/A | BL352: N/A | BM352: N/A | BN352: N/A | BO352: N/A | BP352: N/A | BQ352: N/A | BR352: N/A | BS352: N/A | BT352: N/A | BU352: N/A | BV352: N/A | BW352: N/A
BA353: Access to Basic Hygiene | BB353: Yes | BC353: N/A | BD353: N/A | BE353: N/A | BF353: N/A | BG353: N/A | BH353: N/A | BI353: N/A | BJ353: N/A | BK353: N/A | BL353: N/A | BM353: N/A | BN353: N/A | BO353: N/A | BP353: N/A | BQ353: N/A | BR353: N/A | BS353: N/A | BT353: N/A | BU353: N/A | BV353: N/A | BW353: N/A
BB354: No | BC354: N/A | BD354: N/A | BE354: N/A | BF354: N/A | BG354: N/A | BH354: N/A | BI354: N/A | BJ354: N/A | BK354: N/A | BL354: N/A | BM354: N/A | BN354: N/A | BO354: N/A | BP354: N/A | BQ354: N/A | BR354: N/A | BS354: N/A | BT354: N/A | BU354: N/A | BV354: N/A | BW354: N/A
C399: INITIAL (national) Wealth Index | H399: URBAN Wealth Index | M399: RURAL Wealth Index
C400: Component Matrix | H400: Component Matrix | M400: Component Matrix
E401: Component | J401: Component | O401: Component
B402: Note: The INITIAL (national) Wealth Index is based on the first component of the Principal Component Analysis (PCA) which has been obtained at national level. The final national-level (NATIONAL) Wealth Index is based on the URBAN and RURAL specific wealth indexes. Regression procedures are used to establish the relationships between the two sets of scores (urban and rural) and the initial (national) wealth factors. This allows best use of the available information for each area and a better precision of the FINAL (NATIONAL) Wealth Index. For dependency reasons, all WASH variables (contained in the generic MICS and DHS scripts) have been excluded from the sets of asset variables used in the PCAs. The PCA can extracts as many components as there are asset variables in the input. Only the first of the components is used to represent the Wealth Index. The scores represent the weights of the asset variables on the Wealth Index (correlations between the variables and the component). The communalities are the proportion of each variable's variance that can be explained by the component. Proportion of explained variance is the part of the model's total variance that is explained by the component. For more information on the procedure used: The DHS Wealth Index, DHS Comparative Reports No. 6, Shea Oscar Rutstein, Kiersten Johnson, ORC Macro International Inc., 2004. The DHS Wealth Index: Approaches for Rural and Urban Areas, Shea O. Rutstein, ORC Macro International Inc., 2008. MICS Methodological Paper No. 4, Review of options for reporting water, sanitation and hygiene coverage by wealth quintile, UNICEF, 2016. | E402: 1 | J402: 1 | O402: 1
C403: heat3 | E403: -0.9371079082 | H403: heat1 | J403: -0.9488267654 | M403: fuel1 | O403: 0.8479958906
C404: fuel1 | E404: 0.9338562972 | H404: heat3 | J404: 0.9434861807 | M404: heat3 | O404: -0.8257067148
C405: heat1 | E405: 0.920830147 | H405: fuel1 | J405: -0.9315660505 | M405: house1 | O405: 0.7620770692
C406: house1 | E406: 0.9123435236 | H406: house1 | J406: -0.9247672906 | M406: heat2 | O406: 0.7401246802
C407: Household member owns: asset2d | E407: 0.6448231879 | H407: wall4 | J407: 0.733146251 | M407: floor2 | O407: 0.6414337651
C408: floor2 | E408: 0.6200305078 | H408: floor4 | J408: 0.6407828952 | M408: owner1 | O408: 0.588146013
C409: wall4 | E409: -0.6103298593 | H409: floor2 | J409: -0.6326474182 | M409: owner2 | O409: -0.5814226055
C410: house4 | E410: -0.5962329436 | H410: wall2 | J410: -0.6081205247 | M410: wall2 | O410: 0.5464960912
C411: wall2 | E411: 0.5379082176 | H411: house2 | J411: 0.5842582577 | M411: house4 | O411: -0.4858215655
C412: Household member owns: asset2a | E412: 0.521009357 | H412: fuel7 | J412: 0.5626415014 | M412: wall4 | O412: -0.4778943403
C413: Household member owns: asset2c | E413: 0.5092921756 | H413: house4 | J413: 0.4288483462 | M413: Household member owns: asset2a | O413: 0.3967276808
C414: fuel7 | E414: -0.3989584932 | H414: fuel6 | J414: 0.4187389222 | M414: heat1 | O414: 0.3960659546
C415: fuel8 | E415: -0.3839907657 | H415: owner2 | J415: 0.2941768597 | M415: floor6 | O415: -0.2698590302
C416: owner2 | E416: -0.3583646208 | H416: Persons per sleeping rooms | J416: 0.2800528778 | M416: wall1 | O416: 0.2622988646
C417: owner1 | E417: 0.3378661673 | H417: owner1 | J417: -0.2708821119 | M417: fuel8 | O417: -0.2528931399
C418: floor6 | E418: -0.3207424587 | H418: Household member owns: 1 hectare | J418: 0.2638507227 | M418: floor1 | O418: 0.2097308558
... 166 more rows

Sheet MICS05
A2: =A1026 -> Mongolia
A3: =A1034 -> 2005
A4: Use of drinking water sources
A5: by wealth quintile and sub-national region
A6: Notes:
A7: WHO/UNICEF JMP customised wealth index excludes water,
A8: sanitation and hygiene assets.
A9: Survey used for analysis: | B9: =A1025 -> MICS05
A10: =B1028 -> 
A11: =B1027 -> Time to improved source based on: | B11: MICS10 & MICS00
A14: Use of drinking water sources | C14: NATIONAL wealth index quintile | H14: URBAN wealth index quintile | M14: RURAL wealth index quintile | R14: SUB-REGIONS: | BA14: Raw numbers of respondents: | BB14: Use of drinking water sources | BC14: NATIONAL wealth index quintile | BH14: URBAN wealth index quintile | BM14: RURAL wealth index quintile | BR14: SUB-REGIONS:
A15: Weighted percentage (used in graphs) | C15: Poorest | D15: Poor | E15: Middle | F15: Rich | G15: Richest | H15: Poorest | I15: Poor | J15: Middle | K15: Rich | L15: Richest | M15: Poorest | N15: Poor | O15: Middle | P15: Rich | Q15: Richest | R15: Central | S15: Eastern | T15: Khangai | U15: Ulaanbaatar | V15: Western | BA15: Water data, raw numbers (weighted) | BC15: Poorest | BD15: Poor | BE15: Middle | BF15: Rich | BG15: Richest | BH15: Poorest | BI15: Poor | BJ15: Middle | BK15: Rich | BL15: Richest | BM15: Poorest | BN15: Poor | BO15: Middle | BP15: Rich | BQ15: Richest | BR15: Central | BS15: Eastern | BT15: Khangai | BU15: Ulaanbaatar | BV15: Western
A16: Water | B16: Improved | C16: 37.29906257 | D16: 59.52326494 | E16: 84.87976237 | F16: 92.19693969 | G16: 99.44052101 | H16: 89.48601874 | I16: 93.0518127 | J16: 97.19626327 | K16: 98.1399783 | L16: 100 | M16: 35.32232707 | N16: 37.00287409 | O16: 44.04799843 | P16: 56.73520323 | Q16: 61.27837844 | R16: 65.91276838 | S16: 79.85701183 | T16: 56.76607229 | U16: 99.21840599 | V16: 55.33998347 | BA16: Water | BB16: Improved | BC16: N/A | BD16: N/A | BE16: N/A | BF16: N/A | BG16: N/A | BH16: N/A | BI16: N/A | BJ16: N/A | BK16: N/A | BL16: N/A | BM16: N/A | BN16: N/A | BO16: N/A | BP16: N/A | BQ16: N/A | BR16: N/A | BS16: N/A | BT16: N/A | BU16: N/A | BV16: N/A
B17: Not Improved | C17: 62.70093743 | D17: 40.47673506 | E17: 15.12023763 | F17: 7.803060308 | G17: 0.5594789866 | H17: 10.51398126 | I17: 6.948187301 | J17: 2.803736729 | K17: 1.860021702 | L17: 0 | M17: 64.67767293 | N17: 62.99712591 | O17: 55.95200157 | P17: 43.26479677 | Q17: 38.72162156 | R17: 34.08723162 | S17: 20.14298817 | T17: 43.23392771 | U17: 0.7815940114 | V17: 44.66001653 | BB17: Not Improved | BC17: N/A | BD17: N/A | BE17: N/A | BF17: N/A | BG17: N/A | BH17: N/A | BI17: N/A | BJ17: N/A | BK17: N/A | BL17: N/A | BM17: N/A | BN17: N/A | BO17: N/A | BP17: N/A | BQ17: N/A | BR17: N/A | BS17: N/A | BT17: N/A | BU17: N/A | BV17: N/A
A18: Water ladder | B18: Basic | C18: =C16*(MICS10!C23+MICS00!C23)/200 -> 28.39614357 | D18: =D16*(MICS10!D23+MICS00!D23)/200 -> 51.93423348 | E18: =E16*(MICS10!E23+MICS00!E23)/200 -> 77.09002134 | F18: =F16*(MICS10!F23+MICS00!F23)/200 -> 84.62848553 | G18: =G16*(MICS10!G23+MICS00!G23)/200 -> 99.193703 | H18: =H16*(MICS10!H23+MICS00!H23)/200 -> 80.43616165 | I18: =I16*(MICS10!I23+MICS00!I23)/200 -> 86.21504335 | J18: =J16*(MICS10!J23+MICS00!J23)/200 -> 88.31932526 | K18: =K16*(MICS10!K23+MICS00!K23)/200 -> 95.87009896 | L18: =L16*(MICS10!L23+MICS00!L23)/200 -> 99.72189118 | M18: =M16*(MICS10!M23+MICS00!M23)/200 -> 25.2704287 | N18: =N16*(MICS10!N23+MICS00!N23)/200 -> 26.715278 | O18: =O16*(MICS10!O23+MICS00!O23)/200 -> 36.12795569 | P18: =P16*(MICS10!P23+MICS00!P23)/200 -> 45.86415796 | Q18: =Q16*(MICS10!Q23+MICS00!Q23)/200 -> 55.60129758 | R18: =R16*MICS10!R23/100 -> 60.20110418 | S18: =S16*MICS10!S23/100 -> 69.65625949 | T18: =T16*MICS10!T23/100 -> 52.73399869 | U18: =U16*MICS10!U23/100 -> 93.21907323 | V18: =V16*MICS10!V23/100 -> 52.05582526 | BA18: Water ladder | BB18: Basic | BC18: N/A | BD18: N/A | BE18: N/A | BF18: N/A | BG18: N/A | BH18: N/A | BI18: N/A | BJ18: N/A | BK18: N/A | BL18: N/A | BM18: N/A | BN18: N/A | BO18: N/A | BP18: N/A | BQ18: N/A | BR18: N/A | BS18: N/A | BT18: N/A | BU18: N/A | BV18: N/A
B19: Limited | C19: =C16*(MICS10!C22+MICS00!C22)/200 -> 8.902918998 | D19: =D16*(MICS10!D22+MICS00!D22)/200 -> 7.58903146 | E19: =E16*(MICS10!E22+MICS00!E22)/200 -> 7.789741037 | F19: =F16*(MICS10!F22+MICS00!F22)/200 -> 7.568454166 | G19: =G16*(MICS10!G22+MICS00!G22)/200 -> 0.2468180129 | H19: =H16*(MICS10!H22+MICS00!H22)/200 -> 9.049857085 | I19: =I16*(MICS10!I22+MICS00!I22)/200 -> 6.836769345 | J19: =J16*(MICS10!J22+MICS00!J22)/200 -> 8.876938012 | K19: =K16*(MICS10!K22+MICS00!K22)/200 -> 2.26987934 | L19: =L16*(MICS10!L22+MICS00!L22)/200 -> 0.2781088197 | M19: =M16*(MICS10!M22+MICS00!M22)/200 -> 10.05189836 | N19: =N16*(MICS10!N22+MICS00!N22)/200 -> 10.28759609 | O19: =O16*(MICS10!O22+MICS00!O22)/200 -> 7.920042742 | P19: =P16*(MICS10!P22+MICS00!P22)/200 -> 10.87104527 | Q19: =Q16*(MICS10!Q22+MICS00!Q22)/200 -> 5.677080867 | R19: =R16*MICS10!R22/100 -> 5.711664201 | S19: =S16*MICS10!S22/100 -> 10.20075234 | T19: =T16*MICS10!T22/100 -> 4.032073599 | U19: =U16*MICS10!U22/100 -> 5.999332756 | V19: =V16*MICS10!V22/100 -> 3.284158204 | BB19: Limited | BC19: N/A | BD19: N/A | BE19: N/A | BF19: N/A | BG19: N/A | BH19: N/A | BI19: N/A | BJ19: N/A | BK19: N/A | BL19: N/A | BM19: N/A | BN19: N/A | BO19: N/A | BP19: N/A | BQ19: N/A | BR19: N/A | BS19: N/A | BT19: N/A | BU19: N/A | BV19: N/A
B20: Unimproved | C20: =100-(C18+C19+C21) -> 25.19817873 | D20: =100-(D18+D19+D21) -> 13.72772644 | E20: 8.360112037 | F20: 5.723512605 | G20: 0.4119105854 | H20: 6.12649868 | I20: 5.33284276 | J20: 2.286160353 | K20: 1.339474516 | L20: 0 | M20: 29.25204393 | N20: 23.55320394 | O20: 16.10287221 | P20: 15.57777474 | Q20: 19.85375662 | R20: 28.02346978 | S20: 6.211763687 | T20: 16.39120418 | U20: 0.5504183179 | V20: 8.69050778 | BB20: Unimproved | BC20: N/A | BD20: N/A | BE20: N/A | BF20: N/A | BG20: N/A | BH20: N/A | BI20: N/A | BJ20: N/A | BK20: N/A | BL20: N/A | BM20: N/A | BN20: N/A | BO20: N/A | BP20: N/A | BQ20: N/A | BR20: N/A | BS20: N/A | BT20: N/A | BU20: N/A | BV20: N/A
B21: Surface water | C21: =C68 -> 37.5027587 | D21: 26.74900862 | E21: 6.76012559 | F21: 2.079547703 | G21: 0.1475684012 | H21: 4.387482583 | I21: 1.615344541 | J21: 0.517576376 | K21: 0.5205471868 | L21: 0 | M21: 35.42562901 | N21: 39.44392197 | O21: 39.84912936 | P21: 27.68702203 | Q21: 18.86786493 | R21: 6.06376184 | S21: 13.93122448 | T21: 26.84272353 | U21: 0.2311756935 | V21: 35.96950875 | BB21: Surface water | BC21: N/A | BD21: N/A | BE21: N/A | BF21: N/A | BG21: N/A | BH21: N/A | BI21: N/A | BJ21: N/A | BK21: N/A | BL21: N/A | BM21: N/A | BN21: N/A | BO21: N/A | BP21: N/A | BQ21: N/A | BR21: N/A | BS21: N/A | BT21: N/A | BU21: N/A | BV21: N/A
A22: Improved water point at more than 30 minutes | B22: Yes | C22: N/A | D22: N/A | E22: N/A | F22: N/A | G22: N/A | H22: N/A | I22: N/A | J22: N/A | K22: N/A | L22: N/A | M22: N/A | N22: N/A | O22: N/A | P22: N/A | Q22: N/A | R22: N/A | S22: N/A | T22: N/A | U22: N/A | V22: N/A | BA22: Improved water point at more than 30 minutes | BB22: Yes | BC22: N/A | BD22: N/A | BE22: N/A | BF22: N/A | BG22: N/A | BH22: N/A | BI22: N/A | BJ22: N/A | BK22: N/A | BL22: N/A | BM22: N/A | BN22: N/A | BO22: N/A | BP22: N/A | BQ22: N/A | BR22: N/A | BS22: N/A | BT22: N/A | BU22: N/A | BV22: N/A
B23: No | C23: N/A | D23: N/A | E23: N/A | F23: N/A | G23: N/A | H23: N/A | I23: N/A | J23: N/A | K23: N/A | L23: N/A | M23: N/A | N23: N/A | O23: N/A | P23: N/A | Q23: N/A | R23: N/A | S23: N/A | T23: N/A | U23: N/A | V23: N/A | BB23: No | BC23: N/A | BD23: N/A | BE23: N/A | BF23: N/A | BG23: N/A | BH23: N/A | BI23: N/A | BJ23: N/A | BK23: N/A | BL23: N/A | BM23: N/A | BN23: N/A | BO23: N/A | BP23: N/A | BQ23: N/A | BR23: N/A | BS23: N/A | BT23: N/A | BU23: N/A | BV23: N/A
A24: Manually calculated ratios | B24: Improved wells
B25: Improved springs
B26: Other
C27: NATIONAL wealth index quintile | H27: URBAN wealth index quintile | M27: RURAL wealth index quintile | R27: SUB-REGIONS: | BA27: Raw numbers of respondents: | BB27: Use of drinking water sources | BC27: NATIONAL wealth index quintile | BH27: URBAN wealth index quintile | BM27: RURAL wealth index quintile | BR27: SUB-REGIONS:
A28: Percentage based on weighted population | C28: Poorest | D28: Poor | E28: Middle | F28: Rich | G28: Richest | H28: Poorest | I28: Poor | J28: Middle | K28: Rich | L28: Richest | M28: Poorest | N28: Poor | O28: Middle | P28: Rich | Q28: Richest | R28: Central | S28: Eastern | T28: Khangai | U28: Ulaanbaatar | V28: Western | BA28: Water data, raw numbers (weighted) | BC28: Poorest | BD28: Poor | BE28: Middle | BF28: Rich | BG28: Richest | BH28: Poorest | BI28: Poor | BJ28: Middle | BK28: Rich | BL28: Richest | BM28: Poorest | BN28: Poor | BO28: Middle | BP28: Rich | BQ28: Richest | BR28: Central | BS28: Eastern | BT28: Khangai | BU28: Ulaanbaatar | BV28: Western
A29: Piped water | B29: Yes | C29: 0.2590524064 | D29: 3.67936551 | E29: 9.722749536 | F29: 17.33821399 | G29: 90.82557054 | H29: 10.24142311 | I29: 12.00200796 | J29: 14.68205383 | K29: 67.16007195 | L29: 98.38864104 | M29: 0 | N29: 0 | O29: 0.7767174981 | P29: 2.272874038 | Q29: 11.38216035 | R29: 21.03642205 | S29: 19.02185273 | T29: 13.41757496 | U29: 43.11977103 | V29: 7.347964149 | BA29: Piped water | BB29: Yes | BC29: N/A | BD29: N/A | BE29: N/A | BF29: N/A | BG29: N/A | BH29: N/A | BI29: N/A | BJ29: N/A | BK29: N/A | BL29: N/A | BM29: N/A | BN29: N/A | BO29: N/A | BP29: N/A | BQ29: N/A | BR29: N/A | BS29: N/A | BT29: N/A | BU29: N/A | BV29: N/A
B30: No | C30: 99.74094759 | D30: 96.32063449 | E30: 90.27725046 | F30: 82.66178601 | G30: 9.174429462 | H30: 89.75857689 | I30: 87.99799204 | J30: 85.31794617 | K30: 32.83992805 | L30: 1.611358957 | M30: 100 | N30: 100 | O30: 99.2232825 | P30: 97.72712596 | Q30: 88.61783965 | R30: 78.96357795 | S30: 80.97814727 | T30: 86.58242504 | U30: 56.88022897 | V30: 92.65203585 | BB30: No | BC30: N/A | BD30: N/A | BE30: N/A | BF30: N/A | BG30: N/A | BH30: N/A | BI30: N/A | BJ30: N/A | BK30: N/A | BL30: N/A | BM30: N/A | BN30: N/A | BO30: N/A | BP30: N/A | BQ30: N/A | BR30: N/A | BS30: N/A | BT30: N/A | BU30: N/A | BV30: N/A
A31: Piped water on premises | B31: Yes | C31: 0.1108143998 | D31: 0.8227147412 | E31: 1.152069022 | F31: 7.481220479 | G31: 90.16671332 | H31: 1.015614624 | I31: 1.156378022 | J31: 3.921516698 | K31: 62.85538526 | L31: 98.12331368 | M31: 0 | N31: 0 | O31: 0 | P31: 1.573844736 | Q31: 8.449936735 | R31: 18.38494589 | S31: 19.02185273 | T31: 8.755119457 | U31: 35.72214883 | V31: 5.4110065 | BA31: Piped water on premises | BB31: Yes | BC31: N/A | BD31: N/A | BE31: N/A | BF31: N/A | BG31: N/A | BH31: N/A | BI31: N/A | BJ31: N/A | BK31: N/A | BL31: N/A | BM31: N/A | BN31: N/A | BO31: N/A | BP31: N/A | BQ31: N/A | BR31: N/A | BS31: N/A | BT31: N/A | BU31: N/A | BV31: N/A
B32: No | C32: 99.8891856 | D32: 99.17728526 | E32: 98.84793098 | F32: 92.51877952 | G32: 9.833286683 | H32: 98.98438538 | I32: 98.84362198 | J32: 96.0784833 | K32: 37.14461474 | L32: 1.876686321 | M32: 100 | N32: 100 | O32: 100 | P32: 98.42615526 | Q32: 91.55006327 | R32: 81.61505411 | S32: 80.97814727 | T32: 91.24488054 | U32: 64.27785117 | V32: 94.5889935 | BB32: No | BC32: N/A | BD32: N/A | BE32: N/A | BF32: N/A | BG32: N/A | BH32: N/A | BI32: N/A | BJ32: N/A | BK32: N/A | BL32: N/A | BM32: N/A | BN32: N/A | BO32: N/A | BP32: N/A | BQ32: N/A | BR32: N/A | BS32: N/A | BT32: N/A | BU32: N/A | BV32: N/A
A33: Piped water into dwelling | B33: Yes | C33: N/A | D33: N/A | E33: N/A | F33: N/A | G33: N/A | H33: N/A | I33: N/A | J33: N/A | K33: N/A | L33: N/A | M33: N/A | N33: N/A | O33: N/A | P33: N/A | Q33: N/A | R33: N/A | S33: N/A | T33: N/A | U33: N/A | V33: N/A | BA33: Piped water into dwelling | BB33: Yes | BC33: N/A | BD33: N/A | BE33: N/A | BF33: N/A | BG33: N/A | BH33: N/A | BI33: N/A | BJ33: N/A | BK33: N/A | BL33: N/A | BM33: N/A | BN33: N/A | BO33: N/A | BP33: N/A | BQ33: N/A | BR33: N/A | BS33: N/A | BT33: N/A | BU33: N/A | BV33: N/A
B34: No | C34: N/A | D34: N/A | E34: N/A | F34: N/A | G34: N/A | H34: N/A | I34: N/A | J34: N/A | K34: N/A | L34: N/A | M34: N/A | N34: N/A | O34: N/A | P34: N/A | Q34: N/A | R34: N/A | S34: N/A | T34: N/A | U34: N/A | V34: N/A | BB34: No | BC34: N/A | BD34: N/A | BE34: N/A | BF34: N/A | BG34: N/A | BH34: N/A | BI34: N/A | BJ34: N/A | BK34: N/A | BL34: N/A | BM34: N/A | BN34: N/A | BO34: N/A | BP34: N/A | BQ34: N/A | BR34: N/A | BS34: N/A | BT34: N/A | BU34: N/A | BV34: N/A
A35: Water source on premises | B35: Yes | C35: N/A | D35: N/A | E35: N/A | F35: N/A | G35: N/A | H35: N/A | I35: N/A | J35: N/A | K35: N/A | L35: N/A | M35: N/A | N35: N/A | O35: N/A | P35: N/A | Q35: N/A | R35: N/A | S35: N/A | T35: N/A | U35: N/A | V35: N/A | BA35: Water source on premises | BB35: Yes | BC35: N/A | BD35: N/A | BE35: N/A | BF35: N/A | BG35: N/A | BH35: N/A | BI35: N/A | BJ35: N/A | BK35: N/A | BL35: N/A | BM35: N/A | BN35: N/A | BO35: N/A | BP35: N/A | BQ35: N/A | BR35: N/A | BS35: N/A | BT35: N/A | BU35: N/A | BV35: N/A
B36: No | C36: N/A | D36: N/A | E36: N/A | F36: N/A | G36: N/A | H36: N/A | I36: N/A | J36: N/A | K36: N/A | L36: N/A | M36: N/A | N36: N/A | O36: N/A | P36: N/A | Q36: N/A | R36: N/A | S36: N/A | T36: N/A | U36: N/A | V36: N/A | BB36: No | BC36: N/A | BD36: N/A | BE36: N/A | BF36: N/A | BG36: N/A | BH36: N/A | BI36: N/A | BJ36: N/A | BK36: N/A | BL36: N/A | BM36: N/A | BN36: N/A | BO36: N/A | BP36: N/A | BQ36: N/A | BR36: N/A | BS36: N/A | BT36: N/A | BU36: N/A | BV36: N/A
A37: Improved Water source on premises | B37: Yes | C37: N/A | D37: N/A | E37: N/A | F37: N/A | G37: N/A | H37: N/A | I37: N/A | J37: N/A | K37: N/A | L37: N/A | M37: N/A | N37: N/A | O37: N/A | P37: N/A | Q37: N/A | R37: N/A | S37: N/A | T37: N/A | U37: N/A | V37: N/A | BA37: Improved water source on premises | BB37: Yes | BC37: N/A | BD37: N/A | BE37: N/A | BF37: N/A | BG37: N/A | BH37: N/A | BI37: N/A | BJ37: N/A | BK37: N/A | BL37: N/A | BM37: N/A | BN37: N/A | BO37: N/A | BP37: N/A | BQ37: N/A | BR37: N/A | BS37: N/A | BT37: N/A | BU37: N/A | BV37: N/A
B38: No | C38: N/A | D38: N/A | E38: N/A | F38: N/A | G38: N/A | H38: N/A | I38: N/A | J38: N/A | K38: N/A | L38: N/A | M38: N/A | N38: N/A | O38: N/A | P38: N/A | Q38: N/A | R38: N/A | S38: N/A | T38: N/A | U38: N/A | V38: N/A | BB38: No | BC38: N/A | BD38: N/A | BE38: N/A | BF38: N/A | BG38: N/A | BH38: N/A | BI38: N/A | BJ38: N/A | BK38: N/A | BL38: N/A | BM38: N/A | BN38: N/A | BO38: N/A | BP38: N/A | BQ38: N/A | BR38: N/A | BS38: N/A | BT38: N/A | BU38: N/A | BV38: N/A
A39: Piped water on premises available when needed | B39: Yes | C39: N/A | D39: N/A | E39: N/A | F39: N/A | G39: N/A | H39: N/A | I39: N/A | J39: N/A | K39: N/A | L39: N/A | M39: N/A | N39: N/A | O39: N/A | P39: N/A | Q39: N/A | R39: N/A | S39: N/A | T39: N/A | U39: N/A | V39: N/A | BA39: Piped water on premises available when needed | BB39: Yes | BC39: N/A | BD39: N/A | BE39: N/A | BF39: N/A | BG39: N/A | BH39: N/A | BI39: N/A | BJ39: N/A | BK39: N/A | BL39: N/A | BM39: N/A | BN39: N/A | BO39: N/A | BP39: N/A | BQ39: N/A | BR39: N/A | BS39: N/A | BT39: N/A | BU39: N/A | BV39: N/A
B40: No | C40: N/A | D40: N/A | E40: N/A | F40: N/A | G40: N/A | H40: N/A | I40: N/A | J40: N/A | K40: N/A | L40: N/A | M40: N/A | N40: N/A | O40: N/A | P40: N/A | Q40: N/A | R40: N/A | S40: N/A | T40: N/A | U40: N/A | V40: N/A | BB40: No | BC40: N/A | BD40: N/A | BE40: N/A | BF40: N/A | BG40: N/A | BH40: N/A | BI40: N/A | BJ40: N/A | BK40: N/A | BL40: N/A | BM40: N/A | BN40: N/A | BO40: N/A | BP40: N/A | BQ40: N/A | BR40: N/A | BS40: N/A | BT40: N/A | BU40: N/A | BV40: N/A
A41: Water point at more than 30 minutes | B41: Yes | C41: N/A | D41: N/A | E41: N/A | F41: N/A | G41: N/A | H41: N/A | I41: N/A | J41: N/A | K41: N/A | L41: N/A | M41: N/A | N41: N/A | O41: N/A | P41: N/A | Q41: N/A | R41: N/A | S41: N/A | T41: N/A | U41: N/A | V41: N/A | BA41: Water point at more than 30 minutes | BB41: Yes | BC41: N/A | BD41: N/A | BE41: N/A | BF41: N/A | BG41: N/A | BH41: N/A | BI41: N/A | BJ41: N/A | BK41: N/A | BL41: N/A | BM41: N/A | BN41: N/A | BO41: N/A | BP41: N/A | BQ41: N/A | BR41: N/A | BS41: N/A | BT41: N/A | BU41: N/A | BV41: N/A
B42: No | C42: N/A | D42: N/A | E42: N/A | F42: N/A | G42: N/A | H42: N/A | I42: N/A | J42: N/A | K42: N/A | L42: N/A | M42: N/A | N42: N/A | O42: N/A | P42: N/A | Q42: N/A | R42: N/A | S42: N/A | T42: N/A | U42: N/A | V42: N/A | BB42: No | BC42: N/A | BD42: N/A | BE42: N/A | BF42: N/A | BG42: N/A | BH42: N/A | BI42: N/A | BJ42: N/A | BK42: N/A | BL42: N/A | BM42: N/A | BN42: N/A | BO42: N/A | BP42: N/A | BQ42: N/A | BR42: N/A | BS42: N/A | BT42: N/A | BU42: N/A | BV42: N/A
A43: Water source available when needed | B43: Yes | C43: N/A | D43: N/A | E43: N/A | F43: N/A | G43: N/A | H43: N/A | I43: N/A | J43: N/A | K43: N/A | L43: N/A | M43: N/A | N43: N/A | O43: N/A | P43: N/A | Q43: N/A | R43: N/A | S43: N/A | T43: N/A | U43: N/A | V43: N/A | BA43: Water source available when needed | BB43: Yes | BC43: N/A | BD43: N/A | BE43: N/A | BF43: N/A | BG43: N/A | BH43: N/A | BI43: N/A | BJ43: N/A | BK43: N/A | BL43: N/A | BM43: N/A | BN43: N/A | BO43: N/A | BP43: N/A | BQ43: N/A | BR43: N/A | BS43: N/A | BT43: N/A | BU43: N/A | BV43: N/A
B44: No | C44: N/A | D44: N/A | E44: N/A | F44: N/A | G44: N/A | H44: N/A | I44: N/A | J44: N/A | K44: N/A | L44: N/A | M44: N/A | N44: N/A | O44: N/A | P44: N/A | Q44: N/A | R44: N/A | S44: N/A | T44: N/A | U44: N/A | V44: N/A | BB44: No | BC44: N/A | BD44: N/A | BE44: N/A | BF44: N/A | BG44: N/A | BH44: N/A | BI44: N/A | BJ44: N/A | BK44: N/A | BL44: N/A | BM44: N/A | BN44: N/A | BO44: N/A | BP44: N/A | BQ44: N/A | BR44: N/A | BS44: N/A | BT44: N/A | BU44: N/A | BV44: N/A
A45: Improved water source available when needed | B45: Yes | C45: N/A | D45: N/A | E45: N/A | F45: N/A | G45: N/A | H45: N/A | I45: N/A | J45: N/A | K45: N/A | L45: N/A | M45: N/A | N45: N/A | O45: N/A | P45: N/A | Q45: N/A | R45: N/A | S45: N/A | T45: N/A | U45: N/A | V45: N/A | BA45: Improved water source available when needed | BB45: Yes | BC45: N/A | BD45: N/A | BE45: N/A | BF45: N/A | BG45: N/A | BH45: N/A | BI45: N/A | BJ45: N/A | BK45: N/A | BL45: N/A | BM45: N/A | BN45: N/A | BO45: N/A | BP45: N/A | BQ45: N/A | BR45: N/A | BS45: N/A | BT45: N/A | BU45: N/A | BV45: N/A
B46: No | C46: N/A | D46: N/A | E46: N/A | F46: N/A | G46: N/A | H46: N/A | I46: N/A | J46: N/A | K46: N/A | L46: N/A | M46: N/A | N46: N/A | O46: N/A | P46: N/A | Q46: N/A | R46: N/A | S46: N/A | T46: N/A | U46: N/A | V46: N/A | BB46: No | BC46: N/A | BD46: N/A | BE46: N/A | BF46: N/A | BG46: N/A | BH46: N/A | BI46: N/A | BJ46: N/A | BK46: N/A | BL46: N/A | BM46: N/A | BN46: N/A | BO46: N/A | BP46: N/A | BQ46: N/A | BR46: N/A | BS46: N/A | BT46: N/A | BU46: N/A | BV46: N/A
A47: Microbiological quality at point of collection | B47: Not contaminated (No E. coli in 100 mL) | C47: N/A | D47: N/A | E47: N/A | F47: N/A | G47: N/A | H47: N/A | I47: N/A | J47: N/A | K47: N/A | L47: N/A | M47: N/A | N47: N/A | O47: N/A | P47: N/A | Q47: N/A | R47: N/A | S47: N/A | T47: N/A | U47: N/A | V47: N/A | BA47: Microbiological quality at point of collection | BB47: Not contaminated (No E. coli in 100 mL) | BC47: N/A | BD47: N/A | BE47: N/A | BF47: N/A | BG47: N/A | BH47: N/A | BI47: N/A | BJ47: N/A | BK47: N/A | BL47: N/A | BM47: N/A | BN47: N/A | BO47: N/A | BP47: N/A | BQ47: N/A | BR47: N/A | BS47: N/A | BT47: N/A | BU47: N/A | BV47: N/A
B48: Contaminated (E. coli detected in 100 mL) | C48: N/A | D48: N/A | E48: N/A | F48: N/A | G48: N/A | H48: N/A | I48: N/A | J48: N/A | K48: N/A | L48: N/A | M48: N/A | N48: N/A | O48: N/A | P48: N/A | Q48: N/A | R48: N/A | S48: N/A | T48: N/A | U48: N/A | V48: N/A | BB48: Contaminated (E. coli detected in 100 mL) | BC48: N/A | BD48: N/A | BE48: N/A | BF48: N/A | BG48: N/A | BH48: N/A | BI48: N/A | BJ48: N/A | BK48: N/A | BL48: N/A | BM48: N/A | BN48: N/A | BO48: N/A | BP48: N/A | BQ48: N/A | BR48: N/A | BS48: N/A | BT48: N/A | BU48: N/A | BV48: N/A
B49: Highly contaminated (>100 CFU/100 mL) | C49: N/A | D49: N/A | E49: N/A | F49: N/A | G49: N/A | H49: N/A | I49: N/A | J49: N/A | K49: N/A | L49: N/A | M49: N/A | N49: N/A | O49: N/A | P49: N/A | Q49: N/A | R49: N/A | S49: N/A | T49: N/A | U49: N/A | V49: N/A | BB49: Highly contaminated (>100 CFU/100 mL) | BC49: N/A | BD49: N/A | BE49: N/A | BF49: N/A | BG49: N/A | BH49: N/A | BI49: N/A | BJ49: N/A | BK49: N/A | BL49: N/A | BM49: N/A | BN49: N/A | BO49: N/A | BP49: N/A | BQ49: N/A | BR49: N/A | BS49: N/A | BT49: N/A | BU49: N/A | BV49: N/A
A50: Microbiological quality of improved water sources at point of collection | B50: Not contaminated (No E. coli in 100 mL) | C50: N/A | D50: N/A | E50: N/A | F50: N/A | G50: N/A | H50: N/A | I50: N/A | J50: N/A | K50: N/A | L50: N/A | M50: N/A | N50: N/A | O50: N/A | P50: N/A | Q50: N/A | R50: N/A | S50: N/A | T50: N/A | U50: N/A | V50: N/A | BA50: Microbiological quality of improved water sources at point of collection | BB50: Not contaminated (No E. coli in 100 mL) | BC50: N/A | BD50: N/A | BE50: N/A | BF50: N/A | BG50: N/A | BH50: N/A | BI50: N/A | BJ50: N/A | BK50: N/A | BL50: N/A | BM50: N/A | BN50: N/A | BO50: N/A | BP50: N/A | BQ50: N/A | BR50: N/A | BS50: N/A | BT50: N/A | BU50: N/A | BV50: N/A
B51: Contaminated (E. coli detected in 100 mL) | C51: N/A | D51: N/A | E51: N/A | F51: N/A | G51: N/A | H51: N/A | I51: N/A | J51: N/A | K51: N/A | L51: N/A | M51: N/A | N51: N/A | O51: N/A | P51: N/A | Q51: N/A | R51: N/A | S51: N/A | T51: N/A | U51: N/A | V51: N/A | BB51: Contaminated (E. coli detected in 100 mL) | BC51: N/A | BD51: N/A | BE51: N/A | BF51: N/A | BG51: N/A | BH51: N/A | BI51: N/A | BJ51: N/A | BK51: N/A | BL51: N/A | BM51: N/A | BN51: N/A | BO51: N/A | BP51: N/A | BQ51: N/A | BR51: N/A | BS51: N/A | BT51: N/A | BU51: N/A | BV51: N/A
B52: Highly contaminated (>100 CFU/100 mL) | C52: N/A | D52: N/A | E52: N/A | F52: N/A | G52: N/A | H52: N/A | I52: N/A | J52: N/A | K52: N/A | L52: N/A | M52: N/A | N52: N/A | O52: N/A | P52: N/A | Q52: N/A | R52: N/A | S52: N/A | T52: N/A | U52: N/A | V52: N/A | BB52: Highly contaminated (>100 CFU/100 mL) | BC52: N/A | BD52: N/A | BE52: N/A | BF52: N/A | BG52: N/A | BH52: N/A | BI52: N/A | BJ52: N/A | BK52: N/A | BL52: N/A | BM52: N/A | BN52: N/A | BO52: N/A | BP52: N/A | BQ52: N/A | BR52: N/A | BS52: N/A | BT52: N/A | BU52: N/A | BV52: N/A
A53: Microbiological quality of piped on premises at point of collection | B53: Not contaminated (No E. coli in 100 mL) | C53: N/A | D53: N/A | E53: N/A | F53: N/A | G53: N/A | H53: N/A | I53: N/A | J53: N/A | K53: N/A | L53: N/A | M53: N/A | N53: N/A | O53: N/A | P53: N/A | Q53: N/A | R53: N/A | S53: N/A | T53: N/A | U53: N/A | V53: N/A | BA53: Microbiological quality of piped on premises at point of collection | BB53: Not contaminated (No E. coli in 100 mL) | BC53: N/A | BD53: N/A | BE53: N/A | BF53: N/A | BG53: N/A | BH53: N/A | BI53: N/A | BJ53: N/A | BK53: N/A | BL53: N/A | BM53: N/A | BN53: N/A | BO53: N/A | BP53: N/A | BQ53: N/A | BR53: N/A | BS53: N/A | BT53: N/A | BU53: N/A | BV53: N/A
B54: Contaminated (E. coli detected in 100 mL) | C54: N/A | D54: N/A | E54: N/A | F54: N/A | G54: N/A | H54: N/A | I54: N/A | J54: N/A | K54: N/A | L54: N/A | M54: N/A | N54: N/A | O54: N/A | P54: N/A | Q54: N/A | R54: N/A | S54: N/A | T54: N/A | U54: N/A | V54: N/A | BB54: Contaminated (E. coli detected in 100 mL) | BC54: N/A | BD54: N/A | BE54: N/A | BF54: N/A | BG54: N/A | BH54: N/A | BI54: N/A | BJ54: N/A | BK54: N/A | BL54: N/A | BM54: N/A | BN54: N/A | BO54: N/A | BP54: N/A | BQ54: N/A | BR54: N/A | BS54: N/A | BT54: N/A | BU54: N/A | BV54: N/A
B55: Highly contaminated (>100 CFU/100 mL) | C55: N/A | D55: N/A | E55: N/A | F55: N/A | G55: N/A | H55: N/A | I55: N/A | J55: N/A | K55: N/A | L55: N/A | M55: N/A | N55: N/A | O55: N/A | P55: N/A | Q55: N/A | R55: N/A | S55: N/A | T55: N/A | U55: N/A | V55: N/A | BB55: Highly contaminated (>100 CFU/100 mL) | BC55: N/A | BD55: N/A | BE55: N/A | BF55: N/A | BG55: N/A | BH55: N/A | BI55: N/A | BJ55: N/A | BK55: N/A | BL55: N/A | BM55: N/A | BN55: N/A | BO55: N/A | BP55: N/A | BQ55: N/A | BR55: N/A | BS55: N/A | BT55: N/A | BU55: N/A | BV55: N/A
C56: NATIONAL wealth index quintile | H56: URBAN wealth index quintile | M56: RURAL wealth index quintile | R56: SUB-REGIONS: | BA56: Raw numbers of respondents: | BB56: Use of drinking water sources | BC56: NATIONAL wealth index quintile | BH56: URBAN wealth index quintile | BM56: RURAL wealth index quintile | BR56: SUB-REGIONS:
A57: Percentage based on weighted population | C57: Poorest | D57: Poor | E57: Middle | F57: Rich | G57: Richest | H57: Poorest | I57: Poor | J57: Middle | K57: Rich | L57: Richest | M57: Poorest | N57: Poor | O57: Middle | P57: Rich | Q57: Richest | R57: Central | S57: Eastern | T57: Khangai | U57: Ulaanbaatar | V57: Western | BA57: Water data, raw numbers (weighted) | BC57: Poorest | BD57: Poor | BE57: Middle | BF57: Rich | BG57: Richest | BH57: Poorest | BI57: Poor | BJ57: Middle | BK57: Rich | BL57: Richest | BM57: Poorest | BN57: Poor | BO57: Middle | BP57: Rich | BQ57: Richest | BR57: Central | BS57: Eastern | BT57: Khangai | BU57: Ulaanbaatar | BV57: Western
A58: WS1. What is the main source of drinking water for members of your HH? | B58: Piped into dwelling | C58: 0 | D58: 0.6709103562 | E58: 1.115103087 | F58: 7.296340367 | G58: 89.96031086 | H58: 0.4905512605 | I58: 1.156378022 | J58: 3.598224692 | K58: 62.72609904 | L58: 97.89115224 | M58: 0 | N58: 0 | O58: 0 | P58: 1.573844736 | Q58: 8.449936735 | R58: 18.18419619 | S58: 19.02185273 | T58: 8.755119457 | U58: 35.55702334 | V58: 5.125059002
B59: Piped into yard or plot | C59: 0.1108143998 | D59: 0.151804385 | E59: 0.0369659342 | F59: 0.1848801117 | G59: 0.2064024611 | H59: 0.5250633638 | I59: 0 | J59: 0.3232920061 | K59: 0.1292862165 | L59: 0.2321614439 | M59: 0 | N59: 0 | O59: 0 | P59: 0 | Q59: 0 | R59: 0.2007497021 | S59: 0 | T59: 0 | U59: 0.1651254954 | V59: 0.2859474979
B60: Public tap/standpipe | C60: 0.1482380066 | D60: 2.856650769 | E60: 8.570680514 | F60: 9.85699351 | G60: 0.6588572211 | H60: 9.22580849 | I60: 10.84562994 | J60: 10.76053713 | K60: 4.304686692 | L60: 0.2653273644 | M60: 0 | N60: 0 | O60: 0.7767174981 | P60: 0.6990293013 | Q60: 2.932223611 | R60: 2.65147616 | S60: 0 | T60: 4.6624555 | U60: 7.397622193 | V60: 1.93695765
B61: Protected well | C61: 26.14813979 | D61: 42.46061404 | E61: 61.64998542 | F61: 62.56632683 | G61: 6.99087019 | H61: 66.3190712 | I61: 68.23962876 | J61: 70.64647838 | K61: 24.88083185 | L61: 1.347900148 | M61: 25.40716312 | N61: 24.35617008 | O61: 33.35713999 | P61: 38.10835886 | Q61: 36.70695483 | R61: 33.97196399 | S61: 53.22638915 | T61: 32.52699944 | U61: 47.76530163 | V61: 33.38596028
B62: Unprotected well | C62: 15.63065686 | D62: 8.979662932 | E62: 7.062214236 | F62: 4.780315316 | G62: 0.4119105854 | H62: 5.217663309 | I62: 4.697234095 | J62: 2.153174659 | K62: 0.8138383083 | L62: 0 | M62: 17.97297273 | N62: 15.18395547 | O62: 8.29296941 | P62: 10.6611126 | Q62: 16.58634829 | R62: 25.15519848 | S62: 3.021939091 | T62: 9.588913579 | U62: 0.2201673272 | V62: 3.657470371
B63: Pumped well | C63: 1.65947022 | D63: 6.072655532 | E63: 4.606910359 | F63: 2.631723719 | G63: 0.4158507659 | H63: 3.291218706 | I63: 3.284606636 | J63: 1.780913589 | K63: 1.228361203 | L63: 0 | M63: 1.170060711 | N63: 1.785545438 | O63: 4.539069532 | P63: 8.299581579 | Q63: 7.314603488 | R63: 4.529944749 | S63: 0.9055857387 | T63: 3.237300931 | U63: 1.860413915 | V63: 5.02853553
B64: Protected spring | C64: 2.80742112 | D64: 3.75195859 | E64: 3.484829665 | F64: 3.422350239 | G64: 0.3190827207 | H64: 2.497665451 | I64: 3.527731729 | J64: 3.608217496 | K64: 1.588805726 | L64: 0.06446328511 | M64: 2.646255795 | N64: 3.291467609 | O64: 2.143782524 | P64: 5.72088906 | Q64: 3.326628289 | R64: 4.516995076 | S64: 2.870130619 | T64: 2.560357091 | U64: 2.399823866 | V64: 1.970771043
B65: Unprotected spring | C65: 9.1048502 | D65: 4.655748166 | E65: 1.073255072 | F65: 0.5455067229 | G65: 0 | H65: 0.7779741846 | I65: 0.2007185256 | J65: 0.1329856938 | K65: 0.1292862165 | L65: 0 | M65: 10.80387737 | N65: 8.154053813 | O65: 7.207906994 | P65: 4.916662144 | Q65: 3.096632164 | R65: 2.868271297 | S65: 3.189824596 | T65: 6.221042196 | U65: 0.1100836636 | V65: 4.899936171
B66: Rain/snow water collection | C66: 5.905794585 | D66: 1.355840786 | E66: 0.07456234839 | F66: 0 | G66: 0 | H66: 0.1308611864 | I66: 0 | J66: 0 | K66: 0 | L66: 0 | M66: 6.098847436 | N66: 6.924106986 | O66: 2.632882481 | P66: 1.092016386 | Q66: 0.1722325174 | R66: 0.6385004313 | S66: 1.930683308 | T66: 1.91222287 | U66: 0 | V66: 4.436707934
B67: Tanker-truck | C67: 0.5191844537 | D67: 2.202830486 | E67: 5.340725041 | F67: 6.238324915 | G67: 0.8891467978 | H67: 7.005779081 | I67: 5.997837608 | J67: 6.478599983 | K67: 3.281907565 | L67: 0.1989955233 | M67: 0 | N67: 0.6455839703 | O67: 0.5984064096 | P67: 1.241483312 | Q67: 2.375798975 | R67: 1.218942079 | S67: 1.902370281 | T67: 3.111617001 | U67: 4.073095553 | V67: 3.170044535
B68: Surface water | C68: 37.5027587 | D68: 26.74900862 | E68: 6.76012559 | F68: 2.079547703 | G68: 0.1475684012 | H68: 4.387482583 | I68: 1.615344541 | J68: 0.517576376 | K68: 0.5205471868 | L68: 0 | M68: 35.42562901 | N68: 39.44392197 | O68: 39.84912936 | P68: 27.68702203 | Q68: 18.86786493 | R68: 6.06376184 | S68: 13.93122448 | T68: 26.84272353 | U68: 0.2311756935 | V68: 35.96950875
B69: Other | C69: 0.4626716745 | D69: 0.09231533808 | E69: 0.2246427287 | F69: 0.397690566 | G69: 0 | H69: 0.1308611864 | I69: 0.4348901388 | J69: 0 | K69: 0.3963499907 | L69: 0 | M69: 0.4751938236 | N69: 0.2151946568 | O69: 0.6019958034 | P69: 0 | Q69: 0.1707761637 | R69: 0 | S69: 0 | T69: 0.581248404 | U69: 0.2201673272 | V69: 0.133101238
A108: =A1026 -> Mongolia
A109: =A1034 -> 2005
A110: Use of sanitation facilities
A111: by wealth quintile and sub-national region
A112: Notes:
A113: WHO/UNICEF JMP customised wealth index excludes water,
A114: sanitation and hygiene assets.
A115: Survey used for analysis: | B115: =A1025 -> MICS05
A116: =B1030 -> 
A117: =B1029 -> 
A120: Use of sanitation facilities | C120: NATIONAL wealth index quintile | H120: URBAN wealth index quintile | M120: RURAL wealth index quintile | R120: SUB-REGIONS: | BA120: Raw numbers of respondents: | BB120: Use of sanitation facilities | BC120: NATIONAL wealth index quintile | BH120: URBAN wealth index quintile | BM120: RURAL wealth index quintile | BR120: SUB-REGIONS:
A121: Weighted percentage (used in graphs) | C121: Poorest | D121: Poor | E121: Middle | F121: Rich | G121: Richest | H121: Poorest | I121: Poor | J121: Middle | K121: Rich | L121: Richest | M121: Poorest | N121: Poor | O121: Middle | P121: Rich | Q121: Richest | R121: Central | S121: Eastern | T121: Khangai | U121: Ulaanbaatar | V121: Western | BA121: Sanitation data, raw numbers (weighted) | BC121: Poorest | BD121: Poor | BE121: Middle | BF121: Rich | BG121: Richest | BH121: Poorest | BI121: Poor | BJ121: Middle | BK121: Rich | BL121: Richest | BM121: Poorest | BN121: Poor | BO121: Middle | BP121: Rich | BQ121: Richest | BR121: Central | BS121: Eastern | BT121: Khangai | BU121: Ulaanbaatar | BV121: Western
A122: Sanitation | B122: Improved | C122: 26.29876867 | D122: 74.011518 | E122: 90.20345747 | F122: 96.3508325 | G122: 99.43376751 | H122: 89.17275171 | I122: 92.92321032 | J122: 97.18989245 | K122: 98.01219725 | L122: 99.86733632 | M122: 16.87622577 | N122: 26.59210886 | O122: 52.22271291 | P122: 78.25834 | Q122: 91.46447237 | R122: 79.01283846 | S122: 76.26383566 | T122: 63.24657056 | U122: 96.20211361 | V122: 56.797907 | BA122: Sanitation | BB122: Improved | BC122: 1405.259645 | BD122: 3956.048066 | BE122: 4816.345148 | BF122: 5140.103785 | BG122: 5319.816079 | BH122: 2718.895208 | BI122: 2817.374471 | BJ122: 2965.054953 | BK122: 2989.061494 | BL122: 3054.133297 | BM122: 387.327911 | BN122: 609.757862 | BO122: 1198.560909 | BP122: 1783.181251 | BQ122: 2114.225367 | BR122: 3491.662215 | BS122: 1750.198545 | BT122: 3983.616288 | BU122: 8863.766703 | BV122: 2548.328972
B123: Not Improved | C123: 73.70123133 | D123: 25.988482 | E123: 9.796542532 | F123: 3.649167498 | G123: 0.5662324924 | H123: 10.82724829 | I123: 7.076789684 | J123: 2.810107547 | K123: 1.987802746 | L123: 0.1326636822 | M123: 83.12377423 | N123: 73.40789114 | O123: 47.77728709 | P123: 21.74166 | Q123: 8.535527626 | R123: 20.98716154 | S123: 23.73616434 | T123: 36.75342944 | U123: 3.797886394 | V123: 43.202093 | BB123: Not Improved | BC123: 3938.183095 | BD123: 1389.130864 | BE123: 523.078953 | BF123: 194.675014 | BG123: 30.294062 | BH123: 330.124987 | BI123: 214.563902 | BJ123: 85.730348 | BK123: 60.621686 | BL123: 4.057108 | BM123: 1907.781886 | BN123: 1683.245168 | BO123: 1096.53416 | BP123: 495.401774 | BQ123: 197.300969 | BR123: 927.445215 | BS123: 544.727392 | BT123: 2314.932792 | BU123: 349.925565 | BV123: 1938.331024
A124: Sanitation ladder | B124: Basic | C124: 11.2316508 | D124: 42.39385128 | E124: 48.01304338 | F124: 55.38339564 | G124: 91.51330333 | H124: 45.79209184 | I124: 48.13058382 | J124: 52.51849609 | K124: 77.91090493 | L124: 97.33422749 | M124: 5.653483296 | N124: 12.34099425 | O124: 29.19887969 | P124: 44.08051701 | Q124: 59.81908367 | R124: 54.1420645 | S124: 52.15263276 | T124: 38.51487098 | U124: 63.0228974 | V124: 32.5046705 | BA124: Sanitation ladder | BB124: Basic | BC124: 600.156829 | BD124: 2266.027206 | BE124: 2563.62001 | BF124: 2954.581649 | BG124: 4896.062522 | BH124: 1396.210128 | BI124: 1459.28964 | BJ124: 1602.226559 | BK124: 2376.035763 | BL124: 2976.666006 | BM124: 129.753649 | BN124: 282.979372 | BO124: 670.142048 | BP124: 1004.411178 | BQ124: 1382.733873 | BR124: 2392.595995 | BS124: 1196.864296 | BT124: 2425.878052 | BU124: 5806.735825 | BV124: 1458.374048
B125: Limited | C125: 15.06711787 | D125: 31.61766673 | E125: 42.19041409 | F125: 40.96743686 | G125: 7.920464174 | H125: 43.38065986 | I125: 44.7926265 | J125: 44.67139636 | K125: 20.10129233 | L125: 2.533108824 | M125: 11.22274247 | N125: 14.25111462 | O125: 23.02383322 | P125: 34.17782299 | Q125: 31.6453887 | R125: 24.87077396 | S125: 24.1112029 | T125: 24.73169957 | U125: 33.1792162 | V125: 24.2932365 | BB125: Limited | BC125: 805.102816 | BD125: 1690.02086 | BE125: 2252.725138 | BF125: 2185.522136 | BG125: 423.753557 | BH125: 1322.68508 | BI125: 1358.084831 | BJ125: 1362.828394 | BK125: 613.025731 | BL125: 77.467291 | BM125: 257.574262 | BN125: 326.77849 | BO125: 528.418861 | BP125: 778.770073 | BQ125: 731.491494 | BR125: 1099.06622 | BS125: 553.334249 | BT125: 1557.738236 | BU125: 3057.030878 | BV125: 1089.954924
B126: Unimproved | C126: 22.75410744 | D126: 15.0036994 | E126: 5.802509 | F126: 2.550301692 | G126: 0.414568026 | H126: 5.364717042 | I126: 3.941453958 | J126: 2.377904042 | K126: 1.488926171 | L126: 0.1326636822 | M126: 23.78536224 | N126: 22.51352315 | O126: 24.44190428 | P126: 13.64075066 | Q126: 6.354276813 | R126: 8.502251438 | S126: 6.611274227 | T126: 15.48816344 | U126: 2.256715103 | V126: 17.27291154 | BB126: Unimproved | BC126: 1215.852702 | BD126: 801.974579 | BE126: 309.820564 | BF126: 136.052954 | BG126: 22.179846 | BH126: 163.571306 | BI126: 119.502455 | BJ126: 72.544747 | BK126: 45.407531 | BL126: 4.057108 | BM126: 545.900179 | BN126: 516.235768 | BO126: 560.96494 | BP126: 310.815829 | BQ126: 146.880782 | BR126: 375.723625 | BS126: 151.723847 | BT126: 975.529576 | BU126: 207.926785 | BV126: 774.976812
B127: Open defecation | C127: 50.94712389 | D127: 10.9847826 | E127: 3.994033532 | F127: 1.098865805 | G127: 0.1516644665 | H127: 5.462531251 | I127: 3.135335726 | J127: 0.432203505 | K127: 0.4988765751 | L127: 0 | M127: 59.33841199 | N127: 50.89436799 | O127: 23.3353828 | P127: 8.100909336 | Q127: 2.181250813 | R127: 12.4849101 | S127: 17.12489012 | T127: 21.265266 | U127: 1.54117129 | V127: 25.92918146 | BB127: Open defecation | BC127: 2722.330393 | BD127: 587.156285 | BE127: 213.258389 | BF127: 58.62206 | BG127: 8.114216 | BH127: 166.553681 | BI127: 95.061447 | BJ127: 13.185601 | BK127: 15.214155 | BL127: 0 | BM127: 1361.881707 | BN127: 1167.0094 | BO127: 535.56922 | BP127: 184.585945 | BQ127: 50.420187 | BR127: 551.72159 | BS127: 393.003545 | BT127: 1339.403216 | BU127: 141.99878 | BV127: 1163.354212
A128: Shared among Improved Sanitation | B128: Yes | C128: 57.29210391 | D128: 42.71992736 | E128: 46.77250215 | F128: 42.51902739 | G128: 7.965567807 | H128: 48.64788743 | I128: 48.20391627 | J128: 45.96300627 | K128: 20.5089702 | L128: 2.536473803 | M128: 66.50031012 | N128: 53.59151728 | O128: 44.08777702 | P128: 43.67307432 | Q128: 34.5985582 | R128: 31.47687698 | S128: 31.61551303 | T128: 39.10362152 | U128: 34.48907198 | V128: 42.77135864 | BA128: Shared among improved sanitation facilities | BB128: Yes | BC128: N/A | BD128: N/A | BE128: N/A | BF128: N/A | BG128: N/A | BH128: N/A | BI128: N/A | BJ128: N/A | BK128: N/A | BL128: N/A | BM128: N/A | BN128: N/A | BO128: N/A | BP128: N/A | BQ128: N/A | BR128: N/A | BS128: N/A | BT128: N/A | BU128: N/A | BV128: N/A
B129: No | C129: 42.70789609 | D129: 57.28007264 | E129: 53.22749785 | F129: 57.48097261 | G129: 92.03443219 | H129: 51.35211257 | I129: 51.79608373 | J129: 54.03699373 | K129: 79.4910298 | L129: 97.4635262 | M129: 33.49968988 | N129: 46.40848272 | O129: 55.91222298 | P129: 56.32692568 | Q129: 65.4014418 | R129: 68.52312302 | S129: 68.38448697 | T129: 60.89637848 | U129: 65.51092802 | V129: 57.22864136 | BB129: No | BC129: N/A | BD129: N/A | BE129: N/A | BF129: N/A | BG129: N/A | BH129: N/A | BI129: N/A | BJ129: N/A | BK129: N/A | BL129: N/A | BM129: N/A | BN129: N/A | BO129: N/A | BP129: N/A | BQ129: N/A | BR129: N/A | BS129: N/A | BT129: N/A | BU129: N/A | BV129: N/A
A130: Manually calculated ratios | B130: Improved latrines | C130: =C158/(C158+C159)*100 -> 50.87014085 | D130: =D158/(D158+D159)*100 -> 81.25060726 | E130: 92.9637158 | F130: 96.8838681 | G130: 94.93071441 | H130: 93.45656254 | I130: 95.30456482 | J130: 97.13227087 | K130: 95.69906505 | L130: 90.61611683 | M130: 39.71140459 | N130: 51.97415374 | O130: 66.17777498 | P130: 83.10537034 | Q130: 91.86807958 | R130: 86.40395728 | S130: 89.42709989 | T130: 73.39147918 | U130: 95.91291846 | V130: 73.77985985
B131: Sewage among flush
B132: Other
C133: NATIONAL wealth index quintile | H133: URBAN wealth index quintile | M133: RURAL wealth index quintile | R133: SUB-REGIONS: | BA133: Raw numbers of respondents: | BB133: Use of sanitation facilities | BC133: NATIONAL wealth index quintile | BH133: URBAN wealth index quintile | BM133: RURAL wealth index quintile | BR133: SUB-REGIONS:
A134: Percentage based on weighted population | C134: Poorest | D134: Poor | E134: Middle | F134: Rich | G134: Richest | H134: Poorest | I134: Poor | J134: Middle | K134: Rich | L134: Richest | M134: Poorest | N134: Poor | O134: Middle | P134: Rich | Q134: Richest | R134: Central | S134: Eastern | T134: Khangai | U134: Ulaanbaatar | V134: Western | BA134: Sanitation data, raw numbers (weighted) | BC134: Poorest | BD134: Poor | BE134: Middle | BF134: Rich | BG134: Richest | BH134: Poorest | BI134: Poor | BJ134: Middle | BK134: Rich | BL134: Richest | BM134: Poorest | BN134: Poor | BO134: Middle | BP134: Rich | BQ134: Richest | BR134: Central | BS134: Eastern | BT134: Khangai | BU134: Ulaanbaatar | BV134: Western
A135: Sanitation type | B135: Sewer connection | C135: 0 | D135: 0.5988295512 | E135: 0.5156383437 | F135: 6.544978005 | G135: 89.59362442 | H135: 0.06653134024 | I135: 0.5904429048 | J135: 3.038631429 | K135: 61.58267142 | L135: 97.9618856 | M135: 0 | N135: 0 | O135: 0 | P135: 1.404755089 | Q135: 7.937608244 | R135: 18.0949741 | S135: 18.63201693 | T135: 8.329544492 | U135: 35.31483928 | V135: 4.377196315 | BA135: Sanitation type | BB135: Sewer connection | BC135: N/A | BD135: N/A | BE135: N/A | BF135: N/A | BG135: N/A | BH135: N/A | BI135: N/A | BJ135: N/A | BK135: N/A | BL135: N/A | BM135: N/A | BN135: N/A | BO135: N/A | BP135: N/A | BQ135: N/A | BR135: N/A | BS135: N/A | BT135: N/A | BU135: N/A | BV135: N/A
B136: Septic tank connection | C136: 0.03771781786 | D136: 0 | E136: 0 | F136: 0.1330877862 | G136: 0 | H136: 0 | I136: 0 | J136: 0.2327249642 | K136: 0 | L136: 0 | M136: 0.08781409947 | N136: 0 | O136: 0 | P136: 0 | Q136: 0 | R136: 0.04560717366 | S136: 0 | T136: 0 | U136: 0.07705856451 | V136: 0 | BB136: Septic tank connection | BC136: N/A | BD136: N/A | BE136: N/A | BF136: N/A | BG136: N/A | BH136: N/A | BI136: N/A | BJ136: N/A | BK136: N/A | BL136: N/A | BM136: N/A | BN136: N/A | BO136: N/A | BP136: N/A | BQ136: N/A | BR136: N/A | BS136: N/A | BT136: N/A | BU136: N/A | BV136: N/A
B137: Improved latrines | C137: 26.26105085 | D137: 73.41268845 | E137: 89.68781912 | F137: 89.67276671 | G137: 9.840143084 | H137: 89.10622037 | I137: 92.33276741 | J137: 93.91853606 | K137: 36.42952584 | L137: 1.905450717 | M137: 16.78841167 | N137: 26.59210886 | O137: 52.22271291 | P137: 76.85358492 | Q137: 83.52686413 | R137: 60.87225718 | S137: 57.63181873 | T137: 54.91702607 | U137: 60.81021576 | V137: 52.42071069 | BB137: Improved latrines | BC137: N/A | BD137: N/A | BE137: N/A | BF137: N/A | BG137: N/A | BH137: N/A | BI137: N/A | BJ137: N/A | BK137: N/A | BL137: N/A | BM137: N/A | BN137: N/A | BO137: N/A | BP137: N/A | BQ137: N/A | BR137: N/A | BS137: N/A | BT137: N/A | BU137: N/A | BV137: N/A
B138: Unimproved facilities | C138: 22.75410744 | D138: 15.0036994 | E138: 5.802509 | F138: 2.550301692 | G138: 0.414568026 | H138: 5.364717042 | I138: 3.941453958 | J138: 2.377904042 | K138: 1.488926171 | L138: 0.1326636822 | M138: 23.78536224 | N138: 22.51352315 | O138: 24.44190428 | P138: 13.64075066 | Q138: 6.354276813 | R138: 8.502251438 | S138: 6.611274227 | T138: 15.48816344 | U138: 2.256715103 | V138: 17.27291154 | BB138: Unimproved facilities | BC138: N/A | BD138: N/A | BE138: N/A | BF138: N/A | BG138: N/A | BH138: N/A | BI138: N/A | BJ138: N/A | BK138: N/A | BL138: N/A | BM138: N/A | BN138: N/A | BO138: N/A | BP138: N/A | BQ138: N/A | BR138: N/A | BS138: N/A | BT138: N/A | BU138: N/A | BV138: N/A
B139: Open defecation | C139: 50.94712389 | D139: 10.9847826 | E139: 3.994033532 | F139: 1.098865805 | G139: 0.1516644665 | H139: 5.462531251 | I139: 3.135335726 | J139: 0.432203505 | K139: 0.4988765751 | L139: 0 | M139: 59.33841199 | N139: 50.89436799 | O139: 23.3353828 | P139: 8.100909336 | Q139: 2.181250813 | R139: 12.4849101 | S139: 17.12489012 | T139: 21.265266 | U139: 1.54117129 | V139: 25.92918146 | BB139: Open defecation | BC139: N/A | BD139: N/A | BE139: N/A | BF139: N/A | BG139: N/A | BH139: N/A | BI139: N/A | BJ139: N/A | BK139: N/A | BL139: N/A | BM139: N/A | BN139: N/A | BO139: N/A | BP139: N/A | BQ139: N/A | BR139: N/A | BS139: N/A | BT139: N/A | BU139: N/A | BV139: N/A
A140: Septic tank emptying practices | B140: Not emptied/treated and disposed in situ | C140: N/A | D140: N/A | E140: N/A | F140: N/A | G140: N/A | H140: N/A | I140: N/A | J140: N/A | K140: N/A | L140: N/A | M140: N/A | N140: N/A | O140: N/A | P140: N/A | Q140: N/A | R140: N/A | S140: N/A | T140: N/A | U140: N/A | V140: N/A | BA140: Septic tank emptying practices | BB140: Not emptied/treated and disposed in situ | BC140: N/A | BD140: N/A | BE140: N/A | BF140: N/A | BG140: N/A | BH140: N/A | BI140: N/A | BJ140: N/A | BK140: N/A | BL140: N/A | BM140: N/A | BN140: N/A | BO140: N/A | BP140: N/A | BQ140: N/A | BR140: N/A | BS140: N/A | BT140: N/A | BU140: N/A | BV140: N/A
B141: Emptied and buried on site | C141: N/A | D141: N/A | E141: N/A | F141: N/A | G141: N/A | H141: N/A | I141: N/A | J141: N/A | K141: N/A | L141: N/A | M141: N/A | N141: N/A | O141: N/A | P141: N/A | Q141: N/A | R141: N/A | S141: N/A | T141: N/A | U141: N/A | V141: N/A | BB141: Emptied and buried on site | BC141: N/A | BD141: N/A | BE141: N/A | BF141: N/A | BG141: N/A | BH141: N/A | BI141: N/A | BJ141: N/A | BK141: N/A | BL141: N/A | BM141: N/A | BN141: N/A | BO141: N/A | BP141: N/A | BQ141: N/A | BR141: N/A | BS141: N/A | BT141: N/A | BU141: N/A | BV141: N/A
B142: Emptied and discharged locally | C142: N/A | D142: N/A | E142: N/A | F142: N/A | G142: N/A | H142: N/A | I142: N/A | J142: N/A | K142: N/A | L142: N/A | M142: N/A | N142: N/A | O142: N/A | P142: N/A | Q142: N/A | R142: N/A | S142: N/A | T142: N/A | U142: N/A | V142: N/A | BB142: Emptied and discharged locally | BC142: N/A | BD142: N/A | BE142: N/A | BF142: N/A | BG142: N/A | BH142: N/A | BI142: N/A | BJ142: N/A | BK142: N/A | BL142: N/A | BM142: N/A | BN142: N/A | BO142: N/A | BP142: N/A | BQ142: N/A | BR142: N/A | BS142: N/A | BT142: N/A | BU142: N/A | BV142: N/A
B143: Emptied and removed offsite | C143: N/A | D143: N/A | E143: N/A | F143: N/A | G143: N/A | H143: N/A | I143: N/A | J143: N/A | K143: N/A | L143: N/A | M143: N/A | N143: N/A | O143: N/A | P143: N/A | Q143: N/A | R143: N/A | S143: N/A | T143: N/A | U143: N/A | V143: N/A | BB143: Emptied and removed offsite | BC143: N/A | BD143: N/A | BE143: N/A | BF143: N/A | BG143: N/A | BH143: N/A | BI143: N/A | BJ143: N/A | BK143: N/A | BL143: N/A | BM143: N/A | BN143: N/A | BO143: N/A | BP143: N/A | BQ143: N/A | BR143: N/A | BS143: N/A | BT143: N/A | BU143: N/A | BV143: N/A
A144: Latrine emptying practices | B144: Not emptied/treated and disposed in situ | C144: N/A | D144: N/A | E144: N/A | F144: N/A | G144: N/A | H144: N/A | I144: N/A | J144: N/A | K144: N/A | L144: N/A | M144: N/A | N144: N/A | O144: N/A | P144: N/A | Q144: N/A | R144: N/A | S144: N/A | T144: N/A | U144: N/A | V144: N/A | BA144: Latrine emptying practices | BB144: Not emptied/treated and disposed in situ | BC144: N/A | BD144: N/A | BE144: N/A | BF144: N/A | BG144: N/A | BH144: N/A | BI144: N/A | BJ144: N/A | BK144: N/A | BL144: N/A | BM144: N/A | BN144: N/A | BO144: N/A | BP144: N/A | BQ144: N/A | BR144: N/A | BS144: N/A | BT144: N/A | BU144: N/A | BV144: N/A
B145: Emptied and buried on site | C145: N/A | D145: N/A | E145: N/A | F145: N/A | G145: N/A | H145: N/A | I145: N/A | J145: N/A | K145: N/A | L145: N/A | M145: N/A | N145: N/A | O145: N/A | P145: N/A | Q145: N/A | R145: N/A | S145: N/A | T145: N/A | U145: N/A | V145: N/A | BB145: Emptied and buried on site | BC145: N/A | BD145: N/A | BE145: N/A | BF145: N/A | BG145: N/A | BH145: N/A | BI145: N/A | BJ145: N/A | BK145: N/A | BL145: N/A | BM145: N/A | BN145: N/A | BO145: N/A | BP145: N/A | BQ145: N/A | BR145: N/A | BS145: N/A | BT145: N/A | BU145: N/A | BV145: N/A
B146: Emptied and discharged locally | C146: N/A | D146: N/A | E146: N/A | F146: N/A | G146: N/A | H146: N/A | I146: N/A | J146: N/A | K146: N/A | L146: N/A | M146: N/A | N146: N/A | O146: N/A | P146: N/A | Q146: N/A | R146: N/A | S146: N/A | T146: N/A | U146: N/A | V146: N/A | BB146: Emptied and discharged locally | BC146: N/A | BD146: N/A | BE146: N/A | BF146: N/A | BG146: N/A | BH146: N/A | BI146: N/A | BJ146: N/A | BK146: N/A | BL146: N/A | BM146: N/A | BN146: N/A | BO146: N/A | BP146: N/A | BQ146: N/A | BR146: N/A | BS146: N/A | BT146: N/A | BU146: N/A | BV146: N/A
B147: Emptied and removed offsite | C147: N/A | D147: N/A | E147: N/A | F147: N/A | G147: N/A | H147: N/A | I147: N/A | J147: N/A | K147: N/A | L147: N/A | M147: N/A | N147: N/A | O147: N/A | P147: N/A | Q147: N/A | R147: N/A | S147: N/A | T147: N/A | U147: N/A | V147: N/A | BB147: Emptied and removed offsite | BC147: N/A | BD147: N/A | BE147: N/A | BF147: N/A | BG147: N/A | BH147: N/A | BI147: N/A | BJ147: N/A | BK147: N/A | BL147: N/A | BM147: N/A | BN147: N/A | BO147: N/A | BP147: N/A | BQ147: N/A | BR147: N/A | BS147: N/A | BT147: N/A | BU147: N/A | BV147: N/A
A148: Shared among improved sanitation facilities | B148: Yes | C148: 15.06711787 | D148: 31.61766673 | E148: 42.19041409 | F148: 40.96743686 | G148: 7.920464174 | H148: 43.38065986 | I148: 44.7926265 | J148: 44.67139636 | K148: 20.10129233 | L148: 2.533108824 | M148: 11.22274247 | N148: 14.25111462 | O148: 23.02383322 | P148: 34.17782299 | Q148: 31.6453887 | R148: 24.87077396 | S148: 24.1112029 | T148: 24.73169957 | U148: 33.1792162 | V148: 24.2932365 | BA148: Shared among improved sanitation facilities | BB148: Yes | BC148: N/A | BD148: N/A | BE148: N/A | BF148: N/A | BG148: N/A | BH148: N/A | BI148: N/A | BJ148: N/A | BK148: N/A | BL148: N/A | BM148: N/A | BN148: N/A | BO148: N/A | BP148: N/A | BQ148: N/A | BR148: N/A | BS148: N/A | BT148: N/A | BU148: N/A | BV148: N/A
B149: No | C149: 11.2316508 | D149: 42.39385128 | E149: 48.01304338 | F149: 55.38339564 | G149: 91.51330333 | H149: 45.79209184 | I149: 48.13058382 | J149: 52.51849609 | K149: 77.91090493 | L149: 97.33422749 | M149: 5.653483296 | N149: 12.34099425 | O149: 29.19887969 | P149: 44.08051701 | Q149: 59.81908367 | R149: 54.1420645 | S149: 52.15263276 | T149: 38.51487098 | U149: 63.0228974 | V149: 32.5046705 | BB149: No | BC149: N/A | BD149: N/A | BE149: N/A | BF149: N/A | BG149: N/A | BH149: N/A | BI149: N/A | BJ149: N/A | BK149: N/A | BL149: N/A | BM149: N/A | BN149: N/A | BO149: N/A | BP149: N/A | BQ149: N/A | BR149: N/A | BS149: N/A | BT149: N/A | BU149: N/A | BV149: N/A
B150: DK/missing | C150: 73.70123133 | D150: 25.988482 | E150: 9.796542532 | F150: 3.649167498 | G150: 0.5662324924 | H150: 10.82724829 | I150: 7.076789684 | J150: 2.810107547 | K150: 1.987802746 | L150: 0.1326636822 | M150: 83.12377423 | N150: 73.40789114 | O150: 47.77728709 | P150: 21.74166 | Q150: 8.535527626 | R150: 20.98716154 | S150: 23.73616434 | T150: 36.75342944 | U150: 3.797886394 | V150: 43.202093 | BB150: DK/missing | BC150: N/A | BD150: N/A | BE150: N/A | BF150: N/A | BG150: N/A | BH150: N/A | BI150: N/A | BJ150: N/A | BK150: N/A | BL150: N/A | BM150: N/A | BN150: N/A | BO150: N/A | BP150: N/A | BQ150: N/A | BR150: N/A | BS150: N/A | BT150: N/A | BU150: N/A | BV150: N/A
A151: Shared among all sanitation facilities | B151: Yes | C151: 57.13487332 | D151: 44.0158862 | E151: 46.78788757 | F151: 42.5315523 | G151: 8.065402933 | H151: 48.08117944 | I151: 48.56269895 | J151: 45.69510229 | K151: 21.03438739 | L151: 2.533108824 | M151: 59.02233536 | N151: 57.57638753 | O151: 45.31409859 | P151: 45.93106204 | Q151: 34.98299133 | R151: 33.08072217 | S151: 33.87147771 | T151: 41.65322014 | U151: 34.67128801 | V151: 46.05893515 | BA151: Shared among all sanitation facilities | BB151: Yes | BC151: N/A | BD151: N/A | BE151: N/A | BF151: N/A | BG151: N/A | BH151: N/A | BI151: N/A | BJ151: N/A | BK151: N/A | BL151: N/A | BM151: N/A | BN151: N/A | BO151: N/A | BP151: N/A | BQ151: N/A | BR151: N/A | BS151: N/A | BT151: N/A | BU151: N/A | BV151: N/A
B152: No | C152: 42.86512668 | D152: 55.9841138 | E152: 53.21211243 | F152: 57.4684477 | G152: 91.93459707 | H152: 51.91882056 | I152: 51.43730105 | J152: 54.30489771 | K152: 78.96561261 | L152: 97.46689118 | M152: 40.97766464 | N152: 42.42361247 | O152: 54.68590141 | P152: 54.06893796 | Q152: 65.01700867 | R152: 66.91927783 | S152: 66.12852229 | T152: 58.34677986 | U152: 65.32871199 | V152: 53.94106485 | BB152: No | BC152: N/A | BD152: N/A | BE152: N/A | BF152: N/A | BG152: N/A | BH152: N/A | BI152: N/A | BJ152: N/A | BK152: N/A | BL152: N/A | BM152: N/A | BN152: N/A | BO152: N/A | BP152: N/A | BQ152: N/A | BR152: N/A | BS152: N/A | BT152: N/A | BU152: N/A | BV152: N/A
A153: WS7. What kind of toilet facility do members of your HH usually use? | B153: Flush to piped sewer system | C153: 0 | D153: 0.5988295512 | E153: 0.5156383437 | F153: 6.544978005 | G153: 89.59362442 | H153: 0.06653134024 | I153: 0.5904429048 | J153: 3.038631429 | K153: 61.58267142 | L153: 97.9618856 | M153: 0 | N153: 0 | O153: 0 | P153: 1.404755089 | Q153: 7.937608244 | R153: 18.0949741 | S153: 18.63201693 | T153: 8.329544492 | U153: 35.31483928 | V153: 4.377196315 | BA153: WS7. What kind of toilet facility do members of your HH usually use? | BB153: Flush to piped sewer system | BC153: 0 | BD153: 32.008511 | BE153: 27.532118 | BF153: 349.160099 | BG153: 4793.357586 | BH153: 2.028554 | BI153: 17.901865 | BJ153: 92.702121 | BK153: 1878.076372 | BL153: 2995.860986 | BM153: 0 | BN153: 0 | BO153: 0 | BP153: 32.008511 | BQ153: 183.479905 | BR153: 799.636345 | BS153: 427.590989 | BT153: 524.640448 | BU153: 3253.800616 | BV153: 196.389916
B154: Flush to septic tank | C154: 0.03771781786 | D154: 0 | E154: 0 | F154: 0.1330877862 | G154: 0 | H154: 0 | I154: 0 | J154: 0.2327249642 | K154: 0 | L154: 0 | M154: 0.08781409947 | N154: 0 | O154: 0 | P154: 0 | Q154: 0 | R154: 0.04560717366 | S154: 0 | T154: 0 | U154: 0.07705856451 | V154: 0 | BB154: Flush to septic tank | BC154: 2.01543 | BD154: 0 | BE154: 0 | BF154: 7.099939 | BG154: 0 | BH154: 0 | BI154: 0 | BJ154: 7.099939 | BK154: 0 | BL154: 0 | BM154: 2.01543 | BN154: 0 | BO154: 0 | BP154: 0 | BQ154: 0 | BR154: 2.01543 | BS154: 0 | BT154: 0 | BU154: 7.099939 | BV154: 0
B155: Flush to pit (latrine) | C155: 1.922609804 | D155: 4.613582169 | E155: 5.356227593 | F155: 3.727203442 | G155: 0.9273503852 | H155: 5.583735433 | I155: 4.598393465 | J155: 3.977630381 | K155: 2.515476345 | L155: 0.09949776165 | M155: 1.121267054 | N155: 1.969467262 | O155: 2.546617776 | P155: 5.05268216 | Q155: 5.5606188 | R155: 3.866541099 | S155: 0.7554847728 | T155: 5.899755821 | U155: 3.214442977 | V155: 0.6198260627 | BB155: Flush to pit (latrine) | BC155: 102.733554 | BD155: 246.604222 | BE155: 285.991707 | BF155: 198.838059 | BG155: 49.614267 | BH155: 170.249221 | BI155: 139.420456 | BJ155: 121.348963 | BK155: 76.714059 | BL155: 3.042831 | BM155: 25.73431 | BN155: 45.159944 | BO155: 58.447299 | BP155: 115.129558 | BQ155: 128.535168 | BR155: 170.866605 | BS155: 17.337816 | BT155: 371.599016 | BU155: 296.168884 | BV155: 27.809488
B156: DK | C156: 0 | D156: 0 | E156: 0 | F156: 0.03739596477 | G156: 0 | H156: 0 | I156: 0.06579922659 | J156: 0 | K156: 0 | L156: 0 | M156: 0 | N156: 0 | O156: 0 | P156: 0 | Q156: 0 | R156: 0 | S156: 0 | T156: 0.03167383432 | U156: 0 | V156: 0 | BB156: DK | BC156: 0 | BD156: 0 | BE156: 0 | BF156: 1.994992 | BG156: 0 | BH156: 0 | BI156: 1.994992 | BJ156: 0 | BK156: 0 | BL156: 0 | BM156: 0 | BN156: 0 | BO156: 0 | BP156: 0 | BQ156: 0 | BR156: 0 | BS156: 0 | BT156: 1.994992 | BU156: 0 | BV156: 0
B157: Ventilated improved pit latrine | C157: 0.7783358412 | D157: 4.02309434 | E157: 7.668571353 | F157: 10.16328565 | G157: 1.149324227 | H157: 8.302749271 | I157: 7.66777818 | J157: 11.6515665 | K157: 3.74441469 | L157: 0.5248769329 | M157: 0 | N157: 0.2582335881 | O157: 1.852191161 | P157: 4.701495527 | Q157: 6.180593523 | R157: 2.973216698 | S157: 0.9572318499 | T157: 6.3972711 | U157: 6.186701893 | V157: 3.197292688 | BB157: Ventilated improved pit latrine | BC157: 41.58993 | BD157: 215.041591 | BE157: 409.457547 | BF157: 542.188808 | BG157: 61.490112 | BH157: 253.152502 | BI157: 232.482309 | BJ157: 355.464278 | BK157: 114.192785 | BL157: 16.051736 | BM157: 0 | BN157: 5.921304 | BO157: 42.509548 | BP157: 107.127479 | BQ157: 142.866047 | BR157: 131.38964 | BS157: 21.967762 | BT157: 402.93526 | BU157: 570.023674 | BV157: 143.451652
B158: Pit latrine with slab | C158: 23.5601052 | D158: 64.77601194 | E158: 76.66302018 | F158: 75.74488166 | G158: 7.763468472 | H158: 75.21973566 | I158: 80.00079654 | J158: 78.28933918 | K158: 30.1696348 | L158: 1.281076022 | M158: 15.66714462 | N158: 24.36440801 | O158: 47.82390398 | P158: 67.09940723 | Q158: 71.78565181 | R158: 54.03249939 | S158: 55.91910211 | T158: 42.58832531 | U158: 51.40907089 | V158: 48.60359194 | BB158: Pit latrine with slab | BC158: 1258.920731 | BD158: 3462.393742 | BE158: 4093.363776 | BF158: 4040.821888 | BG158: 415.354114 | BH158: 2293.464931 | BI158: 2425.574849 | BJ158: 2388.439652 | BK158: 920.078278 | BL158: 39.177744 | BM158: 359.578171 | BN158: 558.676614 | BO158: 1097.604062 | BP158: 1528.915703 | BQ158: 1659.344247 | BR158: 2387.754195 | BS158: 1283.301978 | BT158: 2682.446572 | BU158: 4736.67359 | BV158: 2180.677916
B159: Pit latrine without slab/open pit | C159: 22.75410744 | D159: 14.94771459 | E159: 5.802509 | F159: 2.436226447 | G159: 0.414568026 | H159: 5.266571152 | I159: 3.941453958 | J159: 2.311411196 | K159: 1.355892418 | L159: 0.1326636822 | M159: 23.78536224 | N159: 22.51352315 | O159: 24.44190428 | P159: 13.64075066 | Q159: 6.354276813 | R159: 8.502251438 | S159: 6.611274227 | T159: 15.44065269 | U159: 2.190664905 | V159: 17.27291154 | BB159: Pit latrine without slab/open pit | BC159: 1215.852702 | BD159: 798.982091 | BE159: 309.820564 | BF159: 129.967292 | BG159: 22.179846 | BH159: 160.578818 | BI159: 119.502455 | BJ159: 70.516193 | BK159: 41.350423 | BL159: 4.057108 | BM159: 545.900179 | BN159: 516.235768 | BO159: 560.96494 | BP159: 310.815829 | BQ159: 146.880782 | BR159: 375.723625 | BS159: 151.723847 | BT159: 972.537088 | BU159: 201.841123 | BV159: 774.976812
B160: No facilities or bush or field | C160: 50.94712389 | D160: 10.9847826 | E160: 3.994033532 | F160: 1.098865805 | G160: 0.1516644665 | H160: 5.462531251 | I160: 3.135335726 | J160: 0.432203505 | K160: 0.4988765751 | L160: 0 | M160: 59.33841199 | N160: 50.89436799 | O160: 23.3353828 | P160: 8.100909336 | Q160: 2.181250813 | R160: 12.4849101 | S160: 17.12489012 | T160: 21.265266 | U160: 1.54117129 | V160: 25.92918146 | BB160: No facilities or bush or field | BC160: 2722.330393 | BD160: 587.156285 | BE160: 213.258389 | BF160: 58.62206 | BG160: 8.114216 | BH160: 166.553681 | BI160: 95.061447 | BJ160: 13.185601 | BK160: 15.214155 | BL160: 0 | BM160: 1361.881707 | BN160: 1167.0094 | BO160: 535.56922 | BP160: 184.585945 | BQ160: 50.420187 | BR160: 551.72159 | BS160: 393.003545 | BT160: 1339.403216 | BU160: 141.99878 | BV160: 1163.354212
B161: Other | C161: 0 | D161: 0.05598480498 | E161: 0 | F161: 0.1140752453 | G161: 0 | H161: 0.09814588978 | I161: 0 | J161: 0.06649284692 | K161: 0.1330337534 | L161: 0 | M161: 0 | N161: 0 | O161: 0 | P161: 0 | Q161: 0 | R161: 0 | S161: 0 | T161: 0.04751075148 | U161: 0.06605019815 | V161: 0 | BB161: Other | BC161: 0 | BD161: 2.992488 | BE161: 0 | BF161: 6.085662 | BG161: 0 | BH161: 2.992488 | BI161: 0 | BJ161: 2.028554 | BK161: 4.057108 | BL161: 0 | BM161: 0 | BN161: 0 | BO161: 0 | BP161: 0 | BQ161: 0 | BR161: 0 | BS161: 0 | BT161: 2.992488 | BU161: 6.085662 | BV161: 0
BB162: Total | BC162: 5343.44274 | BD162: 5345.17893 | BE162: 5339.424101 | BF162: 5334.778799 | BG162: 5350.110141 | BH162: 3049.020195 | BI162: 3031.938373 | BJ162: 3050.785301 | BK162: 3049.68318 | BL162: 3058.190405 | BM162: 2295.109797 | BN162: 2293.00303 | BO162: 2295.095069 | BP162: 2278.583025 | BQ162: 2311.526336 | BR162: 4419.10743 | BS162: 2294.925937 | BT162: 6298.54908 | BU162: 9213.692268 | BV162: 4486.659996
A208: =A1026 -> Mongolia
A209: =A1034 -> 2005
A210: Access to hygiene facilities
A211: by wealth quintile and sub-national region
A212: Notes:
A213: WHO/UNICEF JMP customised wealth index excludes water,
A214: sanitation and hygiene assets.
A215: Survey used for analysis: | B215: =A1025 -> MICS05
A220: Access to handwashing | C220: NATIONAL wealth index quintile | H220: URBAN wealth index quintile | M220: RURAL wealth index quintile | R220: SUB-REGIONS: | BA220: Raw numbers of respondents: | BB220: Access to handwashing | BC220: NATIONAL wealth index quintile | BH220: URBAN wealth index quintile | BM220: RURAL wealth index quintile | BR220: SUB-REGIONS:
A221: Weighted percentage (used in graphs) | C221: Poorest | D221: Poor | E221: Middle | F221: Rich | G221: Richest | H221: Poorest | I221: Poor | J221: Middle | K221: Rich | L221: Richest | M221: Poorest | N221: Poor | O221: Middle | P221: Rich | Q221: Richest | R221: Central | S221: Eastern | T221: Khangai | U221: Ulaanbaatar | V221: Western | BA221: Hygiene data, raw numbers (weighted) | BC221: Poorest | BD221: Poor | BE221: Middle | BF221: Rich | BG221: Richest | BH221: Poorest | BI221: Poor | BJ221: Middle | BK221: Rich | BL221: Richest | BM221: Poorest | BN221: Poor | BO221: Middle | BP221: Rich | BQ221: Richest | BR221: Central | BS221: Eastern | BT221: Khangai | BU221: Ulaanbaatar | BV221: Western
A222: Hygiene ladder | B222: Basic | C222: N/A | D222: N/A | E222: N/A | F222: N/A | G222: N/A | H222: N/A | I222: N/A | J222: N/A | K222: N/A | L222: N/A | M222: N/A | N222: N/A | O222: N/A | P222: N/A | Q222: N/A | R222: N/A | S222: N/A | T222: N/A | U222: N/A | V222: N/A | BA222: Hygiene ladder | BB222: Basic | BC222: N/A | BD222: N/A | BE222: N/A | BF222: N/A | BG222: N/A | BH222: N/A | BI222: N/A | BJ222: N/A | BK222: N/A | BL222: N/A | BM222: N/A | BN222: N/A | BO222: N/A | BP222: N/A | BQ222: N/A | BR222: N/A | BS222: N/A | BT222: N/A | BU222: N/A | BV222: N/A
B223: Limited | C223: N/A | D223: N/A | E223: N/A | F223: N/A | G223: N/A | H223: N/A | I223: N/A | J223: N/A | K223: N/A | L223: N/A | M223: N/A | N223: N/A | O223: N/A | P223: N/A | Q223: N/A | R223: N/A | S223: N/A | T223: N/A | U223: N/A | V223: N/A | BB223: Limited | BC223: N/A | BD223: N/A | BE223: N/A | BF223: N/A | BG223: N/A | BH223: N/A | BI223: N/A | BJ223: N/A | BK223: N/A | BL223: N/A | BM223: N/A | BN223: N/A | BO223: N/A | BP223: N/A | BQ223: N/A | BR223: N/A | BS223: N/A | BT223: N/A | BU223: N/A | BV223: N/A
B224: No facility | C224: N/A | D224: N/A | E224: N/A | F224: N/A | G224: N/A | H224: N/A | I224: N/A | J224: N/A | K224: N/A | L224: N/A | M224: N/A | N224: N/A | O224: N/A | P224: N/A | Q224: N/A | R224: N/A | S224: N/A | T224: N/A | U224: N/A | V224: N/A | BB224: No facility | BC224: N/A | BD224: N/A | BE224: N/A | BF224: N/A | BG224: N/A | BH224: N/A | BI224: N/A | BJ224: N/A | BK224: N/A | BL224: N/A | BM224: N/A | BN224: N/A | BO224: N/A | BP224: N/A | BQ224: N/A | BR224: N/A | BS224: N/A | BT224: N/A | BU224: N/A | BV224: N/A
BA225: Observed handwashing place | BB225: Fixed | BC225: N/A | BD225: N/A | BE225: N/A | BF225: N/A | BG225: N/A | BH225: N/A | BI225: N/A | BJ225: N/A | BK225: N/A | BL225: N/A | BM225: N/A | BN225: N/A | BO225: N/A | BP225: N/A | BQ225: N/A | BR225: N/A | BS225: N/A | BT225: N/A | BU225: N/A | BV225: N/A
BB226: Mobile | BC226: N/A | BD226: N/A | BE226: N/A | BF226: N/A | BG226: N/A | BH226: N/A | BI226: N/A | BJ226: N/A | BK226: N/A | BL226: N/A | BM226: N/A | BN226: N/A | BO226: N/A | BP226: N/A | BQ226: N/A | BR226: N/A | BS226: N/A | BT226: N/A | BU226: N/A | BV226: N/A
BA227: Water / Soap | BB227: Water and soap | BC227: N/A | BD227: N/A | BE227: N/A | BF227: N/A | BG227: N/A | BH227: N/A | BI227: N/A | BJ227: N/A | BK227: N/A | BL227: N/A | BM227: N/A | BN227: N/A | BO227: N/A | BP227: N/A | BQ227: N/A | BR227: N/A | BS227: N/A | BT227: N/A | BU227: N/A | BV227: N/A
BB228: Water only | BC228: N/A | BD228: N/A | BE228: N/A | BF228: N/A | BG228: N/A | BH228: N/A | BI228: N/A | BJ228: N/A | BK228: N/A | BL228: N/A | BM228: N/A | BN228: N/A | BO228: N/A | BP228: N/A | BQ228: N/A | BR228: N/A | BS228: N/A | BT228: N/A | BU228: N/A | BV228: N/A
BB229: Soap only | BC229: N/A | BD229: N/A | BE229: N/A | BF229: N/A | BG229: N/A | BH229: N/A | BI229: N/A | BJ229: N/A | BK229: N/A | BL229: N/A | BM229: N/A | BN229: N/A | BO229: N/A | BP229: N/A | BQ229: N/A | BR229: N/A | BS229: N/A | BT229: N/A | BU229: N/A | BV229: N/A
BB230: Neither | BC230: N/A | BD230: N/A | BE230: N/A | BF230: N/A | BG230: N/A | BH230: N/A | BI230: N/A | BJ230: N/A | BK230: N/A | BL230: N/A | BM230: N/A | BN230: N/A | BO230: N/A | BP230: N/A | BQ230: N/A | BR230: N/A | BS230: N/A | BT230: N/A | BU230: N/A | BV230: N/A
BA259: Raw numbers of respondents: | BB259: Menstrual health and hygiene | BC259: NATIONAL wealth index quintile | BH259: URBAN wealth index quintile | BM259: RURAL wealth index quintile | BR259: SUB-REGIONS:
BA260: MHH data, raw numbers (weighted) | BC260: Poorest | BD260: Poor | BE260: Middle | BF260: Rich | BG260: Richest | BH260: Poorest | BI260: Poor | BJ260: Middle | BK260: Rich | BL260: Richest | BM260: Poorest | BN260: Poor | BO260: Middle | BP260: Rich | BQ260: Richest | BR260: Central | BS260: Eastern | BT260: Khangai | BU260: Ulaanbaatar | BV260: Western
BA261: Private place to wash and change | BB261: Yes | BC261: N/A | BD261: N/A | BE261: N/A | BF261: N/A | BG261: N/A | BH261: N/A | BI261: N/A | BJ261: N/A | BK261: N/A | BL261: N/A | BM261: N/A | BN261: N/A | BO261: N/A | BP261: N/A | BQ261: N/A | BR261: N/A | BS261: N/A | BT261: N/A | BU261: N/A | BV261: N/A
BB262: No | BC262: N/A | BD262: N/A | BE262: N/A | BF262: N/A | BG262: N/A | BH262: N/A | BI262: N/A | BJ262: N/A | BK262: N/A | BL262: N/A | BM262: N/A | BN262: N/A | BO262: N/A | BP262: N/A | BQ262: N/A | BR262: N/A | BS262: N/A | BT262: N/A | BU262: N/A | BV262: N/A
BB263: DK/not sure/missing | BC263: N/A | BD263: N/A | BE263: N/A | BF263: N/A | BG263: N/A | BH263: N/A | BI263: N/A | BJ263: N/A | BK263: N/A | BL263: N/A | BM263: N/A | BN263: N/A | BO263: N/A | BP263: N/A | BQ263: N/A | BR263: N/A | BS263: N/A | BT263: N/A | BU263: N/A | BV263: N/A
BA264: Use of menstrual materials | BB264: Materials reusable | BC264: N/A | BD264: N/A | BE264: N/A | BF264: N/A | BG264: N/A | BH264: N/A | BI264: N/A | BJ264: N/A | BK264: N/A | BL264: N/A | BM264: N/A | BN264: N/A | BO264: N/A | BP264: N/A | BQ264: N/A | BR264: N/A | BS264: N/A | BT264: N/A | BU264: N/A | BV264: N/A
BB265: Materials not reusable | BC265: N/A | BD265: N/A | BE265: N/A | BF265: N/A | BG265: N/A | BH265: N/A | BI265: N/A | BJ265: N/A | BK265: N/A | BL265: N/A | BM265: N/A | BN265: N/A | BO265: N/A | BP265: N/A | BQ265: N/A | BR265: N/A | BS265: N/A | BT265: N/A | BU265: N/A | BV265: N/A
BB266: No materials used | BC266: N/A | BD266: N/A | BE266: N/A | BF266: N/A | BG266: N/A | BH266: N/A | BI266: N/A | BJ266: N/A | BK266: N/A | BL266: N/A | BM266: N/A | BN266: N/A | BO266: N/A | BP266: N/A | BQ266: N/A | BR266: N/A | BS266: N/A | BT266: N/A | BU266: N/A | BV266: N/A
BB267: DK/not sure/missing | BC267: N/A | BD267: N/A | BE267: N/A | BF267: N/A | BG267: N/A | BH267: N/A | BI267: N/A | BJ267: N/A | BK267: N/A | BL267: N/A | BM267: N/A | BN267: N/A | BO267: N/A | BP267: N/A | BQ267: N/A | BR267: N/A | BS267: N/A | BT267: N/A | BU267: N/A | BV267: N/A
BA268: Use of menstrual materials with private place to wash and change | BB268: Materials reusable | BC268: N/A | BD268: N/A | BE268: N/A | BF268: N/A | BG268: N/A | BH268: N/A | BI268: N/A | BJ268: N/A | BK268: N/A | BL268: N/A | BM268: N/A | BN268: N/A | BO268: N/A | BP268: N/A | BQ268: N/A | BR268: N/A | BS268: N/A | BT268: N/A | BU268: N/A | BV268: N/A
BB269: Materials not reusable | BC269: N/A | BD269: N/A | BE269: N/A | BF269: N/A | BG269: N/A | BH269: N/A | BI269: N/A | BJ269: N/A | BK269: N/A | BL269: N/A | BM269: N/A | BN269: N/A | BO269: N/A | BP269: N/A | BQ269: N/A | BR269: N/A | BS269: N/A | BT269: N/A | BU269: N/A | BV269: N/A
BB270: No materials used | BC270: N/A | BD270: N/A | BE270: N/A | BF270: N/A | BG270: N/A | BH270: N/A | BI270: N/A | BJ270: N/A | BK270: N/A | BL270: N/A | BM270: N/A | BN270: N/A | BO270: N/A | BP270: N/A | BQ270: N/A | BR270: N/A | BS270: N/A | BT270: N/A | BU270: N/A | BV270: N/A
BA271: Awareness of menstruation before menarche | BB271: Yes | BC271: N/A | BD271: N/A | BE271: N/A | BF271: N/A | BG271: N/A | BH271: N/A | BI271: N/A | BJ271: N/A | BK271: N/A | BL271: N/A | BM271: N/A | BN271: N/A | BO271: N/A | BP271: N/A | BQ271: N/A | BR271: N/A | BS271: N/A | BT271: N/A | BU271: N/A | BV271: N/A
BB272: No | BC272: N/A | BD272: N/A | BE272: N/A | BF272: N/A | BG272: N/A | BH272: N/A | BI272: N/A | BJ272: N/A | BK272: N/A | BL272: N/A | BM272: N/A | BN272: N/A | BO272: N/A | BP272: N/A | BQ272: N/A | BR272: N/A | BS272: N/A | BT272: N/A | BU272: N/A | BV272: N/A
BB273: DK/not sure/missing | BC273: N/A | BD273: N/A | BE273: N/A | BF273: N/A | BG273: N/A | BH273: N/A | BI273: N/A | BJ273: N/A | BK273: N/A | BL273: N/A | BM273: N/A | BN273: N/A | BO273: N/A | BP273: N/A | BQ273: N/A | BR273: N/A | BS273: N/A | BT273: N/A | BU273: N/A | BV273: N/A
BA274: Participation in (all) activities during menstruation | BB274: Yes | BC274: N/A | BD274: N/A | BE274: N/A | BF274: N/A | BG274: N/A | BH274: N/A | BI274: N/A | BJ274: N/A | BK274: N/A | BL274: N/A | BM274: N/A | BN274: N/A | BO274: N/A | BP274: N/A | BQ274: N/A | BR274: N/A | BS274: N/A | BT274: N/A | BU274: N/A | BV274: N/A
BB275: No | BC275: N/A | BD275: N/A | BE275: N/A | BF275: N/A | BG275: N/A | BH275: N/A | BI275: N/A | BJ275: N/A | BK275: N/A | BL275: N/A | BM275: N/A | BN275: N/A | BO275: N/A | BP275: N/A | BQ275: N/A | BR275: N/A | BS275: N/A | BT275: N/A | BU275: N/A | BV275: N/A
BB276: DK/not sure/missing/no such activity | BC276: N/A | BD276: N/A | BE276: N/A | BF276: N/A | BG276: N/A | BH276: N/A | BI276: N/A | BJ276: N/A | BK276: N/A | BL276: N/A | BM276: N/A | BN276: N/A | BO276: N/A | BP276: N/A | BQ276: N/A | BR276: N/A | BS276: N/A | BT276: N/A | BU276: N/A | BV276: N/A
BA277: Participation in specific activities during menstruation | BB277: Did not go to school (amongst those usually attending school) | BC277: N/A | BD277: N/A | BE277: N/A | BF277: N/A | BG277: N/A | BH277: N/A | BI277: N/A | BJ277: N/A | BK277: N/A | BL277: N/A | BM277: N/A | BN277: N/A | BO277: N/A | BP277: N/A | BQ277: N/A | BR277: N/A | BS277: N/A | BT277: N/A | BU277: N/A | BV277: N/A
BB278: Did not go to work (amongst those who usually work) | BC278: N/A | BD278: N/A | BE278: N/A | BF278: N/A | BG278: N/A | BH278: N/A | BI278: N/A | BJ278: N/A | BK278: N/A | BL278: N/A | BM278: N/A | BN278: N/A | BO278: N/A | BP278: N/A | BQ278: N/A | BR278: N/A | BS278: N/A | BT278: N/A | BU278: N/A | BV278: N/A
BB279: Did not participate in social activities | BC279: N/A | BD279: N/A | BE279: N/A | BF279: N/A | BG279: N/A | BH279: N/A | BI279: N/A | BJ279: N/A | BK279: N/A | BL279: N/A | BM279: N/A | BN279: N/A | BO279: N/A | BP279: N/A | BQ279: N/A | BR279: N/A | BS279: N/A | BT279: N/A | BU279: N/A | BV279: N/A
BB280: Did not cook food | BC280: N/A | BD280: N/A | BE280: N/A | BF280: N/A | BG280: N/A | BH280: N/A | BI280: N/A | BJ280: N/A | BK280: N/A | BL280: N/A | BM280: N/A | BN280: N/A | BO280: N/A | BP280: N/A | BQ280: N/A | BR280: N/A | BS280: N/A | BT280: N/A | BU280: N/A | BV280: N/A
BB281: Did not eat with others | BC281: N/A | BD281: N/A | BE281: N/A | BF281: N/A | BG281: N/A | BH281: N/A | BI281: N/A | BJ281: N/A | BK281: N/A | BL281: N/A | BM281: N/A | BN281: N/A | BO281: N/A | BP281: N/A | BQ281: N/A | BR281: N/A | BS281: N/A | BT281: N/A | BU281: N/A | BV281: N/A
BB282: Did not bathe in regular place | BC282: N/A | BD282: N/A | BE282: N/A | BF282: N/A | BG282: N/A | BH282: N/A | BI282: N/A | BJ282: N/A | BK282: N/A | BL282: N/A | BM282: N/A | BN282: N/A | BO282: N/A | BP282: N/A | BQ282: N/A | BR282: N/A | BS282: N/A | BT282: N/A | BU282: N/A | BV282: N/A
BB283: Did not participate in other activities | BC283: N/A | BD283: N/A | BE283: N/A | BF283: N/A | BG283: N/A | BH283: N/A | BI283: N/A | BJ283: N/A | BK283: N/A | BL283: N/A | BM283: N/A | BN283: N/A | BO283: N/A | BP283: N/A | BQ283: N/A | BR283: N/A | BS283: N/A | BT283: N/A | BU283: N/A | BV283: N/A
BB284: DK/not sure/missing/no such activity | BC284: N/A | BD284: N/A | BE284: N/A | BF284: N/A | BG284: N/A | BH284: N/A | BI284: N/A | BJ284: N/A | BK284: N/A | BL284: N/A | BM284: N/A | BN284: N/A | BO284: N/A | BP284: N/A | BQ284: N/A | BR284: N/A | BS284: N/A | BT284: N/A | BU284: N/A | BV284: N/A
BA339: Raw numbers of respondents: | BB339: Basic water, sanitation and hygiene | BC339: NATIONAL wealth index quintile | BH339: URBAN wealth index quintile | BM339: RURAL wealth index quintile | BR339: SUB-REGIONS:
BA340: WatSan data, raw numbers (weighted) | BC340: Poorest | BD340: Poor | BE340: Middle | BF340: Rich | BG340: Richest | BH340: Poorest | BI340: Poor | BJ340: Middle | BK340: Rich | BL340: Richest | BM340: Poorest | BN340: Poor | BO340: Middle | BP340: Rich | BQ340: Richest | BR340: Central | BS340: Eastern | BT340: Khangai | BU340: Ulaanbaatar | BV340: Western
BA341: Use of Basic Water Sanitation and Hygiene | BB341: Yes | BC341: N/A | BD341: N/A | BE341: N/A | BF341: N/A | BG341: N/A | BH341: N/A | BI341: N/A | BJ341: N/A | BK341: N/A | BL341: N/A | BM341: N/A | BN341: N/A | BO341: N/A | BP341: N/A | BQ341: N/A | BR341: N/A | BS341: N/A | BT341: N/A | BU341: N/A | BV341: N/A
BB342: No | BC342: N/A | BD342: N/A | BE342: N/A | BF342: N/A | BG342: N/A | BH342: N/A | BI342: N/A | BJ342: N/A | BK342: N/A | BL342: N/A | BM342: N/A | BN342: N/A | BO342: N/A | BP342: N/A | BQ342: N/A | BR342: N/A | BS342: N/A | BT342: N/A | BU342: N/A | BV342: N/A
BA343: Use of Basic Water and Sanitation | BB343: Yes | BC343: N/A | BD343: N/A | BE343: N/A | BF343: N/A | BG343: N/A | BH343: N/A | BI343: N/A | BJ343: N/A | BK343: N/A | BL343: N/A | BM343: N/A | BN343: N/A | BO343: N/A | BP343: N/A | BQ343: N/A | BR343: N/A | BS343: N/A | BT343: N/A | BU343: N/A | BV343: N/A
BB344: No | BC344: N/A | BD344: N/A | BE344: N/A | BF344: N/A | BG344: N/A | BH344: N/A | BI344: N/A | BJ344: N/A | BK344: N/A | BL344: N/A | BM344: N/A | BN344: N/A | BO344: N/A | BP344: N/A | BQ344: N/A | BR344: N/A | BS344: N/A | BT344: N/A | BU344: N/A | BV344: N/A
BA345: Use of Basic Water and Hygiene | BB345: Yes | BC345: N/A | BD345: N/A | BE345: N/A | BF345: N/A | BG345: N/A | BH345: N/A | BI345: N/A | BJ345: N/A | BK345: N/A | BL345: N/A | BM345: N/A | BN345: N/A | BO345: N/A | BP345: N/A | BQ345: N/A | BR345: N/A | BS345: N/A | BT345: N/A | BU345: N/A | BV345: N/A
BB346: No | BC346: N/A | BD346: N/A | BE346: N/A | BF346: N/A | BG346: N/A | BH346: N/A | BI346: N/A | BJ346: N/A | BK346: N/A | BL346: N/A | BM346: N/A | BN346: N/A | BO346: N/A | BP346: N/A | BQ346: N/A | BR346: N/A | BS346: N/A | BT346: N/A | BU346: N/A | BV346: N/A
BA347: Use of Basic Sanitation and Hygiene | BB347: Yes | BC347: N/A | BD347: N/A | BE347: N/A | BF347: N/A | BG347: N/A | BH347: N/A | BI347: N/A | BJ347: N/A | BK347: N/A | BL347: N/A | BM347: N/A | BN347: N/A | BO347: N/A | BP347: N/A | BQ347: N/A | BR347: N/A | BS347: N/A | BT347: N/A | BU347: N/A | BV347: N/A
BB348: No | BC348: N/A | BD348: N/A | BE348: N/A | BF348: N/A | BG348: N/A | BH348: N/A | BI348: N/A | BJ348: N/A | BK348: N/A | BL348: N/A | BM348: N/A | BN348: N/A | BO348: N/A | BP348: N/A | BQ348: N/A | BR348: N/A | BS348: N/A | BT348: N/A | BU348: N/A | BV348: N/A
BA349: Use of Basic Water | BB349: Yes | BC349: N/A | BD349: N/A | BE349: N/A | BF349: N/A | BG349: N/A | BH349: N/A | BI349: N/A | BJ349: N/A | BK349: N/A | BL349: N/A | BM349: N/A | BN349: N/A | BO349: N/A | BP349: N/A | BQ349: N/A | BR349: N/A | BS349: N/A | BT349: N/A | BU349: N/A | BV349: N/A
BB350: No | BC350: N/A | BD350: N/A | BE350: N/A | BF350: N/A | BG350: N/A | BH350: N/A | BI350: N/A | BJ350: N/A | BK350: N/A | BL350: N/A | BM350: N/A | BN350: N/A | BO350: N/A | BP350: N/A | BQ350: N/A | BR350: N/A | BS350: N/A | BT350: N/A | BU350: N/A | BV350: N/A
BA351: Use of Basic Sanitation | BB351: Yes | BC351: N/A | BD351: N/A | BE351: N/A | BF351: N/A | BG351: N/A | BH351: N/A | BI351: N/A | BJ351: N/A | BK351: N/A | BL351: N/A | BM351: N/A | BN351: N/A | BO351: N/A | BP351: N/A | BQ351: N/A | BR351: N/A | BS351: N/A | BT351: N/A | BU351: N/A | BV351: N/A
BB352: No | BC352: N/A | BD352: N/A | BE352: N/A | BF352: N/A | BG352: N/A | BH352: N/A | BI352: N/A | BJ352: N/A | BK352: N/A | BL352: N/A | BM352: N/A | BN352: N/A | BO352: N/A | BP352: N/A | BQ352: N/A | BR352: N/A | BS352: N/A | BT352: N/A | BU352: N/A | BV352: N/A
BA353: Access to Basic Hygiene | BB353: Yes | BC353: N/A | BD353: N/A | BE353: N/A | BF353: N/A | BG353: N/A | BH353: N/A | BI353: N/A | BJ353: N/A | BK353: N/A | BL353: N/A | BM353: N/A | BN353: N/A | BO353: N/A | BP353: N/A | BQ353: N/A | BR353: N/A | BS353: N/A | BT353: N/A | BU353: N/A | BV353: N/A
BB354: No | BC354: N/A | BD354: N/A | BE354: N/A | BF354: N/A | BG354: N/A | BH354: N/A | BI354: N/A | BJ354: N/A | BK354: N/A | BL354: N/A | BM354: N/A | BN354: N/A | BO354: N/A | BP354: N/A | BQ354: N/A | BR354: N/A | BS354: N/A | BT354: N/A | BU354: N/A | BV354: N/A
C399: INITIAL (national) Wealth Index | H399: URBAN Wealth Index | M399: RURAL Wealth Index
C400: Component Matrix | H400: Component Matrix | M400: Component Matrix
E401: Component | J401: Component | O401: Component
B402: Note: The INITIAL (national) Wealth Index is based on the first component of the Principal Component Analysis (PCA) which has been obtained at national level. The final national-level (NATIONAL) Wealth Index is based on the URBAN and RURAL specific wealth indexes. Regression procedures are used to establish the relationships between the two sets of scores (urban and rural) and the initial (national) wealth factors. This allows best use of the available information for each area and a better precision of the FINAL (NATIONAL) Wealth Index. For dependency reasons, all WASH variables (contained in the generic MICS and DHS scripts) have been excluded from the sets of asset variables used in the PCAs. The PCA can extracts as many components as there are asset variables in the input. Only the first of the components is used to represent the Wealth Index. The scores represent the weights of the asset variables on the Wealth Index (correlations between the variables and the component). The communalities are the proportion of each variable's variance that can be explained by the component. Proportion of explained variance is the part of the model's total variance that is explained by the component. For more information on the procedure used: The DHS Wealth Index, DHS Comparative Reports No. 6, Shea Oscar Rutstein, Kiersten Johnson, ORC Macro International Inc., 2004. The DHS Wealth Index: Approaches for Rural and Urban Areas, Shea O. Rutstein, ORC Macro International Inc., 2008. MICS Methodological Paper No. 4, Review of options for reporting water, sanitation and hygiene coverage by wealth quintile, UNICEF, 2016. | E402: 1 | J402: 1 | O402: 1
C403: Household cooks on closed owen | E403: -0.7905616575 | H403: Household cooks on closed owen | J403: 0.8632373183 | M403: Household member owns: asset2f | O403: -0.5634684501
C404: fuel1 | E404: 0.790510064 | H404: fuel1 | J404: -0.8600920635 | M404: fuel10 | O404: 0.4933566454
C405: Household member owns: asset2f | E405: 0.752073451 | H405: Household member owns: asset2e | J405: -0.6256579635 | M405: Household member owns: asset2e | O405: -0.4893351716
C406: Household member owns: asset2d | E406: 0.7117056678 | H406: floor6 | J406: -0.6243161989 | M406: floor3 | O406: -0.483418779
C407: Household member owns: asset2e | E407: 0.6701832931 | H407: Household member owns: asset2f | J407: -0.5301573791 | M407: Household member owns: asset2c | O407: -0.4739106067
C408: Household member owns: asset2c | E408: 0.5699782016 | H408: floor3 | J408: 0.513964639 | M408: fuel1 | O408: -0.4579384107
C409: Household member owns: asset2a | E409: 0.5367194854 | H409: Household member owns: asset2d | J409: -0.5004298921 | M409: floor1 | O409: 0.4564725682
C410: floor6 | E410: 0.5288989226 | H410: fuel8 | J410: 0.4331415874 | M410: owner1 | O410: 0.4297385614
C411: fuel10 | E411: -0.5082463977 | H411: fuel6 | J411: 0.4053168206 | M411: owner2 | O411: -0.4297385614
C412: floor1 | E412: -0.4471123005 | H412: Household member owns: asset2h | J412: -0.3492005138 | M412: Household member owns: asset2a | O412: -0.422174766
C413: Household member owns: asset2k | E413: -0.3783708899 | H413: Household member owns: asset2b | J413: -0.3188140143 | M413: goat30 | O413: 0.4134732665
C414: Household member owns: asset2j | E414: -0.3685666069 | H414: Household member owns: asset2l | J414: -0.3174407701 | M414: Household cooks on closed owen | O414: 0.4128513088
C415: Household member owns: asset2h | E415: 0.3653198907 | H415: cow1 | J415: 0.2554976343 | M415: horse10 | O415: 0.400637357
C416: Household member owns: asset2l | E416: 0.3097528107 | H416: floor1 | J416: 0.2368134667 | M416: Household member owns: asset2d | O416: -0.4001827756
C417: fuel8 | E417: -0.287934333 | H417: Household member owns: asset2c | J417: -0.2349327468 | M417: cattle10 | O417: 0.3535031087
C418: floor2 | E418: -0.2286941466 | H418: floor5 | J418: -0.2181514851 | M418: Household member owns: asset2k | O418: 0.3426523414
... 229 more rows

Sheet MICS10
A2: =A1026 -> Mongolia
A3: =A1034 -> 2010
A4: Use of drinking water sources
A5: by wealth quintile and sub-national region
A6: Notes:
A7: WHO/UNICEF JMP customised wealth index excludes water,
A8: sanitation and hygiene assets.
A9: Survey used for analysis: | B9: =A1025 -> MICS10
A10: =B1028 -> 
A11: =B1027 -> 
A14: Use of drinking water sources | C14: NATIONAL wealth index quintile | H14: URBAN wealth index quintile | M14: RURAL wealth index quintile | R14: Region | BA14: Raw numbers of respondents: | BB14: Use of drinking water sources | BC14: NATIONAL wealth index quintile | BH14: URBAN wealth index quintile | BM14: RURAL wealth index quintile | BR14: SUB-REGIONS:
A15: Weighted percentage (used in graphs) | C15: Poorest | D15: Poor | E15: Middle | F15: Rich | G15: Richest | H15: Poorest | I15: Poor | J15: Middle | K15: Rich | L15: Richest | M15: Poorest | N15: Poor | O15: Middle | P15: Rich | Q15: Richest | R15: Central | S15: Eastern | T15: Khangai | U15: Ulaanbaatar | V15: Western | BA15: Water data, raw numbers (weighted) | BC15: Poorest | BD15: Poor | BE15: Middle | BF15: Rich | BG15: Richest | BH15: Poorest | BI15: Poor | BJ15: Middle | BK15: Rich | BL15: Richest | BM15: Poorest | BN15: Poor | BO15: Middle | BP15: Rich | BQ15: Richest | BR15: Central | BS15: Eastern | BT15: Khangai | BU15: Ulaanbaatar | BV15: Western
A16: Water | B16: Improved | C16: 43.26144007 | D16: 86.31721567 | E16: 96.73619047 | F16: 97.3136136 | G16: 99.8401148 | H16: 84.20189881 | I16: 96.18233488 | J16: 97.42743832 | K16: 98.16515784 | L16: 99.92848971 | M16: 45.80896463 | N16: 41.63330917 | O16: 38.82048566 | P16: 35.5672538 | Q16: 69.96936987 | R16: 91.46711128 | S16: 82.91872563 | T16: 65.61345604 | U16: 99.82271758 | V16: 64.18757505 | BA16: Water | BB16: Improved | BC16: N/A | BD16: N/A | BE16: N/A | BF16: N/A | BG16: N/A | BH16: N/A | BI16: N/A | BJ16: N/A | BK16: N/A | BL16: N/A | BM16: N/A | BN16: N/A | BO16: N/A | BP16: N/A | BQ16: N/A | BR16: N/A | BS16: N/A | BT16: N/A | BU16: N/A | BV16: N/A
B17: Not Improved | C17: 56.73855993 | D17: 13.68278433 | E17: 3.263809527 | F17: 2.686386398 | G17: 0.1598851982 | H17: 15.79810119 | I17: 3.817665122 | J17: 2.572561676 | K17: 1.834842165 | L17: 0.07151028924 | M17: 54.19103537 | N17: 58.36669083 | O17: 61.17951434 | P17: 64.4327462 | Q17: 30.03063013 | R17: 8.532888725 | S17: 17.08127437 | T17: 34.38654396 | U17: 0.1772824229 | V17: 35.81242495 | BB17: Not Improved | BC17: N/A | BD17: N/A | BE17: N/A | BF17: N/A | BG17: N/A | BH17: N/A | BI17: N/A | BJ17: N/A | BK17: N/A | BL17: N/A | BM17: N/A | BN17: N/A | BO17: N/A | BP17: N/A | BQ17: N/A | BR17: N/A | BS17: N/A | BT17: N/A | BU17: N/A | BV17: N/A
A18: Water ladder | B18: Basic | C18: 33.22319833 | D18: 78.82602367 | E18: 90.52825314 | F18: 90.89576333 | G18: 99.42790376 | H18: 76.12650627 | I18: 90.0482526 | J18: 90.43368231 | K18: 93.62115766 | L18: 99.55468893 | M18: 32.82494575 | N18: 30.22486939 | O18: 30.95651828 | P18: 28.06131743 | Q18: 62.88139278 | R18: 83.5389964 | S18: 72.32687696 | T18: 60.93609246 | U18: 93.7866396 | V18: 60.37835542 | BA18: Water ladder | BB18: Basic | BC18: N/A | BD18: N/A | BE18: N/A | BF18: N/A | BG18: N/A | BH18: N/A | BI18: N/A | BJ18: N/A | BK18: N/A | BL18: N/A | BM18: N/A | BN18: N/A | BO18: N/A | BP18: N/A | BQ18: N/A | BR18: N/A | BS18: N/A | BT18: N/A | BU18: N/A | BV18: N/A
B19: Limited | C19: 10.03824175 | D19: 7.491191996 | E19: 6.20793733 | F19: 6.409264029 | G19: 0.4122110456 | H19: 8.075392537 | I19: 6.134082279 | J19: 6.987808954 | K19: 4.540774207 | L19: 0.3738007797 | M19: 12.98401888 | N19: 11.40843978 | O19: 7.86396738 | P19: 7.505936367 | Q19: 7.087977086 | R19: 7.92587946 | S19: 10.59184867 | T19: 4.659210675 | U19: 6.035859825 | V19: 3.809219628 | BB19: Limited | BC19: N/A | BD19: N/A | BE19: N/A | BF19: N/A | BG19: N/A | BH19: N/A | BI19: N/A | BJ19: N/A | BK19: N/A | BL19: N/A | BM19: N/A | BN19: N/A | BO19: N/A | BP19: N/A | BQ19: N/A | BR19: N/A | BS19: N/A | BT19: N/A | BU19: N/A | BV19: N/A
B20: Unimproved | C20: 17.54792128 | D20: 4.564776619 | E20: 1.502465621 | F20: 1.543864839 | G20: 0.08577757654 | H20: 6.004714306 | I20: 1.923554374 | J20: 1.092588371 | K20: 1.134556784 | L20: 0.07151028924 | M20: 19.01137759 | N20: 21.1718079 | O20: 14.85464753 | P20: 18.20979277 | Q20: 6.942263769 | R20: 6.916969705 | S20: 11.81713986 | T20: 6.544786206 | U20: 0.1775005746 | V20: 10.15420177 | BB20: Unimproved | BC20: N/A | BD20: N/A | BE20: N/A | BF20: N/A | BG20: N/A | BH20: N/A | BI20: N/A | BJ20: N/A | BK20: N/A | BL20: N/A | BM20: N/A | BN20: N/A | BO20: N/A | BP20: N/A | BQ20: N/A | BR20: N/A | BS20: N/A | BT20: N/A | BU20: N/A | BV20: N/A
B21: Surface water | C21: 39.19063865 | D21: 9.118007715 | E21: 1.761343906 | F21: 1.151107798 | G21: 0.07410762168 | H21: 9.793386883 | I21: 1.894110747 | J21: 1.485920363 | K21: 0.7035113512 | L21: 0 | M21: 35.17965778 | N21: 37.19488293 | O21: 46.3248668 | P21: 46.22295343 | Q21: 23.08836636 | R21: 1.618154437 | S21: 5.264134518 | T21: 27.85991066 | U21: 0 | V21: 25.65822319 | BB21: Surface water | BC21: N/A | BD21: N/A | BE21: N/A | BF21: N/A | BG21: N/A | BH21: N/A | BI21: N/A | BJ21: N/A | BK21: N/A | BL21: N/A | BM21: N/A | BN21: N/A | BO21: N/A | BP21: N/A | BQ21: N/A | BR21: N/A | BS21: N/A | BT21: N/A | BU21: N/A | BV21: N/A
A22: Improved water point at more than 30 minutes | B22: Yes | C22: 23.2036699 | D22: 8.678676598 | E22: 6.417388673 | F22: 6.586775835 | G22: 0.4128711655 | H22: 9.590511201 | I22: 6.377556011 | J22: 7.172759176 | K22: 4.625799555 | L22: 0.374068277 | M22: 28.34383834 | N22: 27.40219312 | O22: 20.25726171 | P22: 21.1035027 | Q22: 10.13011422 | R22: 8.66548977 | S22: 12.77377165 | T22: 7.102963859 | U22: 6.046592561 | V22: 5.934512442 | BA22: Improved water point at more than 30 minutes | BB22: Yes | BC22: N/A | BD22: N/A | BE22: N/A | BF22: N/A | BG22: N/A | BH22: N/A | BI22: N/A | BJ22: N/A | BK22: N/A | BL22: N/A | BM22: N/A | BN22: N/A | BO22: N/A | BP22: N/A | BQ22: N/A | BR22: N/A | BS22: N/A | BT22: N/A | BU22: N/A | BV22: N/A
B23: No | C23: 76.7963301 | D23: 91.3213234 | E23: 93.58261133 | F23: 93.41322416 | G23: 99.58712883 | H23: 90.4094888 | I23: 93.62244399 | J23: 92.82724082 | K23: 95.37420045 | L23: 99.62593172 | M23: 71.65616166 | N23: 72.59780688 | O23: 79.74273829 | P23: 78.8964973 | Q23: 89.86988578 | R23: 91.33451023 | S23: 87.22622835 | T23: 92.89703614 | U23: 93.95340744 | V23: 94.06548756 | BB23: No | BC23: N/A | BD23: N/A | BE23: N/A | BF23: N/A | BG23: N/A | BH23: N/A | BI23: N/A | BJ23: N/A | BK23: N/A | BL23: N/A | BM23: N/A | BN23: N/A | BO23: N/A | BP23: N/A | BQ23: N/A | BR23: N/A | BS23: N/A | BT23: N/A | BU23: N/A | BV23: N/A
A24: Manually calculated ratios | B24: Improved wells
B25: Improved springs
B26: Other
C27: NATIONAL wealth index quintile | H27: URBAN wealth index quintile | M27: RURAL wealth index quintile | R27: Region | BA27: Raw numbers of respondents: | BB27: Use of drinking water sources | BC27: NATIONAL wealth index quintile | BH27: URBAN wealth index quintile | BM27: RURAL wealth index quintile | BR27: SUB-REGIONS:
A28: Percentage based on weighted population | C28: Poorest | D28: Poor | E28: Middle | F28: Rich | G28: Richest | H28: Poorest | I28: Poor | J28: Middle | K28: Rich | L28: Richest | M28: Poorest | N28: Poor | O28: Middle | P28: Rich | Q28: Richest | R28: Central | S28: Eastern | T28: Khangai | U28: Ulaanbaatar | V28: Western | BA28: Water data, raw numbers (weighted) | BC28: Poorest | BD28: Poor | BE28: Middle | BF28: Rich | BG28: Richest | BH28: Poorest | BI28: Poor | BJ28: Middle | BK28: Rich | BL28: Richest | BM28: Poorest | BN28: Poor | BO28: Middle | BP28: Rich | BQ28: Richest | BR28: Central | BS28: Eastern | BT28: Khangai | BU28: Ulaanbaatar | BV28: Western
A29: Piped water | B29: Yes | C29: 0.4567209319 | D29: 11.30077876 | E29: 15.40299757 | F29: 26.56156866 | G29: 91.2702417 | H29: 10.55194571 | I29: 14.78300038 | J29: 17.43362409 | K29: 40.26133689 | L29: 97.97804093 | M29: 0 | N29: 0.0563403151 | O29: 0.2126756408 | P29: 0.7499718929 | Q29: 12.20498542 | R29: 25.6235552 | S29: 23.82347523 | T29: 12.26797864 | U29: 49.3259421 | V29: 5.298073635 | BA29: Piped water | BB29: Yes | BC29: N/A | BD29: N/A | BE29: N/A | BF29: N/A | BG29: N/A | BH29: N/A | BI29: N/A | BJ29: N/A | BK29: N/A | BL29: N/A | BM29: N/A | BN29: N/A | BO29: N/A | BP29: N/A | BQ29: N/A | BR29: N/A | BS29: N/A | BT29: N/A | BU29: N/A | BV29: N/A
B30: No | C30: 99.54327907 | D30: 88.69922124 | E30: 84.59700243 | F30: 73.43843134 | G30: 8.729758295 | H30: 89.44805429 | I30: 85.21699962 | J30: 82.56637591 | K30: 59.73866311 | L30: 2.021959073 | M30: 100 | N30: 99.94365968 | O30: 99.78732436 | P30: 99.25002811 | Q30: 87.79501458 | R30: 74.3764448 | S30: 76.17652477 | T30: 87.73202136 | U30: 50.6740579 | V30: 94.70192637 | BB30: No | BC30: N/A | BD30: N/A | BE30: N/A | BF30: N/A | BG30: N/A | BH30: N/A | BI30: N/A | BJ30: N/A | BK30: N/A | BL30: N/A | BM30: N/A | BN30: N/A | BO30: N/A | BP30: N/A | BQ30: N/A | BR30: N/A | BS30: N/A | BT30: N/A | BU30: N/A | BV30: N/A
A31: Piped water on premises | B31: Yes | C31: 0 | D31: 0.1427229782 | E31: 0.2378177429 | F31: 6.407358933 | G31: 88.81940501 | H31: 0.1033704245 | I31: 0.1093925826 | J31: 0.5522175763 | K31: 21.81950139 | L31: 97.19653365 | M31: 0 | N31: 0 | O31: 0 | P31: 0 | Q31: 7.094813235 | R31: 16.85770892 | S31: 12.55270235 | T31: 9.070271442 | U31: 32.59908071 | V31: 3.52992464 | BA31: Piped water on premises | BB31: Yes | BC31: N/A | BD31: N/A | BE31: N/A | BF31: N/A | BG31: N/A | BH31: N/A | BI31: N/A | BJ31: N/A | BK31: N/A | BL31: N/A | BM31: N/A | BN31: N/A | BO31: N/A | BP31: N/A | BQ31: N/A | BR31: N/A | BS31: N/A | BT31: N/A | BU31: N/A | BV31: N/A
B32: No | C32: 100 | D32: 99.85727702 | E32: 99.76218226 | F32: 93.59264107 | G32: 11.18059499 | H32: 99.89662958 | I32: 99.89060742 | J32: 99.44778242 | K32: 78.18049861 | L32: 2.803466353 | M32: 100 | N32: 100 | O32: 100 | P32: 100 | Q32: 92.90518677 | R32: 83.14229108 | S32: 87.44729765 | T32: 90.92972856 | U32: 67.40091929 | V32: 96.47007536 | BB32: No | BC32: N/A | BD32: N/A | BE32: N/A | BF32: N/A | BG32: N/A | BH32: N/A | BI32: N/A | BJ32: N/A | BK32: N/A | BL32: N/A | BM32: N/A | BN32: N/A | BO32: N/A | BP32: N/A | BQ32: N/A | BR32: N/A | BS32: N/A | BT32: N/A | BU32: N/A | BV32: N/A
A33: Piped water into dwelling | B33: Yes | C33: N/A | D33: N/A | E33: N/A | F33: N/A | G33: N/A | H33: N/A | I33: N/A | J33: N/A | K33: N/A | L33: N/A | M33: N/A | N33: N/A | O33: N/A | P33: N/A | Q33: N/A | R33: N/A | S33: N/A | T33: N/A | U33: N/A | V33: N/A | BA33: Piped water into dwelling | BB33: Yes | BC33: N/A | BD33: N/A | BE33: N/A | BF33: N/A | BG33: N/A | BH33: N/A | BI33: N/A | BJ33: N/A | BK33: N/A | BL33: N/A | BM33: N/A | BN33: N/A | BO33: N/A | BP33: N/A | BQ33: N/A | BR33: N/A | BS33: N/A | BT33: N/A | BU33: N/A | BV33: N/A
B34: No | C34: N/A | D34: N/A | E34: N/A | F34: N/A | G34: N/A | H34: N/A | I34: N/A | J34: N/A | K34: N/A | L34: N/A | M34: N/A | N34: N/A | O34: N/A | P34: N/A | Q34: N/A | R34: N/A | S34: N/A | T34: N/A | U34: N/A | V34: N/A | BB34: No | BC34: N/A | BD34: N/A | BE34: N/A | BF34: N/A | BG34: N/A | BH34: N/A | BI34: N/A | BJ34: N/A | BK34: N/A | BL34: N/A | BM34: N/A | BN34: N/A | BO34: N/A | BP34: N/A | BQ34: N/A | BR34: N/A | BS34: N/A | BT34: N/A | BU34: N/A | BV34: N/A
A35: Water source on premises | B35: Yes | C35: 1.990748344 | D35: 5.036975589 | E35: 6.454040566 | F35: 12.67870394 | G35: 90.64993911 | H35: 4.770559737 | I35: 6.231273893 | J35: 6.883623076 | K35: 27.95795976 | L35: 97.80237693 | M35: 1.233635562 | N35: 0.5588634604 | O35: 1.505535136 | P35: 2.87633092 | Q35: 12.39281136 | R35: 25.44018699 | S35: 16.12090161 | T35: 10.85948877 | U35: 33.63109541 | V35: 15.0637718 | BA35: Water source on premises | BB35: Yes | BC35: N/A | BD35: N/A | BE35: N/A | BF35: N/A | BG35: N/A | BH35: N/A | BI35: N/A | BJ35: N/A | BK35: N/A | BL35: N/A | BM35: N/A | BN35: N/A | BO35: N/A | BP35: N/A | BQ35: N/A | BR35: N/A | BS35: N/A | BT35: N/A | BU35: N/A | BV35: N/A
B36: No | C36: 98.00925166 | D36: 94.96302441 | E36: 93.54595943 | F36: 87.32129606 | G36: 9.350060889 | H36: 95.22944026 | I36: 93.76872611 | J36: 93.11637692 | K36: 72.04204024 | L36: 2.197623071 | M36: 98.76636444 | N36: 99.44113654 | O36: 98.49446486 | P36: 97.12366908 | Q36: 87.60718864 | R36: 74.55981301 | S36: 83.87909839 | T36: 89.14051123 | U36: 66.36890459 | V36: 84.9362282 | BB36: No | BC36: N/A | BD36: N/A | BE36: N/A | BF36: N/A | BG36: N/A | BH36: N/A | BI36: N/A | BJ36: N/A | BK36: N/A | BL36: N/A | BM36: N/A | BN36: N/A | BO36: N/A | BP36: N/A | BQ36: N/A | BR36: N/A | BS36: N/A | BT36: N/A | BU36: N/A | BV36: N/A
A37: Improved Water source on premises | B37: Yes | C37: 1.817963279 | D37: 4.477902955 | E37: 6.103543047 | F37: 12.47229648 | G37: 90.64993911 | H37: 4.145944811 | I37: 5.828254735 | J37: 6.659363272 | K37: 27.84633103 | L37: 97.80237693 | M37: 1.205516729 | N37: 0.3183119059 | O37: 1.505535136 | P37: 2.589423648 | Q37: 11.93135447 | R37: 24.87870247 | S37: 15.21636564 | T37: 10.85948877 | U37: 33.57544971 | V37: 14.59959534 | BA37: Improved water source on premises | BB37: Yes | BC37: N/A | BD37: N/A | BE37: N/A | BF37: N/A | BG37: N/A | BH37: N/A | BI37: N/A | BJ37: N/A | BK37: N/A | BL37: N/A | BM37: N/A | BN37: N/A | BO37: N/A | BP37: N/A | BQ37: N/A | BR37: N/A | BS37: N/A | BT37: N/A | BU37: N/A | BV37: N/A
B38: No | C38: 98.18203672 | D38: 95.52209704 | E38: 93.89645695 | F38: 87.52770352 | G38: 9.350060889 | H38: 95.85405519 | I38: 94.17174527 | J38: 93.34063673 | K38: 72.15366897 | L38: 2.197623071 | M38: 98.79448327 | N38: 99.68168809 | O38: 98.49446486 | P38: 97.41057635 | Q38: 88.06864553 | R38: 75.12129753 | S38: 84.78363436 | T38: 89.14051123 | U38: 66.42455029 | V38: 85.40040466 | BB38: No | BC38: N/A | BD38: N/A | BE38: N/A | BF38: N/A | BG38: N/A | BH38: N/A | BI38: N/A | BJ38: N/A | BK38: N/A | BL38: N/A | BM38: N/A | BN38: N/A | BO38: N/A | BP38: N/A | BQ38: N/A | BR38: N/A | BS38: N/A | BT38: N/A | BU38: N/A | BV38: N/A
A39: Piped water on premises available when needed | B39: Yes | C39: N/A | D39: N/A | E39: N/A | F39: N/A | G39: N/A | H39: N/A | I39: N/A | J39: N/A | K39: N/A | L39: N/A | M39: N/A | N39: N/A | O39: N/A | P39: N/A | Q39: N/A | R39: N/A | S39: N/A | T39: N/A | U39: N/A | V39: N/A | BA39: Piped water on premises available when needed | BB39: Yes | BC39: N/A | BD39: N/A | BE39: N/A | BF39: N/A | BG39: N/A | BH39: N/A | BI39: N/A | BJ39: N/A | BK39: N/A | BL39: N/A | BM39: N/A | BN39: N/A | BO39: N/A | BP39: N/A | BQ39: N/A | BR39: N/A | BS39: N/A | BT39: N/A | BU39: N/A | BV39: N/A
B40: No | C40: N/A | D40: N/A | E40: N/A | F40: N/A | G40: N/A | H40: N/A | I40: N/A | J40: N/A | K40: N/A | L40: N/A | M40: N/A | N40: N/A | O40: N/A | P40: N/A | Q40: N/A | R40: N/A | S40: N/A | T40: N/A | U40: N/A | V40: N/A | BB40: No | BC40: N/A | BD40: N/A | BE40: N/A | BF40: N/A | BG40: N/A | BH40: N/A | BI40: N/A | BJ40: N/A | BK40: N/A | BL40: N/A | BM40: N/A | BN40: N/A | BO40: N/A | BP40: N/A | BQ40: N/A | BR40: N/A | BS40: N/A | BT40: N/A | BU40: N/A | BV40: N/A
A41: Water point at more than 30 minutes | B41: Yes | C41: 19.83541472 | D41: 9.173623136 | E41: 6.57554223 | F41: 6.503313771 | G41: 0.4122110456 | H41: 10.17621626 | I41: 6.628441961 | J41: 7.11044802 | K41: 4.599763284 | L41: 0.3738007797 | M41: 23.65513968 | N41: 24.09470794 | O41: 17.9802132 | P41: 15.99598016 | Q41: 10.58082435 | R41: 9.922944658 | S41: 15.45416035 | T41: 9.553817075 | U41: 6.035859825 | V41: 8.156547569 | BA41: Water point at more than 30 minutes | BB41: Yes | BC41: N/A | BD41: N/A | BE41: N/A | BF41: N/A | BG41: N/A | BH41: N/A | BI41: N/A | BJ41: N/A | BK41: N/A | BL41: N/A | BM41: N/A | BN41: N/A | BO41: N/A | BP41: N/A | BQ41: N/A | BR41: N/A | BS41: N/A | BT41: N/A | BU41: N/A | BV41: N/A
B42: No | C42: 80.16458528 | D42: 90.82637686 | E42: 93.42445777 | F42: 93.49668623 | G42: 99.58778895 | H42: 89.82378374 | I42: 93.37155804 | J42: 92.88955198 | K42: 95.40023672 | L42: 99.62619922 | M42: 76.34486032 | N42: 75.90529206 | O42: 82.0197868 | P42: 84.00401984 | Q42: 89.41917565 | R42: 90.07705534 | S42: 84.54583965 | T42: 90.44618293 | U42: 93.96414018 | V42: 91.84345243 | BB42: No | BC42: N/A | BD42: N/A | BE42: N/A | BF42: N/A | BG42: N/A | BH42: N/A | BI42: N/A | BJ42: N/A | BK42: N/A | BL42: N/A | BM42: N/A | BN42: N/A | BO42: N/A | BP42: N/A | BQ42: N/A | BR42: N/A | BS42: N/A | BT42: N/A | BU42: N/A | BV42: N/A
A43: Water source available when needed | B43: Yes | C43: N/A | D43: N/A | E43: N/A | F43: N/A | G43: N/A | H43: N/A | I43: N/A | J43: N/A | K43: N/A | L43: N/A | M43: N/A | N43: N/A | O43: N/A | P43: N/A | Q43: N/A | R43: N/A | S43: N/A | T43: N/A | U43: N/A | V43: N/A | BA43: Water source available when needed | BB43: Yes | BC43: N/A | BD43: N/A | BE43: N/A | BF43: N/A | BG43: N/A | BH43: N/A | BI43: N/A | BJ43: N/A | BK43: N/A | BL43: N/A | BM43: N/A | BN43: N/A | BO43: N/A | BP43: N/A | BQ43: N/A | BR43: N/A | BS43: N/A | BT43: N/A | BU43: N/A | BV43: N/A
B44: No | C44: N/A | D44: N/A | E44: N/A | F44: N/A | G44: N/A | H44: N/A | I44: N/A | J44: N/A | K44: N/A | L44: N/A | M44: N/A | N44: N/A | O44: N/A | P44: N/A | Q44: N/A | R44: N/A | S44: N/A | T44: N/A | U44: N/A | V44: N/A | BB44: No | BC44: N/A | BD44: N/A | BE44: N/A | BF44: N/A | BG44: N/A | BH44: N/A | BI44: N/A | BJ44: N/A | BK44: N/A | BL44: N/A | BM44: N/A | BN44: N/A | BO44: N/A | BP44: N/A | BQ44: N/A | BR44: N/A | BS44: N/A | BT44: N/A | BU44: N/A | BV44: N/A
A45: Improved water source available when needed | B45: Yes | C45: N/A | D45: N/A | E45: N/A | F45: N/A | G45: N/A | H45: N/A | I45: N/A | J45: N/A | K45: N/A | L45: N/A | M45: N/A | N45: N/A | O45: N/A | P45: N/A | Q45: N/A | R45: N/A | S45: N/A | T45: N/A | U45: N/A | V45: N/A | BA45: Improved water source available when needed | BB45: Yes | BC45: N/A | BD45: N/A | BE45: N/A | BF45: N/A | BG45: N/A | BH45: N/A | BI45: N/A | BJ45: N/A | BK45: N/A | BL45: N/A | BM45: N/A | BN45: N/A | BO45: N/A | BP45: N/A | BQ45: N/A | BR45: N/A | BS45: N/A | BT45: N/A | BU45: N/A | BV45: N/A
B46: No | C46: N/A | D46: N/A | E46: N/A | F46: N/A | G46: N/A | H46: N/A | I46: N/A | J46: N/A | K46: N/A | L46: N/A | M46: N/A | N46: N/A | O46: N/A | P46: N/A | Q46: N/A | R46: N/A | S46: N/A | T46: N/A | U46: N/A | V46: N/A | BB46: No | BC46: N/A | BD46: N/A | BE46: N/A | BF46: N/A | BG46: N/A | BH46: N/A | BI46: N/A | BJ46: N/A | BK46: N/A | BL46: N/A | BM46: N/A | BN46: N/A | BO46: N/A | BP46: N/A | BQ46: N/A | BR46: N/A | BS46: N/A | BT46: N/A | BU46: N/A | BV46: N/A
A47: Microbiological quality at point of collection | B47: Not contaminated (No E. coli in 100 mL) | C47: N/A | D47: N/A | E47: N/A | F47: N/A | G47: N/A | H47: N/A | I47: N/A | J47: N/A | K47: N/A | L47: N/A | M47: N/A | N47: N/A | O47: N/A | P47: N/A | Q47: N/A | R47: N/A | S47: N/A | T47: N/A | U47: N/A | V47: N/A | BA47: Microbiological quality at point of collection | BB47: Not contaminated (No E. coli in 100 mL) | BC47: N/A | BD47: N/A | BE47: N/A | BF47: N/A | BG47: N/A | BH47: N/A | BI47: N/A | BJ47: N/A | BK47: N/A | BL47: N/A | BM47: N/A | BN47: N/A | BO47: N/A | BP47: N/A | BQ47: N/A | BR47: N/A | BS47: N/A | BT47: N/A | BU47: N/A | BV47: N/A
B48: Contaminated (E. coli detected in 100 mL) | C48: N/A | D48: N/A | E48: N/A | F48: N/A | G48: N/A | H48: N/A | I48: N/A | J48: N/A | K48: N/A | L48: N/A | M48: N/A | N48: N/A | O48: N/A | P48: N/A | Q48: N/A | R48: N/A | S48: N/A | T48: N/A | U48: N/A | V48: N/A | BB48: Contaminated (E. coli detected in 100 mL) | BC48: N/A | BD48: N/A | BE48: N/A | BF48: N/A | BG48: N/A | BH48: N/A | BI48: N/A | BJ48: N/A | BK48: N/A | BL48: N/A | BM48: N/A | BN48: N/A | BO48: N/A | BP48: N/A | BQ48: N/A | BR48: N/A | BS48: N/A | BT48: N/A | BU48: N/A | BV48: N/A
B49: Highly contaminated (>100 CFU/100 mL) | C49: N/A | D49: N/A | E49: N/A | F49: N/A | G49: N/A | H49: N/A | I49: N/A | J49: N/A | K49: N/A | L49: N/A | M49: N/A | N49: N/A | O49: N/A | P49: N/A | Q49: N/A | R49: N/A | S49: N/A | T49: N/A | U49: N/A | V49: N/A | BB49: Highly contaminated (>100 CFU/100 mL) | BC49: N/A | BD49: N/A | BE49: N/A | BF49: N/A | BG49: N/A | BH49: N/A | BI49: N/A | BJ49: N/A | BK49: N/A | BL49: N/A | BM49: N/A | BN49: N/A | BO49: N/A | BP49: N/A | BQ49: N/A | BR49: N/A | BS49: N/A | BT49: N/A | BU49: N/A | BV49: N/A
A50: Microbiological quality of improved water sources at point of collection | B50: Not contaminated (No E. coli in 100 mL) | C50: N/A | D50: N/A | E50: N/A | F50: N/A | G50: N/A | H50: N/A | I50: N/A | J50: N/A | K50: N/A | L50: N/A | M50: N/A | N50: N/A | O50: N/A | P50: N/A | Q50: N/A | R50: N/A | S50: N/A | T50: N/A | U50: N/A | V50: N/A | BA50: Microbiological quality of improved water sources at point of collection | BB50: Not contaminated (No E. coli in 100 mL) | BC50: N/A | BD50: N/A | BE50: N/A | BF50: N/A | BG50: N/A | BH50: N/A | BI50: N/A | BJ50: N/A | BK50: N/A | BL50: N/A | BM50: N/A | BN50: N/A | BO50: N/A | BP50: N/A | BQ50: N/A | BR50: N/A | BS50: N/A | BT50: N/A | BU50: N/A | BV50: N/A
B51: Contaminated (E. coli detected in 100 mL) | C51: N/A | D51: N/A | E51: N/A | F51: N/A | G51: N/A | H51: N/A | I51: N/A | J51: N/A | K51: N/A | L51: N/A | M51: N/A | N51: N/A | O51: N/A | P51: N/A | Q51: N/A | R51: N/A | S51: N/A | T51: N/A | U51: N/A | V51: N/A | BB51: Contaminated (E. coli detected in 100 mL) | BC51: N/A | BD51: N/A | BE51: N/A | BF51: N/A | BG51: N/A | BH51: N/A | BI51: N/A | BJ51: N/A | BK51: N/A | BL51: N/A | BM51: N/A | BN51: N/A | BO51: N/A | BP51: N/A | BQ51: N/A | BR51: N/A | BS51: N/A | BT51: N/A | BU51: N/A | BV51: N/A
B52: Highly contaminated (>100 CFU/100 mL) | C52: N/A | D52: N/A | E52: N/A | F52: N/A | G52: N/A | H52: N/A | I52: N/A | J52: N/A | K52: N/A | L52: N/A | M52: N/A | N52: N/A | O52: N/A | P52: N/A | Q52: N/A | R52: N/A | S52: N/A | T52: N/A | U52: N/A | V52: N/A | BB52: Highly contaminated (>100 CFU/100 mL) | BC52: N/A | BD52: N/A | BE52: N/A | BF52: N/A | BG52: N/A | BH52: N/A | BI52: N/A | BJ52: N/A | BK52: N/A | BL52: N/A | BM52: N/A | BN52: N/A | BO52: N/A | BP52: N/A | BQ52: N/A | BR52: N/A | BS52: N/A | BT52: N/A | BU52: N/A | BV52: N/A
A53: Microbiological quality of piped on premises at point of collection | B53: Not contaminated (No E. coli in 100 mL) | C53: N/A | D53: N/A | E53: N/A | F53: N/A | G53: N/A | H53: N/A | I53: N/A | J53: N/A | K53: N/A | L53: N/A | M53: N/A | N53: N/A | O53: N/A | P53: N/A | Q53: N/A | R53: N/A | S53: N/A | T53: N/A | U53: N/A | V53: N/A | BA53: Microbiological quality of piped on premises at point of collection | BB53: Not contaminated (No E. coli in 100 mL) | BC53: N/A | BD53: N/A | BE53: N/A | BF53: N/A | BG53: N/A | BH53: N/A | BI53: N/A | BJ53: N/A | BK53: N/A | BL53: N/A | BM53: N/A | BN53: N/A | BO53: N/A | BP53: N/A | BQ53: N/A | BR53: N/A | BS53: N/A | BT53: N/A | BU53: N/A | BV53: N/A
B54: Contaminated (E. coli detected in 100 mL) | C54: N/A | D54: N/A | E54: N/A | F54: N/A | G54: N/A | H54: N/A | I54: N/A | J54: N/A | K54: N/A | L54: N/A | M54: N/A | N54: N/A | O54: N/A | P54: N/A | Q54: N/A | R54: N/A | S54: N/A | T54: N/A | U54: N/A | V54: N/A | BB54: Contaminated (E. coli detected in 100 mL) | BC54: N/A | BD54: N/A | BE54: N/A | BF54: N/A | BG54: N/A | BH54: N/A | BI54: N/A | BJ54: N/A | BK54: N/A | BL54: N/A | BM54: N/A | BN54: N/A | BO54: N/A | BP54: N/A | BQ54: N/A | BR54: N/A | BS54: N/A | BT54: N/A | BU54: N/A | BV54: N/A
B55: Highly contaminated (>100 CFU/100 mL) | C55: N/A | D55: N/A | E55: N/A | F55: N/A | G55: N/A | H55: N/A | I55: N/A | J55: N/A | K55: N/A | L55: N/A | M55: N/A | N55: N/A | O55: N/A | P55: N/A | Q55: N/A | R55: N/A | S55: N/A | T55: N/A | U55: N/A | V55: N/A | BB55: Highly contaminated (>100 CFU/100 mL) | BC55: N/A | BD55: N/A | BE55: N/A | BF55: N/A | BG55: N/A | BH55: N/A | BI55: N/A | BJ55: N/A | BK55: N/A | BL55: N/A | BM55: N/A | BN55: N/A | BO55: N/A | BP55: N/A | BQ55: N/A | BR55: N/A | BS55: N/A | BT55: N/A | BU55: N/A | BV55: N/A
C56: NATIONAL wealth index quintile | H56: URBAN wealth index quintile | M56: RURAL wealth index quintile | R56: Region | BA56: Raw numbers of respondents: | BB56: Use of drinking water sources | BC56: NATIONAL wealth index quintile | BH56: URBAN wealth index quintile | BM56: RURAL wealth index quintile | BR56: SUB-REGIONS:
A57: Percentage based on weighted population | C57: Poorest | D57: Poor | E57: Middle | F57: Rich | G57: Richest | H57: Poorest | I57: Poor | J57: Middle | K57: Rich | L57: Richest | M57: Poorest | N57: Poor | O57: Middle | P57: Rich | Q57: Richest | R57: Central | S57: Eastern | T57: Khangai | U57: Ulaanbaatar | V57: Western | BA57: Water data, raw numbers (weighted) | BC57: Poorest | BD57: Poor | BE57: Middle | BF57: Rich | BG57: Richest | BH57: Poorest | BI57: Poor | BJ57: Middle | BK57: Rich | BL57: Richest | BM57: Poorest | BN57: Poor | BO57: Middle | BP57: Rich | BQ57: Richest | BR57: Central | BS57: Eastern | BT57: Khangai | BU57: Ulaanbaatar | BV57: Western
A58: What is the main source of drinking water for your household | B58: Piped into dwelling | C58: 0 | D58: 0.1427229782 | E58: 0.2378177429 | F58: 6.37627324 | G58: 88.25978714 | H58: 0.1033704245 | I58: 0.1093925826 | J58: 0.5522175763 | K58: 21.70102857 | L58: 96.56294985 | M58: 0 | N58: 0 | O58: 0 | P58: 0 | Q58: 7.094813235 | R58: 16.55405486 | S58: 12.55270235 | T58: 9.011686999 | U58: 32.46751537 | V58: 3.52992464
B59: Piped into public water kiosk | C59: 0.4567209319 | D59: 11.15805578 | E59: 15.16517983 | F59: 20.15420972 | G59: 2.450836692 | H59: 10.44857529 | I59: 14.67360779 | J59: 16.88140651 | K59: 18.44183551 | L59: 0.7815072805 | M59: 0 | N59: 0.0563403151 | O59: 0.2126756408 | P59: 0.7499718929 | Q59: 5.110172182 | R59: 8.765846284 | S59: 11.27077288 | T59: 3.197707201 | U59: 16.72686139 | V59: 1.768148995
B60: Tube well, borehole | C60: 16.10295683 | D60: 37.73474538 | E60: 33.11142008 | F60: 33.30554881 | G60: 4.922085366 | H60: 37.83346958 | I60: 32.34881094 | J60: 34.3265082 | K60: 28.03328291 | L60: 1.469920011 | M60: 12.22025535 | N60: 11.34401218 | O60: 13.44267179 | P60: 16.23508382 | Q60: 39.66050344 | R60: 29.37001674 | S60: 30.80853702 | T60: 26.92248986 | U60: 17.98868238 | V60: 32.95746543
B61: Protected dug well | C61: 20.72582379 | D61: 11.35704653 | E61: 8.96136377 | F61: 6.796005099 | G61: 0.8424790945 | H61: 12.16793836 | I61: 9.928618446 | J61: 7.610678779 | K61: 5.847472921 | L61: 0.111728541 | M61: 28.31797416 | N61: 25.51792643 | O61: 18.40731627 | P61: 14.15181567 | Q61: 9.923039468 | R61: 22.31402895 | S61: 17.76841428 | T61: 6.497234488 | U61: 0.9269144498 | V61: 18.49727169
B62: Unprotected dug well | C62: 7.828123005 | D62: 1.951517202 | E62: 0.5513641157 | F62: 0.4670945509 | G62: 0 | H62: 2.935792853 | I62: 0.8275716498 | J62: 0.3771210577 | K62: 0.305239187 | L62: 0 | M62: 11.10893725 | N62: 10.32555701 | O62: 5.673575966 | P62: 5.225709488 | Q62: 1.721479415 | R62: 4.175822267 | S62: 7.037364793 | T62: 1.761404806 | U62: 0 | V62: 3.503561394
B63: Protected spring | C63: 3.853823948 | D63: 1.351089286 | E63: 0.5684240689 | F63: 0.7502564624 | G63: 0.09729134835 | H63: 1.6553577 | I63: 0.9497060319 | J63: 0.3195154675 | K63: 0.6844911459 | L63: 0.1238812515 | M63: 3.743317278 | N63: 3.58157753 | O63: 4.896332518 | P63: 3.476031629 | Q63: 1.467491276 | R63: 1.651705309 | S63: 3.792073251 | T63: 2.318103352 | U63: 0.09561523637 | V63: 1.47409204
B64: Unprotected spring | C64: 9.561694706 | D64: 2.38686987 | E64: 0.5668367935 | F64: 0.746895975 | G64: 0.02961627388 | H64: 2.986261225 | I64: 0.5682763263 | J64: 0.465324337 | K64: 0.5226490409 | L64: 0 | M64: 7.902440333 | N64: 10.84625089 | O64: 9.181071566 | P64: 12.2476155 | Q64: 5.115890262 | R64: 2.01836349 | S64: 4.687166717 | T64: 4.707031794 | U64: 0.02197819402 | V64: 6.525675907
B65: Rain, snow water | C65: 0.2000567285 | D65: 0 | E65: 0 | F65: 0 | G65: 0 | H65: 0 | I65: 0 | J65: 0 | K65: 0 | L65: 0 | M65: 0.5072799371 | N65: 0.1395832038 | O65: 0.2831579855 | P65: 0 | Q65: 0 | R65: 0 | S65: 0 | T65: 0.05795637327 | U65: 0 | V65: 0.1938040689
B66: Tanker-truck | C66: 0.766934758 | D66: 15.08309001 | E66: 26.74273916 | F66: 18.74719007 | G66: 2.061916203 | H66: 13.2836853 | I66: 26.1342005 | J66: 24.01900039 | K66: 15.81200312 | L66: 0.1672575941 | M66: 0.6262844154 | N66: 0.3141950211 | O66: 0.9119926377 | P66: 0.2909310656 | Q66: 2.752328897 | R66: 6.13168969 | S66: 1.950687073 | T66: 9.068866493 | U66: 22.83844462 | V66: 4.305928235
B67: Cart with small tank/ drum | C67: 1.15512309 | D67: 9.467117251 | E67: 11.91816754 | F67: 10.97124772 | G67: 0.6461010849 | H67: 8.679779099 | I67: 11.9984402 | J67: 13.68836896 | K67: 7.324734762 | L67: 0.07766138556 | M67: 0.3938534845 | N67: 0.6796744865 | O67: 0.6663388219 | P67: 0.6634197224 | Q67: 3.961021372 | R67: 6.112163484 | S67: 4.775538772 | T67: 8.480826828 | U67: 8.64711879 | V67: 1.460939947
B68: Surface water (river, stream, lake, pond) | C68: 39.19063865 | D68: 9.118007715 | E68: 1.761343906 | F68: 1.147440345 | G68: 0.07410762168 | H68: 9.793386883 | I68: 1.894110747 | J68: 1.482493244 | K68: 0.7022766271 | L68: 0 | M68: 35.17965778 | N68: 37.19488293 | O68: 46.3248668 | P68: 46.22295343 | Q68: 23.08836636 | R68: 1.617730629 | S68: 5.264134518 | T68: 27.84521097 | U68: 0 | V68: 25.65822319
B69: Bottled water | C69: 0 | D69: 0.023348444 | E69: 0.03107828689 | F69: 0.2128824697 | G69: 0.5596178751 | H69: 0.02972306388 | I69: 0.03955838485 | J69: 0.02974243184 | K69: 0.3203089004 | L69: 0.6335838003 | M69: 0 | N69: 0 | O69: 0 | P69: 0 | Q69: 0 | R69: 0.5676059548 | S69: 0 | T69: 0.0585844427 | U69: 0.131565337 | V69: 0
B70: Other | C70: 0.1581035689 | D70: 0.226389546 | E70: 0.3842647119 | F70: 0.3249555275 | G70: 0.05616130266 | H70: 0.0826602285 | I70: 0.5277063983 | J70: 0.2476230364 | K70: 0.3046773096 | L70: 0.07151028924 | M70: 0 | N70: 0 | O70: 0 | P70: 0.7364677857 | Q70: 0.1048940922 | R70: 0.7209723383 | S70: 0.0926083448 | T70: 0.0728963886 | U70: 0.1553042289 | V70: 0.1249644646
A108: =A1026 -> Mongolia
A109: =A1034 -> 2010
A110: Use of sanitation facilities
A111: by wealth quintile and sub-national region
A112: Notes:
A113: WHO/UNICEF JMP customised wealth index excludes water,
A114: sanitation and hygiene assets.
A115: Survey used for analysis: | B115: =A1025 -> MICS10
A116: =B1030 -> 
A117: =B1029 -> 
A120: Use of sanitation facilities | C120: NATIONAL wealth index quintile | H120: URBAN wealth index quintile | M120: RURAL wealth index quintile | R120: Region | BA120: Raw numbers of respondents: | BB120: Use of sanitation facilities | BC120: NATIONAL wealth index quintile | BH120: URBAN wealth index quintile | BM120: RURAL wealth index quintile | BR120: SUB-REGIONS:
A121: Weighted percentage (used in graphs) | C121: Poorest | D121: Poor | E121: Middle | F121: Rich | G121: Richest | H121: Poorest | I121: Poor | J121: Middle | K121: Rich | L121: Richest | M121: Poorest | N121: Poor | O121: Middle | P121: Rich | Q121: Richest | R121: Central | S121: Eastern | T121: Khangai | U121: Ulaanbaatar | V121: Western | BA121: Sanitation data, raw numbers (weighted) | BC121: Poorest | BD121: Poor | BE121: Middle | BF121: Rich | BG121: Richest | BH121: Poorest | BI121: Poor | BJ121: Middle | BK121: Rich | BL121: Richest | BM121: Poorest | BN121: Poor | BO121: Middle | BP121: Rich | BQ121: Richest | BR121: Central | BS121: Eastern | BT121: Khangai | BU121: Ulaanbaatar | BV121: Western
A122: Sanitation | B122: Improved | C122: 22.68192328 | D122: 94.44130588 | E122: 99.19028459 | F122: 99.5118885 | G122: 99.73066022 | H122: 90.28783643 | I122: 98.94718184 | J122: 99.49138343 | K122: 99.65959794 | L122: 99.73096075 | M122: 7.709197509 | N122: 10.56903645 | O122: 17.13200682 | P122: 31.20823658 | Q122: 83.61934499 | R122: 82.32548597 | S122: 74.75105949 | T122: 66.21933497 | U122: 99.26832684 | V122: 69.53703699 | BA122: Sanitation | BB122: Improved | BC122: 1632.140181 | BD122: 6790.836214 | BE122: 7144.470005 | BF122: 7165.926658 | BG122: 7171.604653 | BH122: 5099.820462 | BI122: 5599.159388 | BJ122: 5616.014373 | BK122: 5635.066412 | BL122: 5632.306587 | BM122: 119.2045557 | BN122: 161.9802894 | BO122: 266.9711789 | BP122: 482.0973317 | BQ122: 1292.357134 | BR122: 5304.943922 | BS122: 2053.29901 | BT122: 5041.602123 | BU122: 13923.17862 | BV122: 3581.954033
B123: Not Improved | C123: 77.31807672 | D123: 5.558694123 | E123: 0.8097154089 | F123: 0.4881115037 | G123: 0.2693397817 | H123: 9.712163566 | I123: 1.05281816 | J123: 0.5086165721 | K123: 0.3404020593 | L123: 0.2690392499 | M123: 92.29080249 | N123: 89.43096355 | O123: 82.86799318 | P123: 68.79176342 | Q123: 16.38065501 | R123: 17.67451403 | S123: 25.24894051 | T123: 33.78066503 | U123: 0.731673164 | V123: 30.46296301 | BB123: Not Improved | BC123: 5563.634891 | BD123: 399.6999088 | BE123: 58.32211769 | BF123: 35.14928004 | BG123: 19.36815045 | BH123: 548.5820952 | BI123: 59.57619583 | BJ123: 28.71000363 | BK123: 19.24740066 | BL123: 15.1939932 | BM123: 1427.059573 | BN123: 1370.612488 | BO123: 1291.347013 | BP123: 1062.678614 | BQ123: 253.1669718 | BR123: 1138.921984 | BS123: 693.5503646 | BT123: 2571.887389 | BU123: 102.6230267 | BV123: 1569.191584
A124: Sanitation ladder | B124: Basic | C124: 11.1843952 | D124: 48.46284342 | E124: 56.68974069 | F124: 61.295032 | G124: 93.63061558 | H124: 44.63565129 | I124: 53.41606824 | J124: 58.86723966 | K124: 67.9907918 | L124: 97.91068031 | M124: 4.149262588 | N124: 3.769079594 | O124: 7.985289133 | P124: 17.48934947 | Q124: 49.40501842 | R124: 59.99717813 | S124: 45.07392545 | T124: 40.81419771 | U124: 65.9709601 | V124: 39.89230415 | BA124: Sanitation ladder | BB124: Basic | BC124: 804.4666662 | BD124: 3484.738262 | BE124: 4083.244177 | BF124: 4412.661495 | BG124: 6728.904053 | BH124: 2519.855321 | BI124: 3022.674061 | BJ124: 3321.702248 | BK124: 3844.412732 | BL124: 5525.273145 | BM124: 64.15855901 | BN124: 57.76464163 | BO124: 124.4362132 | BP124: 270.1712636 | BQ124: 763.566469 | BR124: 3864.328545 | BS124: 1238.112839 | BT124: 3106.558786 | BU124: 9250.103806 | BV124: 2054.910677
B125: Limited | C125: 11.46511415 | D125: 45.97846246 | E125: 42.5005439 | F125: 38.2167193 | G125: 6.099882611 | H125: 45.64699752 | I125: 45.5311136 | J125: 40.62396138 | K125: 31.66880614 | L125: 1.820074322 | M125: 3.559934921 | N125: 6.799956861 | O125: 9.146717692 | P125: 13.71888711 | Q125: 34.21432657 | R125: 22.32003317 | S125: 29.67713403 | T125: 25.39615671 | U125: 33.29714113 | V125: 29.64473284 | BB125: Limited | BC125: 824.6581059 | BD125: 3306.097951 | BE125: 3061.225828 | BF125: 2751.241663 | BG125: 438.3771758 | BH125: 2576.949731 | BI125: 2576.485327 | BJ125: 2292.288625 | BK125: 1790.65368 | BL125: 102.7100184 | BM125: 55.04599669 | BN125: 104.2156477 | BO125: 142.5349657 | BP125: 211.9260681 | BQ125: 528.7906647 | BR125: 1437.599967 | BS125: 815.1861706 | BT125: 1933.019836 | BU125: 4668.751393 | BV125: 1527.043357
B126: Unimproved | C126: 15.73669446 | D126: 2.839245671 | E126: 0.3703471653 | F126: 0.1686582959 | G126: 0.1166508724 | H126: 3.491047456 | I126: 0.4504709908 | J126: 0.1927450026 | K126: 0.02238600919 | L126: 0.1485561939 | M126: 6.780553955 | N126: 12.85586254 | O126: 22.45683324 | P126: 23.58621614 | Q126: 8.022160321 | R126: 2.711250587 | S126: 4.902732166 | T126: 11.05239505 | U126: 0.2645480405 | V126: 3.797580832 | BB126: Unimproved | BC126: 1131.902612 | BD126: 204.1569856 | BE126: 26.67533645 | BF126: 12.14179916 | BG126: 8.3832892 | BH126: 197.0831444 | BI126: 25.49096225 | BJ126: 10.87602395 | BK126: 1.26577521 | BL126: 8.3832892 | BM126: 104.8452735 | BN126: 197.0280208 | BO126: 349.9489176 | BP126: 364.3541934 | BQ126: 123.9844215 | BR126: 174.6275969 | BS126: 134.6706679 | BT126: 841.2492927 | BU126: 37.0935459 | BV126: 195.6189186
B127: Open defecation | C127: 61.61379619 | D127: 2.719448452 | E127: 0.4393682436 | F127: 0.3195904055 | G127: 0.1528509417 | H127: 6.226303734 | I127: 0.6023471688 | J127: 0.3160539619 | K127: 0.3180160501 | L127: 0.1206891758 | M127: 85.51024854 | N127: 76.575101 | O127: 60.41115994 | P127: 45.20554728 | Q127: 8.358494685 | R127: 14.97153811 | S127: 20.34620835 | T127: 22.73725053 | U127: 0.4673507297 | V127: 26.66538218 | BB127: Open defecation | BC127: 4431.732279 | BD127: 195.5429233 | BE127: 31.64678124 | BF127: 23.00748088 | BG127: 10.98486125 | BH127: 351.4989508 | BI127: 34.08523358 | BJ127: 17.83397968 | BK127: 17.98162545 | BL127: 6.810704 | BM127: 1322.2143 | BN127: 1173.584467 | BO127: 941.3980951 | BP127: 698.3244204 | BQ127: 129.1825502 | BR127: 964.294387 | BS127: 558.8796967 | BT127: 1730.638096 | BU127: 65.5294808 | BV127: 1373.572666
A128: Shared among Improved Sanitation | B128: Yes | C128: 50.61970206 | D128: 48.68469578 | E128: 42.8474866 | F128: 38.40422744 | G128: 6.116366329 | H128: 50.5601 | I128: 46.01557392 | J128: 40.83171271 | K128: 31.77697562 | L128: 1.824988018 | M128: 46.17776256 | N128: 64.33847485 | O128: 53.38964539 | P128: 43.95918711 | Q128: 40.91675984 | R128: 27.11466146 | S128: 39.70128883 | T128: 38.35677506 | U128: 33.54263929 | V128: 42.63157322 | BA128: Shared among improved sanitation facilities | BB128: Yes | BC128: N/A | BD128: N/A | BE128: N/A | BF128: N/A | BG128: N/A | BH128: N/A | BI128: N/A | BJ128: N/A | BK128: N/A | BL128: N/A | BM128: N/A | BN128: N/A | BO128: N/A | BP128: N/A | BQ128: N/A | BR128: N/A | BS128: N/A | BT128: N/A | BU128: N/A | BV128: N/A
B129: No | C129: 49.38029794 | D129: 51.31530422 | E129: 57.1525134 | F129: 61.59577256 | G129: 93.88363367 | H129: 49.4399 | I129: 53.98442608 | J129: 59.16828729 | K129: 68.22302438 | L129: 98.17501198 | M129: 53.82223744 | N129: 35.66152515 | O129: 46.61035461 | P129: 56.04081289 | Q129: 59.08324016 | R129: 72.88533854 | S129: 60.29871117 | T129: 61.64322494 | U129: 66.45736071 | V129: 57.36842678 | BB129: No | BC129: N/A | BD129: N/A | BE129: N/A | BF129: N/A | BG129: N/A | BH129: N/A | BI129: N/A | BJ129: N/A | BK129: N/A | BL129: N/A | BM129: N/A | BN129: N/A | BO129: N/A | BP129: N/A | BQ129: N/A | BR129: N/A | BS129: N/A | BT129: N/A | BU129: N/A | BV129: N/A
A130: Manually calculated ratios | B130: Improved latrines
B131: Other
B132: Other
